Workbook

Sheet Feuil2
P1: GAGNANT | Q1: TOUTES
D2: GAGNANT | F2: TROT | P2: PLACE | Q2: GALOP
Q3: TROT
C4: numéros | D4: nombre de fois sorties | E4: écart | F4: date dernière sortie | G4: nombre de course | H4: % de réussite | Q4: HAIES
C5: 1 | D5: =INDEX(INDIRECT(ong&"$H$"&IF(pla,10,5)&":$AA$"&IF(pla,10,5)),,C5) -> 105 | E5: =INDEX(INDIRECT(ong&"$H$"&IF(pla,4,3)&":$AA$"&IF(pla,4,3)),,C5) -> 5 | F5: =der_sortie(IF(pla,"NPG","NGG")&CHOOSE(MATCH($F$2,typ,0),""," (2)"," (3)"," (4)"),"$A$6:$A$5006","$H$6:$AA$5006",C5) -> 2017-12-12 | G5: =INDIRECT(ong&"$AB$6")-OFFSET(INDIRECT(ong&"$G$11"),0,C5) -> 2332 | H5: =SUM(D5/G5) -> 0.04502572899
C6: 2 | D6: =INDEX(INDIRECT(ong&"$H$"&IF(pla,10,5)&":$AA$"&IF(pla,10,5)),,C6) -> 130 | E6: =INDEX(INDIRECT(ong&"$H$"&IF(pla,4,3)&":$AA$"&IF(pla,4,3)),,C6) -> 9 | F6: =der_sortie(IF(pla,"NPG","NGG")&CHOOSE(MATCH($F$2,typ,0),""," (2)"," (3)"," (4)"),"$A$6:$A$5006","$H$6:$AA$5006",C6) -> 2017-12-06 | G6: =INDIRECT(ong&"$AB$6")-OFFSET(INDIRECT(ong&"$G$11"),0,C6) -> 2344 | H6: =SUM(D6/G6) -> 0.05546075085
C7: 3 | D7: =INDEX(INDIRECT(ong&"$H$"&IF(pla,10,5)&":$AA$"&IF(pla,10,5)),,C7) -> 140 | E7: =INDEX(INDIRECT(ong&"$H$"&IF(pla,4,3)&":$AA$"&IF(pla,4,3)),,C7) -> 30 | F7: =der_sortie(IF(pla,"NPG","NGG")&CHOOSE(MATCH($F$2,typ,0),""," (2)"," (3)"," (4)"),"$A$6:$A$5006","$H$6:$AA$5006",C7) -> 2017-11-06 | G7: =INDIRECT(ong&"$AB$6")-OFFSET(INDIRECT(ong&"$G$11"),0,C7) -> 2354 | H7: 0.05947323704
C8: 4 | D8: =INDEX(INDIRECT(ong&"$H$"&IF(pla,10,5)&":$AA$"&IF(pla,10,5)),,C8) -> 152 | E8: =INDEX(INDIRECT(ong&"$H$"&IF(pla,4,3)&":$AA$"&IF(pla,4,3)),,C8) -> 2 | F8: =der_sortie(IF(pla,"NPG","NGG")&CHOOSE(MATCH($F$2,typ,0),""," (2)"," (3)"," (4)"),"$A$6:$A$5006","$H$6:$AA$5006",C8) -> 2017-12-16 | G8: =INDIRECT(ong&"$AB$6")-OFFSET(INDIRECT(ong&"$G$11"),0,C8) -> 2358 | H8: 0.06446140797
C9: 5 | D9: =INDEX(INDIRECT(ong&"$H$"&IF(pla,10,5)&":$AA$"&IF(pla,10,5)),,C9) -> 169 | E9: =INDEX(INDIRECT(ong&"$H$"&IF(pla,4,3)&":$AA$"&IF(pla,4,3)),,C9) -> 19 | F9: =der_sortie(IF(pla,"NPG","NGG")&CHOOSE(MATCH($F$2,typ,0),""," (2)"," (3)"," (4)"),"$A$6:$A$5006","$H$6:$AA$5006",C9) -> 2017-11-24 | G9: =INDIRECT(ong&"$AB$6")-OFFSET(INDIRECT(ong&"$G$11"),0,C9) -> 2351 | H9: 0.07188430455
C10: 6 | D10: =INDEX(INDIRECT(ong&"$H$"&IF(pla,10,5)&":$AA$"&IF(pla,10,5)),,C10) -> 164 | E10: =INDEX(INDIRECT(ong&"$H$"&IF(pla,4,3)&":$AA$"&IF(pla,4,3)),,C10) -> 3 | F10: =der_sortie(IF(pla,"NPG","NGG")&CHOOSE(MATCH($F$2,typ,0),""," (2)"," (3)"," (4)"),"$A$6:$A$5006","$H$6:$AA$5006",C10) -> 2017-12-15 | G10: =INDIRECT(ong&"$AB$6")-OFFSET(INDIRECT(ong&"$G$11"),0,C10) -> 2349 | H10: 0.06981694338
C11: 7 | D11: =INDEX(INDIRECT(ong&"$H$"&IF(pla,10,5)&":$AA$"&IF(pla,10,5)),,C11) -> 133 | E11: =INDEX(INDIRECT(ong&"$H$"&IF(pla,4,3)&":$AA$"&IF(pla,4,3)),,C11) -> 25 | F11: =der_sortie(IF(pla,"NPG","NGG")&CHOOSE(MATCH($F$2,typ,0),""," (2)"," (3)"," (4)"),"$A$6:$A$5006","$H$6:$AA$5006",C11) -> 2017-12-18 | G11: =INDIRECT(ong&"$AB$6")-OFFSET(INDIRECT(ong&"$G$11"),0,C11) -> 2344 | H11: 0.05674061433
C12: 8 | D12: =INDEX(INDIRECT(ong&"$H$"&IF(pla,10,5)&":$AA$"&IF(pla,10,5)),,C12) -> 170 | E12: =INDEX(INDIRECT(ong&"$H$"&IF(pla,4,3)&":$AA$"&IF(pla,4,3)),,C12) -> 13 | F12: =der_sortie(IF(pla,"NPG","NGG")&CHOOSE(MATCH($F$2,typ,0),""," (2)"," (3)"," (4)"),"$A$6:$A$5006","$H$6:$AA$5006",C12) -> 2017-12-03 | G12: =INDIRECT(ong&"$AB$6")-OFFSET(INDIRECT(ong&"$G$11"),0,C12) -> 2350 | H12: 0.07234042553
C13: 9 | D13: =INDEX(INDIRECT(ong&"$H$"&IF(pla,10,5)&":$AA$"&IF(pla,10,5)),,C13) -> 148 | E13: =INDEX(INDIRECT(ong&"$H$"&IF(pla,4,3)&":$AA$"&IF(pla,4,3)),,C13) -> 7 | F13: =der_sortie(IF(pla,"NPG","NGG")&CHOOSE(MATCH($F$2,typ,0),""," (2)"," (3)"," (4)"),"$A$6:$A$5006","$H$6:$AA$5006",C13) -> 2017-12-08 | G13: =INDIRECT(ong&"$AB$6")-OFFSET(INDIRECT(ong&"$G$11"),0,C13) -> 2342 | H13: 0.06319385141
C14: 10 | D14: =INDEX(INDIRECT(ong&"$H$"&IF(pla,10,5)&":$AA$"&IF(pla,10,5)),,C14) -> 121 | E14: =INDEX(INDIRECT(ong&"$H$"&IF(pla,4,3)&":$AA$"&IF(pla,4,3)),,C14) -> 20 | F14: =der_sortie(IF(pla,"NPG","NGG")&CHOOSE(MATCH($F$2,typ,0),""," (2)"," (3)"," (4)"),"$A$6:$A$5006","$H$6:$AA$5006",C14) -> 2017-11-23 | G14: =INDIRECT(ong&"$AB$6")-OFFSET(INDIRECT(ong&"$G$11"),0,C14) -> 2350 | H14: 0.0514893617
C15: 11 | D15: =INDEX(INDIRECT(ong&"$H$"&IF(pla,10,5)&":$AA$"&IF(pla,10,5)),,C15) -> 145 | E15: =INDEX(INDIRECT(ong&"$H$"&IF(pla,4,3)&":$AA$"&IF(pla,4,3)),,C15) -> 1 | F15: =der_sortie(IF(pla,"NPG","NGG")&CHOOSE(MATCH($F$2,typ,0),""," (2)"," (3)"," (4)"),"$A$6:$A$5006","$H$6:$AA$5006",C15) -> 2017-12-20 | G15: =INDIRECT(ong&"$AB$6")-OFFSET(INDIRECT(ong&"$G$11"),0,C15) -> 2340 | H15: 0.06196581197
C16: 12 | D16: =INDEX(INDIRECT(ong&"$H$"&IF(pla,10,5)&":$AA$"&IF(pla,10,5)),,C16) -> 121 | E16: =INDEX(INDIRECT(ong&"$H$"&IF(pla,4,3)&":$AA$"&IF(pla,4,3)),,C16) -> 26 | F16: =der_sortie(IF(pla,"NPG","NGG")&CHOOSE(MATCH($F$2,typ,0),""," (2)"," (3)"," (4)"),"$A$6:$A$5006","$H$6:$AA$5006",C16) -> 2017-11-11 | G16: =INDIRECT(ong&"$AB$6")-OFFSET(INDIRECT(ong&"$G$11"),0,C16) -> 2346 | H16: 0.0515771526
C17: 13 | D17: =INDEX(INDIRECT(ong&"$H$"&IF(pla,10,5)&":$AA$"&IF(pla,10,5)),,C17) -> 142 | E17: =INDEX(INDIRECT(ong&"$H$"&IF(pla,4,3)&":$AA$"&IF(pla,4,3)),,C17) -> 0 | F17: =der_sortie(IF(pla,"NPG","NGG")&CHOOSE(MATCH($F$2,typ,0),""," (2)"," (3)"," (4)"),"$A$6:$A$5006","$H$6:$AA$5006",C17) -> 2017-12-19 | G17: =INDIRECT(ong&"$AB$6")-OFFSET(INDIRECT(ong&"$G$11"),0,C17) -> 2347 | H17: 0.06050276949
C18: 14 | D18: =INDEX(INDIRECT(ong&"$H$"&IF(pla,10,5)&":$AA$"&IF(pla,10,5)),,C18) -> 127 | E18: =INDEX(INDIRECT(ong&"$H$"&IF(pla,4,3)&":$AA$"&IF(pla,4,3)),,C18) -> 7 | F18: =der_sortie(IF(pla,"NPG","NGG")&CHOOSE(MATCH($F$2,typ,0),""," (2)"," (3)"," (4)"),"$A$6:$A$5006","$H$6:$AA$5006",C18) -> 2017-12-09 | G18: =INDIRECT(ong&"$AB$6")-OFFSET(INDIRECT(ong&"$G$11"),0,C18) -> 2328 | H18: 0.0545532646
C19: 15 | D19: =INDEX(INDIRECT(ong&"$H$"&IF(pla,10,5)&":$AA$"&IF(pla,10,5)),,C19) -> 144 | E19: =INDEX(INDIRECT(ong&"$H$"&IF(pla,4,3)&":$AA$"&IF(pla,4,3)),,C19) -> 4 | F19: =der_sortie(IF(pla,"NPG","NGG")&CHOOSE(MATCH($F$2,typ,0),""," (2)"," (3)"," (4)"),"$A$6:$A$5006","$H$6:$AA$5006",C19) -> 2017-12-13 | G19: =INDIRECT(ong&"$AB$6")-OFFSET(INDIRECT(ong&"$G$11"),0,C19) -> 2214 | H19: 0.06504065041
C20: 16 | D20: =INDEX(INDIRECT(ong&"$H$"&IF(pla,10,5)&":$AA$"&IF(pla,10,5)),,C20) -> 102 | E20: =INDEX(INDIRECT(ong&"$H$"&IF(pla,4,3)&":$AA$"&IF(pla,4,3)),,C20) -> 6 | F20: =der_sortie(IF(pla,"NPG","NGG")&CHOOSE(MATCH($F$2,typ,0),""," (2)"," (3)"," (4)"),"$A$6:$A$5006","$H$6:$AA$5006",C20) -> 2017-12-10 | G20: =INDIRECT(ong&"$AB$6")-OFFSET(INDIRECT(ong&"$G$11"),0,C20) -> 1976 | H20: 0.0516194332
C21: 17 | D21: =INDEX(INDIRECT(ong&"$H$"&IF(pla,10,5)&":$AA$"&IF(pla,10,5)),,C21) -> 78 | E21: =INDEX(INDIRECT(ong&"$H$"&IF(pla,4,3)&":$AA$"&IF(pla,4,3)),,C21) -> 23 | F21: =der_sortie(IF(pla,"NPG","NGG")&CHOOSE(MATCH($F$2,typ,0),""," (2)"," (3)"," (4)"),"$A$6:$A$5006","$H$6:$AA$5006",C21) -> 2017-10-09 | G21: =INDIRECT(ong&"$AB$6")-OFFSET(INDIRECT(ong&"$G$11"),0,C21) -> 1551 | H21: 0.0502901354
C22: 18 | D22: =INDEX(INDIRECT(ong&"$H$"&IF(pla,10,5)&":$AA$"&IF(pla,10,5)),,C22) -> 69 | E22: =INDEX(INDIRECT(ong&"$H$"&IF(pla,4,3)&":$AA$"&IF(pla,4,3)),,C22) -> 4 | F22: =der_sortie(IF(pla,"NPG","NGG")&CHOOSE(MATCH($F$2,typ,0),""," (2)"," (3)"," (4)"),"$A$6:$A$5006","$H$6:$AA$5006",C22) -> 2017-12-05 | G22: =INDIRECT(ong&"$AB$6")-OFFSET(INDIRECT(ong&"$G$11"),0,C22) -> 1365 | H22: 0.05054945055
C23: 19 | D23: =INDEX(INDIRECT(ong&"$H$"&IF(pla,10,5)&":$AA$"&IF(pla,10,5)),,C23) -> 11 | E23: =INDEX(INDIRECT(ong&"$H$"&IF(pla,4,3)&":$AA$"&IF(pla,4,3)),,C23) -> 7 | F23: =der_sortie(IF(pla,"NPG","NGG")&CHOOSE(MATCH($F$2,typ,0),""," (2)"," (3)"," (4)"),"$A$6:$A$5006","$H$6:$AA$5006",C23) -> 2013-12-24 | G23: =INDIRECT(ong&"$AB$6")-OFFSET(INDIRECT(ong&"$G$11"),0,C23) -> 331 | H23: 0.0332326284
C24: 20 | D24: =INDEX(INDIRECT(ong&"$H$"&IF(pla,10,5)&":$AA$"&IF(pla,10,5)),,C24) -> 5 | E24: =INDEX(INDIRECT(ong&"$H$"&IF(pla,4,3)&":$AA$"&IF(pla,4,3)),,C24) -> 21 | F24: =der_sortie(IF(pla,"NPG","NGG")&CHOOSE(MATCH($F$2,typ,0),""," (2)"," (3)"," (4)"),"$A$6:$A$5006","$H$6:$AA$5006",C24) -> 2013-01-07 | G24: =INDIRECT(ong&"$AB$6")-OFFSET(INDIRECT(ong&"$G$11"),0,C24) -> 307 | H24: 0.01628664495

Sheet generale
H2: 1 | I2: 2 | J2: 3 | K2: 4 | L2: 5 | M2: 6 | N2: 7 | O2: 8 | P2: 9 | Q2: 10 | R2: 11 | S2: 12 | T2: 13 | U2: 14 | V2: 15 | W2: 16 | X2: 17 | Y2: 18 | Z2: 19 | AA2: 20 | AB2: plat | AC2: =COUNTIF(G16:G5000,"P") -> 1774 | AE2: 1 | AF2: 2 | AG2: 3 | AH2: 4 | AI2: 5 | AJ2: 6 | AK2: 7 | AL2: 8 | AM2: 9 | AN2: 10 | AO2: 11 | AP2: 12 | AQ2: 13 | AR2: 14 | AS2: 15 | AT2: 16 | AU2: 17 | AV2: 18 | AW2: 19 | AX2: 20
E3: ecart gagnant | H3: 8 | I3: 12 | J3: 43 | K3: 4 | L3: 25 | M3: 5 | N3: 2 | O3: 16 | P3: 10 | Q3: 26 | R3: 0 | S3: 37 | T3: 1 | U3: 10 | V3: 7 | W3: 8 | X3: 34 | Y3: 4 | Z3: 32 | AA3: 47 | AB3: obstacle | AC3: =COUNTIF(G16:G5000,"O") -> 571 | AE3: =SUM(H5:H8) -> 1114 | AF3: 1156 | AG3: 1213 | AH3: 1251 | AI3: 1187 | AJ3: 1252 | AK3: 1142 | AL3: 1194 | AM3: 1140 | AN3: 1099 | AO3: 1106 | AP3: 1077 | AQ3: 1090 | AR3: 1129 | AS3: 973 | AT3: 862 | AU3: 459 | AV3: 359 | AW3: 51 | AX3: 26 | AY3: quarte
E4: ecart place | H4: 5 | I4: 3 | J4: 1 | K4: 4 | L4: 0 | M4: 0 | N4: 2 | O4: 8 | P4: 1 | Q4: 16 | R4: 0 | S4: 3 | T4: 1 | U4: 10 | V4: 1 | W4: 5 | X4: 4 | Y4: 4 | Z4: 4 | AA4: 15 | AB4: trot | AC4: =COUNTIF(G16:G5000,"T") -> 2376 | AE4: =SUM(H5:H9) -> 1405 | AF4: 1461 | AG4: 1509 | AH4: 1514 | AI4: 1525 | AJ4: 1535 | AK4: 1449 | AL4: 1466 | AM4: 1408 | AN4: 1396 | AO4: 1364 | AP4: 1363 | AQ4: 1370 | AR4: 1382 | AS4: 1221 | AT4: 1078 | AU4: 576 | AV4: 475 | AW4: 63 | AX4: 40 | AY4: quinte | AZ4: =SUM(AE4:AX4) -> 23600
G5: 1er | H5: =COUNTIF(H16:H7978,1) -> 265 | I5: 289 | J5: 318 | K5: 319 | L5: 307 | M5: 304 | N5: 271 | O5: 316 | P5: 299 | Q5: 261 | R5: 300 | S5: 266 | T5: 243 | U5: 249 | V5: 244 | W5: 220 | X5: 126 | Y5: 100 | Z5: 17 | AA5: 6 | AB5: =SUM(H5:AA5) -> 4720 | AC5: =SUM(AC2:AC4) -> 4721 | AE5: =SUM(H5:H6) -> 563 | AF5: 573 | AG5: 635 | AH5: 641 | AI5: 611 | AJ5: 613 | AK5: 558 | AL5: 601 | AM5: 581 | AN5: 526 | AO5: 570 | AP5: 518 | AQ5: 509 | AR5: 551 | AS5: 490 | AT5: 437 | AU5: 236 | AV5: 184 | AW5: 30 | AX5: 13 | AY5: couple
G6: 2eme | H6: =COUNTIF(H16:H7978,2) -> 298 | I6: 284 | J6: 317 | K6: 322 | L6: 304 | M6: 309 | N6: 287 | O6: 285 | P6: 282 | Q6: 265 | R6: 270 | S6: 252 | T6: 266 | U6: 302 | V6: 246 | W6: 217 | X6: 110 | Y6: 84 | Z6: 13 | AA6: 7 | AB6: =SUM(H6:AA6) -> 4720
G7: 3eme | H7: =COUNTIF(H16:H7978,3) -> 271 | I7: 285 | J7: 300 | K7: 301 | L7: 299 | M7: 322 | N7: 296 | O7: 303 | P7: 264 | Q7: 280 | R7: 279 | S7: 274 | T7: 281 | U7: 296 | V7: 253 | W7: 209 | X7: 112 | Y7: 82 | Z7: 5 | AA7: 8 | AB7: =SUM(H7:AA7) -> 4720
G8: 4eme | H8: =COUNTIF(H16:H7978,4) -> 280 | I8: 298 | J8: 278 | K8: 309 | L8: 277 | M8: 317 | N8: 288 | O8: 290 | P8: 295 | Q8: 293 | R8: 257 | S8: 285 | T8: 300 | U8: 282 | V8: 230 | W8: 216 | X8: 111 | Y8: 93 | Z8: 16 | AA8: 5 | AB8: =SUM(H8:AA8) -> 4720
G9: 5eme | H9: =COUNTIF(H16:H7978,5) -> 291 | I9: 305 | J9: 296 | K9: 263 | L9: 338 | M9: 283 | N9: 307 | O9: 272 | P9: 268 | Q9: 297 | R9: 258 | S9: 286 | T9: 280 | U9: 253 | V9: 248 | W9: 216 | X9: 117 | Y9: 116 | Z9: 12 | AA9: 14 | AB9: =SUM(H9:AA9) -> 4720
F10: TOTAL | H10: =SUM(H5:H7) -> 834 | I10: =SUM(I5:I7) -> 858 | J10: 935 | K10: 942 | L10: 910 | M10: 935 | N10: 854 | O10: 904 | P10: 845 | Q10: 806 | R10: 849 | S10: 792 | T10: 790 | U10: 847 | V10: 743 | W10: 646 | X10: 348 | Y10: 266 | Z10: 35 | AA10: 21 | AB10: =SUM(H10:Z10) -> 14139
H11: =COUNTIF(H:H INDIRECT("16:65536")," ") -> 78 | I11: =COUNTIF(I:I INDIRECT("16:65536")," ") -> 56 | J11: =COUNTIF(J:J INDIRECT("16:65536")," ") -> 63 | K11: =COUNTIF(K:K INDIRECT("16:65536")," ") -> 53 | L11: =COUNTIF(L:L INDIRECT("16:65536")," ") -> 65 | M11: =COUNTIF(M:M INDIRECT("16:65536")," ") -> 58 | N11: =COUNTIF(N:N INDIRECT("16:65536")," ") -> 50 | O11: =COUNTIF(O:O INDIRECT("16:65536")," ") -> 62 | P11: =COUNTIF(P:P INDIRECT("16:65536")," ") -> 67 | Q11: =COUNTIF(Q:Q INDIRECT("16:65536")," ") -> 52 | R11: =COUNTIF(R:R INDIRECT("16:65536")," ") -> 58 | S11: =COUNTIF(S:S INDIRECT("16:65536")," ") -> 80 | T11: =COUNTIF(T:T INDIRECT("16:65536")," ") -> 65 | U11: =COUNTIF(U:U INDIRECT("16:65536")," ") -> 92 | V11: =COUNTIF(V:V INDIRECT("16:65536")," ") -> 259 | W11: =COUNTIF(W:W INDIRECT("16:65536")," ") -> 594 | X11: =COUNTIF(X:X INDIRECT("16:65536")," ") -> 1857 | Y11: =COUNTIF(Y:Y INDIRECT("16:65536")," ") -> 2225 | Z11: =COUNTIF(Z:Z INDIRECT("16:65536")," ") -> 4484 | AA11: =COUNTIF(AA:AA INDIRECT("16:65536")," ") -> 4553
F12: % gagnant | H12: =SUM(H5/AB8) -> 0.0561440678 | I12: =SUM(I5/AB8) -> 0.06122881356 | J12: =SUM(J5/AB8) -> 0.06737288136 | K12: =SUM(K5/AB8) -> 0.06758474576 | L12: =SUM(L5/AB8) -> 0.06504237288 | M12: =SUM(M5/AB8) -> 0.06440677966 | N12: =SUM(N5/AB8) -> 0.05741525424 | O12: =SUM(O5/AB8) -> 0.06694915254 | P12: =SUM(P5/AB8) -> 0.06334745763 | Q12: =SUM(Q5/AB8) -> 0.05529661017 | R12: =SUM(R5/AB8) -> 0.06355932203 | S12: =SUM(S5/AB8) -> 0.0563559322 | T12: =SUM(T5/AB8) -> 0.05148305085 | U12: =SUM(U5/AB8) -> 0.05275423729 | V12: =SUM(V5/AB8) -> 0.05169491525 | W12: =SUM(W5/AB8) -> 0.04661016949 | X12: =SUM(X5/AB8) -> 0.02669491525 | Y12: =SUM(Y10/AB8) -> 0.0563559322 | Z12: =SUM(Z10/AB8) -> 0.007415254237 | AA12: =SUM(AA10/AB8) -> 0.004449152542
F13: % placé | H13: =SUM(H10/AB8) -> 0.1766949153 | I13: =SUM(I10/AB8) -> 0.181779661 | J13: =SUM(J10/AB8) -> 0.1980932203 | K13: =SUM(K10/AB8) -> 0.1995762712 | L13: =SUM(L10/AB8) -> 0.1927966102 | M13: =SUM(M10/AB8) -> 0.1980932203 | N13: =SUM(N10/AB8) -> 0.1809322034 | O13: =SUM(O10/AB8) -> 0.1915254237 | P13: =SUM(P10/AB8) -> 0.1790254237 | Q13: =SUM(Q10/AB8) -> 0.1707627119 | R13: =SUM(R10/AB8) -> 0.1798728814 | S13: =SUM(S10/AB8) -> 0.1677966102 | T13: =SUM(T10/AB8) -> 0.1673728814 | U13: =SUM(U10/AB8) -> 0.1794491525 | V13: =SUM(V10/AB8) -> 0.1574152542 | W13: =SUM(W10/AB8) -> 0.1368644068 | X13: =SUM(X10/AB8) -> 0.07372881356 | Y13: =SUM(Y10/AB8) -> 0.0563559322 | Z13: =SUM(Z10/AB8) -> 0.007415254237 | AA13: =SUM(AA10/AB8) -> 0.004449152542
A15: dates | B15: ARRIVEES | H15: 1 | I15: 2 | J15: 3 | K15: 4 | L15: 5 | M15: 6 | N15: 7 | O15: 8 | P15: 9 | Q15: 10 | R15: 11 | S15: 12 | T15: 13 | U15: 14 | V15: 15 | W15: 16 | X15: 17 | Y15: 18 | Z15: 19 | AA15: 20 | AB15: nombre | AC15: hippodromme
A16: 2005-01-01 | B16: 9 | C16: 2 | D16: 6 | E16: 5 | F16: 17 | G16: T | H16: =IF(COUNTIF($B16:$F16,H$15),MATCH(H$15,$B16:$F16,0),REPT(" ",test)) ->  | I16: 2 | L16: 4 | M16: 3 | P16: 1 | R16: =IF(COUNTIF($B16:$F16,R$15),MATCH(R$15,$B16:$F16,0),REPT(" ",test)) ->  | X16: 5 | AB16: 1 | AC16: Vincennes
A17: 2005-01-02 | B17: 8 | C17: 5 | D17: 7 | E17: 2 | F17: 3 | G17: T | I17: 4 | J17: 5 | L17: 2 | N17: 3 | O17: 1 | AB17: =SUM(AB16+1) -> 2 | AC17: Vincennes | AD17: =SUM(H17:AA17) -> 15 | AE17: 15 | AF17: =SUM(AD17-AE17) -> 0
A18: 2005-01-03 | B18: 5 | C18: 13 | D18: 4 | E18: 3 | F18: 10 | G18: O | J18: 4 | K18: 3 | L18: 1 | Q18: 5 | T18: 2 | AB18: =SUM(AB17+1) -> 3 | AC18: Cagnes | AD18: =SUM(H18:AA18) -> 15 | AE18: 15 | AF18: =SUM(AD18-AE18) -> 0
A19: 2005-01-04 | B19: 4 | C19: 9 | D19: 14 | E19: 3 | F19: 8 | G19: T | J19: 4 | K19: 1 | O19: 5 | P19: 2 | U19: 3 | AB19: 4 | AC19: Vincennes | AD19: =SUM(H19:AA19) -> 15 | AE19: 15 | AF19: =SUM(AD19-AE19) -> 0
A20: 2005-01-05 | B20: 3 | C20: 7 | D20: 6 | E20: 2 | F20: 9 | G20: P | I20: 4 | J20: 1 | M20: 3 | N20: 2 | P20: 5 | AB20: 5 | AC20: Deauville | AD20: =SUM(H20:AA20) -> 15 | AE20: 16 | AF20: =SUM(AD20-AE20) -> -1
A21: 2005-01-06 | B21: 10 | C21: 13 | D21: 6 | E21: 16 | F21: 12 | G21: T | M21: 3 | Q21: 1 | S21: 5 | T21: 2 | W21: 4 | AB21: 6 | AC21: Vincennes | AD21: 15
A22: 2005-01-07 | B22: 11 | C22: 12 | D22: 2 | E22: 1 | F22: 9 | G22: O | H22: 4 | I22: 3 | P22: 5 | R22: 1 | S22: 2 | AB22: 7 | AC22: Pau | AD22: 15
A23: 2005-01-08 | B23: 6 | C23: 11 | D23: 4 | E23: 2 | F23: 18 | G23: T | I23: 4 | K23: 3 | M23: 1 | R23: 2 | Y23: 5 | AB23: 8 | AC23: Vincennes | AD23: 15
A24: 2005-01-09 | B24: 5 | C24: 4 | D24: 9 | E24: 12 | F24: 8 | G24: T | K24: 2 | L24: 1 | O24: 5 | P24: 3 | S24: 4 | AB24: 9 | AC24: Vincennes | AD24: 15
A25: 2005-01-10 | B25: 9 | C25: 16 | D25: 5 | E25: 14 | F25: 11 | G25: T | L25: 3 | P25: 1 | R25: 5 | U25: 4 | W25: 2 | AB25: 10 | AC25: Vincennes | AD25: 15
A26: 2005-01-11 | B26: 19 | C26: 9 | D26: 4 | E26: 12 | F26: 11 | G26: T | H26: =IF(COUNTIF($B26:$F26,H$15),MATCH(H$15,$B26:$F26,0),REPT(" ",test)) ->  | K26: 3 | P26: 2 | R26: =IF(COUNTIF($B26:$F26,R$15),MATCH(R$15,$B26:$F26,0),REPT(" ",test)) -> 5 | S26: 4 | Z26: 1 | AB26: 11 | AC26: Vincennes | AD26: 15
A27: 2005-01-12 | B27: 13 | C27: 5 | D27: 11 | E27: 12 | F27: 15 | G27: O | L27: 2 | R27: 3 | S27: 4 | T27: 1 | V27: 5 | AB27: 12 | AC27: Pau | AD27: 15
A28: 2005-01-13 | B28: 8 | C28: 13 | D28: 15 | E28: 16 | F28: 5 | G28: T | L28: 5 | O28: 1 | T28: 2 | V28: 3 | W28: 4 | AB28: 13 | AC28: Cagnes | AD28: 15
A29: 2005-01-14 | B29: 11 | C29: 3 | D29: 5 | E29: 15 | F29: 13 | G29: T | J29: 2 | L29: 3 | R29: 1 | T29: 5 | V29: 4 | AB29: 14 | AC29: Vincennes | AD29: 15
A30: 2005-01-15 | B30: 15 | C30: 9 | D30: 11 | E30: 10 | F30: 2 | G30: T | I30: 5 | P30: 2 | Q30: 4 | R30: 3 | V30: 1 | AB30: 15 | AC30: Vincennes | AD30: 15
A31: 2005-01-16 | B31: 6 | C31: 2 | D31: 3 | E31: 14 | F31: 15 | G31: T | I31: 2 | J31: 3 | M31: 1 | U31: 4 | V31: 5 | AB31: 16 | AC31: Vincennes | AD31: 15
A32: 2005-01-17 | B32: 12 | C32: 13 | D32: 11 | E32: 15 | F32: 9 | G32: T | P32: 5 | R32: 3 | S32: 1 | T32: 2 | V32: 4 | AB32: 17 | AC32: Vincennes | AD32: 15
A33: 2005-01-18 | B33: 7 | C33: 5 | D33: 9 | E33: 10 | F33: 11 | G33: T | L33: 2 | N33: 1 | P33: 3 | Q33: 4 | R33: 5 | AB33: 18 | AC33: Vincennes
A34: 2005-01-19 | B34: 15 | C34: 4 | D34: 13 | E34: 5 | F34: 6 | G34: P | K34: 2 | L34: 4 | M34: 5 | T34: 3 | V34: 1 | AB34: 19 | AC34: Cagnes | AD34: 15
A35: 2005-01-20 | B35: 1 | C35: 13 | D35: 2 | E35: 12 | F35: 17 | G35: T | H35: 1 | I35: 3 | S35: 4 | T35: 2 | X35: 5 | AB35: 20 | AC35: Vincennes | AD35: 15
A36: 2005-01-21 | B36: 1 | C36: 8 | D36: 10 | E36: 13 | F36: 9 | G36: P | H36: =IF(COUNTIF($B36:$F36,H$15),MATCH(H$15,$B36:$F36,0),REPT(" ",test)) -> 1 | O36: 2 | P36: 5 | Q36: 3 | R36: =IF(COUNTIF($B36:$F36,R$15),MATCH(R$15,$B36:$F36,0),REPT(" ",test)) ->  | T36: 4 | AB36: 21 | AC36: Cagnes | AD36: 15
A37: 2005-01-22 | B37: 19 | C37: 11 | D37: 14 | E37: 7 | F37: 15 | G37: T | N37: 4 | R37: 2 | U37: 3 | V37: 5 | Z37: 1 | AB37: 22 | AC37: Vincennes | AD37: 15
A38: 2005-01-23 | B38: 19 | C38: 18 | D38: 16 | E38: 13 | F38: 4 | G38: T | K38: 5 | T38: 4 | W38: 3 | Y38: 2 | Z38: 1 | AB38: 23 | AC38: Vincennes | AD38: 15
A39: 2005-01-24 | B39: 3 | C39: 18 | D39: 4 | E39: 8 | F39: 1 | G39: P | H39: 5 | J39: 1 | K39: 3 | O39: 4 | Y39: 2 | AB39: 24 | AC39: Cagnes | AD39: 15
A40: 2005-01-25 | B40: 5 | C40: 2 | D40: 11 | E40: 8 | F40: 12 | G40: T | I40: 2 | L40: 1 | O40: 4 | R40: 3 | S40: 5 | AB40: 25 | AC40: Vincennes | AD40: 15
A41: 2005-01-26 | B41: 3 | C41: 6 | D41: 2 | E41: 16 | F41: 17 | G41: P | I41: 3 | J41: 1 | M41: 2 | W41: 4 | X41: 5 | AB41: 26 | AC41: Cagnes | AD41: 15
A42: 2005-01-27 | B42: 3 | C42: 1 | D42: 2 | E42: 13 | F42: 11 | G42: T | H42: 2 | I42: 3 | J42: 1 | R42: 5 | T42: 4 | AB42: 27 | AC42: Vincennes | AD42: 15
A43: 2005-01-28 | B43: 13 | C43: 5 | D43: 14 | E43: 17 | F43: 8 | G43: T | L43: 2 | O43: 5 | T43: 1 | U43: 3 | X43: 4 | AB43: 28 | AC43: Cagnes | AD43: 15
A44: 2005-01-29 | B44: 14 | C44: 9 | D44: 2 | E44: 13 | F44: 12 | G44: T | I44: 3 | P44: 2 | S44: 5 | T44: 4 | U44: 1 | AB44: 29 | AC44: Vincennes | AD44: 15
A45: 2005-01-30 | B45: 18 | C45: 14 | D45: 12 | E45: 15 | F45: 11 | G45: T | R45: 5 | S45: 3 | U45: 2 | V45: 4 | Y45: 1 | AB45: 30 | AC45: Vincennes | AD45: 15
A46: 2005-01-31 | B46: 7 | C46: 1 | D46: 5 | E46: 6 | F46: 10 | G46: T | H46: =IF(COUNTIF($B46:$F46,H$15),MATCH(H$15,$B46:$F46,0),REPT(" ",test)) -> 2 | L46: 3 | M46: 4 | N46: 1 | Q46: 5 | R46: =IF(COUNTIF($B46:$F46,R$15),MATCH(R$15,$B46:$F46,0),REPT(" ",test)) ->  | AB46: 31 | AC46: Vincennes | AD46: 15
A47: 2005-02-01 | B47: 10 | C47: 9 | D47: 1 | E47: 5 | F47: 17 | G47: T | H47: 3 | L47: 4 | P47: 2 | Q47: 1 | X47: 5 | AB47: 32 | AC47: Vincennes | AD47: 15
A48: 2005-02-02 | B48: 7 | C48: 11 | D48: 1 | E48: 5 | F48: 9 | G48: P | H48: 3 | L48: 4 | N48: 1 | P48: 5 | R48: 2 | AB48: 33 | AC48: Cagnes | AD48: 15
A49: 2005-02-03 | B49: 8 | C49: 7 | D49: 2 | E49: 11 | F49: 5 | G49: T | I49: 3 | L49: 5 | N49: 2 | O49: 1 | R49: 4 | AB49: 34 | AC49: Vincennes | AD49: 15
A50: 2005-02-04 | B50: 6 | C50: 14 | D50: 7 | E50: 3 | F50: 16 | G50: O | J50: 4 | M50: 1 | N50: 3 | U50: 2 | W50: 5 | AB50: 35 | AC50: Pau | AD50: 15
A51: 2005-02-05 | B51: 11 | C51: 18 | D51: 15 | E51: 19 | F51: 6 | G51: T | M51: 5 | R51: 1 | V51: 3 | Y51: 2 | Z51: 4 | AB51: 36 | AC51: Vincennes | AD51: 15
A52: 2005-02-06 | B52: 3 | C52: 18 | D52: 6 | E52: 5 | F52: 19 | G52: T | J52: 1 | L52: 4 | M52: 3 | Y52: 2 | Z52: 5 | AB52: 37 | AC52: Vincennes | AD52: 15
A53: 2005-02-07 | B53: 11 | C53: 15 | D53: 17 | E53: 4 | F53: 5 | G53: T | K53: 4 | L53: 5 | R53: 1 | V53: 2 | X53: 3 | AB53: 38 | AC53: Enghien | AD53: 15
A54: 2005-02-08 | B54: 2 | C54: 1 | D54: 9 | E54: 3 | F54: 16 | G54: T | H54: 2 | I54: 1 | J54: 4 | P54: 3 | W54: 5 | AB54: 39 | AC54: Cagnes | AD54: 15
A55: 2005-02-09 | B55: 15 | C55: 5 | D55: 7 | E55: 9 | F55: 13 | G55: T | L55: 2 | N55: 3 | P55: 4 | T55: 5 | V55: 1 | AB55: 40 | AC55: Vincennes | AD55: 15
A56: 2005-02-10 | B56: 19 | C56: 14 | D56: 13 | E56: 16 | F56: 17 | G56: T | H56: =IF(COUNTIF($B56:$F56,H$15),MATCH(H$15,$B56:$F56,0),REPT(" ",test)) ->  | R56: =IF(COUNTIF($B56:$F56,R$15),MATCH(R$15,$B56:$F56,0),REPT(" ",test)) ->  | T56: 3 | U56: 2 | W56: 4 | X56: 5 | Z56: 1 | AB56: 41 | AC56: Vincennes | AD56: 15
A57: 2005-02-11 | B57: 14 | C57: 10 | D57: 15 | E57: 8 | F57: 5 | G57: T | L57: 5 | O57: 4 | Q57: 2 | U57: 1 | V57: 3 | AB57: 42 | AC57: Cagnes | AD57: 15
A58: 2005-02-12 | B58: 20 | C58: 14 | D58: 7 | E58: 18 | F58: 13 | G58: T | N58: 3 | T58: 5 | U58: 2 | Y58: 4 | AA58: 1 | AB58: 43 | AC58: Vincennes | AD58: 15
A59: 2005-02-13 | B59: 4 | C59: 7 | D59: 15 | E59: 8 | F59: 9 | G59: T | K59: 1 | N59: 2 | O59: 4 | P59: 5 | V59: 3 | AB59: 44 | AC59: Vincennes | AD59: 15
A60: 2005-02-14 | B60: 17 | C60: 16 | D60: 6 | E60: 13 | F60: 4 | G60: T | K60: 5 | M60: 3 | T60: 4 | W60: 2 | X60: 1 | AB60: 45 | AC60: Enghien | AD60: 15
A61: 2005-02-15 | B61: 14 | C61: 15 | D61: 11 | E61: 12 | F61: 17 | G61: P | R61: 3 | S61: 4 | U61: 1 | V61: 2 | X61: 5 | AB61: 46 | AC61: Cagnes | AD61: 15
A62: 2005-02-16 | B62: 1 | C62: 5 | D62: 11 | E62: 9 | F62: 8 | G62: T | H62: 1 | L62: 2 | O62: 5 | P62: 4 | R62: 3 | AB62: 47 | AC62: Cagnes | AD62: 15
A63: 2005-02-17 | B63: 11 | C63: 7 | D63: 2 | E63: 6 | F63: 1 | G63: T | H63: 5 | I63: 3 | M63: 4 | N63: 2 | R63: 1 | AB63: 48 | AC63: Vincennes | AD63: 15
A64: 2005-02-18 | B64: 8 | C64: 15 | D64: 6 | E64: 14 | F64: 12 | G64: T | M64: 3 | O64: 1 | S64: 5 | U64: 4 | V64: 2 | AB64: 49 | AC64: Enghien | AD64: 15
A65: 2005-02-19 | B65: 5 | C65: 14 | D65: 2 | E65: 8 | F65: 17 | G65: P | I65: 3 | L65: 1 | O65: 4 | U65: 2 | X65: 5 | AB65: 50 | AC65: Cagnes | AD65: 15
A66: 2005-02-20 | B66: 4 | C66: 2 | D66: 11 | E66: 9 | F66: 8 | G66: T | H66: =IF(COUNTIF($B66:$F66,H$15),MATCH(H$15,$B66:$F66,0),REPT(" ",test)) ->  | I66: 2 | K66: 1 | O66: 5 | P66: 4 | R66: =IF(COUNTIF($B66:$F66,R$15),MATCH(R$15,$B66:$F66,0),REPT(" ",test)) -> 3 | AB66: 51 | AC66: Vincennes | AD66: 15
A67: 2005-02-21 | B67: 4 | C67: 3 | D67: 9 | E67: 8 | F67: 2 | G67: T | I67: 5 | J67: 2 | K67: 1 | O67: 4 | P67: 3 | AB67: 52 | AC67: Vincennes | AD67: 15
A68: 2005-02-22 | B68: 10 | C68: 11 | D68: 2 | E68: 13 | F68: 8 | G68: T | I68: 3 | O68: 5 | Q68: 1 | R68: 2 | T68: 4 | AB68: 53 | AC68: Vincennes | AD68: 15
A69: 2005-02-23 | B69: 14 | C69: 16 | D69: 10 | E69: 3 | F69: 6 | G69: P | J69: 4 | M69: 5 | Q69: 3 | U69: 1 | W69: 2 | AB69: 54 | AC69: Cagnes | AD69: 15
A70: 2005-02-24 | B70: 13 | C70: 2 | D70: 6 | E70: 5 | F70: 15 | G70: T | I70: 2 | L70: 4 | M70: 3 | T70: 1 | V70: 5 | AB70: 55 | AC70: Vincennes | AD70: 15
A71: 2005-02-25 | B71: 18 | C71: 16 | D71: 17 | E71: 19 | F71: 9 | G71: T | P71: 5 | W71: 2 | X71: 3 | Y71: 1 | Z71: 4 | AB71: 56 | AC71: Vincennes | AD71: 15
A72: 2005-02-26 | B72: 18 | C72: 6 | D72: 14 | E72: 7 | F72: 11 | G72: P | M72: 2 | N72: 4 | R72: 5 | U72: 3 | Y72: 1 | AB72: 57 | AC72: Cagnes | AD72: 15
A73: 2005-02-27 | B73: 9 | C73: 6 | D73: 3 | E73: 8 | F73: 7 | G73: T | J73: 3 | M73: 2 | N73: 5 | O73: 4 | P73: 1 | AB73: 58 | AC73: Vincennes | AD73: 15
A74: 2005-03-01 | B74: 3 | C74: 4 | D74: 5 | E74: 2 | F74: 6 | G74: T | I74: 4 | J74: 1 | K74: 2 | L74: 3 | M74: 5 | AB74: 59 | AC74: Cagnes | AD74: 15
A75: 2005-03-02 | B75: 6 | C75: 5 | D75: 8 | E75: 7 | F75: 4 | G75: T | K75: 5 | L75: 2 | M75: 1 | N75: 4 | O75: 3 | AB75: 60 | AC75: Enghien | AD75: 15
A76: 2005-03-03 | B76: 13 | C76: 11 | D76: 14 | E76: 2 | F76: 7 | G76: T | H76: =IF(COUNTIF($B76:$F76,H$15),MATCH(H$15,$B76:$F76,0),REPT(" ",test)) ->  | I76: 4 | N76: 5 | R76: =IF(COUNTIF($B76:$F76,R$15),MATCH(R$15,$B76:$F76,0),REPT(" ",test)) -> 2 | T76: 1 | U76: 3 | AB76: 61 | AC76: Vincennes | AD76: 15
A77: 2005-03-04 | B77: 12 | C77: 6 | D77: 7 | E77: 1 | F77: 2 | G77: T | H77: 4 | I77: 5 | M77: 2 | N77: 3 | S77: 1 | AB77: 62 | AC77: Cagnes | AD77: 15
A78: 2005-03-05 | B78: 12 | C78: 2 | D78: 8 | E78: 6 | F78: 7 | G78: T | I78: 2 | M78: 4 | N78: 5 | O78: 3 | S78: 1 | AB78: 63 | AC78: Vincennes | AD78: 15
A79: 2005-03-06 | B79: 15 | C79: 10 | D79: 5 | E79: 2 | F79: 6 | G79: T | I79: 4 | L79: 3 | M79: 5 | Q79: 2 | V79: 1 | AB79: 64 | AC79: Agen | AD79: 15
A80: 2005-03-07 | B80: 14 | C80: 15 | D80: 12 | E80: 10 | F80: 8 | G80: T | O80: 5 | Q80: 4 | S80: 3 | U80: 1 | V80: 2 | AB80: 65 | AC80: Caen | AD80: 15
A81: 2005-03-08 | B81: 1 | C81: 4 | D81: 7 | E81: 14 | F81: 12 | G81: O | H81: 1 | K81: 2 | N81: 3 | S81: 5 | U81: 4 | AB81: 66 | AC81: Nantes | AD81: 15
A82: 2005-03-09 | B82: 3 | C82: 6 | D82: 13 | E82: 1 | F82: 7 | G82: T | H82: 4 | J82: 1 | M82: 2 | N82: 5 | T82: 3 | AB82: =SUM(AB81+1) -> 67 | AC82: Amiens | AD82: 15
A83: 2005-03-10 | B83: 13 | C83: 5 | D83: 4 | E83: 12 | F83: 16 | G83: P | K83: 3 | L83: 2 | S83: 4 | T83: 1 | W83: 5 | AB83: 68 | AC83: Saint Cloud | AD83: 15
A84: 2005-03-11 | B84: 2 | C84: 7 | D84: 3 | E84: 6 | F84: 5 | G84: P | I84: 1 | J84: 3 | L84: 5 | M84: 4 | N84: 2 | AB84: 69 | AC84: Fontainebleau | AD84: =SUM(H84:AA84) -> 15
A85: 2005-03-12 | B85: 10 | C85: 1 | D85: 12 | E85: 9 | F85: 5 | G85: P | H85: 2 | L85: 5 | P85: 4 | Q85: 1 | S85: 3 | AB85: 70 | AC85: Saint Cloud | AD85: 15
A86: 2005-03-13 | B86: 6 | C86: 1 | D86: 14 | E86: 10 | F86: 11 | G86: O | H86: =IF(COUNTIF($B86:$F86,H$15),MATCH(H$15,$B86:$F86,0),REPT(" ",test)) -> 2 | M86: 1 | Q86: 4 | R86: =IF(COUNTIF($B86:$F86,R$15),MATCH(R$15,$B86:$F86,0),REPT(" ",test)) -> 5 | U86: 3 | AB86: 71 | AC86: Auteuil | AD86: 15
A87: 2005-03-14 | B87: 5 | C87: 18 | D87: 4 | E87: 2 | F87: 12 | G87: P | I87: 4 | K87: 3 | L87: 1 | S87: 5 | Y87: 2 | AB87: 72 | AC87: Compiègne | AD87: 15
A88: 2005-03-15 | B88: 15 | C88: 13 | D88: 5 | E88: 9 | F88: 11 | G88: P | L88: 3 | P88: 4 | R88: 5 | T88: 2 | V88: 1 | AB88: 73 | AC88: Maisons-Laffitte | AD88: 15
A89: 2005-03-16 | B89: 1 | C89: 2 | D89: 5 | E89: 4 | F89: 3 | G89: T | H89: 1 | I89: 2 | J89: 5 | K89: 4 | L89: 3 | AB89: 74 | AC89: Laval | AD89: 15
A90: 2005-03-17 | B90: 11 | C90: 15 | D90: 17 | E90: 7 | F90: 1 | G90: P | H90: 5 | N90: 4 | R90: 1 | V90: 2 | X90: 3 | AB90: 75 | AC90: Saint Cloud | AD90: 15
A91: 2005-03-18 | B91: 2 | C91: 7 | D91: 17 | E91: 4 | F91: 14 | G91: P | I91: 1 | K91: 4 | N91: 2 | U91: 5 | X91: 3 | AB91: 76 | AC91: Maisons-Laffitte | AD91: 15
A92: 2005-03-19 | B92: 8 | C92: 10 | D92: 6 | E92: 11 | F92: 9 | G92: P | M92: 3 | O92: 1 | P92: 5 | Q92: 2 | R92: 4 | AB92: 77 | AC92: Saint Cloud | AD92: 15
A93: 2005-03-20 | B93: 8 | C93: 11 | D93: 14 | E93: 10 | F93: 9 | G93: O | O93: 1 | P93: 5 | Q93: 4 | R93: 2 | U93: 3 | AB93: 78 | AC93: Auteuil | AD93: 15
A94: 2005-03-21 | B94: 4 | C94: 1 | D94: 13 | E94: 8 | F94: 11 | G94: P | H94: 2 | K94: 1 | O94: 4 | R94: 5 | T94: 3 | AB94: 79 | AC94: Compiègne | AD94: 15
A95: 2005-03-22 | B95: 5 | C95: 2 | D95: 8 | E95: 15 | F95: 7 | G95: T | I95: 2 | L95: 1 | N95: 5 | O95: 3 | V95: 4 | AB95: 80 | AC95: Vincennes | AD95: 15
A96: 2005-03-23 | B96: 15 | C96: 14 | D96: 2 | E96: 10 | F96: 7 | G96: T | H96: =IF(COUNTIF($B96:$F96,H$15),MATCH(H$15,$B96:$F96,0),REPT(" ",test)) ->  | I96: 3 | N96: 5 | Q96: 4 | R96: =IF(COUNTIF($B96:$F96,R$15),MATCH(R$15,$B96:$F96,0),REPT(" ",test)) ->  | U96: 2 | V96: 1 | AB96: 81 | AC96: Agen | AD96: 15
A97: 2005-03-24 | B97: 9 | C97: 12 | D97: 4 | E97: 14 | F97: 5 | G97: P | K97: 3 | L97: 5 | P97: 1 | S97: 2 | U97: 4 | AB97: 82 | AC97: Longchamp | AD97: 15
A98: 2005-03-25 | B98: 7 | C98: 15 | D98: 2 | E98: 13 | F98: 11 | G98: P | I98: 3 | N98: 1 | R98: 5 | T98: 4 | V98: 2 | AB98: 83 | AC98: Maisons-Laffitte | AD98: 15
A99: 2005-03-26 | B99: 17 | C99: 16 | D99: 1 | E99: 13 | F99: 3 | G99: T | H99: 3 | J99: 5 | T99: 4 | W99: 2 | X99: 1 | AB99: 84 | AC99: Vincennes | AD99: 15
A100: 2005-03-27 | B100: 1 | C100: 15 | D100: 5 | E100: 4 | F100: 20 | G100: O | H100: 1 | K100: 4 | L100: 3 | V100: 2 | AA100: 5 | AB100: 85 | AC100: Auteuil | AD100: 15
A101: 2005-03-28 | B101: 16 | C101: 12 | D101: 14 | E101: 6 | F101: 7 | G101: P | M101: 4 | N101: 5 | S101: 2 | U101: 3 | W101: 1 | AB101: 86 | AC101: Saint Cloud | AD101: 15
A102: 2005-03-29 | B102: 10 | C102: 12 | D102: 18 | E102: 3 | F102: 16 | G102: P | J102: 4 | Q102: 1 | S102: 2 | W102: 5 | Y102: 3 | AB102: 87 | AC102: Fontainebleau | AD102: 15
A103: 2005-03-30 | B103: 15 | C103: 8 | D103: 14 | E103: 5 | F103: 6 | G103: T | L103: 4 | M103: 5 | O103: 2 | U103: 3 | V103: 1 | AB103: 88 | AC103: Marseille Borely | AD103: 15
A104: 2005-03-31 | B104: 13 | C104: 3 | D104: 15 | E104: 16 | F104: 17 | G104: P | J104: 2 | T104: 1 | V104: 3 | W104: 4 | X104: 5 | AB104: 89 | AC104: Longchamp | AD104: 15
A105: 2005-04-01 | B105: 1 | C105: 3 | D105: 8 | E105: 7 | F105: 2 | G105: T | H105: 1 | I105: 5 | J105: 2 | N105: 4 | O105: 3 | AB105: 90 | AC105: Vincennes | AD105: 15
A106: 2005-04-02 | B106: 11 | C106: 4 | D106: 18 | E106: 7 | F106: 10 | G106: O | H106: =IF(COUNTIF($B106:$F106,H$15),MATCH(H$15,$B106:$F106,0),REPT(" ",test)) ->  | K106: 2 | N106: 4 | Q106: 5 | R106: =IF(COUNTIF($B106:$F106,R$15),MATCH(R$15,$B106:$F106,0),REPT(" ",test)) -> 1 | Y106: 3 | AB106: 91 | AC106: Auteuil | AD106: 15
A107: 2005-04-03 | B107: 16 | C107: 3 | D107: 11 | E107: 12 | F107: 9 | G107: P | J107: 2 | P107: 5 | R107: 3 | S107: 4 | W107: 1 | AB107: 92 | AC107: Longchamp | AD107: 15
A108: 2005-04-04 | B108: 16 | C108: 2 | D108: 19 | E108: 15 | F108: 5 | G108: P | I108: 2 | L108: 5 | V108: 4 | W108: 1 | Z108: 3 | AB108: 93 | AC108: Saint Cloud | AD108: 15
A109: 2005-04-05 | B109: 5 | C109: 3 | D109: 10 | E109: 17 | F109: 16 | G109: P | J109: 2 | L109: 1 | Q109: 3 | W109: 5 | X109: 4 | AB109: 94 | AC109: Maisons-Laffitte | AD109: 15
A110: 2005-04-06 | B110: 4 | C110: 3 | D110: 15 | E110: 14 | F110: 2 | G110: T | I110: 5 | J110: 2 | K110: 1 | U110: 4 | V110: 3 | AB110: 95 | AC110: Angers | AD110: 15
A111: 2005-04-07 | B111: 9 | C111: 4 | D111: 13 | E111: 8 | F111: 15 | G111: P | K111: 2 | O111: 4 | P111: 1 | T111: 3 | V111: 5 | AB111: 96 | AC111: Longchamp | AD111: 15
A112: 2005-04-08 | B112: 11 | C112: 14 | D112: 7 | E112: 6 | F112: 5 | G112: O | L112: 5 | M112: 4 | N112: 3 | R112: 1 | U112: 2 | AB112: 97 | AC112: Auteuil | AD112: 15
A113: 2005-04-09 | B113: 13 | C113: 7 | D113: 15 | E113: 16 | F113: 12 | G113: T | N113: 2 | S113: 5 | T113: 1 | V113: 3 | W113: 4 | AB113: 98 | AC113: Vincennes | AD113: 15
A114: 2005-04-10 | B114: 17 | C114: 16 | D114: 9 | E114: 14 | F114: 6 | G114: P | M114: 5 | P114: 3 | U114: 4 | W114: 2 | X114: 1 | AB114: 99 | AC114: Longchamp | AD114: 15
A115: 2005-04-11 | B115: 17 | C115: 7 | D115: 16 | E115: 2 | F115: 18 | G115: P | I115: 4 | N115: 2 | W115: 3 | X115: 1 | Y115: 5 | AB115: 100 | AC115: Saint Cloud | AD115: 15
A116: 2005-04-12 | B116: 8 | C116: 5 | D116: 16 | E116: 12 | F116: 18 | G116: O | H116: =IF(COUNTIF($B116:$F116,H$15),MATCH(H$15,$B116:$F116,0),REPT(" ",test)) ->  | L116: 2 | O116: 1 | R116: =IF(COUNTIF($B116:$F116,R$15),MATCH(R$15,$B116:$F116,0),REPT(" ",test)) ->  | S116: 4 | W116: 3 | Y116: 5 | AB116: 101 | AC116: Auteuil | AD116: 15
A117: 2005-04-13 | B117: 16 | C117: 12 | D117: 8 | E117: 15 | F117: 9 | G117: T | O117: 3 | P117: 5 | S117: 2 | V117: 4 | W117: 1 | AB117: 102 | AC117: Saint Galmier | AD117: 15
A118: 2005-04-14 | B118: 1 | C118: 20 | D118: 4 | E118: 13 | F118: 7 | G118: O | H118: 1 | K118: 3 | N118: 5 | T118: 4 | AA118: 2 | AB118: 103 | AC118: Enghien | AD118: 15
A119: 2005-04-15 | B119: 3 | C119: 13 | D119: 11 | E119: 2 | F119: 10 | G119: P | I119: 4 | J119: 1 | Q119: 5 | R119: 3 | T119: 2 | AB119: 104 | AC119: Longchamp | AD119: 15
A120: 2005-04-16 | B120: 11 | C120: 12 | D120: 15 | E120: 4 | F120: 2 | G120: T | I120: 5 | K120: 4 | R120: 1 | S120: 2 | V120: 3 | AB120: 105 | AC120: Vincennes | AD120: 15
A121: 2005-04-17 | B121: 15 | C121: 16 | D121: 5 | E121: 19 | F121: 14 | G121: O | L121: 3 | U121: 5 | V121: 1 | W121: 2 | Z121: 4 | AB121: 106 | AC121: Auteuil | AD121: 15
A122: 2005-04-18 | B122: 5 | C122: 7 | D122: 6 | E122: 13 | F122: 10 | G122: P | L122: 1 | M122: 3 | N122: 2 | Q122: 5 | T122: 4 | AB122: 107 | AC122: Compiègne | AD122: 15
A123: 2005-04-19 | B123: 14 | C123: 15 | D123: 12 | E123: 8 | F123: 18 | G123: P | O123: 4 | S123: 3 | U123: 1 | V123: 2 | Y123: 5 | AB123: 108 | AC123: Saint Cloud | AD123: 15
A124: 2005-04-20 | B124: 5 | C124: 9 | D124: 4 | E124: 7 | F124: 13 | G124: T | K124: 3 | L124: 1 | N124: 4 | P124: 2 | T124: 5 | AB124: 109 | AC124: Cordemais | AD124: 15
A125: 2005-04-22 | B125: 5 | C125: 14 | D125: 13 | E125: 6 | F125: 10 | G125: T | L125: 1 | M125: 4 | Q125: 5 | T125: 3 | U125: 2 | AB125: 110 | AC125: Vincennes | AD125: 15
A126: 2005-04-23 | B126: 5 | C126: 3 | D126: 1 | E126: 4 | F126: 15 | G126: T | H126: =IF(COUNTIF($B126:$F126,H$15),MATCH(H$15,$B126:$F126,0),REPT(" ",test)) -> 3 | J126: 2 | K126: 4 | L126: 1 | R126: =IF(COUNTIF($B126:$F126,R$15),MATCH(R$15,$B126:$F126,0),REPT(" ",test)) ->  | V126: 5 | AB126: 111 | AC126: Enghien | AD126: 15
A127: 2005-04-24 | B127: 8 | C127: 18 | D127: 13 | E127: 14 | F127: 6 | G127: P | M127: 5 | O127: 1 | T127: 3 | U127: 4 | Y127: 2 | AB127: 112 | AC127: Longchamp | AD127: 15
A128: 2005-04-25 | B128: 11 | C128: 8 | D128: 9 | E128: 6 | F128: 16 | G128: P | M128: 4 | O128: 2 | P128: 3 | R128: 1 | W128: 5 | AB128: 113 | AC128: Chantilly | AD128: 15
A129: 2005-04-26 | B129: 10 | C129: 11 | D129: 3 | E129: 14 | F129: 9 | G129: T | J129: 3 | P129: 5 | Q129: 1 | R129: 2 | U129: 4 | AB129: 114 | AC129: Vincennes | AD129: 15
A130: 2005-04-27 | B130: 10 | C130: 13 | D130: 14 | E130: 8 | F130: 5 | G130: T | L130: 5 | O130: 4 | Q130: 1 | T130: 2 | U130: 3 | AB130: 115 | AC130: Toulouse | AD130: 15
A131: 2005-04-28 | B131: 4 | C131: 10 | D131: 3 | E131: 1 | F131: 12 | G131: P | H131: 4 | J131: 3 | K131: 1 | Q131: 2 | S131: 5 | AB131: 116 | AC131: Longchamp | AD131: 15
A132: 2005-04-29 | B132: 8 | C132: 3 | D132: 14 | E132: 13 | F132: 6 | G132: T | J132: 2 | M132: 5 | O132: 1 | T132: 4 | U132: 3 | AB132: 117 | AC132: Vincennes | AD132: 15
A133: 2005-04-30 | B133: 9 | C133: 17 | D133: 11 | E133: 4 | F133: 16 | G133: P | K133: 4 | P133: 1 | R133: 3 | W133: 5 | X133: 2 | AB133: 118 | AC133: Longchamp | AD133: 15
A134: 2005-05-01 | B134: 17 | C134: 6 | D134: 13 | E134: 15 | F134: 2 | G134: P | I134: 5 | M134: 2 | T134: 3 | V134: 4 | X134: 1 | AB134: 119 | AC134: Saint Cloud | AD134: 15
A135: 2005-05-02 | B135: 14 | C135: 12 | D135: 13 | E135: 8 | F135: 3 | G135: T | J135: 5 | O135: 4 | S135: 2 | T135: 3 | U135: 1 | AB135: 120 | AC135: Enghien | AD135: 15
A136: 2005-05-03 | B136: 4 | C136: 14 | D136: 9 | E136: 5 | F136: 17 | G136: O | H136: =IF(COUNTIF($B136:$F136,H$15),MATCH(H$15,$B136:$F136,0),REPT(" ",test)) ->  | K136: 1 | L136: 4 | P136: 3 | R136: =IF(COUNTIF($B136:$F136,R$15),MATCH(R$15,$B136:$F136,0),REPT(" ",test)) ->  | U136: 2 | X136: 5 | AB136: 121 | AC136: Auteuil | AD136: 15
A137: 2005-05-04 | B137: 13 | C137: 9 | D137: 10 | E137: 14 | F137: 5 | G137: T | L137: 5 | P137: 2 | Q137: 3 | T137: 1 | U137: 4 | AB137: 122 | AC137: Lyon Parilly | AD137: 15
A138: 2005-05-05 | B138: 16 | C138: 8 | D138: 4 | E138: 17 | F138: 18 | G138: P | K138: 3 | O138: 2 | W138: 1 | X138: 4 | Y138: 5 | AB138: 123 | AC138: Lyon Parilly | AD138: 15
A139: 2005-05-06 | B139: 9 | C139: 12 | D139: 16 | E139: 1 | F139: 7 | G139: P | H139: 4 | N139: 5 | P139: 1 | S139: 2 | W139: 3 | AB139: 124 | AC139: Lyon Parilly | AD139: 15
A140: 2005-05-07 | B140: 17 | C140: 3 | D140: 10 | E140: 8 | F140: 5 | G140: T | J140: 2 | L140: 5 | O140: 4 | Q140: 3 | X140: 1 | AB140: 125 | AC140: Vincennes | AD140: 15
A141: 2005-05-08 | B141: 14 | C141: 15 | D141: 11 | E141: 10 | F141: 18 | G141: O | Q141: 4 | R141: 3 | U141: 1 | V141: 2 | Y141: 5 | AB141: 126 | AC141: Auteuil | AD141: 15
A142: 2005-05-09 | B142: 7 | C142: 4 | D142: 10 | E142: 15 | F142: 16 | G142: P | K142: 2 | N142: 1 | Q142: 3 | V142: 4 | W142: 5 | AB142: 127 | AC142: Longchamp | AD142: 15
A143: 2005-05-10 | B143: 13 | C143: 18 | D143: 9 | E143: 2 | F143: 3 | G143: T | I143: 4 | J143: 5 | P143: 3 | T143: 1 | Y143: 2 | AB143: 128 | AC143: Vincennes | AD143: 15
A144: 2005-05-11 | B144: 11 | C144: 4 | D144: 10 | E144: 14 | F144: 3 | G144: T | J144: 5 | K144: 2 | Q144: 3 | R144: 1 | U144: 4 | AB144: 129 | AC144: Beaumont | AD144: 15
A145: 2005-05-12 | B145: 15 | C145: 12 | D145: 5 | E145: 8 | F145: 1 | G145: P | H145: 5 | L145: 3 | O145: 4 | S145: 2 | V145: 1 | AB145: 130 | AC145: Longchamp | AD145: 15
A146: 2005-05-13 | B146: 11 | C146: 7 | D146: 10 | E146: 16 | F146: 17 | G146: O | H146: =IF(COUNTIF($B146:$F146,H$15),MATCH(H$15,$B146:$F146,0),REPT(" ",test)) ->  | N146: 2 | Q146: 3 | R146: =IF(COUNTIF($B146:$F146,R$15),MATCH(R$15,$B146:$F146,0),REPT(" ",test)) -> 1 | W146: 4 | X146: 5 | AB146: =SUM(AB145+1) -> 131 | AC146: Auteuil | AD146: 15
A147: 2005-05-14 | B147: 10 | C147: 9 | D147: 8 | E147: 2 | F147: 12 | G147: T | I147: 4 | O147: 3 | P147: 2 | Q147: 1 | S147: 5 | AB147: 132 | AC147: Vincennes | AD147: 15
A148: 2005-05-15 | B148: 11 | C148: 15 | D148: 7 | E148: 5 | F148: 4 | G148: P | K148: 5 | L148: 4 | N148: 3 | R148: 1 | V148: 2 | AB148: 133 | AC148: Longchamp | AD148: =SUM(H148:AA148) -> 15
A149: 2005-05-16 | B149: 3 | C149: 10 | D149: 9 | E149: 16 | F149: 14 | G149: P | J149: 1 | P149: 3 | Q149: 2 | U149: 5 | W149: 4 | AB149: 134 | AC149: Saint Cloud | AD149: 15
A150: 2005-05-17 | B150: 13 | C150: 17 | D150: 18 | E150: 5 | F150: 6 | G150: T | L150: 4 | M150: 5 | T150: 1 | X150: 2 | Y150: 3 | AB150: 135 | AC150: Vincennes | AD150: 15
A151: 2005-05-18 | B151: 3 | C151: 15 | D151: 2 | E151: 13 | F151: 10 | G151: T | I151: 3 | J151: 1 | Q151: 5 | T151: 4 | V151: 2 | AB151: 136 | AC151: Caen | AD151: 15
A152: 2005-05-19 | B152: 2 | C152: 3 | D152: 18 | E152: 15 | F152: 12 | G152: P | I152: 1 | J152: 2 | S152: 5 | V152: 4 | Y152: 3 | AB152: 137 | AC152: Longchamp | AD152: 15
A153: 2005-05-20 | B153: 5 | C153: 7 | D153: 6 | E153: 4 | F153: 12 | G153: O | K153: 4 | L153: 1 | M153: 3 | N153: 2 | S153: 5 | AB153: 138 | AC153: Auteuil | AD153: 15
A154: 2005-05-21 | B154: 4 | C154: 11 | D154: 2 | E154: 13 | F154: 6 | G154: P | I154: 3 | K154: 1 | M154: 5 | R154: 2 | T154: 4 | AB154: 139 | AC154: Maisons-Laffitte | AD154: 15
A155: 2005-05-22 | B155: 12 | C155: 6 | D155: 1 | E155: 17 | F155: 10 | G155: P | H155: 3 | M155: 2 | Q155: 5 | S155: 1 | X155: 4 | AB155: 140 | AC155: Longchamp | AD155: 15
A156: 2005-05-23 | B156: 9 | C156: 14 | D156: 15 | E156: 7 | F156: 8 | G156: P | H156: =IF(COUNTIF($B156:$F156,H$15),MATCH(H$15,$B156:$F156,0),REPT(" ",test)) ->  | N156: 4 | O156: 5 | P156: 1 | R156: =IF(COUNTIF($B156:$F156,R$15),MATCH(R$15,$B156:$F156,0),REPT(" ",test)) ->  | U156: 2 | V156: 3 | AB156: 141 | AC156: Chantilly | AD156: 15
A157: 2005-05-24 | B157: 10 | C157: 3 | D157: 8 | E157: 9 | F157: 1 | G157: T | H157: 5 | J157: 2 | O157: 3 | P157: 4 | Q157: 1 | AB157: 142 | AC157: Vincennes | AD157: 15
A158: 2005-05-25 | B158: 15 | C158: 14 | D158: 3 | E158: 2 | F158: 7 | G158: T | I158: 4 | J158: 3 | N158: 5 | U158: 2 | V158: 1 | AB158: 143 | AC158: Le Croisé Laroche | AD158: 15
A159: 2005-05-26 | B159: 3 | C159: 17 | D159: 8 | E159: 18 | F159: 7 | G159: P | J159: 1 | N159: 5 | O159: 3 | X159: 2 | Y159: 4 | AB159: 144 | AC159: Longchamp | AD159: 15
A160: 2005-05-27 | B160: 15 | C160: 8 | D160: 16 | E160: 17 | F160: 10 | G160: T | O160: 2 | Q160: 5 | V160: 1 | W160: 3 | X160: 4 | AB160: 145 | AC160: Vincennes | AD160: 15
A161: 2005-05-28 | B161: 12 | C161: 15 | D161: 3 | E161: 7 | F161: 14 | G161: T | J161: 3 | N161: 4 | S161: 1 | U161: 5 | V161: 2 | AB161: 146 | AC161: Enghien | AD161: 15
A162: 2005-05-29 | B162: 15 | C162: 18 | D162: 8 | E162: 9 | F162: 5 | G162: O | L162: 5 | O162: 3 | P162: 4 | V162: 1 | Y162: 2 | AB162: 147 | AC162: Auteuil | AD162: 15
A163: 2005-05-30 | B163: 9 | C163: 10 | D163: 11 | E163: 6 | F163: 4 | G163: T | K163: 5 | M163: 4 | P163: 1 | Q163: 2 | R163: 3 | AB163: 148 | AC163: Vichy | AD163: 15
A164: 2005-05-31 | B164: 8 | C164: 7 | D164: 9 | E164: 2 | F164: 3 | G164: T | I164: 4 | J164: 5 | N164: 2 | O164: 1 | P164: 3 | AB164: 149 | AC164: Vincennes | AD164: 15
A165: 2005-06-01 | B165: 3 | C165: 8 | D165: 7 | E165: 14 | F165: 5 | G165: P | J165: 1 | L165: 5 | N165: 3 | O165: 2 | U165: 4 | AB165: 150 | AC165: Longchamp | AD165: 15
A166: 2005-06-02 | B166: 1 | C166: 9 | D166: 18 | E166: 10 | F166: 2 | G166: P | H166: =IF(COUNTIF($B166:$F166,H$15),MATCH(H$15,$B166:$F166,0),REPT(" ",test)) -> 1 | I166: 5 | P166: 2 | Q166: 4 | R166: =IF(COUNTIF($B166:$F166,R$15),MATCH(R$15,$B166:$F166,0),REPT(" ",test)) ->  | Y166: 3 | AB166: 151 | AC166: Saint Cloud | AD166: 15
A167: 2005-06-03 | B167: 17 | C167: 13 | D167: 10 | E167: 9 | F167: 11 | G167: T | P167: 4 | Q167: 3 | R167: 5 | T167: 2 | X167: 1 | AB167: 152 | AC167: Vincennes | AD167: 15
A168: 2005-06-04 | B168: 17 | C168: 13 | D168: 4 | E168: 12 | F168: 6 | G168: P | K168: 3 | M168: 5 | S168: 4 | T168: 2 | X168: 1 | AB168: 153 | AC168: Chantilly | AD168: 15
A169: 2005-06-05 | B169: 8 | C169: 6 | D169: 16 | E169: 1 | F169: 3 | G169: P | H169: 4 | J169: 5 | M169: 2 | O169: 1 | W169: 3 | AB169: 154 | AC169: Chantilly | AD169: 15
A170: 2005-06-06 | B170: 7 | C170: 3 | D170: 2 | E170: 9 | F170: 10 | G170: T | I170: 3 | J170: 2 | N170: 1 | P170: 4 | Q170: 5 | AB170: 155 | AC170: Vichy | AD170: 15
A171: 2005-06-07 | B171: 1 | C171: 16 | D171: 14 | E171: 17 | F171: 5 | G171: O | H171: 1 | L171: 5 | U171: 3 | W171: 2 | X171: 4 | AB171: 156 | AC171: Auteuil | AD171: 15
A172: 2005-06-08 | B172: 12 | C172: 17 | D172: 9 | E172: 6 | F172: 13 | G172: T | M172: 4 | P172: 3 | S172: 1 | T172: 5 | X172: 2 | AB172: 157 | AC172: Laval | AD172: 15
A173: 2005-06-09 | B173: 15 | C173: 7 | D173: 4 | E173: 3 | F173: 8 | G173: P | J173: 4 | K173: 3 | N173: 2 | O173: 5 | V173: 1 | AB173: 158 | AC173: Longchamp | AD173: 15
A174: 2005-06-10 | B174: 4 | C174: 9 | D174: 2 | E174: 16 | F174: 13 | G174: P | I174: 3 | K174: 1 | P174: 2 | T174: 5 | W174: 4 | AB174: 159 | AC174: Compiègne | AD174: 15
A175: 2005-06-11 | B175: 14 | C175: 3 | D175: 13 | E175: 2 | F175: 15 | G175: T | I175: 4 | J175: 2 | T175: 3 | U175: 1 | V175: 5 | AB175: 160 | AC175: Vincennes | AD175: 15
A176: 2005-06-12 | B176: 11 | C176: 6 | D176: 2 | E176: 13 | F176: 7 | G176: P | H176: =IF(COUNTIF($B176:$F176,H$15),MATCH(H$15,$B176:$F176,0),REPT(" ",test)) ->  | I176: 3 | M176: 2 | N176: 5 | R176: =IF(COUNTIF($B176:$F176,R$15),MATCH(R$15,$B176:$F176,0),REPT(" ",test)) -> 1 | T176: 4 | AB176: 161 | AC176: Chantilly | AD176: 15
A177: 2005-06-13 | B177: 1 | C177: 3 | D177: 5 | E177: 6 | F177: 18 | G177: P | H177: 1 | J177: 2 | L177: 3 | M177: 4 | Y177: 5 | AB177: 162 | AC177: Saint Cloud | AD177: 15
A178: 2005-06-14 | B178: 8 | C178: 13 | D178: 10 | E178: 11 | F178: 2 | G178: T | I178: 5 | O178: 1 | Q178: 3 | R178: 4 | T178: 2 | AB178: 163 | AC178: Vincennes | AD178: 15
A179: 2005-06-15 | B179: 15 | C179: 9 | D179: 3 | E179: 6 | F179: 1 | G179: P | H179: 5 | J179: 3 | M179: 4 | P179: 2 | V179: 1 | AB179: 164 | AC179: Strasbourg | AD179: 15
A180: 2005-06-16 | B180: 9 | C180: 8 | D180: 10 | E180: 5 | F180: 1 | G180: P | H180: 5 | L180: 4 | O180: 2 | P180: 1 | Q180: 3 | AB180: 165 | AC180: Longchamp | AD180: 15
A181: 2005-06-17 | B181: 8 | C181: 11 | D181: 9 | E181: 1 | F181: 10 | G181: T | H181: 4 | O181: 1 | P181: 3 | Q181: 5 | R181: 2 | AB181: 166 | AC181: Vincennes | AD181: 15
A182: 2005-06-18 | B182: 1 | C182: 2 | D182: 4 | E182: 7 | F182: 3 | G182: O | H182: 1 | I182: 2 | J182: 5 | K182: 3 | N182: 4 | AB182: 167 | AC182: Auteuil | AD182: 15
A183: 2005-06-19 | B183: 8 | C183: 6 | D183: 1 | E183: 9 | F183: 7 | G183: T | H183: 3 | M183: 2 | N183: 5 | O183: 1 | P183: 4 | AB183: 168 | AC183: Vincennes | AD183: 15
A184: 2005-06-20 | B184: 7 | C184: 2 | D184: 9 | E184: 10 | F184: 6 | G184: T | I184: 2 | M184: 5 | N184: 1 | P184: 3 | Q184: 4 | AB184: 169 | AC184: Vichy | AD184: 15
A185: 2005-06-21 | B185: 1 | C185: 16 | D185: 17 | E185: 3 | F185: 5 | G185: P | H185: 1 | J185: 4 | L185: 5 | W185: 2 | X185: 3 | AB185: 170 | AC185: Longchamp | AD185: 15
A186: 2005-06-22 | B186: 14 | C186: 1 | D186: 5 | E186: 2 | F186: 12 | G186: T | H186: =IF(COUNTIF($B186:$F186,H$15),MATCH(H$15,$B186:$F186,0),REPT(" ",test)) -> 2 | I186: 4 | L186: 3 | R186: =IF(COUNTIF($B186:$F186,R$15),MATCH(R$15,$B186:$F186,0),REPT(" ",test)) ->  | S186: 5 | U186: 1 | AB186: 171 | AC186: Reims | AD186: 15
A187: 2005-06-23 | B187: 9 | C187: 11 | D187: 14 | E187: 10 | F187: 6 | G187: P | M187: 5 | P187: 1 | Q187: 4 | R187: 2 | U187: 3 | AB187: 172 | AC187: Chantilly | AD187: 15
A188: 2005-06-24 | B188: 16 | C188: 2 | D188: 8 | E188: 12 | F188: 14 | G188: O | I188: 2 | O188: 3 | S188: 4 | U188: 5 | W188: 1 | AB188: 173 | AC188: Auteuil | AD188: 15
A189: 2005-06-25 | B189: 11 | C189: 14 | D189: 3 | E189: 12 | F189: 4 | G189: T | J189: 3 | K189: 5 | R189: 1 | S189: 4 | U189: 2 | AB189: 174 | AC189: Enghien | AD189: 15
A190: 2005-06-26 | B190: 3 | C190: 7 | D190: 2 | E190: 17 | F190: 11 | G190: P | I190: 3 | J190: 1 | N190: 2 | R190: 5 | X190: 4 | AB190: 175 | AC190: Saint Cloud | AD190: 15
A191: 2005-06-27 | B191: 16 | C191: 9 | D191: 13 | E191: 12 | F191: 15 | G191: P | P191: 2 | S191: 4 | T191: 3 | V191: 5 | W191: 1 | AB191: 176 | AC191: Longchamp | AD191: 15
A192: 2005-06-28 | B192: 1 | C192: 15 | D192: 2 | E192: 7 | F192: 4 | G192: T | H192: 1 | I192: 3 | K192: 5 | N192: 4 | V192: 2 | AB192: 177 | AC192: Vincennes | AD192: 15
A193: 2005-06-29 | B193: 12 | C193: 11 | D193: 14 | E193: 13 | F193: 4 | G193: P | K193: 5 | R193: 2 | S193: 1 | T193: 4 | U193: 3 | AB193: 178 | AC193: Compiègne | AD193: 15
A194: 2005-06-30 | B194: 4 | C194: 14 | D194: 13 | E194: 6 | F194: 9 | G194: T | K194: 1 | M194: 4 | P194: 5 | T194: 3 | U194: 2 | AB194: 179 | AC194: Enghien | AD194: 15
A195: 2005-07-01 | B195: 1 | C195: 18 | D195: 10 | E195: 11 | F195: 14 | G195: T | H195: 1 | Q195: 3 | R195: 4 | U195: 5 | Y195: 2 | AB195: 180 | AC195: Vincennes | AD195: 15
A196: 2005-07-02 | B196: 8 | C196: 1 | D196: 3 | E196: 7 | F196: 2 | G196: P | H196: =IF(COUNTIF($B196:$F196,H$15),MATCH(H$15,$B196:$F196,0),REPT(" ",test)) -> 2 | I196: 5 | J196: 3 | N196: 4 | O196: 1 | R196: =IF(COUNTIF($B196:$F196,R$15),MATCH(R$15,$B196:$F196,0),REPT(" ",test)) ->  | AB196: 181 | AC196: Nantes | AD196: 15
A197: 2005-07-03 | B197: 12 | C197: 4 | D197: 3 | E197: 5 | F197: 7 | G197: P | J197: 3 | K197: 2 | L197: 4 | N197: 5 | S197: 1 | AB197: 182 | AC197: Chantilly | AD197: 15
A198: 2005-07-04 | B198: 15 | C198: 16 | D198: 10 | E198: 1 | F198: 9 | G198: O | H198: 4 | P198: 5 | Q198: 3 | V198: 1 | W198: 2 | AB198: 183 | AC198: Dieppe | AD198: 15
A199: 2005-07-05 | B199: 3 | C199: 4 | D199: 5 | E199: 6 | F199: 16 | G199: P | J199: 1 | K199: 2 | L199: 3 | M199: 4 | W199: 5 | AB199: 184 | AC199: Deauville | AD199: 15
A200: 2005-07-06 | B200: 15 | C200: 5 | D200: 6 | E200: 3 | F200: 12 | G200: T | J200: 4 | L200: 2 | M200: 3 | S200: 5 | V200: 1 | AB200: 185 | AC200: Vichy | AD200: 15
A201: 2005-07-07 | B201: 6 | C201: 5 | D201: 17 | E201: 4 | F201: 3 | G201: T | J201: 5 | K201: 4 | L201: 2 | M201: 1 | X201: 3 | AB201: 186 | AC201: Enghien | AD201: 15
A202: 2005-07-08 | B202: 8 | C202: 12 | D202: 4 | E202: 13 | F202: 1 | G202: T | H202: 5 | K202: 3 | O202: 1 | S202: 2 | T202: 4 | AB202: 187 | AC202: Cabourg | AD202: 15
... 2048 more rows

Sheet NGG
H1: 1 | I1: 2 | J1: 3 | K1: 4 | L1: 5 | M1: 6 | N1: 7 | O1: 8 | P1: 9 | Q1: 10 | R1: 11 | S1: 12 | T1: 13 | U1: 14 | V1: 15 | W1: 16 | X1: 17 | Y1: 18 | Z1: 19 | AA1: 20 | AC1: 1 | AD1: 2 | AE1: 3 | AF1: 4 | AG1: 5 | AH1: 6 | AI1: 7 | AJ1: 8 | AK1: 9 | AL1: 10 | AM1: 11 | AN1: 12 | AO1: 13 | AP1: 14 | AQ1: 15 | AR1: 16 | AS1: 17 | AT1: 18 | AU1: 19 | AV1: 20
H2: G | I2: G | J2: G | K2: G | L2: G | M2: G | N2: G | O2: G | P2: G | Q2: G | R2: G | S2: G | T2: G | U2: G | V2: G | W2: G | X2: G | Y2: G | Z2: G | AA2: G
B3: Ecart Moyen | H3: =AVEDEV(H6:H5749) -> 11.37370511 | I3: 11.49621634 | J3: 10.21146222 | K3: 11.73357018 | L3: 10.46042157 | M3: 13.02289931 | N3: 9.993691737 | O3: 10.12252271 | P3: 10.4821111 | Q3: 13.00881966 | R3: 10.00137748 | S3: 12.73891752 | T3: 14.36504516 | U3: 11.30866938 | V3: 12.60523126 | W3: 14.10705113 | X3: 5.531420928 | Y3: 5.905334943 | Z3: 1.812841766 | AA3: 11.98769571
B4: Ecart Maximum | H4: =MAX(H6:H4952) -> 77 | I4: 80 | J4: 78 | K4: 107 | L4: 99 | M4: 104 | N4: 70 | O4: 129 | P4: 89 | Q4: 121 | R4: 65 | S4: 99 | T4: 93 | U4: 96 | V4: 113 | W4: 94 | X4: 71 | Y4: 53 | Z4: 19 | AA4: 36
B5: report | H5: 0 | I5: 0 | J5: 0 | K5: 0 | L5: 0 | M5: 0 | N5: 0 | O5: 0 | P5: 0 | Q5: 0 | R5: 0 | S5: 0 | T5: 0 | U5: 0 | V5: 0 | W5: 0 | X5: 0 | Y5: 0 | Z5: 0 | AA5: 0
A6: =IF(generale!$A16>0,generale!$A16,"") -> 2005-01-01 | B6: =IF(INDEX(generale!$A$16:$G$4963,MATCH(NGG!$A6,generale!$A$16:$A$4963,0),COLUMN())=0,0,INDEX(generale!$A$16:$G$4963,MATCH(NGG!$A6,generale!$A$16:$A$4963,0),COLUMN())) -> 9 | C6: =IF(INDEX(generale!$A$16:$G$4963,MATCH(NGG!$A6,generale!$A$16:$A$4963,0),COLUMN())=0,0,INDEX(generale!$A$16:$G$4963,MATCH(NGG!$A6,generale!$A$16:$A$4963,0),COLUMN())) -> 2 | D6: =IF(INDEX(generale!$A$16:$G$4963,MATCH(NGG!$A6,generale!$A$16:$A$4963,0),COLUMN())=0,0,INDEX(generale!$A$16:$G$4963,MATCH(NGG!$A6,generale!$A$16:$A$4963,0),COLUMN())) -> 6 | E6: =IF(INDEX(generale!$A$16:$G$4963,MATCH(NGG!$A6,generale!$A$16:$A$4963,0),COLUMN())=0,0,INDEX(generale!$A$16:$G$4963,MATCH(NGG!$A6,generale!$A$16:$A$4963,0),COLUMN())) -> 5 | F6: =IF(INDEX(generale!$A$16:$G$4963,MATCH(NGG!$A6,generale!$A$16:$A$4963,0),COLUMN())=0,0,INDEX(generale!$A$16:$G$4963,MATCH(NGG!$A6,generale!$A$16:$A$4963,0),COLUMN())) -> 17 | G6: =generale!G16 -> T | H6: =IF(COUNTIF($B6:$D6,0)<3,IF(LEN(SUBSTITUTE(SUBSTITUTE($B6,H$1,,1),,1))=0,0,H5+1-AC6),"") -> 1 | I6: =IF(COUNTIF($B6:$D6,0)<3,IF(LEN(SUBSTITUTE(SUBSTITUTE($B6,I$1,,1),,1))=0,0,I5+1-AD6),"") -> 1 | J6: 1 | K6: 1 | L6: 1 | M6: 1 | N6: 1 | O6: 1 | P6: 0 | Q6: 1 | R6: 1 | S6: 1 | T6: 1 | U6: 1 | V6: 1 | W6: 1 | X6: 1 | Y6: 0 | Z6: 0 | AA6: 0 | AT6: 1 | AU6: 1 | AV6: 1 | AW6: =IF(A6<>"",20-SUM(AC6:AV6),"") -> 17 | AX6: 9 | AY6: 20
A7: =IF(generale!$A17>0,generale!$A17,"") -> 2005-01-02 | B7: =IF(INDEX(generale!$A$16:$G$4963,MATCH(NGG!$A7,generale!$A$16:$A$4963,0),COLUMN())=0,0,INDEX(generale!$A$16:$G$4963,MATCH(NGG!$A7,generale!$A$16:$A$4963,0),COLUMN())) -> 8 | C7: =IF(INDEX(generale!$A$16:$G$4963,MATCH(NGG!$A7,generale!$A$16:$A$4963,0),COLUMN())=0,0,INDEX(generale!$A$16:$G$4963,MATCH(NGG!$A7,generale!$A$16:$A$4963,0),COLUMN())) -> 5 | D7: =IF(INDEX(generale!$A$16:$G$4963,MATCH(NGG!$A7,generale!$A$16:$A$4963,0),COLUMN())=0,0,INDEX(generale!$A$16:$G$4963,MATCH(NGG!$A7,generale!$A$16:$A$4963,0),COLUMN())) -> 7 | E7: =IF(INDEX(generale!$A$16:$G$4963,MATCH(NGG!$A7,generale!$A$16:$A$4963,0),COLUMN())=0,0,INDEX(generale!$A$16:$G$4963,MATCH(NGG!$A7,generale!$A$16:$A$4963,0),COLUMN())) -> 2 | F7: =IF(INDEX(generale!$A$16:$G$4963,MATCH(NGG!$A7,generale!$A$16:$A$4963,0),COLUMN())=0,0,INDEX(generale!$A$16:$G$4963,MATCH(NGG!$A7,generale!$A$16:$A$4963,0),COLUMN())) -> 3 | G7: =generale!G17 -> T | H7: 2 | I7: 2 | J7: 2 | K7: 2 | L7: 2 | M7: 2 | N7: 2 | O7: 0 | P7: 1 | Q7: 2 | R7: 2 | S7: 2 | T7: 2 | U7: 2 | V7: 2 | W7: 2 | X7: 2 | Y7: 0 | Z7: 0 | AA7: 0 | AT7: 1 | AU7: 1 | AV7: 1 | AW7: 17 | AY7: 15
A8: =IF(generale!$A18>0,generale!$A18,"") -> 2005-01-03 | B8: =IF(INDEX(generale!$A$16:$G$4963,MATCH(NGG!$A8,generale!$A$16:$A$4963,0),COLUMN())=0,0,INDEX(generale!$A$16:$G$4963,MATCH(NGG!$A8,generale!$A$16:$A$4963,0),COLUMN())) -> 5 | C8: =IF(INDEX(generale!$A$16:$G$4963,MATCH(NGG!$A8,generale!$A$16:$A$4963,0),COLUMN())=0,0,INDEX(generale!$A$16:$G$4963,MATCH(NGG!$A8,generale!$A$16:$A$4963,0),COLUMN())) -> 13 | D8: =IF(INDEX(generale!$A$16:$G$4963,MATCH(NGG!$A8,generale!$A$16:$A$4963,0),COLUMN())=0,0,INDEX(generale!$A$16:$G$4963,MATCH(NGG!$A8,generale!$A$16:$A$4963,0),COLUMN())) -> 4 | E8: =IF(INDEX(generale!$A$16:$G$4963,MATCH(NGG!$A8,generale!$A$16:$A$4963,0),COLUMN())=0,0,INDEX(generale!$A$16:$G$4963,MATCH(NGG!$A8,generale!$A$16:$A$4963,0),COLUMN())) -> 3 | F8: =IF(INDEX(generale!$A$16:$G$4963,MATCH(NGG!$A8,generale!$A$16:$A$4963,0),COLUMN())=0,0,INDEX(generale!$A$16:$G$4963,MATCH(NGG!$A8,generale!$A$16:$A$4963,0),COLUMN())) -> 10 | G8: =generale!G18 -> O | H8: 3 | I8: 3 | J8: 3 | K8: 3 | L8: 0 | M8: 3 | N8: 3 | O8: 1 | P8: 2 | Q8: 3 | R8: 3 | S8: 3 | T8: 3 | U8: 3 | V8: 3 | W8: 3 | X8: 3 | Y8: 1 | Z8: 0 | AA8: 0 | AU8: 1 | AV8: 1 | AW8: 18 | AY8: 16
A9: =IF(generale!$A19>0,generale!$A19,"") -> 2005-01-04 | B9: =IF(INDEX(generale!$A$16:$G$4963,MATCH(NGG!$A9,generale!$A$16:$A$4963,0),COLUMN())=0,0,INDEX(generale!$A$16:$G$4963,MATCH(NGG!$A9,generale!$A$16:$A$4963,0),COLUMN())) -> 4 | C9: =IF(INDEX(generale!$A$16:$G$4963,MATCH(NGG!$A9,generale!$A$16:$A$4963,0),COLUMN())=0,0,INDEX(generale!$A$16:$G$4963,MATCH(NGG!$A9,generale!$A$16:$A$4963,0),COLUMN())) -> 9 | D9: =IF(INDEX(generale!$A$16:$G$4963,MATCH(NGG!$A9,generale!$A$16:$A$4963,0),COLUMN())=0,0,INDEX(generale!$A$16:$G$4963,MATCH(NGG!$A9,generale!$A$16:$A$4963,0),COLUMN())) -> 14 | E9: =IF(INDEX(generale!$A$16:$G$4963,MATCH(NGG!$A9,generale!$A$16:$A$4963,0),COLUMN())=0,0,INDEX(generale!$A$16:$G$4963,MATCH(NGG!$A9,generale!$A$16:$A$4963,0),COLUMN())) -> 3 | F9: =IF(INDEX(generale!$A$16:$G$4963,MATCH(NGG!$A9,generale!$A$16:$A$4963,0),COLUMN())=0,0,INDEX(generale!$A$16:$G$4963,MATCH(NGG!$A9,generale!$A$16:$A$4963,0),COLUMN())) -> 8 | G9: =generale!G19 -> T | H9: 4 | I9: 4 | J9: 4 | K9: 0 | L9: 1 | M9: 4 | N9: 4 | O9: 2 | P9: 3 | Q9: 4 | R9: 4 | S9: 4 | T9: 4 | U9: 4 | V9: 4 | W9: 4 | X9: 4 | Y9: 2 | Z9: 0 | AA9: 0 | AU9: 1 | AV9: 1 | AW9: 18 | AX9: 6 | AY9: 17
A10: =IF(generale!$A20>0,generale!$A20,"") -> 2005-01-05 | B10: =IF(INDEX(generale!$A$16:$G$4963,MATCH(NGG!$A10,generale!$A$16:$A$4963,0),COLUMN())=0,0,INDEX(generale!$A$16:$G$4963,MATCH(NGG!$A10,generale!$A$16:$A$4963,0),COLUMN())) -> 3 | C10: =IF(INDEX(generale!$A$16:$G$4963,MATCH(NGG!$A10,generale!$A$16:$A$4963,0),COLUMN())=0,0,INDEX(generale!$A$16:$G$4963,MATCH(NGG!$A10,generale!$A$16:$A$4963,0),COLUMN())) -> 7 | D10: =IF(INDEX(generale!$A$16:$G$4963,MATCH(NGG!$A10,generale!$A$16:$A$4963,0),COLUMN())=0,0,INDEX(generale!$A$16:$G$4963,MATCH(NGG!$A10,generale!$A$16:$A$4963,0),COLUMN())) -> 6 | E10: =IF(INDEX(generale!$A$16:$G$4963,MATCH(NGG!$A10,generale!$A$16:$A$4963,0),COLUMN())=0,0,INDEX(generale!$A$16:$G$4963,MATCH(NGG!$A10,generale!$A$16:$A$4963,0),COLUMN())) -> 2 | F10: =IF(INDEX(generale!$A$16:$G$4963,MATCH(NGG!$A10,generale!$A$16:$A$4963,0),COLUMN())=0,0,INDEX(generale!$A$16:$G$4963,MATCH(NGG!$A10,generale!$A$16:$A$4963,0),COLUMN())) -> 9 | G10: =generale!G20 -> P | H10: 5 | I10: 5 | J10: 0 | K10: 1 | L10: 2 | M10: 5 | N10: 5 | O10: 3 | P10: 4 | Q10: 5 | R10: 5 | S10: 5 | T10: 5 | U10: 5 | V10: 5 | W10: 5 | X10: 4 | Y10: 2 | Z10: 0 | AA10: 0 | AS10: 1 | AT10: 1 | AU10: 1 | AV10: 1 | AW10: 16 | AY10: 15
A11: =IF(generale!$A21>0,generale!$A21,"") -> 2005-01-06 | B11: =IF(INDEX(generale!$A$16:$G$4963,MATCH(NGG!$A11,generale!$A$16:$A$4963,0),COLUMN())=0,0,INDEX(generale!$A$16:$G$4963,MATCH(NGG!$A11,generale!$A$16:$A$4963,0),COLUMN())) -> 10 | C11: =IF(INDEX(generale!$A$16:$G$4963,MATCH(NGG!$A11,generale!$A$16:$A$4963,0),COLUMN())=0,0,INDEX(generale!$A$16:$G$4963,MATCH(NGG!$A11,generale!$A$16:$A$4963,0),COLUMN())) -> 13 | D11: =IF(INDEX(generale!$A$16:$G$4963,MATCH(NGG!$A11,generale!$A$16:$A$4963,0),COLUMN())=0,0,INDEX(generale!$A$16:$G$4963,MATCH(NGG!$A11,generale!$A$16:$A$4963,0),COLUMN())) -> 6 | E11: =IF(INDEX(generale!$A$16:$G$4963,MATCH(NGG!$A11,generale!$A$16:$A$4963,0),COLUMN())=0,0,INDEX(generale!$A$16:$G$4963,MATCH(NGG!$A11,generale!$A$16:$A$4963,0),COLUMN())) -> 16 | F11: =IF(INDEX(generale!$A$16:$G$4963,MATCH(NGG!$A11,generale!$A$16:$A$4963,0),COLUMN())=0,0,INDEX(generale!$A$16:$G$4963,MATCH(NGG!$A11,generale!$A$16:$A$4963,0),COLUMN())) -> 12 | G11: =generale!G21 -> T | H11: 6 | I11: 6 | J11: 1 | K11: 2 | L11: 3 | M11: 6 | N11: 6 | O11: 4 | P11: 5 | Q11: 0 | R11: 6 | S11: 6 | T11: 6 | U11: 6 | V11: 6 | W11: 6 | X11: 5 | Y11: 2 | Z11: 0 | AA11: 0 | AT11: 1 | AU11: 1 | AV11: 1 | AW11: 17 | AY11: 16
A12: =IF(generale!$A22>0,generale!$A22,"") -> 2005-01-07 | B12: =IF(INDEX(generale!$A$16:$G$4963,MATCH(NGG!$A12,generale!$A$16:$A$4963,0),COLUMN())=0,0,INDEX(generale!$A$16:$G$4963,MATCH(NGG!$A12,generale!$A$16:$A$4963,0),COLUMN())) -> 11 | C12: =IF(INDEX(generale!$A$16:$G$4963,MATCH(NGG!$A12,generale!$A$16:$A$4963,0),COLUMN())=0,0,INDEX(generale!$A$16:$G$4963,MATCH(NGG!$A12,generale!$A$16:$A$4963,0),COLUMN())) -> 12 | D12: =IF(INDEX(generale!$A$16:$G$4963,MATCH(NGG!$A12,generale!$A$16:$A$4963,0),COLUMN())=0,0,INDEX(generale!$A$16:$G$4963,MATCH(NGG!$A12,generale!$A$16:$A$4963,0),COLUMN())) -> 2 | E12: =IF(INDEX(generale!$A$16:$G$4963,MATCH(NGG!$A12,generale!$A$16:$A$4963,0),COLUMN())=0,0,INDEX(generale!$A$16:$G$4963,MATCH(NGG!$A12,generale!$A$16:$A$4963,0),COLUMN())) -> 1 | F12: =IF(INDEX(generale!$A$16:$G$4963,MATCH(NGG!$A12,generale!$A$16:$A$4963,0),COLUMN())=0,0,INDEX(generale!$A$16:$G$4963,MATCH(NGG!$A12,generale!$A$16:$A$4963,0),COLUMN())) -> 9 | G12: =generale!G22 -> O | H12: 7 | I12: 7 | J12: 2 | K12: 3 | L12: 4 | M12: 7 | N12: 7 | O12: 5 | P12: 6 | Q12: 1 | R12: 0 | S12: 7 | T12: 7 | U12: 7 | V12: 7 | W12: 6 | X12: 5 | Y12: 2 | Z12: 0 | AA12: 0 | AR12: 1 | AS12: 1 | AT12: 1 | AU12: 1 | AV12: 1 | AW12: 15 | AY12: 14
A13: =IF(generale!$A23>0,generale!$A23,"") -> 2005-01-08 | B13: =IF(INDEX(generale!$A$16:$G$4963,MATCH(NGG!$A13,generale!$A$16:$A$4963,0),COLUMN())=0,0,INDEX(generale!$A$16:$G$4963,MATCH(NGG!$A13,generale!$A$16:$A$4963,0),COLUMN())) -> 6 | C13: =IF(INDEX(generale!$A$16:$G$4963,MATCH(NGG!$A13,generale!$A$16:$A$4963,0),COLUMN())=0,0,INDEX(generale!$A$16:$G$4963,MATCH(NGG!$A13,generale!$A$16:$A$4963,0),COLUMN())) -> 11 | D13: =IF(INDEX(generale!$A$16:$G$4963,MATCH(NGG!$A13,generale!$A$16:$A$4963,0),COLUMN())=0,0,INDEX(generale!$A$16:$G$4963,MATCH(NGG!$A13,generale!$A$16:$A$4963,0),COLUMN())) -> 4 | E13: =IF(INDEX(generale!$A$16:$G$4963,MATCH(NGG!$A13,generale!$A$16:$A$4963,0),COLUMN())=0,0,INDEX(generale!$A$16:$G$4963,MATCH(NGG!$A13,generale!$A$16:$A$4963,0),COLUMN())) -> 2 | F13: =IF(INDEX(generale!$A$16:$G$4963,MATCH(NGG!$A13,generale!$A$16:$A$4963,0),COLUMN())=0,0,INDEX(generale!$A$16:$G$4963,MATCH(NGG!$A13,generale!$A$16:$A$4963,0),COLUMN())) -> 18 | G13: =generale!G23 -> T | H13: 8 | I13: 8 | J13: 3 | K13: 4 | L13: 5 | M13: 0 | N13: 8 | O13: 6 | P13: 7 | Q13: 2 | R13: 1 | S13: 8 | T13: 8 | U13: 8 | V13: 8 | W13: 7 | X13: 6 | Y13: 3 | Z13: 1 | AA13: 1 | AW13: 20 | AY13: 18
A14: =IF(generale!$A24>0,generale!$A24,"") -> 2005-01-09 | B14: =IF(INDEX(generale!$A$16:$G$4963,MATCH(NGG!$A14,generale!$A$16:$A$4963,0),COLUMN())=0,0,INDEX(generale!$A$16:$G$4963,MATCH(NGG!$A14,generale!$A$16:$A$4963,0),COLUMN())) -> 5 | C14: =IF(INDEX(generale!$A$16:$G$4963,MATCH(NGG!$A14,generale!$A$16:$A$4963,0),COLUMN())=0,0,INDEX(generale!$A$16:$G$4963,MATCH(NGG!$A14,generale!$A$16:$A$4963,0),COLUMN())) -> 4 | D14: =IF(INDEX(generale!$A$16:$G$4963,MATCH(NGG!$A14,generale!$A$16:$A$4963,0),COLUMN())=0,0,INDEX(generale!$A$16:$G$4963,MATCH(NGG!$A14,generale!$A$16:$A$4963,0),COLUMN())) -> 9 | E14: =IF(INDEX(generale!$A$16:$G$4963,MATCH(NGG!$A14,generale!$A$16:$A$4963,0),COLUMN())=0,0,INDEX(generale!$A$16:$G$4963,MATCH(NGG!$A14,generale!$A$16:$A$4963,0),COLUMN())) -> 12 | F14: =IF(INDEX(generale!$A$16:$G$4963,MATCH(NGG!$A14,generale!$A$16:$A$4963,0),COLUMN())=0,0,INDEX(generale!$A$16:$G$4963,MATCH(NGG!$A14,generale!$A$16:$A$4963,0),COLUMN())) -> 8 | G14: =generale!G24 -> T | H14: 9 | I14: 9 | J14: 4 | K14: 5 | L14: 0 | M14: 1 | N14: 9 | O14: 7 | P14: 8 | Q14: 3 | R14: 2 | S14: 9 | T14: 9 | U14: 9 | V14: 9 | W14: 8 | X14: 7 | Y14: 4 | Z14: 1 | AA14: 1 | AU14: 1 | AV14: 1 | AW14: 18 | AX14: 7-13-14 | AY14: 18
A15: =IF(generale!$A25>0,generale!$A25,"") -> 2005-01-10 | B15: =IF(INDEX(generale!$A$16:$G$4963,MATCH(NGG!$A15,generale!$A$16:$A$4963,0),COLUMN())=0,0,INDEX(generale!$A$16:$G$4963,MATCH(NGG!$A15,generale!$A$16:$A$4963,0),COLUMN())) -> 9 | C15: =IF(INDEX(generale!$A$16:$G$4963,MATCH(NGG!$A15,generale!$A$16:$A$4963,0),COLUMN())=0,0,INDEX(generale!$A$16:$G$4963,MATCH(NGG!$A15,generale!$A$16:$A$4963,0),COLUMN())) -> 16 | D15: =IF(INDEX(generale!$A$16:$G$4963,MATCH(NGG!$A15,generale!$A$16:$A$4963,0),COLUMN())=0,0,INDEX(generale!$A$16:$G$4963,MATCH(NGG!$A15,generale!$A$16:$A$4963,0),COLUMN())) -> 5 | E15: =IF(INDEX(generale!$A$16:$G$4963,MATCH(NGG!$A15,generale!$A$16:$A$4963,0),COLUMN())=0,0,INDEX(generale!$A$16:$G$4963,MATCH(NGG!$A15,generale!$A$16:$A$4963,0),COLUMN())) -> 14 | F15: =IF(INDEX(generale!$A$16:$G$4963,MATCH(NGG!$A15,generale!$A$16:$A$4963,0),COLUMN())=0,0,INDEX(generale!$A$16:$G$4963,MATCH(NGG!$A15,generale!$A$16:$A$4963,0),COLUMN())) -> 11 | G15: =generale!G25 -> T | H15: 10 | I15: 10 | J15: 5 | K15: 6 | L15: 1 | M15: 2 | N15: 10 | O15: 8 | P15: 0 | Q15: 4 | R15: 3 | S15: 10 | T15: 10 | U15: 10 | V15: 10 | W15: 9 | X15: 8 | Y15: 5 | Z15: 1 | AA15: 1 | AU15: 1 | AV15: 1 | AW15: 18 | AX15: 12 | AY15: 17
A16: =IF(generale!$A26>0,generale!$A26,"") -> 2005-01-11 | B16: =IF(INDEX(generale!$A$16:$G$4963,MATCH(NGG!$A16,generale!$A$16:$A$4963,0),COLUMN())=0,0,INDEX(generale!$A$16:$G$4963,MATCH(NGG!$A16,generale!$A$16:$A$4963,0),COLUMN())) -> 19 | C16: =IF(INDEX(generale!$A$16:$G$4963,MATCH(NGG!$A16,generale!$A$16:$A$4963,0),COLUMN())=0,0,INDEX(generale!$A$16:$G$4963,MATCH(NGG!$A16,generale!$A$16:$A$4963,0),COLUMN())) -> 9 | D16: =IF(INDEX(generale!$A$16:$G$4963,MATCH(NGG!$A16,generale!$A$16:$A$4963,0),COLUMN())=0,0,INDEX(generale!$A$16:$G$4963,MATCH(NGG!$A16,generale!$A$16:$A$4963,0),COLUMN())) -> 4 | E16: =IF(INDEX(generale!$A$16:$G$4963,MATCH(NGG!$A16,generale!$A$16:$A$4963,0),COLUMN())=0,0,INDEX(generale!$A$16:$G$4963,MATCH(NGG!$A16,generale!$A$16:$A$4963,0),COLUMN())) -> 12 | F16: =IF(INDEX(generale!$A$16:$G$4963,MATCH(NGG!$A16,generale!$A$16:$A$4963,0),COLUMN())=0,0,INDEX(generale!$A$16:$G$4963,MATCH(NGG!$A16,generale!$A$16:$A$4963,0),COLUMN())) -> 11 | G16: =generale!G26 -> T | H16: 11 | I16: 11 | J16: 6 | K16: 7 | L16: 2 | M16: 3 | N16: 11 | O16: 9 | P16: 1 | Q16: 5 | R16: 4 | S16: 11 | T16: 11 | U16: 11 | V16: 11 | W16: 10 | X16: 9 | Y16: 6 | Z16: 0 | AA16: 1 | AV16: 1 | AW16: 19 | AY16: 19
A17: =IF(generale!$A27>0,generale!$A27,"") -> 2005-01-12 | B17: =IF(INDEX(generale!$A$16:$G$4963,MATCH(NGG!$A17,generale!$A$16:$A$4963,0),COLUMN())=0,0,INDEX(generale!$A$16:$G$4963,MATCH(NGG!$A17,generale!$A$16:$A$4963,0),COLUMN())) -> 13 | C17: =IF(INDEX(generale!$A$16:$G$4963,MATCH(NGG!$A17,generale!$A$16:$A$4963,0),COLUMN())=0,0,INDEX(generale!$A$16:$G$4963,MATCH(NGG!$A17,generale!$A$16:$A$4963,0),COLUMN())) -> 5 | D17: =IF(INDEX(generale!$A$16:$G$4963,MATCH(NGG!$A17,generale!$A$16:$A$4963,0),COLUMN())=0,0,INDEX(generale!$A$16:$G$4963,MATCH(NGG!$A17,generale!$A$16:$A$4963,0),COLUMN())) -> 11 | E17: =IF(INDEX(generale!$A$16:$G$4963,MATCH(NGG!$A17,generale!$A$16:$A$4963,0),COLUMN())=0,0,INDEX(generale!$A$16:$G$4963,MATCH(NGG!$A17,generale!$A$16:$A$4963,0),COLUMN())) -> 12 | F17: =IF(INDEX(generale!$A$16:$G$4963,MATCH(NGG!$A17,generale!$A$16:$A$4963,0),COLUMN())=0,0,INDEX(generale!$A$16:$G$4963,MATCH(NGG!$A17,generale!$A$16:$A$4963,0),COLUMN())) -> 15 | G17: =generale!G27 -> O | H17: 12 | I17: 12 | J17: 7 | K17: 8 | L17: 3 | M17: 4 | N17: 12 | O17: 10 | P17: 2 | Q17: 6 | R17: 5 | S17: 12 | T17: 0 | U17: 12 | V17: 12 | W17: 11 | X17: 10 | Y17: 7 | Z17: 0 | AA17: 1 | AU17: 1 | AV17: 1 | AW17: 18 | AX17: 9 | AY17: 17
A18: =IF(generale!$A28>0,generale!$A28,"") -> 2005-01-13 | B18: =IF(INDEX(generale!$A$16:$G$4963,MATCH(NGG!$A18,generale!$A$16:$A$4963,0),COLUMN())=0,0,INDEX(generale!$A$16:$G$4963,MATCH(NGG!$A18,generale!$A$16:$A$4963,0),COLUMN())) -> 8 | C18: =IF(INDEX(generale!$A$16:$G$4963,MATCH(NGG!$A18,generale!$A$16:$A$4963,0),COLUMN())=0,0,INDEX(generale!$A$16:$G$4963,MATCH(NGG!$A18,generale!$A$16:$A$4963,0),COLUMN())) -> 13 | D18: =IF(INDEX(generale!$A$16:$G$4963,MATCH(NGG!$A18,generale!$A$16:$A$4963,0),COLUMN())=0,0,INDEX(generale!$A$16:$G$4963,MATCH(NGG!$A18,generale!$A$16:$A$4963,0),COLUMN())) -> 15 | E18: =IF(INDEX(generale!$A$16:$G$4963,MATCH(NGG!$A18,generale!$A$16:$A$4963,0),COLUMN())=0,0,INDEX(generale!$A$16:$G$4963,MATCH(NGG!$A18,generale!$A$16:$A$4963,0),COLUMN())) -> 16 | F18: =IF(INDEX(generale!$A$16:$G$4963,MATCH(NGG!$A18,generale!$A$16:$A$4963,0),COLUMN())=0,0,INDEX(generale!$A$16:$G$4963,MATCH(NGG!$A18,generale!$A$16:$A$4963,0),COLUMN())) -> 5 | G18: =generale!G28 -> T | H18: 13 | I18: 13 | J18: 8 | K18: 9 | L18: 4 | M18: 5 | N18: 13 | O18: 0 | P18: 3 | Q18: 7 | R18: 6 | S18: 13 | T18: 1 | U18: 13 | V18: 13 | W18: 11 | X18: 10 | Y18: 7 | Z18: 0 | AA18: 1 | AR18: 1 | AS18: 1 | AT18: 1 | AU18: 1 | AV18: 1 | AW18: 15 | AY18: 17
A19: =IF(generale!$A29>0,generale!$A29,"") -> 2005-01-14 | B19: =IF(INDEX(generale!$A$16:$G$4963,MATCH(NGG!$A19,generale!$A$16:$A$4963,0),COLUMN())=0,0,INDEX(generale!$A$16:$G$4963,MATCH(NGG!$A19,generale!$A$16:$A$4963,0),COLUMN())) -> 11 | C19: =IF(INDEX(generale!$A$16:$G$4963,MATCH(NGG!$A19,generale!$A$16:$A$4963,0),COLUMN())=0,0,INDEX(generale!$A$16:$G$4963,MATCH(NGG!$A19,generale!$A$16:$A$4963,0),COLUMN())) -> 3 | D19: =IF(INDEX(generale!$A$16:$G$4963,MATCH(NGG!$A19,generale!$A$16:$A$4963,0),COLUMN())=0,0,INDEX(generale!$A$16:$G$4963,MATCH(NGG!$A19,generale!$A$16:$A$4963,0),COLUMN())) -> 5 | E19: =IF(INDEX(generale!$A$16:$G$4963,MATCH(NGG!$A19,generale!$A$16:$A$4963,0),COLUMN())=0,0,INDEX(generale!$A$16:$G$4963,MATCH(NGG!$A19,generale!$A$16:$A$4963,0),COLUMN())) -> 15 | F19: =IF(INDEX(generale!$A$16:$G$4963,MATCH(NGG!$A19,generale!$A$16:$A$4963,0),COLUMN())=0,0,INDEX(generale!$A$16:$G$4963,MATCH(NGG!$A19,generale!$A$16:$A$4963,0),COLUMN())) -> 13 | G19: =generale!G29 -> T | H19: 14 | I19: 14 | J19: 9 | K19: 10 | L19: 5 | M19: 6 | N19: 14 | O19: 1 | P19: 4 | Q19: =IF(COUNTIF($B19:$D19,0)<3,IF(LEN(SUBSTITUTE(SUBSTITUTE($B19,Q$1,,1),,1))=0,0,Q18+1-AL19),"") -> 8 | R19: 0 | S19: 14 | T19: 2 | U19: 14 | V19: 14 | W19: 12 | X19: 11 | Y19: 8 | Z19: 0 | AA19: 1 | AU19: 1 | AV19: 1 | AW19: 18 | AX19: 12 | AY19: 15
A20: =IF(generale!$A30>0,generale!$A30,"") -> 2005-01-15 | B20: =IF(INDEX(generale!$A$16:$G$4963,MATCH(NGG!$A20,generale!$A$16:$A$4963,0),COLUMN())=0,0,INDEX(generale!$A$16:$G$4963,MATCH(NGG!$A20,generale!$A$16:$A$4963,0),COLUMN())) -> 15 | C20: =IF(INDEX(generale!$A$16:$G$4963,MATCH(NGG!$A20,generale!$A$16:$A$4963,0),COLUMN())=0,0,INDEX(generale!$A$16:$G$4963,MATCH(NGG!$A20,generale!$A$16:$A$4963,0),COLUMN())) -> 9 | D20: =IF(INDEX(generale!$A$16:$G$4963,MATCH(NGG!$A20,generale!$A$16:$A$4963,0),COLUMN())=0,0,INDEX(generale!$A$16:$G$4963,MATCH(NGG!$A20,generale!$A$16:$A$4963,0),COLUMN())) -> 11 | E20: =IF(INDEX(generale!$A$16:$G$4963,MATCH(NGG!$A20,generale!$A$16:$A$4963,0),COLUMN())=0,0,INDEX(generale!$A$16:$G$4963,MATCH(NGG!$A20,generale!$A$16:$A$4963,0),COLUMN())) -> 10 | F20: =IF(INDEX(generale!$A$16:$G$4963,MATCH(NGG!$A20,generale!$A$16:$A$4963,0),COLUMN())=0,0,INDEX(generale!$A$16:$G$4963,MATCH(NGG!$A20,generale!$A$16:$A$4963,0),COLUMN())) -> 2 | G20: =generale!G30 -> T | H20: 15 | I20: =IF(COUNTIF($B20:$D20,0)<3,IF(LEN(SUBSTITUTE(SUBSTITUTE($B20,I$1,,1),,1))=0,0,I19+1-AD20),"") -> 15 | J20: 10 | K20: 11 | L20: 6 | M20: 7 | N20: 15 | O20: 2 | P20: 5 | Q20: 9 | R20: 1 | S20: 15 | T20: 3 | U20: 15 | V20: 0 | W20: 13 | X20: 12 | Y20: 9 | Z20: 0 | AA20: 1 | AU20: 1 | AV20: 1 | AW20: 18 | AX20: 13 | AY20: 15
A21: =IF(generale!$A31>0,generale!$A31,"") -> 2005-01-16 | B21: =IF(INDEX(generale!$A$16:$G$4963,MATCH(NGG!$A21,generale!$A$16:$A$4963,0),COLUMN())=0,0,INDEX(generale!$A$16:$G$4963,MATCH(NGG!$A21,generale!$A$16:$A$4963,0),COLUMN())) -> 6 | C21: =IF(INDEX(generale!$A$16:$G$4963,MATCH(NGG!$A21,generale!$A$16:$A$4963,0),COLUMN())=0,0,INDEX(generale!$A$16:$G$4963,MATCH(NGG!$A21,generale!$A$16:$A$4963,0),COLUMN())) -> 2 | D21: =IF(INDEX(generale!$A$16:$G$4963,MATCH(NGG!$A21,generale!$A$16:$A$4963,0),COLUMN())=0,0,INDEX(generale!$A$16:$G$4963,MATCH(NGG!$A21,generale!$A$16:$A$4963,0),COLUMN())) -> 3 | E21: =IF(INDEX(generale!$A$16:$G$4963,MATCH(NGG!$A21,generale!$A$16:$A$4963,0),COLUMN())=0,0,INDEX(generale!$A$16:$G$4963,MATCH(NGG!$A21,generale!$A$16:$A$4963,0),COLUMN())) -> 14 | F21: =IF(INDEX(generale!$A$16:$G$4963,MATCH(NGG!$A21,generale!$A$16:$A$4963,0),COLUMN())=0,0,INDEX(generale!$A$16:$G$4963,MATCH(NGG!$A21,generale!$A$16:$A$4963,0),COLUMN())) -> 15 | G21: =generale!G31 -> T | H21: 16 | I21: 16 | J21: 11 | K21: 12 | L21: 7 | M21: 0 | N21: 16 | O21: 3 | P21: 6 | Q21: 10 | R21: 2 | S21: 16 | T21: 4 | U21: 16 | V21: 1 | W21: 14 | X21: 13 | Y21: 10 | Z21: 0 | AA21: 1 | AU21: 1 | AV21: 1 | AW21: 18 | AY21: 15
A22: =IF(generale!$A32>0,generale!$A32,"") -> 2005-01-17 | B22: =IF(INDEX(generale!$A$16:$G$4963,MATCH(NGG!$A22,generale!$A$16:$A$4963,0),COLUMN())=0,0,INDEX(generale!$A$16:$G$4963,MATCH(NGG!$A22,generale!$A$16:$A$4963,0),COLUMN())) -> 12 | C22: =IF(INDEX(generale!$A$16:$G$4963,MATCH(NGG!$A22,generale!$A$16:$A$4963,0),COLUMN())=0,0,INDEX(generale!$A$16:$G$4963,MATCH(NGG!$A22,generale!$A$16:$A$4963,0),COLUMN())) -> 13 | D22: =IF(INDEX(generale!$A$16:$G$4963,MATCH(NGG!$A22,generale!$A$16:$A$4963,0),COLUMN())=0,0,INDEX(generale!$A$16:$G$4963,MATCH(NGG!$A22,generale!$A$16:$A$4963,0),COLUMN())) -> 11 | E22: =IF(INDEX(generale!$A$16:$G$4963,MATCH(NGG!$A22,generale!$A$16:$A$4963,0),COLUMN())=0,0,INDEX(generale!$A$16:$G$4963,MATCH(NGG!$A22,generale!$A$16:$A$4963,0),COLUMN())) -> 15 | F22: =IF(INDEX(generale!$A$16:$G$4963,MATCH(NGG!$A22,generale!$A$16:$A$4963,0),COLUMN())=0,0,INDEX(generale!$A$16:$G$4963,MATCH(NGG!$A22,generale!$A$16:$A$4963,0),COLUMN())) -> 9 | G22: =generale!G32 -> T | H22: 17 | I22: 17 | J22: 12 | K22: 13 | L22: 8 | M22: 1 | N22: 17 | O22: 4 | P22: 7 | Q22: 11 | R22: 3 | S22: 0 | T22: 5 | U22: 17 | V22: 2 | W22: 15 | X22: 14 | Y22: 11 | Z22: 0 | AA22: 1 | AU22: 1 | AV22: 1 | AW22: 18 | AX22: 15 | AY22: 18
A23: =IF(generale!$A33>0,generale!$A33,"") -> 2005-01-18 | B23: =IF(INDEX(generale!$A$16:$G$4963,MATCH(NGG!$A23,generale!$A$16:$A$4963,0),COLUMN())=0,0,INDEX(generale!$A$16:$G$4963,MATCH(NGG!$A23,generale!$A$16:$A$4963,0),COLUMN())) -> 7 | C23: =IF(INDEX(generale!$A$16:$G$4963,MATCH(NGG!$A23,generale!$A$16:$A$4963,0),COLUMN())=0,0,INDEX(generale!$A$16:$G$4963,MATCH(NGG!$A23,generale!$A$16:$A$4963,0),COLUMN())) -> 5 | D23: =IF(INDEX(generale!$A$16:$G$4963,MATCH(NGG!$A23,generale!$A$16:$A$4963,0),COLUMN())=0,0,INDEX(generale!$A$16:$G$4963,MATCH(NGG!$A23,generale!$A$16:$A$4963,0),COLUMN())) -> 9 | E23: =IF(INDEX(generale!$A$16:$G$4963,MATCH(NGG!$A23,generale!$A$16:$A$4963,0),COLUMN())=0,0,INDEX(generale!$A$16:$G$4963,MATCH(NGG!$A23,generale!$A$16:$A$4963,0),COLUMN())) -> 10 | F23: =IF(INDEX(generale!$A$16:$G$4963,MATCH(NGG!$A23,generale!$A$16:$A$4963,0),COLUMN())=0,0,INDEX(generale!$A$16:$G$4963,MATCH(NGG!$A23,generale!$A$16:$A$4963,0),COLUMN())) -> 11 | G23: =generale!G33 -> T | H23: =IF(COUNTIF($B23:$D23,0)<3,IF(LEN(SUBSTITUTE(SUBSTITUTE($B23,H$1,,1),,1))=0,0,H22+1-AC23),"") -> 18 | I23: 18 | J23: 13 | K23: 14 | L23: 9 | M23: 2 | N23: 0 | O23: 5 | P23: 8 | Q23: 12 | R23: 4 | S23: 1 | T23: 6 | U23: 18 | V23: 3 | W23: 16 | X23: 15 | Y23: 12 | Z23: 0 | AA23: 1 | AU23: 1 | AV23: 1 | AW23: 18 | AY23: 18
A24: =IF(generale!$A34>0,generale!$A34,"") -> 2005-01-19 | B24: =IF(INDEX(generale!$A$16:$G$4963,MATCH(NGG!$A24,generale!$A$16:$A$4963,0),COLUMN())=0,0,INDEX(generale!$A$16:$G$4963,MATCH(NGG!$A24,generale!$A$16:$A$4963,0),COLUMN())) -> 15 | C24: =IF(INDEX(generale!$A$16:$G$4963,MATCH(NGG!$A24,generale!$A$16:$A$4963,0),COLUMN())=0,0,INDEX(generale!$A$16:$G$4963,MATCH(NGG!$A24,generale!$A$16:$A$4963,0),COLUMN())) -> 4 | D24: =IF(INDEX(generale!$A$16:$G$4963,MATCH(NGG!$A24,generale!$A$16:$A$4963,0),COLUMN())=0,0,INDEX(generale!$A$16:$G$4963,MATCH(NGG!$A24,generale!$A$16:$A$4963,0),COLUMN())) -> 13 | E24: =IF(INDEX(generale!$A$16:$G$4963,MATCH(NGG!$A24,generale!$A$16:$A$4963,0),COLUMN())=0,0,INDEX(generale!$A$16:$G$4963,MATCH(NGG!$A24,generale!$A$16:$A$4963,0),COLUMN())) -> 5 | F24: =IF(INDEX(generale!$A$16:$G$4963,MATCH(NGG!$A24,generale!$A$16:$A$4963,0),COLUMN())=0,0,INDEX(generale!$A$16:$G$4963,MATCH(NGG!$A24,generale!$A$16:$A$4963,0),COLUMN())) -> 6 | G24: =generale!G34 -> P | H24: 19 | I24: 19 | J24: 14 | K24: 15 | L24: 10 | M24: 3 | N24: 1 | O24: 6 | P24: 9 | Q24: 13 | R24: 5 | S24: 2 | T24: 7 | U24: 19 | V24: 0 | W24: 17 | X24: 16 | Y24: 12 | Z24: 0 | AA24: 1 | AT24: 1 | AU24: 1 | AV24: 1 | AW24: 17 | AY24: 17
A25: =IF(generale!$A35>0,generale!$A35,"") -> 2005-01-20 | B25: =IF(INDEX(generale!$A$16:$G$4963,MATCH(NGG!$A25,generale!$A$16:$A$4963,0),COLUMN())=0,0,INDEX(generale!$A$16:$G$4963,MATCH(NGG!$A25,generale!$A$16:$A$4963,0),COLUMN())) -> 1 | C25: =IF(INDEX(generale!$A$16:$G$4963,MATCH(NGG!$A25,generale!$A$16:$A$4963,0),COLUMN())=0,0,INDEX(generale!$A$16:$G$4963,MATCH(NGG!$A25,generale!$A$16:$A$4963,0),COLUMN())) -> 13 | D25: =IF(INDEX(generale!$A$16:$G$4963,MATCH(NGG!$A25,generale!$A$16:$A$4963,0),COLUMN())=0,0,INDEX(generale!$A$16:$G$4963,MATCH(NGG!$A25,generale!$A$16:$A$4963,0),COLUMN())) -> 2 | E25: =IF(INDEX(generale!$A$16:$G$4963,MATCH(NGG!$A25,generale!$A$16:$A$4963,0),COLUMN())=0,0,INDEX(generale!$A$16:$G$4963,MATCH(NGG!$A25,generale!$A$16:$A$4963,0),COLUMN())) -> 12 | F25: =IF(INDEX(generale!$A$16:$G$4963,MATCH(NGG!$A25,generale!$A$16:$A$4963,0),COLUMN())=0,0,INDEX(generale!$A$16:$G$4963,MATCH(NGG!$A25,generale!$A$16:$A$4963,0),COLUMN())) -> 17 | G25: =generale!G35 -> T | H25: 0 | I25: 20 | J25: 15 | K25: 16 | L25: 11 | M25: 4 | N25: 2 | O25: 7 | P25: 10 | Q25: 14 | R25: 6 | S25: 3 | T25: 8 | U25: 20 | V25: 1 | W25: 18 | X25: 17 | Y25: 13 | Z25: 0 | AA25: 1 | AU25: 1 | AV25: 1 | AW25: 18 | AX25: 5-7 | AY25: 17
A26: =IF(generale!$A36>0,generale!$A36,"") -> 2005-01-21 | B26: =IF(INDEX(generale!$A$16:$G$4963,MATCH(NGG!$A26,generale!$A$16:$A$4963,0),COLUMN())=0,0,INDEX(generale!$A$16:$G$4963,MATCH(NGG!$A26,generale!$A$16:$A$4963,0),COLUMN())) -> 1 | C26: =IF(INDEX(generale!$A$16:$G$4963,MATCH(NGG!$A26,generale!$A$16:$A$4963,0),COLUMN())=0,0,INDEX(generale!$A$16:$G$4963,MATCH(NGG!$A26,generale!$A$16:$A$4963,0),COLUMN())) -> 8 | D26: =IF(INDEX(generale!$A$16:$G$4963,MATCH(NGG!$A26,generale!$A$16:$A$4963,0),COLUMN())=0,0,INDEX(generale!$A$16:$G$4963,MATCH(NGG!$A26,generale!$A$16:$A$4963,0),COLUMN())) -> 10 | E26: =IF(INDEX(generale!$A$16:$G$4963,MATCH(NGG!$A26,generale!$A$16:$A$4963,0),COLUMN())=0,0,INDEX(generale!$A$16:$G$4963,MATCH(NGG!$A26,generale!$A$16:$A$4963,0),COLUMN())) -> 13 | F26: =IF(INDEX(generale!$A$16:$G$4963,MATCH(NGG!$A26,generale!$A$16:$A$4963,0),COLUMN())=0,0,INDEX(generale!$A$16:$G$4963,MATCH(NGG!$A26,generale!$A$16:$A$4963,0),COLUMN())) -> 9 | G26: =generale!G36 -> P | H26: 0 | I26: 21 | J26: 16 | K26: 17 | L26: 12 | M26: 5 | N26: 3 | O26: 8 | P26: 11 | Q26: 15 | R26: 7 | S26: 4 | T26: 9 | U26: 21 | V26: 2 | W26: 19 | X26: 17 | Y26: 13 | Z26: 0 | AA26: 1 | AS26: 1 | AT26: 1 | AU26: 1 | AV26: 1 | AW26: 16 | AX26: 13 | AY26: 17
A27: =IF(generale!$A37>0,generale!$A37,"") -> 2005-01-22 | B27: =IF(INDEX(generale!$A$16:$G$4963,MATCH(NGG!$A27,generale!$A$16:$A$4963,0),COLUMN())=0,0,INDEX(generale!$A$16:$G$4963,MATCH(NGG!$A27,generale!$A$16:$A$4963,0),COLUMN())) -> 19 | C27: =IF(INDEX(generale!$A$16:$G$4963,MATCH(NGG!$A27,generale!$A$16:$A$4963,0),COLUMN())=0,0,INDEX(generale!$A$16:$G$4963,MATCH(NGG!$A27,generale!$A$16:$A$4963,0),COLUMN())) -> 11 | D27: =IF(INDEX(generale!$A$16:$G$4963,MATCH(NGG!$A27,generale!$A$16:$A$4963,0),COLUMN())=0,0,INDEX(generale!$A$16:$G$4963,MATCH(NGG!$A27,generale!$A$16:$A$4963,0),COLUMN())) -> 14 | E27: =IF(INDEX(generale!$A$16:$G$4963,MATCH(NGG!$A27,generale!$A$16:$A$4963,0),COLUMN())=0,0,INDEX(generale!$A$16:$G$4963,MATCH(NGG!$A27,generale!$A$16:$A$4963,0),COLUMN())) -> 7 | F27: =IF(INDEX(generale!$A$16:$G$4963,MATCH(NGG!$A27,generale!$A$16:$A$4963,0),COLUMN())=0,0,INDEX(generale!$A$16:$G$4963,MATCH(NGG!$A27,generale!$A$16:$A$4963,0),COLUMN())) -> 15 | G27: =generale!G37 -> T | H27: 1 | I27: 22 | J27: 17 | K27: 18 | L27: 13 | M27: 6 | N27: 4 | O27: 9 | P27: 12 | Q27: 16 | R27: 8 | S27: 5 | T27: 10 | U27: 22 | V27: 3 | W27: 20 | X27: 18 | Y27: 14 | Z27: 0 | AA27: 1 | AV27: 1 | AW27: 19 | AX27: 13 | AY27: 20
A28: =IF(generale!$A38>0,generale!$A38,"") -> 2005-01-23 | B28: =IF(INDEX(generale!$A$16:$G$4963,MATCH(NGG!$A28,generale!$A$16:$A$4963,0),COLUMN())=0,0,INDEX(generale!$A$16:$G$4963,MATCH(NGG!$A28,generale!$A$16:$A$4963,0),COLUMN())) -> 19 | C28: =IF(INDEX(generale!$A$16:$G$4963,MATCH(NGG!$A28,generale!$A$16:$A$4963,0),COLUMN())=0,0,INDEX(generale!$A$16:$G$4963,MATCH(NGG!$A28,generale!$A$16:$A$4963,0),COLUMN())) -> 18 | D28: =IF(INDEX(generale!$A$16:$G$4963,MATCH(NGG!$A28,generale!$A$16:$A$4963,0),COLUMN())=0,0,INDEX(generale!$A$16:$G$4963,MATCH(NGG!$A28,generale!$A$16:$A$4963,0),COLUMN())) -> 16 | E28: =IF(INDEX(generale!$A$16:$G$4963,MATCH(NGG!$A28,generale!$A$16:$A$4963,0),COLUMN())=0,0,INDEX(generale!$A$16:$G$4963,MATCH(NGG!$A28,generale!$A$16:$A$4963,0),COLUMN())) -> 13 | F28: =IF(INDEX(generale!$A$16:$G$4963,MATCH(NGG!$A28,generale!$A$16:$A$4963,0),COLUMN())=0,0,INDEX(generale!$A$16:$G$4963,MATCH(NGG!$A28,generale!$A$16:$A$4963,0),COLUMN())) -> 4 | G28: =generale!G38 -> T | H28: 2 | I28: 23 | J28: 18 | K28: 19 | L28: 14 | M28: 7 | N28: 5 | O28: 10 | P28: 13 | Q28: 17 | R28: 9 | S28: 6 | T28: 11 | U28: 23 | V28: 4 | W28: 21 | X28: 19 | Y28: 15 | Z28: 0 | AA28: 1 | AV28: 1 | AW28: 19 | AY28: 19
A29: =IF(generale!$A39>0,generale!$A39,"") -> 2005-01-24 | B29: =IF(INDEX(generale!$A$16:$G$4963,MATCH(NGG!$A29,generale!$A$16:$A$4963,0),COLUMN())=0,0,INDEX(generale!$A$16:$G$4963,MATCH(NGG!$A29,generale!$A$16:$A$4963,0),COLUMN())) -> 3 | C29: =IF(INDEX(generale!$A$16:$G$4963,MATCH(NGG!$A29,generale!$A$16:$A$4963,0),COLUMN())=0,0,INDEX(generale!$A$16:$G$4963,MATCH(NGG!$A29,generale!$A$16:$A$4963,0),COLUMN())) -> 18 | D29: =IF(INDEX(generale!$A$16:$G$4963,MATCH(NGG!$A29,generale!$A$16:$A$4963,0),COLUMN())=0,0,INDEX(generale!$A$16:$G$4963,MATCH(NGG!$A29,generale!$A$16:$A$4963,0),COLUMN())) -> 4 | E29: =IF(INDEX(generale!$A$16:$G$4963,MATCH(NGG!$A29,generale!$A$16:$A$4963,0),COLUMN())=0,0,INDEX(generale!$A$16:$G$4963,MATCH(NGG!$A29,generale!$A$16:$A$4963,0),COLUMN())) -> 8 | F29: =IF(INDEX(generale!$A$16:$G$4963,MATCH(NGG!$A29,generale!$A$16:$A$4963,0),COLUMN())=0,0,INDEX(generale!$A$16:$G$4963,MATCH(NGG!$A29,generale!$A$16:$A$4963,0),COLUMN())) -> 1 | G29: =generale!G39 -> P | H29: 3 | I29: 24 | J29: 0 | K29: 20 | L29: 15 | M29: 8 | N29: 6 | O29: 11 | P29: 14 | Q29: 18 | R29: 10 | S29: 7 | T29: 12 | U29: 24 | V29: 5 | W29: 22 | X29: 20 | Y29: 15 | Z29: 0 | AA29: 1 | AT29: 1 | AU29: 1 | AV29: 1 | AW29: 17 | AY29: 18
A30: =IF(generale!$A40>0,generale!$A40,"") -> 2005-01-25 | B30: =IF(INDEX(generale!$A$16:$G$4963,MATCH(NGG!$A30,generale!$A$16:$A$4963,0),COLUMN())=0,0,INDEX(generale!$A$16:$G$4963,MATCH(NGG!$A30,generale!$A$16:$A$4963,0),COLUMN())) -> 5 | C30: =IF(INDEX(generale!$A$16:$G$4963,MATCH(NGG!$A30,generale!$A$16:$A$4963,0),COLUMN())=0,0,INDEX(generale!$A$16:$G$4963,MATCH(NGG!$A30,generale!$A$16:$A$4963,0),COLUMN())) -> 2 | D30: =IF(INDEX(generale!$A$16:$G$4963,MATCH(NGG!$A30,generale!$A$16:$A$4963,0),COLUMN())=0,0,INDEX(generale!$A$16:$G$4963,MATCH(NGG!$A30,generale!$A$16:$A$4963,0),COLUMN())) -> 11 | E30: =IF(INDEX(generale!$A$16:$G$4963,MATCH(NGG!$A30,generale!$A$16:$A$4963,0),COLUMN())=0,0,INDEX(generale!$A$16:$G$4963,MATCH(NGG!$A30,generale!$A$16:$A$4963,0),COLUMN())) -> 8 | F30: =IF(INDEX(generale!$A$16:$G$4963,MATCH(NGG!$A30,generale!$A$16:$A$4963,0),COLUMN())=0,0,INDEX(generale!$A$16:$G$4963,MATCH(NGG!$A30,generale!$A$16:$A$4963,0),COLUMN())) -> 12 | G30: =generale!G40 -> T | H30: 4 | I30: 25 | J30: 1 | K30: 21 | L30: 0 | M30: 9 | N30: 7 | O30: 12 | P30: 15 | Q30: 19 | R30: 11 | S30: 8 | T30: 13 | U30: 25 | V30: 6 | W30: 23 | X30: 21 | Y30: 16 | Z30: 0 | AA30: 1 | AU30: 1 | AV30: 1 | AW30: 18 | AY30: 16
A31: =IF(generale!$A41>0,generale!$A41,"") -> 2005-01-26 | B31: =IF(INDEX(generale!$A$16:$G$4963,MATCH(NGG!$A31,generale!$A$16:$A$4963,0),COLUMN())=0,0,INDEX(generale!$A$16:$G$4963,MATCH(NGG!$A31,generale!$A$16:$A$4963,0),COLUMN())) -> 3 | C31: =IF(INDEX(generale!$A$16:$G$4963,MATCH(NGG!$A31,generale!$A$16:$A$4963,0),COLUMN())=0,0,INDEX(generale!$A$16:$G$4963,MATCH(NGG!$A31,generale!$A$16:$A$4963,0),COLUMN())) -> 6 | D31: =IF(INDEX(generale!$A$16:$G$4963,MATCH(NGG!$A31,generale!$A$16:$A$4963,0),COLUMN())=0,0,INDEX(generale!$A$16:$G$4963,MATCH(NGG!$A31,generale!$A$16:$A$4963,0),COLUMN())) -> 2 | E31: =IF(INDEX(generale!$A$16:$G$4963,MATCH(NGG!$A31,generale!$A$16:$A$4963,0),COLUMN())=0,0,INDEX(generale!$A$16:$G$4963,MATCH(NGG!$A31,generale!$A$16:$A$4963,0),COLUMN())) -> 16 | F31: =IF(INDEX(generale!$A$16:$G$4963,MATCH(NGG!$A31,generale!$A$16:$A$4963,0),COLUMN())=0,0,INDEX(generale!$A$16:$G$4963,MATCH(NGG!$A31,generale!$A$16:$A$4963,0),COLUMN())) -> 17 | G31: =generale!G41 -> P | H31: 5 | I31: 26 | J31: 0 | K31: 22 | L31: 1 | M31: 10 | N31: 8 | O31: 13 | P31: 16 | Q31: 20 | R31: 12 | S31: 9 | T31: 14 | U31: 26 | V31: 7 | W31: 24 | X31: 22 | Y31: 16 | Z31: 0 | AA31: 1 | AT31: 1 | AU31: 1 | AV31: 1 | AW31: 17 | AY31: 17
A32: =IF(generale!$A42>0,generale!$A42,"") -> 2005-01-27 | B32: =IF(INDEX(generale!$A$16:$G$4963,MATCH(NGG!$A32,generale!$A$16:$A$4963,0),COLUMN())=0,0,INDEX(generale!$A$16:$G$4963,MATCH(NGG!$A32,generale!$A$16:$A$4963,0),COLUMN())) -> 3 | C32: =IF(INDEX(generale!$A$16:$G$4963,MATCH(NGG!$A32,generale!$A$16:$A$4963,0),COLUMN())=0,0,INDEX(generale!$A$16:$G$4963,MATCH(NGG!$A32,generale!$A$16:$A$4963,0),COLUMN())) -> 1 | D32: =IF(INDEX(generale!$A$16:$G$4963,MATCH(NGG!$A32,generale!$A$16:$A$4963,0),COLUMN())=0,0,INDEX(generale!$A$16:$G$4963,MATCH(NGG!$A32,generale!$A$16:$A$4963,0),COLUMN())) -> 2 | E32: =IF(INDEX(generale!$A$16:$G$4963,MATCH(NGG!$A32,generale!$A$16:$A$4963,0),COLUMN())=0,0,INDEX(generale!$A$16:$G$4963,MATCH(NGG!$A32,generale!$A$16:$A$4963,0),COLUMN())) -> 13 | F32: =IF(INDEX(generale!$A$16:$G$4963,MATCH(NGG!$A32,generale!$A$16:$A$4963,0),COLUMN())=0,0,INDEX(generale!$A$16:$G$4963,MATCH(NGG!$A32,generale!$A$16:$A$4963,0),COLUMN())) -> 11 | G32: =generale!G42 -> T | H32: 6 | I32: 27 | J32: 0 | K32: 23 | L32: 2 | M32: 11 | N32: 9 | O32: 14 | P32: 17 | Q32: 21 | R32: 13 | S32: 10 | T32: 15 | U32: 27 | V32: 8 | W32: 25 | X32: 23 | Y32: 17 | Z32: 0 | AA32: 1 | AU32: 1 | AV32: 1 | AW32: 18 | AY32: 18
A33: =IF(generale!$A43>0,generale!$A43,"") -> 2005-01-28 | B33: =IF(INDEX(generale!$A$16:$G$4963,MATCH(NGG!$A33,generale!$A$16:$A$4963,0),COLUMN())=0,0,INDEX(generale!$A$16:$G$4963,MATCH(NGG!$A33,generale!$A$16:$A$4963,0),COLUMN())) -> 13 | C33: =IF(INDEX(generale!$A$16:$G$4963,MATCH(NGG!$A33,generale!$A$16:$A$4963,0),COLUMN())=0,0,INDEX(generale!$A$16:$G$4963,MATCH(NGG!$A33,generale!$A$16:$A$4963,0),COLUMN())) -> 5 | D33: =IF(INDEX(generale!$A$16:$G$4963,MATCH(NGG!$A33,generale!$A$16:$A$4963,0),COLUMN())=0,0,INDEX(generale!$A$16:$G$4963,MATCH(NGG!$A33,generale!$A$16:$A$4963,0),COLUMN())) -> 14 | E33: =IF(INDEX(generale!$A$16:$G$4963,MATCH(NGG!$A33,generale!$A$16:$A$4963,0),COLUMN())=0,0,INDEX(generale!$A$16:$G$4963,MATCH(NGG!$A33,generale!$A$16:$A$4963,0),COLUMN())) -> 17 | F33: =IF(INDEX(generale!$A$16:$G$4963,MATCH(NGG!$A33,generale!$A$16:$A$4963,0),COLUMN())=0,0,INDEX(generale!$A$16:$G$4963,MATCH(NGG!$A33,generale!$A$16:$A$4963,0),COLUMN())) -> 8 | G33: =generale!G43 -> T | H33: 7 | I33: 28 | J33: 1 | K33: 24 | L33: 3 | M33: 12 | N33: 10 | O33: 15 | P33: 18 | Q33: 22 | R33: 14 | S33: 11 | T33: 0 | U33: 28 | V33: 9 | W33: 26 | X33: 24 | Y33: 17 | Z33: 0 | AA33: 1 | AT33: 1 | AU33: 1 | AV33: 1 | AW33: 17 | AY33: 17
A34: =IF(generale!$A44>0,generale!$A44,"") -> 2005-01-29 | B34: =IF(INDEX(generale!$A$16:$G$4963,MATCH(NGG!$A34,generale!$A$16:$A$4963,0),COLUMN())=0,0,INDEX(generale!$A$16:$G$4963,MATCH(NGG!$A34,generale!$A$16:$A$4963,0),COLUMN())) -> 14 | C34: =IF(INDEX(generale!$A$16:$G$4963,MATCH(NGG!$A34,generale!$A$16:$A$4963,0),COLUMN())=0,0,INDEX(generale!$A$16:$G$4963,MATCH(NGG!$A34,generale!$A$16:$A$4963,0),COLUMN())) -> 9 | D34: =IF(INDEX(generale!$A$16:$G$4963,MATCH(NGG!$A34,generale!$A$16:$A$4963,0),COLUMN())=0,0,INDEX(generale!$A$16:$G$4963,MATCH(NGG!$A34,generale!$A$16:$A$4963,0),COLUMN())) -> 2 | E34: =IF(INDEX(generale!$A$16:$G$4963,MATCH(NGG!$A34,generale!$A$16:$A$4963,0),COLUMN())=0,0,INDEX(generale!$A$16:$G$4963,MATCH(NGG!$A34,generale!$A$16:$A$4963,0),COLUMN())) -> 13 | F34: =IF(INDEX(generale!$A$16:$G$4963,MATCH(NGG!$A34,generale!$A$16:$A$4963,0),COLUMN())=0,0,INDEX(generale!$A$16:$G$4963,MATCH(NGG!$A34,generale!$A$16:$A$4963,0),COLUMN())) -> 12 | G34: =generale!G44 -> T | H34: 8 | I34: 29 | J34: 2 | K34: 25 | L34: 4 | M34: 13 | N34: 11 | O34: 16 | P34: 19 | Q34: 23 | R34: 15 | S34: 12 | T34: 1 | U34: 0 | V34: 10 | W34: 26 | X34: 24 | Y34: 17 | Z34: 0 | AA34: 1 | AR34: 1 | AS34: 1 | AT34: 1 | AU34: 1 | AV34: 1 | AW34: 15 | AY34: 15
A35: =IF(generale!$A45>0,generale!$A45,"") -> 2005-01-30 | B35: =IF(INDEX(generale!$A$16:$G$4963,MATCH(NGG!$A35,generale!$A$16:$A$4963,0),COLUMN())=0,0,INDEX(generale!$A$16:$G$4963,MATCH(NGG!$A35,generale!$A$16:$A$4963,0),COLUMN())) -> 18 | C35: =IF(INDEX(generale!$A$16:$G$4963,MATCH(NGG!$A35,generale!$A$16:$A$4963,0),COLUMN())=0,0,INDEX(generale!$A$16:$G$4963,MATCH(NGG!$A35,generale!$A$16:$A$4963,0),COLUMN())) -> 14 | D35: =IF(INDEX(generale!$A$16:$G$4963,MATCH(NGG!$A35,generale!$A$16:$A$4963,0),COLUMN())=0,0,INDEX(generale!$A$16:$G$4963,MATCH(NGG!$A35,generale!$A$16:$A$4963,0),COLUMN())) -> 12 | E35: =IF(INDEX(generale!$A$16:$G$4963,MATCH(NGG!$A35,generale!$A$16:$A$4963,0),COLUMN())=0,0,INDEX(generale!$A$16:$G$4963,MATCH(NGG!$A35,generale!$A$16:$A$4963,0),COLUMN())) -> 15 | F35: =IF(INDEX(generale!$A$16:$G$4963,MATCH(NGG!$A35,generale!$A$16:$A$4963,0),COLUMN())=0,0,INDEX(generale!$A$16:$G$4963,MATCH(NGG!$A35,generale!$A$16:$A$4963,0),COLUMN())) -> 11 | G35: =generale!G45 -> T | H35: 9 | I35: 30 | J35: 3 | K35: 26 | L35: 5 | M35: 14 | N35: 12 | O35: 17 | P35: 20 | Q35: 24 | R35: 16 | S35: 13 | T35: 2 | U35: 1 | V35: 11 | W35: 27 | X35: =IF(COUNTIF($B35:$D35,0)<3,IF(LEN(SUBSTITUTE(SUBSTITUTE($B35,X$1,,1),,1))=0,0,X34+1-AS35),"") -> 25 | Y35: 0 | Z35: 0 | AA35: 1 | AU35: 1 | AV35: 1 | AW35: 18 | AY35: 18
A36: =IF(generale!$A46>0,generale!$A46,"") -> 2005-01-31 | B36: =IF(INDEX(generale!$A$16:$G$4963,MATCH(NGG!$A36,generale!$A$16:$A$4963,0),COLUMN())=0,0,INDEX(generale!$A$16:$G$4963,MATCH(NGG!$A36,generale!$A$16:$A$4963,0),COLUMN())) -> 7 | C36: =IF(INDEX(generale!$A$16:$G$4963,MATCH(NGG!$A36,generale!$A$16:$A$4963,0),COLUMN())=0,0,INDEX(generale!$A$16:$G$4963,MATCH(NGG!$A36,generale!$A$16:$A$4963,0),COLUMN())) -> 1 | D36: =IF(INDEX(generale!$A$16:$G$4963,MATCH(NGG!$A36,generale!$A$16:$A$4963,0),COLUMN())=0,0,INDEX(generale!$A$16:$G$4963,MATCH(NGG!$A36,generale!$A$16:$A$4963,0),COLUMN())) -> 5 | E36: =IF(INDEX(generale!$A$16:$G$4963,MATCH(NGG!$A36,generale!$A$16:$A$4963,0),COLUMN())=0,0,INDEX(generale!$A$16:$G$4963,MATCH(NGG!$A36,generale!$A$16:$A$4963,0),COLUMN())) -> 6 | F36: =IF(INDEX(generale!$A$16:$G$4963,MATCH(NGG!$A36,generale!$A$16:$A$4963,0),COLUMN())=0,0,INDEX(generale!$A$16:$G$4963,MATCH(NGG!$A36,generale!$A$16:$A$4963,0),COLUMN())) -> 10 | G36: =generale!G46 -> T | H36: 10 | I36: 31 | J36: 4 | K36: 27 | L36: 6 | M36: 15 | N36: 0 | O36: 18 | P36: 21 | Q36: 25 | R36: 17 | S36: 14 | T36: 3 | U36: 2 | V36: 12 | W36: 27 | X36: 25 | Y36: 0 | Z36: 0 | AA36: 1 | AR36: 1 | AS36: 1 | AT36: 1 | AU36: 1 | AV36: 1 | AW36: 15 | AY36: 18
A37: =IF(generale!$A47>0,generale!$A47,"") -> 2005-02-01 | B37: =IF(INDEX(generale!$A$16:$G$4963,MATCH(NGG!$A37,generale!$A$16:$A$4963,0),COLUMN())=0,0,INDEX(generale!$A$16:$G$4963,MATCH(NGG!$A37,generale!$A$16:$A$4963,0),COLUMN())) -> 10 | C37: =IF(INDEX(generale!$A$16:$G$4963,MATCH(NGG!$A37,generale!$A$16:$A$4963,0),COLUMN())=0,0,INDEX(generale!$A$16:$G$4963,MATCH(NGG!$A37,generale!$A$16:$A$4963,0),COLUMN())) -> 9 | D37: =IF(INDEX(generale!$A$16:$G$4963,MATCH(NGG!$A37,generale!$A$16:$A$4963,0),COLUMN())=0,0,INDEX(generale!$A$16:$G$4963,MATCH(NGG!$A37,generale!$A$16:$A$4963,0),COLUMN())) -> 1 | E37: =IF(INDEX(generale!$A$16:$G$4963,MATCH(NGG!$A37,generale!$A$16:$A$4963,0),COLUMN())=0,0,INDEX(generale!$A$16:$G$4963,MATCH(NGG!$A37,generale!$A$16:$A$4963,0),COLUMN())) -> 5 | F37: =IF(INDEX(generale!$A$16:$G$4963,MATCH(NGG!$A37,generale!$A$16:$A$4963,0),COLUMN())=0,0,INDEX(generale!$A$16:$G$4963,MATCH(NGG!$A37,generale!$A$16:$A$4963,0),COLUMN())) -> 17 | G37: =generale!G47 -> T | H37: 11 | I37: 32 | J37: 5 | K37: 28 | L37: 7 | M37: 16 | N37: 1 | O37: 19 | P37: 22 | Q37: 0 | R37: 18 | S37: 15 | T37: 4 | U37: 3 | V37: 13 | W37: 28 | X37: 26 | Y37: 1 | Z37: 0 | AA37: 1 | AU37: 1 | AV37: 1 | AW37: 18 | AX37: 5 | AY37: 17
A38: =IF(generale!$A48>0,generale!$A48,"") -> 2005-02-02 | B38: =IF(INDEX(generale!$A$16:$G$4963,MATCH(NGG!$A38,generale!$A$16:$A$4963,0),COLUMN())=0,0,INDEX(generale!$A$16:$G$4963,MATCH(NGG!$A38,generale!$A$16:$A$4963,0),COLUMN())) -> 7 | C38: =IF(INDEX(generale!$A$16:$G$4963,MATCH(NGG!$A38,generale!$A$16:$A$4963,0),COLUMN())=0,0,INDEX(generale!$A$16:$G$4963,MATCH(NGG!$A38,generale!$A$16:$A$4963,0),COLUMN())) -> 11 | D38: =IF(INDEX(generale!$A$16:$G$4963,MATCH(NGG!$A38,generale!$A$16:$A$4963,0),COLUMN())=0,0,INDEX(generale!$A$16:$G$4963,MATCH(NGG!$A38,generale!$A$16:$A$4963,0),COLUMN())) -> 1 | E38: =IF(INDEX(generale!$A$16:$G$4963,MATCH(NGG!$A38,generale!$A$16:$A$4963,0),COLUMN())=0,0,INDEX(generale!$A$16:$G$4963,MATCH(NGG!$A38,generale!$A$16:$A$4963,0),COLUMN())) -> 5 | F38: =IF(INDEX(generale!$A$16:$G$4963,MATCH(NGG!$A38,generale!$A$16:$A$4963,0),COLUMN())=0,0,INDEX(generale!$A$16:$G$4963,MATCH(NGG!$A38,generale!$A$16:$A$4963,0),COLUMN())) -> 9 | G38: =generale!G48 -> P | H38: 12 | I38: 33 | J38: 6 | K38: 29 | L38: 8 | M38: 17 | N38: 0 | O38: 20 | P38: 23 | Q38: 1 | R38: 19 | S38: 16 | T38: 5 | U38: 4 | V38: 14 | W38: 29 | X38: 26 | Y38: 1 | Z38: 0 | AA38: 1 | AS38: 1 | AT38: 1 | AU38: 1 | AV38: 1 | AW38: 16 | AX38: 17 | AY38: 18
A39: =IF(generale!$A49>0,generale!$A49,"") -> 2005-02-03 | B39: =IF(INDEX(generale!$A$16:$G$4963,MATCH(NGG!$A39,generale!$A$16:$A$4963,0),COLUMN())=0,0,INDEX(generale!$A$16:$G$4963,MATCH(NGG!$A39,generale!$A$16:$A$4963,0),COLUMN())) -> 8 | C39: =IF(INDEX(generale!$A$16:$G$4963,MATCH(NGG!$A39,generale!$A$16:$A$4963,0),COLUMN())=0,0,INDEX(generale!$A$16:$G$4963,MATCH(NGG!$A39,generale!$A$16:$A$4963,0),COLUMN())) -> 7 | D39: =IF(INDEX(generale!$A$16:$G$4963,MATCH(NGG!$A39,generale!$A$16:$A$4963,0),COLUMN())=0,0,INDEX(generale!$A$16:$G$4963,MATCH(NGG!$A39,generale!$A$16:$A$4963,0),COLUMN())) -> 2 | E39: =IF(INDEX(generale!$A$16:$G$4963,MATCH(NGG!$A39,generale!$A$16:$A$4963,0),COLUMN())=0,0,INDEX(generale!$A$16:$G$4963,MATCH(NGG!$A39,generale!$A$16:$A$4963,0),COLUMN())) -> 11 | F39: =IF(INDEX(generale!$A$16:$G$4963,MATCH(NGG!$A39,generale!$A$16:$A$4963,0),COLUMN())=0,0,INDEX(generale!$A$16:$G$4963,MATCH(NGG!$A39,generale!$A$16:$A$4963,0),COLUMN())) -> 5 | G39: =generale!G49 -> T | H39: =IF(COUNTIF($B39:$D39,0)<3,IF(LEN(SUBSTITUTE(SUBSTITUTE($B39,H$1,,1),,1))=0,0,H38+1-AC39),"") -> 13 | I39: 34 | J39: 7 | K39: 30 | L39: 9 | M39: 18 | N39: 1 | O39: 0 | P39: 24 | Q39: 2 | R39: 20 | S39: 17 | T39: 6 | U39: 5 | V39: 15 | W39: 29 | X39: 26 | Y39: 1 | Z39: 0 | AA39: 1 | AR39: 1 | AS39: 1 | AT39: 1 | AU39: 1 | AV39: 1 | AW39: 15 | AY39: 16
A40: =IF(generale!$A50>0,generale!$A50,"") -> 2005-02-04 | B40: =IF(INDEX(generale!$A$16:$G$4963,MATCH(NGG!$A40,generale!$A$16:$A$4963,0),COLUMN())=0,0,INDEX(generale!$A$16:$G$4963,MATCH(NGG!$A40,generale!$A$16:$A$4963,0),COLUMN())) -> 6 | C40: =IF(INDEX(generale!$A$16:$G$4963,MATCH(NGG!$A40,generale!$A$16:$A$4963,0),COLUMN())=0,0,INDEX(generale!$A$16:$G$4963,MATCH(NGG!$A40,generale!$A$16:$A$4963,0),COLUMN())) -> 14 | D40: =IF(INDEX(generale!$A$16:$G$4963,MATCH(NGG!$A40,generale!$A$16:$A$4963,0),COLUMN())=0,0,INDEX(generale!$A$16:$G$4963,MATCH(NGG!$A40,generale!$A$16:$A$4963,0),COLUMN())) -> 7 | E40: =IF(INDEX(generale!$A$16:$G$4963,MATCH(NGG!$A40,generale!$A$16:$A$4963,0),COLUMN())=0,0,INDEX(generale!$A$16:$G$4963,MATCH(NGG!$A40,generale!$A$16:$A$4963,0),COLUMN())) -> 3 | F40: =IF(INDEX(generale!$A$16:$G$4963,MATCH(NGG!$A40,generale!$A$16:$A$4963,0),COLUMN())=0,0,INDEX(generale!$A$16:$G$4963,MATCH(NGG!$A40,generale!$A$16:$A$4963,0),COLUMN())) -> 16 | G40: =generale!G50 -> O | H40: 14 | I40: 35 | J40: 8 | K40: 31 | L40: 10 | M40: 0 | N40: 2 | O40: 1 | P40: 25 | Q40: 3 | R40: 21 | S40: 18 | T40: 7 | U40: 6 | V40: 16 | W40: 30 | X40: 27 | Y40: 2 | Z40: 0 | AA40: 1 | AU40: 1 | AV40: 1 | AW40: 18 | AY40: 18
A41: =IF(generale!$A51>0,generale!$A51,"") -> 2005-02-05 | B41: =IF(INDEX(generale!$A$16:$G$4963,MATCH(NGG!$A41,generale!$A$16:$A$4963,0),COLUMN())=0,0,INDEX(generale!$A$16:$G$4963,MATCH(NGG!$A41,generale!$A$16:$A$4963,0),COLUMN())) -> 11 | C41: =IF(INDEX(generale!$A$16:$G$4963,MATCH(NGG!$A41,generale!$A$16:$A$4963,0),COLUMN())=0,0,INDEX(generale!$A$16:$G$4963,MATCH(NGG!$A41,generale!$A$16:$A$4963,0),COLUMN())) -> 18 | D41: =IF(INDEX(generale!$A$16:$G$4963,MATCH(NGG!$A41,generale!$A$16:$A$4963,0),COLUMN())=0,0,INDEX(generale!$A$16:$G$4963,MATCH(NGG!$A41,generale!$A$16:$A$4963,0),COLUMN())) -> 15 | E41: =IF(INDEX(generale!$A$16:$G$4963,MATCH(NGG!$A41,generale!$A$16:$A$4963,0),COLUMN())=0,0,INDEX(generale!$A$16:$G$4963,MATCH(NGG!$A41,generale!$A$16:$A$4963,0),COLUMN())) -> 19 | F41: =IF(INDEX(generale!$A$16:$G$4963,MATCH(NGG!$A41,generale!$A$16:$A$4963,0),COLUMN())=0,0,INDEX(generale!$A$16:$G$4963,MATCH(NGG!$A41,generale!$A$16:$A$4963,0),COLUMN())) -> 6 | G41: =generale!G51 -> T | H41: 15 | I41: 36 | J41: 9 | K41: 32 | L41: 11 | M41: 1 | N41: 3 | O41: 2 | P41: 26 | Q41: 4 | R41: 0 | S41: 19 | T41: 8 | U41: 7 | V41: 17 | W41: 31 | X41: 28 | Y41: 3 | Z41: 0 | AA41: 1 | AU41: 1 | AV41: 1 | AW41: 18 | AY41: 19
A42: =IF(generale!$A52>0,generale!$A52,"") -> 2005-02-06 | B42: =IF(INDEX(generale!$A$16:$G$4963,MATCH(NGG!$A42,generale!$A$16:$A$4963,0),COLUMN())=0,0,INDEX(generale!$A$16:$G$4963,MATCH(NGG!$A42,generale!$A$16:$A$4963,0),COLUMN())) -> 3 | C42: =IF(INDEX(generale!$A$16:$G$4963,MATCH(NGG!$A42,generale!$A$16:$A$4963,0),COLUMN())=0,0,INDEX(generale!$A$16:$G$4963,MATCH(NGG!$A42,generale!$A$16:$A$4963,0),COLUMN())) -> 18 | D42: =IF(INDEX(generale!$A$16:$G$4963,MATCH(NGG!$A42,generale!$A$16:$A$4963,0),COLUMN())=0,0,INDEX(generale!$A$16:$G$4963,MATCH(NGG!$A42,generale!$A$16:$A$4963,0),COLUMN())) -> 6 | E42: =IF(INDEX(generale!$A$16:$G$4963,MATCH(NGG!$A42,generale!$A$16:$A$4963,0),COLUMN())=0,0,INDEX(generale!$A$16:$G$4963,MATCH(NGG!$A42,generale!$A$16:$A$4963,0),COLUMN())) -> 5 | F42: =IF(INDEX(generale!$A$16:$G$4963,MATCH(NGG!$A42,generale!$A$16:$A$4963,0),COLUMN())=0,0,INDEX(generale!$A$16:$G$4963,MATCH(NGG!$A42,generale!$A$16:$A$4963,0),COLUMN())) -> 19 | G42: =generale!G52 -> T | H42: 16 | I42: 37 | J42: 0 | K42: 33 | L42: 12 | M42: 2 | N42: 4 | O42: 3 | P42: 27 | Q42: 5 | R42: 1 | S42: 20 | T42: 9 | U42: 8 | V42: 18 | W42: 32 | X42: 29 | Y42: 4 | Z42: 0 | AA42: 1 | AU42: 1 | AV42: 1 | AW42: 18 | AY42: 19
A43: =IF(generale!$A53>0,generale!$A53,"") -> 2005-02-07 | B43: =IF(INDEX(generale!$A$16:$G$4963,MATCH(NGG!$A43,generale!$A$16:$A$4963,0),COLUMN())=0,0,INDEX(generale!$A$16:$G$4963,MATCH(NGG!$A43,generale!$A$16:$A$4963,0),COLUMN())) -> 11 | C43: =IF(INDEX(generale!$A$16:$G$4963,MATCH(NGG!$A43,generale!$A$16:$A$4963,0),COLUMN())=0,0,INDEX(generale!$A$16:$G$4963,MATCH(NGG!$A43,generale!$A$16:$A$4963,0),COLUMN())) -> 15 | D43: =IF(INDEX(generale!$A$16:$G$4963,MATCH(NGG!$A43,generale!$A$16:$A$4963,0),COLUMN())=0,0,INDEX(generale!$A$16:$G$4963,MATCH(NGG!$A43,generale!$A$16:$A$4963,0),COLUMN())) -> 17 | E43: =IF(INDEX(generale!$A$16:$G$4963,MATCH(NGG!$A43,generale!$A$16:$A$4963,0),COLUMN())=0,0,INDEX(generale!$A$16:$G$4963,MATCH(NGG!$A43,generale!$A$16:$A$4963,0),COLUMN())) -> 4 | F43: =IF(INDEX(generale!$A$16:$G$4963,MATCH(NGG!$A43,generale!$A$16:$A$4963,0),COLUMN())=0,0,INDEX(generale!$A$16:$G$4963,MATCH(NGG!$A43,generale!$A$16:$A$4963,0),COLUMN())) -> 5 | G43: =generale!G53 -> T | H43: 17 | I43: 38 | J43: 1 | K43: 34 | L43: 13 | M43: 3 | N43: 5 | O43: 4 | P43: 28 | Q43: 6 | R43: 0 | S43: 21 | T43: 10 | U43: 9 | V43: 19 | W43: 33 | X43: 30 | Y43: 4 | Z43: 0 | AA43: 1 | AT43: 1 | AU43: 1 | AV43: 1 | AW43: 17 | AY43: 18
A44: =IF(generale!$A54>0,generale!$A54,"") -> 2005-02-08 | B44: =IF(INDEX(generale!$A$16:$G$4963,MATCH(NGG!$A44,generale!$A$16:$A$4963,0),COLUMN())=0,0,INDEX(generale!$A$16:$G$4963,MATCH(NGG!$A44,generale!$A$16:$A$4963,0),COLUMN())) -> 2 | C44: =IF(INDEX(generale!$A$16:$G$4963,MATCH(NGG!$A44,generale!$A$16:$A$4963,0),COLUMN())=0,0,INDEX(generale!$A$16:$G$4963,MATCH(NGG!$A44,generale!$A$16:$A$4963,0),COLUMN())) -> 1 | D44: =IF(INDEX(generale!$A$16:$G$4963,MATCH(NGG!$A44,generale!$A$16:$A$4963,0),COLUMN())=0,0,INDEX(generale!$A$16:$G$4963,MATCH(NGG!$A44,generale!$A$16:$A$4963,0),COLUMN())) -> 9 | E44: =IF(INDEX(generale!$A$16:$G$4963,MATCH(NGG!$A44,generale!$A$16:$A$4963,0),COLUMN())=0,0,INDEX(generale!$A$16:$G$4963,MATCH(NGG!$A44,generale!$A$16:$A$4963,0),COLUMN())) -> 3 | F44: =IF(INDEX(generale!$A$16:$G$4963,MATCH(NGG!$A44,generale!$A$16:$A$4963,0),COLUMN())=0,0,INDEX(generale!$A$16:$G$4963,MATCH(NGG!$A44,generale!$A$16:$A$4963,0),COLUMN())) -> 16 | G44: =generale!G54 -> T | H44: 18 | I44: 0 | J44: 2 | K44: 35 | L44: 14 | M44: 4 | N44: 6 | O44: 5 | P44: 29 | Q44: 7 | R44: 1 | S44: 22 | T44: 11 | U44: 10 | V44: 20 | W44: 34 | X44: 31 | Y44: 5 | Z44: 0 | AA44: 1 | AU44: 1 | AV44: 1 | AW44: 18 | AY44: 18
A45: =IF(generale!$A55>0,generale!$A55,"") -> 2005-02-09 | B45: =IF(INDEX(generale!$A$16:$G$4963,MATCH(NGG!$A45,generale!$A$16:$A$4963,0),COLUMN())=0,0,INDEX(generale!$A$16:$G$4963,MATCH(NGG!$A45,generale!$A$16:$A$4963,0),COLUMN())) -> 15 | C45: =IF(INDEX(generale!$A$16:$G$4963,MATCH(NGG!$A45,generale!$A$16:$A$4963,0),COLUMN())=0,0,INDEX(generale!$A$16:$G$4963,MATCH(NGG!$A45,generale!$A$16:$A$4963,0),COLUMN())) -> 5 | D45: =IF(INDEX(generale!$A$16:$G$4963,MATCH(NGG!$A45,generale!$A$16:$A$4963,0),COLUMN())=0,0,INDEX(generale!$A$16:$G$4963,MATCH(NGG!$A45,generale!$A$16:$A$4963,0),COLUMN())) -> 7 | E45: =IF(INDEX(generale!$A$16:$G$4963,MATCH(NGG!$A45,generale!$A$16:$A$4963,0),COLUMN())=0,0,INDEX(generale!$A$16:$G$4963,MATCH(NGG!$A45,generale!$A$16:$A$4963,0),COLUMN())) -> 9 | F45: =IF(INDEX(generale!$A$16:$G$4963,MATCH(NGG!$A45,generale!$A$16:$A$4963,0),COLUMN())=0,0,INDEX(generale!$A$16:$G$4963,MATCH(NGG!$A45,generale!$A$16:$A$4963,0),COLUMN())) -> 13 | G45: =generale!G55 -> T | H45: 19 | I45: 1 | J45: 3 | K45: 36 | L45: 15 | M45: 5 | N45: 7 | O45: 6 | P45: 30 | Q45: 8 | R45: 2 | S45: 23 | T45: 12 | U45: 11 | V45: 0 | W45: 35 | X45: 31 | Y45: 5 | Z45: 0 | AA45: 1 | AS45: 1 | AT45: 1 | AU45: 1 | AV45: 1 | AW45: 16 | AX45: 11 | AY45: 18
A46: =IF(generale!$A56>0,generale!$A56,"") -> 2005-02-10 | B46: =IF(INDEX(generale!$A$16:$G$4963,MATCH(NGG!$A46,generale!$A$16:$A$4963,0),COLUMN())=0,0,INDEX(generale!$A$16:$G$4963,MATCH(NGG!$A46,generale!$A$16:$A$4963,0),COLUMN())) -> 19 | C46: =IF(INDEX(generale!$A$16:$G$4963,MATCH(NGG!$A46,generale!$A$16:$A$4963,0),COLUMN())=0,0,INDEX(generale!$A$16:$G$4963,MATCH(NGG!$A46,generale!$A$16:$A$4963,0),COLUMN())) -> 14 | D46: =IF(INDEX(generale!$A$16:$G$4963,MATCH(NGG!$A46,generale!$A$16:$A$4963,0),COLUMN())=0,0,INDEX(generale!$A$16:$G$4963,MATCH(NGG!$A46,generale!$A$16:$A$4963,0),COLUMN())) -> 13 | E46: =IF(INDEX(generale!$A$16:$G$4963,MATCH(NGG!$A46,generale!$A$16:$A$4963,0),COLUMN())=0,0,INDEX(generale!$A$16:$G$4963,MATCH(NGG!$A46,generale!$A$16:$A$4963,0),COLUMN())) -> 16 | F46: =IF(INDEX(generale!$A$16:$G$4963,MATCH(NGG!$A46,generale!$A$16:$A$4963,0),COLUMN())=0,0,INDEX(generale!$A$16:$G$4963,MATCH(NGG!$A46,generale!$A$16:$A$4963,0),COLUMN())) -> 17 | G46: =generale!G56 -> T | H46: 20 | I46: 2 | J46: 4 | K46: 37 | L46: 16 | M46: 6 | N46: 8 | O46: 7 | P46: 31 | Q46: 9 | R46: 3 | S46: 24 | T46: 13 | U46: 12 | V46: 1 | W46: 36 | X46: 32 | Y46: 6 | Z46: 0 | AA46: 1 | AV46: 1 | AW46: 19 | AY46: 19
A47: =IF(generale!$A57>0,generale!$A57,"") -> 2005-02-11 | B47: =IF(INDEX(generale!$A$16:$G$4963,MATCH(NGG!$A47,generale!$A$16:$A$4963,0),COLUMN())=0,0,INDEX(generale!$A$16:$G$4963,MATCH(NGG!$A47,generale!$A$16:$A$4963,0),COLUMN())) -> 14 | C47: =IF(INDEX(generale!$A$16:$G$4963,MATCH(NGG!$A47,generale!$A$16:$A$4963,0),COLUMN())=0,0,INDEX(generale!$A$16:$G$4963,MATCH(NGG!$A47,generale!$A$16:$A$4963,0),COLUMN())) -> 10 | D47: =IF(INDEX(generale!$A$16:$G$4963,MATCH(NGG!$A47,generale!$A$16:$A$4963,0),COLUMN())=0,0,INDEX(generale!$A$16:$G$4963,MATCH(NGG!$A47,generale!$A$16:$A$4963,0),COLUMN())) -> 15 | E47: =IF(INDEX(generale!$A$16:$G$4963,MATCH(NGG!$A47,generale!$A$16:$A$4963,0),COLUMN())=0,0,INDEX(generale!$A$16:$G$4963,MATCH(NGG!$A47,generale!$A$16:$A$4963,0),COLUMN())) -> 8 | F47: =IF(INDEX(generale!$A$16:$G$4963,MATCH(NGG!$A47,generale!$A$16:$A$4963,0),COLUMN())=0,0,INDEX(generale!$A$16:$G$4963,MATCH(NGG!$A47,generale!$A$16:$A$4963,0),COLUMN())) -> 5 | G47: =generale!G57 -> T | H47: 21 | I47: 3 | J47: 5 | K47: 38 | L47: 17 | M47: 7 | N47: 9 | O47: 8 | P47: 32 | Q47: 10 | R47: 4 | S47: 25 | T47: 14 | U47: 0 | V47: 2 | W47: 37 | X47: 33 | Y47: 6 | Z47: 0 | AA47: 1 | AT47: 1 | AU47: 1 | AV47: 1 | AW47: 17 | AY47: 15
A48: =IF(generale!$A58>0,generale!$A58,"") -> 2005-02-12 | B48: =IF(INDEX(generale!$A$16:$G$4963,MATCH(NGG!$A48,generale!$A$16:$A$4963,0),COLUMN())=0,0,INDEX(generale!$A$16:$G$4963,MATCH(NGG!$A48,generale!$A$16:$A$4963,0),COLUMN())) -> 20 | C48: =IF(INDEX(generale!$A$16:$G$4963,MATCH(NGG!$A48,generale!$A$16:$A$4963,0),COLUMN())=0,0,INDEX(generale!$A$16:$G$4963,MATCH(NGG!$A48,generale!$A$16:$A$4963,0),COLUMN())) -> 14 | D48: =IF(INDEX(generale!$A$16:$G$4963,MATCH(NGG!$A48,generale!$A$16:$A$4963,0),COLUMN())=0,0,INDEX(generale!$A$16:$G$4963,MATCH(NGG!$A48,generale!$A$16:$A$4963,0),COLUMN())) -> 7 | E48: =IF(INDEX(generale!$A$16:$G$4963,MATCH(NGG!$A48,generale!$A$16:$A$4963,0),COLUMN())=0,0,INDEX(generale!$A$16:$G$4963,MATCH(NGG!$A48,generale!$A$16:$A$4963,0),COLUMN())) -> 18 | F48: =IF(INDEX(generale!$A$16:$G$4963,MATCH(NGG!$A48,generale!$A$16:$A$4963,0),COLUMN())=0,0,INDEX(generale!$A$16:$G$4963,MATCH(NGG!$A48,generale!$A$16:$A$4963,0),COLUMN())) -> 13 | G48: =generale!G58 -> T | H48: 22 | I48: 4 | J48: 6 | K48: 39 | L48: 18 | M48: 8 | N48: 10 | O48: 9 | P48: 33 | Q48: 11 | R48: 5 | S48: 26 | T48: 15 | U48: 1 | V48: 3 | W48: 38 | X48: 34 | Y48: 7 | Z48: 1 | AA48: 0 | AW48: 20 | AY48: 20
A49: =IF(generale!$A59>0,generale!$A59,"") -> 2005-02-13 | B49: =IF(INDEX(generale!$A$16:$G$4963,MATCH(NGG!$A49,generale!$A$16:$A$4963,0),COLUMN())=0,0,INDEX(generale!$A$16:$G$4963,MATCH(NGG!$A49,generale!$A$16:$A$4963,0),COLUMN())) -> 4 | C49: =IF(INDEX(generale!$A$16:$G$4963,MATCH(NGG!$A49,generale!$A$16:$A$4963,0),COLUMN())=0,0,INDEX(generale!$A$16:$G$4963,MATCH(NGG!$A49,generale!$A$16:$A$4963,0),COLUMN())) -> 7 | D49: =IF(INDEX(generale!$A$16:$G$4963,MATCH(NGG!$A49,generale!$A$16:$A$4963,0),COLUMN())=0,0,INDEX(generale!$A$16:$G$4963,MATCH(NGG!$A49,generale!$A$16:$A$4963,0),COLUMN())) -> 15 | E49: =IF(INDEX(generale!$A$16:$G$4963,MATCH(NGG!$A49,generale!$A$16:$A$4963,0),COLUMN())=0,0,INDEX(generale!$A$16:$G$4963,MATCH(NGG!$A49,generale!$A$16:$A$4963,0),COLUMN())) -> 8 | F49: =IF(INDEX(generale!$A$16:$G$4963,MATCH(NGG!$A49,generale!$A$16:$A$4963,0),COLUMN())=0,0,INDEX(generale!$A$16:$G$4963,MATCH(NGG!$A49,generale!$A$16:$A$4963,0),COLUMN())) -> 9 | G49: =generale!G59 -> T | H49: 23 | I49: 5 | J49: 7 | K49: 0 | L49: 19 | M49: 9 | N49: 11 | O49: 10 | P49: 34 | Q49: 12 | R49: 6 | S49: 27 | T49: 16 | U49: 2 | V49: 4 | W49: 39 | X49: 34 | Y49: 7 | Z49: 1 | AA49: 0 | AS49: 1 | AT49: 1 | AU49: 1 | AV49: 1 | AW49: 16 | AY49: 13
A50: =IF(generale!$A60>0,generale!$A60,"") -> 2005-02-14 | B50: =IF(INDEX(generale!$A$16:$G$4963,MATCH(NGG!$A50,generale!$A$16:$A$4963,0),COLUMN())=0,0,INDEX(generale!$A$16:$G$4963,MATCH(NGG!$A50,generale!$A$16:$A$4963,0),COLUMN())) -> 17 | C50: =IF(INDEX(generale!$A$16:$G$4963,MATCH(NGG!$A50,generale!$A$16:$A$4963,0),COLUMN())=0,0,INDEX(generale!$A$16:$G$4963,MATCH(NGG!$A50,generale!$A$16:$A$4963,0),COLUMN())) -> 16 | D50: =IF(INDEX(generale!$A$16:$G$4963,MATCH(NGG!$A50,generale!$A$16:$A$4963,0),COLUMN())=0,0,INDEX(generale!$A$16:$G$4963,MATCH(NGG!$A50,generale!$A$16:$A$4963,0),COLUMN())) -> 6 | E50: =IF(INDEX(generale!$A$16:$G$4963,MATCH(NGG!$A50,generale!$A$16:$A$4963,0),COLUMN())=0,0,INDEX(generale!$A$16:$G$4963,MATCH(NGG!$A50,generale!$A$16:$A$4963,0),COLUMN())) -> 13 | F50: =IF(INDEX(generale!$A$16:$G$4963,MATCH(NGG!$A50,generale!$A$16:$A$4963,0),COLUMN())=0,0,INDEX(generale!$A$16:$G$4963,MATCH(NGG!$A50,generale!$A$16:$A$4963,0),COLUMN())) -> 4 | G50: =generale!G60 -> T | H50: 24 | I50: 6 | J50: 8 | K50: 1 | L50: 20 | M50: 10 | N50: 12 | O50: 11 | P50: 35 | Q50: 13 | R50: 7 | S50: 28 | T50: 17 | U50: 3 | V50: 5 | W50: 40 | X50: 0 | Y50: 8 | Z50: 1 | AA50: 0 | AU50: 1 | AV50: 1 | AW50: 18 | AY50: 18
A51: =IF(generale!$A61>0,generale!$A61,"") -> 2005-02-15 | B51: =IF(INDEX(generale!$A$16:$G$4963,MATCH(NGG!$A51,generale!$A$16:$A$4963,0),COLUMN())=0,0,INDEX(generale!$A$16:$G$4963,MATCH(NGG!$A51,generale!$A$16:$A$4963,0),COLUMN())) -> 14 | C51: =IF(INDEX(generale!$A$16:$G$4963,MATCH(NGG!$A51,generale!$A$16:$A$4963,0),COLUMN())=0,0,INDEX(generale!$A$16:$G$4963,MATCH(NGG!$A51,generale!$A$16:$A$4963,0),COLUMN())) -> 15 | D51: =IF(INDEX(generale!$A$16:$G$4963,MATCH(NGG!$A51,generale!$A$16:$A$4963,0),COLUMN())=0,0,INDEX(generale!$A$16:$G$4963,MATCH(NGG!$A51,generale!$A$16:$A$4963,0),COLUMN())) -> 11 | E51: =IF(INDEX(generale!$A$16:$G$4963,MATCH(NGG!$A51,generale!$A$16:$A$4963,0),COLUMN())=0,0,INDEX(generale!$A$16:$G$4963,MATCH(NGG!$A51,generale!$A$16:$A$4963,0),COLUMN())) -> 12 | F51: =IF(INDEX(generale!$A$16:$G$4963,MATCH(NGG!$A51,generale!$A$16:$A$4963,0),COLUMN())=0,0,INDEX(generale!$A$16:$G$4963,MATCH(NGG!$A51,generale!$A$16:$A$4963,0),COLUMN())) -> 17 | G51: =generale!G61 -> P | H51: 25 | I51: 7 | J51: 9 | K51: 2 | L51: 21 | M51: 11 | N51: 13 | O51: 12 | P51: 36 | Q51: 14 | R51: 8 | S51: 29 | T51: 18 | U51: 0 | V51: 6 | W51: 41 | X51: =IF(COUNTIF($B51:$D51,0)<3,IF(LEN(SUBSTITUTE(SUBSTITUTE($B51,X$1,,1),,1))=0,0,X50+1-AS51),"") -> 1 | Y51: 9 | Z51: 1 | AA51: 0 | AU51: 1 | AV51: 1 | AW51: 18 | AY51: 18
A52: =IF(generale!$A62>0,generale!$A62,"") -> 2005-02-16 | B52: =IF(INDEX(generale!$A$16:$G$4963,MATCH(NGG!$A52,generale!$A$16:$A$4963,0),COLUMN())=0,0,INDEX(generale!$A$16:$G$4963,MATCH(NGG!$A52,generale!$A$16:$A$4963,0),COLUMN())) -> 1 | C52: =IF(INDEX(generale!$A$16:$G$4963,MATCH(NGG!$A52,generale!$A$16:$A$4963,0),COLUMN())=0,0,INDEX(generale!$A$16:$G$4963,MATCH(NGG!$A52,generale!$A$16:$A$4963,0),COLUMN())) -> 5 | D52: =IF(INDEX(generale!$A$16:$G$4963,MATCH(NGG!$A52,generale!$A$16:$A$4963,0),COLUMN())=0,0,INDEX(generale!$A$16:$G$4963,MATCH(NGG!$A52,generale!$A$16:$A$4963,0),COLUMN())) -> 11 | E52: =IF(INDEX(generale!$A$16:$G$4963,MATCH(NGG!$A52,generale!$A$16:$A$4963,0),COLUMN())=0,0,INDEX(generale!$A$16:$G$4963,MATCH(NGG!$A52,generale!$A$16:$A$4963,0),COLUMN())) -> 9 | F52: =IF(INDEX(generale!$A$16:$G$4963,MATCH(NGG!$A52,generale!$A$16:$A$4963,0),COLUMN())=0,0,INDEX(generale!$A$16:$G$4963,MATCH(NGG!$A52,generale!$A$16:$A$4963,0),COLUMN())) -> 8 | G52: =generale!G62 -> T | H52: 0 | I52: 8 | J52: 10 | K52: 3 | L52: 22 | M52: 12 | N52: 14 | O52: 13 | P52: 37 | Q52: 15 | R52: 9 | S52: 30 | T52: 19 | U52: 1 | V52: 7 | W52: 42 | X52: 1 | Y52: 9 | Z52: 1 | AA52: 0 | AS52: 1 | AT52: 1 | AU52: 1 | AV52: 1 | AW52: 16 | AY52: 16
A53: =IF(generale!$A63>0,generale!$A63,"") -> 2005-02-17 | B53: =IF(INDEX(generale!$A$16:$G$4963,MATCH(NGG!$A53,generale!$A$16:$A$4963,0),COLUMN())=0,0,INDEX(generale!$A$16:$G$4963,MATCH(NGG!$A53,generale!$A$16:$A$4963,0),COLUMN())) -> 11 | C53: =IF(INDEX(generale!$A$16:$G$4963,MATCH(NGG!$A53,generale!$A$16:$A$4963,0),COLUMN())=0,0,INDEX(generale!$A$16:$G$4963,MATCH(NGG!$A53,generale!$A$16:$A$4963,0),COLUMN())) -> 7 | D53: =IF(INDEX(generale!$A$16:$G$4963,MATCH(NGG!$A53,generale!$A$16:$A$4963,0),COLUMN())=0,0,INDEX(generale!$A$16:$G$4963,MATCH(NGG!$A53,generale!$A$16:$A$4963,0),COLUMN())) -> 2 | E53: =IF(INDEX(generale!$A$16:$G$4963,MATCH(NGG!$A53,generale!$A$16:$A$4963,0),COLUMN())=0,0,INDEX(generale!$A$16:$G$4963,MATCH(NGG!$A53,generale!$A$16:$A$4963,0),COLUMN())) -> 6 | F53: =IF(INDEX(generale!$A$16:$G$4963,MATCH(NGG!$A53,generale!$A$16:$A$4963,0),COLUMN())=0,0,INDEX(generale!$A$16:$G$4963,MATCH(NGG!$A53,generale!$A$16:$A$4963,0),COLUMN())) -> 1 | G53: =generale!G63 -> T | H53: 1 | I53: 9 | J53: 11 | K53: 4 | L53: 23 | M53: 13 | N53: 15 | O53: 14 | P53: 38 | Q53: 16 | R53: 0 | S53: 31 | T53: 20 | U53: 2 | V53: 8 | W53: 42 | X53: 1 | Y53: 9 | Z53: 1 | AA53: 0 | AR53: 1 | AS53: 1 | AT53: 1 | AU53: 1 | AV53: 1 | AW53: 15 | AY53: 14
A54: =IF(generale!$A64>0,generale!$A64,"") -> 2005-02-18 | B54: =IF(INDEX(generale!$A$16:$G$4963,MATCH(NGG!$A54,generale!$A$16:$A$4963,0),COLUMN())=0,0,INDEX(generale!$A$16:$G$4963,MATCH(NGG!$A54,generale!$A$16:$A$4963,0),COLUMN())) -> 8 | C54: =IF(INDEX(generale!$A$16:$G$4963,MATCH(NGG!$A54,generale!$A$16:$A$4963,0),COLUMN())=0,0,INDEX(generale!$A$16:$G$4963,MATCH(NGG!$A54,generale!$A$16:$A$4963,0),COLUMN())) -> 15 | D54: =IF(INDEX(generale!$A$16:$G$4963,MATCH(NGG!$A54,generale!$A$16:$A$4963,0),COLUMN())=0,0,INDEX(generale!$A$16:$G$4963,MATCH(NGG!$A54,generale!$A$16:$A$4963,0),COLUMN())) -> 6 | E54: =IF(INDEX(generale!$A$16:$G$4963,MATCH(NGG!$A54,generale!$A$16:$A$4963,0),COLUMN())=0,0,INDEX(generale!$A$16:$G$4963,MATCH(NGG!$A54,generale!$A$16:$A$4963,0),COLUMN())) -> 14 | F54: =IF(INDEX(generale!$A$16:$G$4963,MATCH(NGG!$A54,generale!$A$16:$A$4963,0),COLUMN())=0,0,INDEX(generale!$A$16:$G$4963,MATCH(NGG!$A54,generale!$A$16:$A$4963,0),COLUMN())) -> 12 | G54: =generale!G64 -> T | H54: 2 | I54: 10 | J54: 12 | K54: 5 | L54: 24 | M54: 14 | N54: 16 | O54: 0 | P54: 39 | Q54: 17 | R54: 1 | S54: 32 | T54: 21 | U54: 3 | V54: 9 | W54: =IF(COUNTIF($B54:$D54,0)<3,IF(LEN(SUBSTITUTE(SUBSTITUTE($B54,W$1,,1),,1))=0,0,W53+1-AR54),"") -> 43 | X54: 2 | Y54: 10 | Z54: 1 | AA54: 0 | AU54: 1 | AV54: 1 | AW54: 18 | AY54: 18
A55: =IF(generale!$A65>0,generale!$A65,"") -> 2005-02-19 | B55: =IF(INDEX(generale!$A$16:$G$4963,MATCH(NGG!$A55,generale!$A$16:$A$4963,0),COLUMN())=0,0,INDEX(generale!$A$16:$G$4963,MATCH(NGG!$A55,generale!$A$16:$A$4963,0),COLUMN())) -> 5 | C55: =IF(INDEX(generale!$A$16:$G$4963,MATCH(NGG!$A55,generale!$A$16:$A$4963,0),COLUMN())=0,0,INDEX(generale!$A$16:$G$4963,MATCH(NGG!$A55,generale!$A$16:$A$4963,0),COLUMN())) -> 14 | D55: =IF(INDEX(generale!$A$16:$G$4963,MATCH(NGG!$A55,generale!$A$16:$A$4963,0),COLUMN())=0,0,INDEX(generale!$A$16:$G$4963,MATCH(NGG!$A55,generale!$A$16:$A$4963,0),COLUMN())) -> 2 | E55: =IF(INDEX(generale!$A$16:$G$4963,MATCH(NGG!$A55,generale!$A$16:$A$4963,0),COLUMN())=0,0,INDEX(generale!$A$16:$G$4963,MATCH(NGG!$A55,generale!$A$16:$A$4963,0),COLUMN())) -> 8 | F55: =IF(INDEX(generale!$A$16:$G$4963,MATCH(NGG!$A55,generale!$A$16:$A$4963,0),COLUMN())=0,0,INDEX(generale!$A$16:$G$4963,MATCH(NGG!$A55,generale!$A$16:$A$4963,0),COLUMN())) -> 17 | G55: =generale!G65 -> P | H55: =IF(COUNTIF($B55:$D55,0)<3,IF(LEN(SUBSTITUTE(SUBSTITUTE($B55,H$1,,1),,1))=0,0,H54+1-AC55),"") -> 3 | I55: 11 | J55: 13 | K55: 6 | L55: 0 | M55: 15 | N55: 17 | O55: 1 | P55: 40 | Q55: 18 | R55: 2 | S55: 33 | T55: 22 | U55: 4 | V55: 10 | W55: 44 | X55: 3 | Y55: 10 | Z55: 1 | AA55: 0 | AT55: 1 | AU55: 1 | AV55: 1 | AW55: 17 | AX55: 11-15 | AY55: 18
A56: =IF(generale!$A66>0,generale!$A66,"") -> 2005-02-20 | B56: =IF(INDEX(generale!$A$16:$G$4963,MATCH(NGG!$A56,generale!$A$16:$A$4963,0),COLUMN())=0,0,INDEX(generale!$A$16:$G$4963,MATCH(NGG!$A56,generale!$A$16:$A$4963,0),COLUMN())) -> 4 | C56: =IF(INDEX(generale!$A$16:$G$4963,MATCH(NGG!$A56,generale!$A$16:$A$4963,0),COLUMN())=0,0,INDEX(generale!$A$16:$G$4963,MATCH(NGG!$A56,generale!$A$16:$A$4963,0),COLUMN())) -> 2 | D56: =IF(INDEX(generale!$A$16:$G$4963,MATCH(NGG!$A56,generale!$A$16:$A$4963,0),COLUMN())=0,0,INDEX(generale!$A$16:$G$4963,MATCH(NGG!$A56,generale!$A$16:$A$4963,0),COLUMN())) -> 11 | E56: =IF(INDEX(generale!$A$16:$G$4963,MATCH(NGG!$A56,generale!$A$16:$A$4963,0),COLUMN())=0,0,INDEX(generale!$A$16:$G$4963,MATCH(NGG!$A56,generale!$A$16:$A$4963,0),COLUMN())) -> 9 | F56: =IF(INDEX(generale!$A$16:$G$4963,MATCH(NGG!$A56,generale!$A$16:$A$4963,0),COLUMN())=0,0,INDEX(generale!$A$16:$G$4963,MATCH(NGG!$A56,generale!$A$16:$A$4963,0),COLUMN())) -> 8 | G56: =generale!G66 -> T | H56: 4 | I56: 12 | J56: 14 | K56: 0 | L56: 1 | M56: 16 | N56: 18 | O56: 2 | P56: 41 | Q56: 19 | R56: 3 | S56: 34 | T56: 23 | U56: 5 | V56: 11 | W56: 45 | X56: 4 | Y56: 11 | Z56: 1 | AA56: 0 | AU56: 1 | AV56: 1 | AW56: 18 | AY56: 14
A57: =IF(generale!$A67>0,generale!$A67,"") -> 2005-02-21 | B57: =IF(INDEX(generale!$A$16:$G$4963,MATCH(NGG!$A57,generale!$A$16:$A$4963,0),COLUMN())=0,0,INDEX(generale!$A$16:$G$4963,MATCH(NGG!$A57,generale!$A$16:$A$4963,0),COLUMN())) -> 4 | C57: =IF(INDEX(generale!$A$16:$G$4963,MATCH(NGG!$A57,generale!$A$16:$A$4963,0),COLUMN())=0,0,INDEX(generale!$A$16:$G$4963,MATCH(NGG!$A57,generale!$A$16:$A$4963,0),COLUMN())) -> 3 | D57: =IF(INDEX(generale!$A$16:$G$4963,MATCH(NGG!$A57,generale!$A$16:$A$4963,0),COLUMN())=0,0,INDEX(generale!$A$16:$G$4963,MATCH(NGG!$A57,generale!$A$16:$A$4963,0),COLUMN())) -> 9 | E57: =IF(INDEX(generale!$A$16:$G$4963,MATCH(NGG!$A57,generale!$A$16:$A$4963,0),COLUMN())=0,0,INDEX(generale!$A$16:$G$4963,MATCH(NGG!$A57,generale!$A$16:$A$4963,0),COLUMN())) -> 8 | F57: =IF(INDEX(generale!$A$16:$G$4963,MATCH(NGG!$A57,generale!$A$16:$A$4963,0),COLUMN())=0,0,INDEX(generale!$A$16:$G$4963,MATCH(NGG!$A57,generale!$A$16:$A$4963,0),COLUMN())) -> 2 | G57: =generale!G67 -> T | H57: 5 | I57: 13 | J57: 15 | K57: 0 | L57: 2 | M57: 17 | N57: 19 | O57: 3 | P57: 42 | Q57: 20 | R57: 4 | S57: 35 | T57: 24 | U57: 6 | V57: 12 | W57: 46 | X57: 5 | Y57: 12 | Z57: 2 | AA57: 1 | AW57: 20 | AX57: 2 | AY57: 15
A58: =IF(generale!$A68>0,generale!$A68,"") -> 2005-02-22 | B58: =IF(INDEX(generale!$A$16:$G$4963,MATCH(NGG!$A58,generale!$A$16:$A$4963,0),COLUMN())=0,0,INDEX(generale!$A$16:$G$4963,MATCH(NGG!$A58,generale!$A$16:$A$4963,0),COLUMN())) -> 10 | C58: =IF(INDEX(generale!$A$16:$G$4963,MATCH(NGG!$A58,generale!$A$16:$A$4963,0),COLUMN())=0,0,INDEX(generale!$A$16:$G$4963,MATCH(NGG!$A58,generale!$A$16:$A$4963,0),COLUMN())) -> 11 | D58: =IF(INDEX(generale!$A$16:$G$4963,MATCH(NGG!$A58,generale!$A$16:$A$4963,0),COLUMN())=0,0,INDEX(generale!$A$16:$G$4963,MATCH(NGG!$A58,generale!$A$16:$A$4963,0),COLUMN())) -> 2 | E58: =IF(INDEX(generale!$A$16:$G$4963,MATCH(NGG!$A58,generale!$A$16:$A$4963,0),COLUMN())=0,0,INDEX(generale!$A$16:$G$4963,MATCH(NGG!$A58,generale!$A$16:$A$4963,0),COLUMN())) -> 13 | F58: =IF(INDEX(generale!$A$16:$G$4963,MATCH(NGG!$A58,generale!$A$16:$A$4963,0),COLUMN())=0,0,INDEX(generale!$A$16:$G$4963,MATCH(NGG!$A58,generale!$A$16:$A$4963,0),COLUMN())) -> 8 | G58: =generale!G68 -> T | H58: 6 | I58: 14 | J58: 16 | K58: 1 | L58: 3 | M58: 18 | N58: 20 | O58: 4 | P58: 43 | Q58: 0 | R58: 5 | S58: 36 | T58: 25 | U58: 7 | V58: 13 | W58: 47 | X58: 5 | Y58: 12 | Z58: 2 | AA58: 1 | AS58: 1 | AT58: 1 | AU58: 1 | AV58: 1 | AW58: 16 | AY58: 16
A59: =IF(generale!$A69>0,generale!$A69,"") -> 2005-02-23 | B59: =IF(INDEX(generale!$A$16:$G$4963,MATCH(NGG!$A59,generale!$A$16:$A$4963,0),COLUMN())=0,0,INDEX(generale!$A$16:$G$4963,MATCH(NGG!$A59,generale!$A$16:$A$4963,0),COLUMN())) -> 14 | C59: =IF(INDEX(generale!$A$16:$G$4963,MATCH(NGG!$A59,generale!$A$16:$A$4963,0),COLUMN())=0,0,INDEX(generale!$A$16:$G$4963,MATCH(NGG!$A59,generale!$A$16:$A$4963,0),COLUMN())) -> 16 | D59: =IF(INDEX(generale!$A$16:$G$4963,MATCH(NGG!$A59,generale!$A$16:$A$4963,0),COLUMN())=0,0,INDEX(generale!$A$16:$G$4963,MATCH(NGG!$A59,generale!$A$16:$A$4963,0),COLUMN())) -> 10 | E59: =IF(INDEX(generale!$A$16:$G$4963,MATCH(NGG!$A59,generale!$A$16:$A$4963,0),COLUMN())=0,0,INDEX(generale!$A$16:$G$4963,MATCH(NGG!$A59,generale!$A$16:$A$4963,0),COLUMN())) -> 3 | F59: =IF(INDEX(generale!$A$16:$G$4963,MATCH(NGG!$A59,generale!$A$16:$A$4963,0),COLUMN())=0,0,INDEX(generale!$A$16:$G$4963,MATCH(NGG!$A59,generale!$A$16:$A$4963,0),COLUMN())) -> 6 | G59: =generale!G69 -> P | H59: 7 | I59: 15 | J59: 17 | K59: 2 | L59: 4 | M59: 19 | N59: 21 | O59: 5 | P59: 44 | Q59: 1 | R59: 6 | S59: 37 | T59: 26 | U59: 0 | V59: 14 | W59: 48 | X59: 6 | Y59: 13 | Z59: 2 | AA59: 1 | AU59: 1 | AV59: 1 | AW59: 18 | AX59: 8 | AY59: 18
A60: =IF(generale!$A70>0,generale!$A70,"") -> 2005-02-24 | B60: =IF(INDEX(generale!$A$16:$G$4963,MATCH(NGG!$A60,generale!$A$16:$A$4963,0),COLUMN())=0,0,INDEX(generale!$A$16:$G$4963,MATCH(NGG!$A60,generale!$A$16:$A$4963,0),COLUMN())) -> 13 | C60: =IF(INDEX(generale!$A$16:$G$4963,MATCH(NGG!$A60,generale!$A$16:$A$4963,0),COLUMN())=0,0,INDEX(generale!$A$16:$G$4963,MATCH(NGG!$A60,generale!$A$16:$A$4963,0),COLUMN())) -> 2 | D60: =IF(INDEX(generale!$A$16:$G$4963,MATCH(NGG!$A60,generale!$A$16:$A$4963,0),COLUMN())=0,0,INDEX(generale!$A$16:$G$4963,MATCH(NGG!$A60,generale!$A$16:$A$4963,0),COLUMN())) -> 6 | E60: =IF(INDEX(generale!$A$16:$G$4963,MATCH(NGG!$A60,generale!$A$16:$A$4963,0),COLUMN())=0,0,INDEX(generale!$A$16:$G$4963,MATCH(NGG!$A60,generale!$A$16:$A$4963,0),COLUMN())) -> 5 | F60: =IF(INDEX(generale!$A$16:$G$4963,MATCH(NGG!$A60,generale!$A$16:$A$4963,0),COLUMN())=0,0,INDEX(generale!$A$16:$G$4963,MATCH(NGG!$A60,generale!$A$16:$A$4963,0),COLUMN())) -> 15 | G60: =generale!G70 -> T | H60: 8 | I60: 16 | J60: 18 | K60: 3 | L60: 5 | M60: 20 | N60: 22 | O60: 6 | P60: 45 | Q60: 2 | R60: 7 | S60: 38 | T60: 0 | U60: 1 | V60: 15 | W60: 49 | X60: 6 | Y60: 13 | Z60: 2 | AA60: 1 | AS60: 1 | AT60: 1 | AU60: 1 | AV60: 1 | AW60: 16 | AX60: 6 | AY60: 15
A61: =IF(generale!$A71>0,generale!$A71,"") -> 2005-02-25 | B61: =IF(INDEX(generale!$A$16:$G$4963,MATCH(NGG!$A61,generale!$A$16:$A$4963,0),COLUMN())=0,0,INDEX(generale!$A$16:$G$4963,MATCH(NGG!$A61,generale!$A$16:$A$4963,0),COLUMN())) -> 18 | C61: =IF(INDEX(generale!$A$16:$G$4963,MATCH(NGG!$A61,generale!$A$16:$A$4963,0),COLUMN())=0,0,INDEX(generale!$A$16:$G$4963,MATCH(NGG!$A61,generale!$A$16:$A$4963,0),COLUMN())) -> 16 | D61: =IF(INDEX(generale!$A$16:$G$4963,MATCH(NGG!$A61,generale!$A$16:$A$4963,0),COLUMN())=0,0,INDEX(generale!$A$16:$G$4963,MATCH(NGG!$A61,generale!$A$16:$A$4963,0),COLUMN())) -> 17 | E61: =IF(INDEX(generale!$A$16:$G$4963,MATCH(NGG!$A61,generale!$A$16:$A$4963,0),COLUMN())=0,0,INDEX(generale!$A$16:$G$4963,MATCH(NGG!$A61,generale!$A$16:$A$4963,0),COLUMN())) -> 19 | F61: =IF(INDEX(generale!$A$16:$G$4963,MATCH(NGG!$A61,generale!$A$16:$A$4963,0),COLUMN())=0,0,INDEX(generale!$A$16:$G$4963,MATCH(NGG!$A61,generale!$A$16:$A$4963,0),COLUMN())) -> 9 | G61: =generale!G71 -> T | H61: 9 | I61: 17 | J61: 19 | K61: 4 | L61: 6 | M61: 21 | N61: 23 | O61: 7 | P61: 46 | Q61: 3 | R61: 8 | S61: 39 | T61: 1 | U61: 2 | V61: 16 | W61: 50 | X61: 6 | Y61: 0 | Z61: 2 | AA61: 1 | AS61: 1 | AT61: 1 | AU61: 1 | AV61: 1 | AW61: 16 | AY61: 18
A62: =IF(generale!$A72>0,generale!$A72,"") -> 2005-02-26 | B62: =IF(INDEX(generale!$A$16:$G$4963,MATCH(NGG!$A62,generale!$A$16:$A$4963,0),COLUMN())=0,0,INDEX(generale!$A$16:$G$4963,MATCH(NGG!$A62,generale!$A$16:$A$4963,0),COLUMN())) -> 18 | C62: =IF(INDEX(generale!$A$16:$G$4963,MATCH(NGG!$A62,generale!$A$16:$A$4963,0),COLUMN())=0,0,INDEX(generale!$A$16:$G$4963,MATCH(NGG!$A62,generale!$A$16:$A$4963,0),COLUMN())) -> 6 | D62: =IF(INDEX(generale!$A$16:$G$4963,MATCH(NGG!$A62,generale!$A$16:$A$4963,0),COLUMN())=0,0,INDEX(generale!$A$16:$G$4963,MATCH(NGG!$A62,generale!$A$16:$A$4963,0),COLUMN())) -> 14 | E62: =IF(INDEX(generale!$A$16:$G$4963,MATCH(NGG!$A62,generale!$A$16:$A$4963,0),COLUMN())=0,0,INDEX(generale!$A$16:$G$4963,MATCH(NGG!$A62,generale!$A$16:$A$4963,0),COLUMN())) -> 7 | F62: =IF(INDEX(generale!$A$16:$G$4963,MATCH(NGG!$A62,generale!$A$16:$A$4963,0),COLUMN())=0,0,INDEX(generale!$A$16:$G$4963,MATCH(NGG!$A62,generale!$A$16:$A$4963,0),COLUMN())) -> 11 | G62: =generale!G72 -> P | H62: 10 | I62: 18 | J62: 20 | K62: 5 | L62: 7 | M62: 22 | N62: 24 | O62: 8 | P62: 47 | Q62: 4 | R62: 9 | S62: 40 | T62: 2 | U62: 3 | V62: 17 | W62: 51 | X62: 7 | Y62: 0 | Z62: 2 | AA62: 1 | AU62: 1 | AV62: 1 | AW62: 18 | AY62: 18
A63: =IF(generale!$A73>0,generale!$A73,"") -> 2005-02-27 | B63: =IF(INDEX(generale!$A$16:$G$4963,MATCH(NGG!$A63,generale!$A$16:$A$4963,0),COLUMN())=0,0,INDEX(generale!$A$16:$G$4963,MATCH(NGG!$A63,generale!$A$16:$A$4963,0),COLUMN())) -> 9 | C63: =IF(INDEX(generale!$A$16:$G$4963,MATCH(NGG!$A63,generale!$A$16:$A$4963,0),COLUMN())=0,0,INDEX(generale!$A$16:$G$4963,MATCH(NGG!$A63,generale!$A$16:$A$4963,0),COLUMN())) -> 6 | D63: =IF(INDEX(generale!$A$16:$G$4963,MATCH(NGG!$A63,generale!$A$16:$A$4963,0),COLUMN())=0,0,INDEX(generale!$A$16:$G$4963,MATCH(NGG!$A63,generale!$A$16:$A$4963,0),COLUMN())) -> 3 | E63: =IF(INDEX(generale!$A$16:$G$4963,MATCH(NGG!$A63,generale!$A$16:$A$4963,0),COLUMN())=0,0,INDEX(generale!$A$16:$G$4963,MATCH(NGG!$A63,generale!$A$16:$A$4963,0),COLUMN())) -> 8 | F63: =IF(INDEX(generale!$A$16:$G$4963,MATCH(NGG!$A63,generale!$A$16:$A$4963,0),COLUMN())=0,0,INDEX(generale!$A$16:$G$4963,MATCH(NGG!$A63,generale!$A$16:$A$4963,0),COLUMN())) -> 7 | G63: =generale!G73 -> T | H63: 11 | I63: 19 | J63: 21 | K63: 6 | L63: 8 | M63: 23 | N63: 25 | O63: 9 | P63: 0 | Q63: 5 | R63: 10 | S63: 41 | T63: 3 | U63: 4 | V63: 18 | W63: 52 | X63: 7 | Y63: 0 | Z63: 2 | AA63: 1 | AS63: 1 | AT63: 1 | AU63: 1 | AV63: 1 | AW63: 16 | AY63: 15
A64: =IF(generale!$A74>0,generale!$A74,"") -> 2005-03-01 | B64: =IF(INDEX(generale!$A$16:$G$4963,MATCH(NGG!$A64,generale!$A$16:$A$4963,0),COLUMN())=0,0,INDEX(generale!$A$16:$G$4963,MATCH(NGG!$A64,generale!$A$16:$A$4963,0),COLUMN())) -> 3 | C64: =IF(INDEX(generale!$A$16:$G$4963,MATCH(NGG!$A64,generale!$A$16:$A$4963,0),COLUMN())=0,0,INDEX(generale!$A$16:$G$4963,MATCH(NGG!$A64,generale!$A$16:$A$4963,0),COLUMN())) -> 4 | D64: =IF(INDEX(generale!$A$16:$G$4963,MATCH(NGG!$A64,generale!$A$16:$A$4963,0),COLUMN())=0,0,INDEX(generale!$A$16:$G$4963,MATCH(NGG!$A64,generale!$A$16:$A$4963,0),COLUMN())) -> 5 | E64: =IF(INDEX(generale!$A$16:$G$4963,MATCH(NGG!$A64,generale!$A$16:$A$4963,0),COLUMN())=0,0,INDEX(generale!$A$16:$G$4963,MATCH(NGG!$A64,generale!$A$16:$A$4963,0),COLUMN())) -> 2 | F64: =IF(INDEX(generale!$A$16:$G$4963,MATCH(NGG!$A64,generale!$A$16:$A$4963,0),COLUMN())=0,0,INDEX(generale!$A$16:$G$4963,MATCH(NGG!$A64,generale!$A$16:$A$4963,0),COLUMN())) -> 6 | G64: =generale!G74 -> T | H64: =IF(COUNTIF($B64:$D64,0)<3,IF(LEN(SUBSTITUTE(SUBSTITUTE($B64,H$1,,1),,1))=0,0,H63+1-AC64),"") -> 12 | I64: =IF(COUNTIF($B64:$D64,0)<3,IF(LEN(SUBSTITUTE(SUBSTITUTE($B64,I$1,,1),,1))=0,0,I63+1-AD64),"") -> 20 | J64: =IF(COUNTIF($B64:$D64,0)<3,IF(LEN(SUBSTITUTE(SUBSTITUTE($B64,J$1,,1),,1))=0,0,J63+1-AE64),"") -> 0 | K64: =IF(COUNTIF($B64:$D64,0)<3,IF(LEN(SUBSTITUTE(SUBSTITUTE($B64,K$1,,1),,1))=0,0,K63+1-AF64),"") -> 7 | L64: =IF(COUNTIF($B64:$D64,0)<3,IF(LEN(SUBSTITUTE(SUBSTITUTE($B64,L$1,,1),,1))=0,0,L63+1-AG64),"") -> 9 | M64: =IF(COUNTIF($B64:$D64,0)<3,IF(LEN(SUBSTITUTE(SUBSTITUTE($B64,M$1,,1),,1))=0,0,M63+1-AH64),"") -> 24 | N64: =IF(COUNTIF($B64:$D64,0)<3,IF(LEN(SUBSTITUTE(SUBSTITUTE($B64,N$1,,1),,1))=0,0,N63+1-AI64),"") -> 26 | O64: =IF(COUNTIF($B64:$D64,0)<3,IF(LEN(SUBSTITUTE(SUBSTITUTE($B64,O$1,,1),,1))=0,0,O63+1-AJ64),"") -> 10 | P64: =IF(COUNTIF($B64:$D64,0)<3,IF(LEN(SUBSTITUTE(SUBSTITUTE($B64,P$1,,1),,1))=0,0,P63+1-AK64),"") -> 1 | Q64: =IF(COUNTIF($B64:$D64,0)<3,IF(LEN(SUBSTITUTE(SUBSTITUTE($B64,Q$1,,1),,1))=0,0,Q63+1-AL64),"") -> 6 | R64: =IF(COUNTIF($B64:$D64,0)<3,IF(LEN(SUBSTITUTE(SUBSTITUTE($B64,R$1,,1),,1))=0,0,R63+1-AM64),"") -> 11 | S64: =IF(COUNTIF($B64:$D64,0)<3,IF(LEN(SUBSTITUTE(SUBSTITUTE($B64,S$1,,1),,1))=0,0,S63+1-AN64),"") -> 42 | T64: =IF(COUNTIF($B64:$D64,0)<3,IF(LEN(SUBSTITUTE(SUBSTITUTE($B64,T$1,,1),,1))=0,0,T63+1-AO64),"") -> 4 | U64: =IF(COUNTIF($B64:$D64,0)<3,IF(LEN(SUBSTITUTE(SUBSTITUTE($B64,U$1,,1),,1))=0,0,U63+1-AP64),"") -> 5 | V64: =IF(COUNTIF($B64:$D64,0)<3,IF(LEN(SUBSTITUTE(SUBSTITUTE($B64,V$1,,1),,1))=0,0,V63+1-AQ64),"") -> 19 | W64: =IF(COUNTIF($B64:$D64,0)<3,IF(LEN(SUBSTITUTE(SUBSTITUTE($B64,W$1,,1),,1))=0,0,W63+1-AR64),"") -> 53 | X64: =IF(COUNTIF($B64:$D64,0)<3,IF(LEN(SUBSTITUTE(SUBSTITUTE($B64,X$1,,1),,1))=0,0,X63+1-AS64),"") -> 8 | Y64: =IF(COUNTIF($B64:$D64,0)<3,IF(LEN(SUBSTITUTE(SUBSTITUTE($B64,Y$1,,1),,1))=0,0,Y63+1-AT64),"") -> 1 | Z64: =IF(COUNTIF($B64:$D64,0)<3,IF(LEN(SUBSTITUTE(SUBSTITUTE($B64,Z$1,,1),,1))=0,0,Z63+1-AU64),"") -> 2 | AA64: =IF(COUNTIF($B64:$D64,0)<3,IF(LEN(SUBSTITUTE(SUBSTITUTE($B64,AA$1,,1),,1))=0,0,AA63+1-AV64),"") -> 1 | AU64: 1 | AV64: 1 | AW64: 18 | AX64: 7 | AY64: 13
A65: =IF(generale!$A75>0,generale!$A75,"") -> 2005-03-02 | B65: =IF(INDEX(generale!$A$16:$G$4963,MATCH(NGG!$A65,generale!$A$16:$A$4963,0),COLUMN())=0,0,INDEX(generale!$A$16:$G$4963,MATCH(NGG!$A65,generale!$A$16:$A$4963,0),COLUMN())) -> 6 | C65: =IF(INDEX(generale!$A$16:$G$4963,MATCH(NGG!$A65,generale!$A$16:$A$4963,0),COLUMN())=0,0,INDEX(generale!$A$16:$G$4963,MATCH(NGG!$A65,generale!$A$16:$A$4963,0),COLUMN())) -> 5 | D65: =IF(INDEX(generale!$A$16:$G$4963,MATCH(NGG!$A65,generale!$A$16:$A$4963,0),COLUMN())=0,0,INDEX(generale!$A$16:$G$4963,MATCH(NGG!$A65,generale!$A$16:$A$4963,0),COLUMN())) -> 8 | E65: =IF(INDEX(generale!$A$16:$G$4963,MATCH(NGG!$A65,generale!$A$16:$A$4963,0),COLUMN())=0,0,INDEX(generale!$A$16:$G$4963,MATCH(NGG!$A65,generale!$A$16:$A$4963,0),COLUMN())) -> 7 | F65: =IF(INDEX(generale!$A$16:$G$4963,MATCH(NGG!$A65,generale!$A$16:$A$4963,0),COLUMN())=0,0,INDEX(generale!$A$16:$G$4963,MATCH(NGG!$A65,generale!$A$16:$A$4963,0),COLUMN())) -> 4 | G65: =generale!G75 -> T | H65: 13 | I65: 21 | J65: 1 | K65: 8 | L65: 10 | M65: 0 | N65: 27 | O65: 11 | P65: 2 | Q65: 7 | R65: 12 | S65: 43 | T65: 5 | U65: 6 | V65: 19 | W65: 53 | X65: 8 | Y65: 1 | Z65: 2 | AA65: 1 | AQ65: 1 | AR65: 1 | AS65: 1 | AT65: 1 | AU65: 1 | AV65: 1 | AW65: 14 | AY65: 16
A66: =IF(generale!$A76>0,generale!$A76,"") -> 2005-03-03 | B66: =IF(INDEX(generale!$A$16:$G$4963,MATCH(NGG!$A66,generale!$A$16:$A$4963,0),COLUMN())=0,0,INDEX(generale!$A$16:$G$4963,MATCH(NGG!$A66,generale!$A$16:$A$4963,0),COLUMN())) -> 13 | C66: =IF(INDEX(generale!$A$16:$G$4963,MATCH(NGG!$A66,generale!$A$16:$A$4963,0),COLUMN())=0,0,INDEX(generale!$A$16:$G$4963,MATCH(NGG!$A66,generale!$A$16:$A$4963,0),COLUMN())) -> 11 | D66: =IF(INDEX(generale!$A$16:$G$4963,MATCH(NGG!$A66,generale!$A$16:$A$4963,0),COLUMN())=0,0,INDEX(generale!$A$16:$G$4963,MATCH(NGG!$A66,generale!$A$16:$A$4963,0),COLUMN())) -> 14 | E66: =IF(INDEX(generale!$A$16:$G$4963,MATCH(NGG!$A66,generale!$A$16:$A$4963,0),COLUMN())=0,0,INDEX(generale!$A$16:$G$4963,MATCH(NGG!$A66,generale!$A$16:$A$4963,0),COLUMN())) -> 2 | F66: =IF(INDEX(generale!$A$16:$G$4963,MATCH(NGG!$A66,generale!$A$16:$A$4963,0),COLUMN())=0,0,INDEX(generale!$A$16:$G$4963,MATCH(NGG!$A66,generale!$A$16:$A$4963,0),COLUMN())) -> 7 | G66: =generale!G76 -> T | H66: 14 | I66: 22 | J66: 2 | K66: 9 | L66: 11 | M66: 1 | N66: 28 | O66: 12 | P66: 3 | Q66: 8 | R66: 13 | S66: 44 | T66: 0 | U66: 7 | V66: 20 | W66: 54 | X66: 9 | Y66: 1 | Z66: 2 | AA66: 1 | AT66: 1 | AU66: 1 | AV66: 1 | AW66: 17 | AY66: 12
A67: =IF(generale!$A77>0,generale!$A77,"") -> 2005-03-04 | B67: =IF(INDEX(generale!$A$16:$G$4963,MATCH(NGG!$A67,generale!$A$16:$A$4963,0),COLUMN())=0,0,INDEX(generale!$A$16:$G$4963,MATCH(NGG!$A67,generale!$A$16:$A$4963,0),COLUMN())) -> 12 | C67: =IF(INDEX(generale!$A$16:$G$4963,MATCH(NGG!$A67,generale!$A$16:$A$4963,0),COLUMN())=0,0,INDEX(generale!$A$16:$G$4963,MATCH(NGG!$A67,generale!$A$16:$A$4963,0),COLUMN())) -> 6 | D67: =IF(INDEX(generale!$A$16:$G$4963,MATCH(NGG!$A67,generale!$A$16:$A$4963,0),COLUMN())=0,0,INDEX(generale!$A$16:$G$4963,MATCH(NGG!$A67,generale!$A$16:$A$4963,0),COLUMN())) -> 7 | E67: =IF(INDEX(generale!$A$16:$G$4963,MATCH(NGG!$A67,generale!$A$16:$A$4963,0),COLUMN())=0,0,INDEX(generale!$A$16:$G$4963,MATCH(NGG!$A67,generale!$A$16:$A$4963,0),COLUMN())) -> 1 | F67: =IF(INDEX(generale!$A$16:$G$4963,MATCH(NGG!$A67,generale!$A$16:$A$4963,0),COLUMN())=0,0,INDEX(generale!$A$16:$G$4963,MATCH(NGG!$A67,generale!$A$16:$A$4963,0),COLUMN())) -> 2 | G67: =generale!G77 -> T | H67: 15 | I67: 23 | J67: 3 | K67: 10 | L67: 12 | M67: 2 | N67: 29 | O67: 13 | P67: 4 | Q67: 9 | R67: 14 | S67: 0 | T67: 1 | U67: 8 | V67: 21 | W67: =IF(COUNTIF($B67:$D67,0)<3,IF(LEN(SUBSTITUTE(SUBSTITUTE($B67,W$1,,1),,1))=0,0,W66+1-AR67),"") -> 55 | X67: =IF(COUNTIF($B67:$D67,0)<3,IF(LEN(SUBSTITUTE(SUBSTITUTE($B67,X$1,,1),,1))=0,0,X66+1-AS67),"") -> 9 | Y67: 1 | Z67: 2 | AA67: 1 | AS67: 1 | AT67: 1 | AU67: 1 | AV67: 1 | AW67: 16 | AY67: 16
A68: =IF(generale!$A78>0,generale!$A78,"") -> 2005-03-05 | B68: =IF(INDEX(generale!$A$16:$G$4963,MATCH(NGG!$A68,generale!$A$16:$A$4963,0),COLUMN())=0,0,INDEX(generale!$A$16:$G$4963,MATCH(NGG!$A68,generale!$A$16:$A$4963,0),COLUMN())) -> 12 | C68: =IF(INDEX(generale!$A$16:$G$4963,MATCH(NGG!$A68,generale!$A$16:$A$4963,0),COLUMN())=0,0,INDEX(generale!$A$16:$G$4963,MATCH(NGG!$A68,generale!$A$16:$A$4963,0),COLUMN())) -> 2 | D68: =IF(INDEX(generale!$A$16:$G$4963,MATCH(NGG!$A68,generale!$A$16:$A$4963,0),COLUMN())=0,0,INDEX(generale!$A$16:$G$4963,MATCH(NGG!$A68,generale!$A$16:$A$4963,0),COLUMN())) -> 8 | E68: =IF(INDEX(generale!$A$16:$G$4963,MATCH(NGG!$A68,generale!$A$16:$A$4963,0),COLUMN())=0,0,INDEX(generale!$A$16:$G$4963,MATCH(NGG!$A68,generale!$A$16:$A$4963,0),COLUMN())) -> 6 | F68: =IF(INDEX(generale!$A$16:$G$4963,MATCH(NGG!$A68,generale!$A$16:$A$4963,0),COLUMN())=0,0,INDEX(generale!$A$16:$G$4963,MATCH(NGG!$A68,generale!$A$16:$A$4963,0),COLUMN())) -> 7 | G68: =generale!G78 -> T | H68: 16 | I68: 24 | J68: 4 | K68: 11 | L68: 13 | M68: 3 | N68: 30 | O68: 14 | P68: 5 | Q68: 10 | R68: 15 | S68: 0 | T68: 2 | U68: 9 | V68: 22 | W68: =IF(COUNTIF($B68:$D68,0)<3,IF(LEN(SUBSTITUTE(SUBSTITUTE($B68,W$1,,1),,1))=0,0,W67+1-AR68),"") -> 56 | X68: 10 | Y68: 1 | Z68: 2 | AA68: 1 | AT68: 1 | AU68: 1 | AV68: 1 | AW68: 17 | AY68: 15
A69: =IF(generale!$A79>0,generale!$A79,"") -> 2005-03-06 | B69: =IF(INDEX(generale!$A$16:$G$4963,MATCH(NGG!$A69,generale!$A$16:$A$4963,0),COLUMN())=0,0,INDEX(generale!$A$16:$G$4963,MATCH(NGG!$A69,generale!$A$16:$A$4963,0),COLUMN())) -> 15 | C69: =IF(INDEX(generale!$A$16:$G$4963,MATCH(NGG!$A69,generale!$A$16:$A$4963,0),COLUMN())=0,0,INDEX(generale!$A$16:$G$4963,MATCH(NGG!$A69,generale!$A$16:$A$4963,0),COLUMN())) -> 10 | D69: =IF(INDEX(generale!$A$16:$G$4963,MATCH(NGG!$A69,generale!$A$16:$A$4963,0),COLUMN())=0,0,INDEX(generale!$A$16:$G$4963,MATCH(NGG!$A69,generale!$A$16:$A$4963,0),COLUMN())) -> 5 | E69: =IF(INDEX(generale!$A$16:$G$4963,MATCH(NGG!$A69,generale!$A$16:$A$4963,0),COLUMN())=0,0,INDEX(generale!$A$16:$G$4963,MATCH(NGG!$A69,generale!$A$16:$A$4963,0),COLUMN())) -> 2 | F69: =IF(INDEX(generale!$A$16:$G$4963,MATCH(NGG!$A69,generale!$A$16:$A$4963,0),COLUMN())=0,0,INDEX(generale!$A$16:$G$4963,MATCH(NGG!$A69,generale!$A$16:$A$4963,0),COLUMN())) -> 6 | G69: =generale!G79 -> T | H69: 17 | I69: 25 | J69: 5 | K69: 12 | L69: 14 | M69: 4 | N69: 31 | O69: 15 | P69: 6 | Q69: 11 | R69: 16 | S69: 1 | T69: 3 | U69: 10 | V69: 0 | W69: 57 | X69: =IF(COUNTIF($B69:$D69,0)<3,IF(LEN(SUBSTITUTE(SUBSTITUTE($B69,X$1,,1),,1))=0,0,X68+1-AS69),"") -> 11 | Y69: 2 | Z69: 2 | AA69: 1 | AU69: 1 | AV69: 1 | AW69: =IF(A69<>"",20-SUM(AC69:AV69),"") -> 18 | AX69: 19 | AY69: 14
A70: =IF(generale!$A80>0,generale!$A80,"") -> 2005-03-07 | B70: =IF(INDEX(generale!$A$16:$G$4963,MATCH(NGG!$A70,generale!$A$16:$A$4963,0),COLUMN())=0,0,INDEX(generale!$A$16:$G$4963,MATCH(NGG!$A70,generale!$A$16:$A$4963,0),COLUMN())) -> 14 | C70: =IF(INDEX(generale!$A$16:$G$4963,MATCH(NGG!$A70,generale!$A$16:$A$4963,0),COLUMN())=0,0,INDEX(generale!$A$16:$G$4963,MATCH(NGG!$A70,generale!$A$16:$A$4963,0),COLUMN())) -> 15 | D70: =IF(INDEX(generale!$A$16:$G$4963,MATCH(NGG!$A70,generale!$A$16:$A$4963,0),COLUMN())=0,0,INDEX(generale!$A$16:$G$4963,MATCH(NGG!$A70,generale!$A$16:$A$4963,0),COLUMN())) -> 12 | E70: =IF(INDEX(generale!$A$16:$G$4963,MATCH(NGG!$A70,generale!$A$16:$A$4963,0),COLUMN())=0,0,INDEX(generale!$A$16:$G$4963,MATCH(NGG!$A70,generale!$A$16:$A$4963,0),COLUMN())) -> 10 | F70: =IF(INDEX(generale!$A$16:$G$4963,MATCH(NGG!$A70,generale!$A$16:$A$4963,0),COLUMN())=0,0,INDEX(generale!$A$16:$G$4963,MATCH(NGG!$A70,generale!$A$16:$A$4963,0),COLUMN())) -> 8 | G70: =generale!G80 -> T | H70: =IF(COUNTIF($B70:$D70,0)<3,IF(LEN(SUBSTITUTE(SUBSTITUTE($B70,H$1,,1),,1))=0,0,H69+1-AC70),"") -> 18 | I70: 26 | J70: 6 | K70: 13 | L70: 15 | M70: 5 | N70: 32 | O70: 16 | P70: 7 | Q70: 12 | R70: 17 | S70: 2 | T70: 4 | U70: 0 | V70: 1 | W70: 58 | X70: 11 | Y70: 2 | Z70: 2 | AA70: 1 | AS70: 1 | AT70: 1 | AU70: 1 | AV70: 1 | AW70: 16 | AX70: 5 | AY70: 14
A71: =IF(generale!$A81>0,generale!$A81,"") -> 2005-03-08 | B71: =IF(INDEX(generale!$A$16:$G$4963,MATCH(NGG!$A71,generale!$A$16:$A$4963,0),COLUMN())=0,0,INDEX(generale!$A$16:$G$4963,MATCH(NGG!$A71,generale!$A$16:$A$4963,0),COLUMN())) -> 1 | C71: =IF(INDEX(generale!$A$16:$G$4963,MATCH(NGG!$A71,generale!$A$16:$A$4963,0),COLUMN())=0,0,INDEX(generale!$A$16:$G$4963,MATCH(NGG!$A71,generale!$A$16:$A$4963,0),COLUMN())) -> 4 | D71: =IF(INDEX(generale!$A$16:$G$4963,MATCH(NGG!$A71,generale!$A$16:$A$4963,0),COLUMN())=0,0,INDEX(generale!$A$16:$G$4963,MATCH(NGG!$A71,generale!$A$16:$A$4963,0),COLUMN())) -> 7 | E71: =IF(INDEX(generale!$A$16:$G$4963,MATCH(NGG!$A71,generale!$A$16:$A$4963,0),COLUMN())=0,0,INDEX(generale!$A$16:$G$4963,MATCH(NGG!$A71,generale!$A$16:$A$4963,0),COLUMN())) -> 14 | F71: =IF(INDEX(generale!$A$16:$G$4963,MATCH(NGG!$A71,generale!$A$16:$A$4963,0),COLUMN())=0,0,INDEX(generale!$A$16:$G$4963,MATCH(NGG!$A71,generale!$A$16:$A$4963,0),COLUMN())) -> 12 | G71: =generale!G81 -> O | H71: 0 | I71: 27 | J71: 7 | K71: 14 | L71: 16 | M71: 6 | N71: 33 | O71: 17 | P71: 8 | Q71: 13 | R71: 18 | S71: 3 | T71: 5 | U71: 1 | V71: 2 | W71: 59 | X71: 11 | Y71: 2 | Z71: 2 | AA71: 1 | AS71: 1 | AT71: 1 | AU71: 1 | AV71: 1 | AW71: 16 | AY71: 15
A72: =IF(generale!$A82>0,generale!$A82,"") -> 2005-03-09 | B72: =IF(INDEX(generale!$A$16:$G$4963,MATCH(NGG!$A72,generale!$A$16:$A$4963,0),COLUMN())=0,0,INDEX(generale!$A$16:$G$4963,MATCH(NGG!$A72,generale!$A$16:$A$4963,0),COLUMN())) -> 3 | C72: =IF(INDEX(generale!$A$16:$G$4963,MATCH(NGG!$A72,generale!$A$16:$A$4963,0),COLUMN())=0,0,INDEX(generale!$A$16:$G$4963,MATCH(NGG!$A72,generale!$A$16:$A$4963,0),COLUMN())) -> 6 | D72: =IF(INDEX(generale!$A$16:$G$4963,MATCH(NGG!$A72,generale!$A$16:$A$4963,0),COLUMN())=0,0,INDEX(generale!$A$16:$G$4963,MATCH(NGG!$A72,generale!$A$16:$A$4963,0),COLUMN())) -> 13 | E72: =IF(INDEX(generale!$A$16:$G$4963,MATCH(NGG!$A72,generale!$A$16:$A$4963,0),COLUMN())=0,0,INDEX(generale!$A$16:$G$4963,MATCH(NGG!$A72,generale!$A$16:$A$4963,0),COLUMN())) -> 1 | F72: =IF(INDEX(generale!$A$16:$G$4963,MATCH(NGG!$A72,generale!$A$16:$A$4963,0),COLUMN())=0,0,INDEX(generale!$A$16:$G$4963,MATCH(NGG!$A72,generale!$A$16:$A$4963,0),COLUMN())) -> 7 | G72: =generale!G82 -> T | H72: 1 | I72: 28 | J72: 0 | K72: 15 | L72: 17 | M72: 7 | N72: 34 | O72: 18 | P72: 9 | Q72: 14 | R72: 19 | S72: 4 | T72: 6 | U72: 2 | V72: 3 | W72: 60 | X72: 11 | Y72: 2 | Z72: 2 | AA72: 1 | AS72: 1 | AT72: 1 | AU72: 1 | AV72: 1 | AW72: 16 | AY72: 14
A73: =IF(generale!$A83>0,generale!$A83,"") -> 2005-03-10 | B73: =IF(INDEX(generale!$A$16:$G$4963,MATCH(NGG!$A73,generale!$A$16:$A$4963,0),COLUMN())=0,0,INDEX(generale!$A$16:$G$4963,MATCH(NGG!$A73,generale!$A$16:$A$4963,0),COLUMN())) -> 13 | C73: =IF(INDEX(generale!$A$16:$G$4963,MATCH(NGG!$A73,generale!$A$16:$A$4963,0),COLUMN())=0,0,INDEX(generale!$A$16:$G$4963,MATCH(NGG!$A73,generale!$A$16:$A$4963,0),COLUMN())) -> 5 | D73: =IF(INDEX(generale!$A$16:$G$4963,MATCH(NGG!$A73,generale!$A$16:$A$4963,0),COLUMN())=0,0,INDEX(generale!$A$16:$G$4963,MATCH(NGG!$A73,generale!$A$16:$A$4963,0),COLUMN())) -> 4 | E73: =IF(INDEX(generale!$A$16:$G$4963,MATCH(NGG!$A73,generale!$A$16:$A$4963,0),COLUMN())=0,0,INDEX(generale!$A$16:$G$4963,MATCH(NGG!$A73,generale!$A$16:$A$4963,0),COLUMN())) -> 12 | F73: =IF(INDEX(generale!$A$16:$G$4963,MATCH(NGG!$A73,generale!$A$16:$A$4963,0),COLUMN())=0,0,INDEX(generale!$A$16:$G$4963,MATCH(NGG!$A73,generale!$A$16:$A$4963,0),COLUMN())) -> 16 | G73: =generale!G83 -> P | H73: 2 | I73: 29 | J73: 1 | K73: 16 | L73: 18 | M73: 8 | N73: 35 | O73: 19 | P73: 10 | Q73: 15 | R73: 20 | S73: 5 | T73: 0 | U73: 3 | V73: 4 | W73: 61 | X73: 11 | Y73: 2 | Z73: 2 | AA73: 1 | AS73: 1 | AT73: 1 | AU73: 1 | AV73: 1 | AW73: 16 | AY73: 17
A74: =IF(generale!$A84>0,generale!$A84,"") -> 2005-03-11 | B74: =IF(INDEX(generale!$A$16:$G$4963,MATCH(NGG!$A74,generale!$A$16:$A$4963,0),COLUMN())=0,0,INDEX(generale!$A$16:$G$4963,MATCH(NGG!$A74,generale!$A$16:$A$4963,0),COLUMN())) -> 2 | C74: =IF(INDEX(generale!$A$16:$G$4963,MATCH(NGG!$A74,generale!$A$16:$A$4963,0),COLUMN())=0,0,INDEX(generale!$A$16:$G$4963,MATCH(NGG!$A74,generale!$A$16:$A$4963,0),COLUMN())) -> 7 | D74: =IF(INDEX(generale!$A$16:$G$4963,MATCH(NGG!$A74,generale!$A$16:$A$4963,0),COLUMN())=0,0,INDEX(generale!$A$16:$G$4963,MATCH(NGG!$A74,generale!$A$16:$A$4963,0),COLUMN())) -> 3 | E74: =IF(INDEX(generale!$A$16:$G$4963,MATCH(NGG!$A74,generale!$A$16:$A$4963,0),COLUMN())=0,0,INDEX(generale!$A$16:$G$4963,MATCH(NGG!$A74,generale!$A$16:$A$4963,0),COLUMN())) -> 6 | F74: =IF(INDEX(generale!$A$16:$G$4963,MATCH(NGG!$A74,generale!$A$16:$A$4963,0),COLUMN())=0,0,INDEX(generale!$A$16:$G$4963,MATCH(NGG!$A74,generale!$A$16:$A$4963,0),COLUMN())) -> 5 | G74: =generale!G84 -> P | H74: 3 | I74: 0 | J74: 2 | K74: 17 | L74: 19 | M74: 9 | N74: 36 | O74: 20 | P74: 11 | Q74: 16 | R74: 21 | S74: 6 | T74: 1 | U74: 4 | V74: 5 | W74: 62 | X74: 11 | Y74: 2 | Z74: 2 | AA74: 1 | AS74: 1 | AT74: 1 | AU74: 1 | AV74: 1 | AW74: 16 | AY74: 17
A75: =IF(generale!$A85>0,generale!$A85,"") -> 2005-03-12 | B75: =IF(INDEX(generale!$A$16:$G$4963,MATCH(NGG!$A75,generale!$A$16:$A$4963,0),COLUMN())=0,0,INDEX(generale!$A$16:$G$4963,MATCH(NGG!$A75,generale!$A$16:$A$4963,0),COLUMN())) -> 10 | C75: =IF(INDEX(generale!$A$16:$G$4963,MATCH(NGG!$A75,generale!$A$16:$A$4963,0),COLUMN())=0,0,INDEX(generale!$A$16:$G$4963,MATCH(NGG!$A75,generale!$A$16:$A$4963,0),COLUMN())) -> 1 | D75: =IF(INDEX(generale!$A$16:$G$4963,MATCH(NGG!$A75,generale!$A$16:$A$4963,0),COLUMN())=0,0,INDEX(generale!$A$16:$G$4963,MATCH(NGG!$A75,generale!$A$16:$A$4963,0),COLUMN())) -> 12 | E75: =IF(INDEX(generale!$A$16:$G$4963,MATCH(NGG!$A75,generale!$A$16:$A$4963,0),COLUMN())=0,0,INDEX(generale!$A$16:$G$4963,MATCH(NGG!$A75,generale!$A$16:$A$4963,0),COLUMN())) -> 9 | F75: =IF(INDEX(generale!$A$16:$G$4963,MATCH(NGG!$A75,generale!$A$16:$A$4963,0),COLUMN())=0,0,INDEX(generale!$A$16:$G$4963,MATCH(NGG!$A75,generale!$A$16:$A$4963,0),COLUMN())) -> 5 | G75: =generale!G85 -> P | H75: 23 | I75: 3 | J75: 38 | K75: 20 | L75: 1 | M75: 12 | N75: 8 | O75: 13 | P75: 2 | Q75: 30 | R75: 22 | S75: 15 | T75: 9 | U75: 0 | V75: 14 | W75: 9 | X75: 15 | Y75: 19 | Z75: 2 | AA75: 2 | AU75: 1 | AV75: 1 | AW75: 18 | AY75: 18
A76: =IF(generale!$A86>0,generale!$A86,"") -> 2005-03-13 | B76: =IF(INDEX(generale!$A$16:$G$4963,MATCH(NGG!$A76,generale!$A$16:$A$4963,0),COLUMN())=0,0,INDEX(generale!$A$16:$G$4963,MATCH(NGG!$A76,generale!$A$16:$A$4963,0),COLUMN())) -> 6 | C76: =IF(INDEX(generale!$A$16:$G$4963,MATCH(NGG!$A76,generale!$A$16:$A$4963,0),COLUMN())=0,0,INDEX(generale!$A$16:$G$4963,MATCH(NGG!$A76,generale!$A$16:$A$4963,0),COLUMN())) -> 1 | D76: =IF(INDEX(generale!$A$16:$G$4963,MATCH(NGG!$A76,generale!$A$16:$A$4963,0),COLUMN())=0,0,INDEX(generale!$A$16:$G$4963,MATCH(NGG!$A76,generale!$A$16:$A$4963,0),COLUMN())) -> 14 | E76: =IF(INDEX(generale!$A$16:$G$4963,MATCH(NGG!$A76,generale!$A$16:$A$4963,0),COLUMN())=0,0,INDEX(generale!$A$16:$G$4963,MATCH(NGG!$A76,generale!$A$16:$A$4963,0),COLUMN())) -> 10 | F76: =IF(INDEX(generale!$A$16:$G$4963,MATCH(NGG!$A76,generale!$A$16:$A$4963,0),COLUMN())=0,0,INDEX(generale!$A$16:$G$4963,MATCH(NGG!$A76,generale!$A$16:$A$4963,0),COLUMN())) -> 11 | G76: =generale!G86 -> O | H76: 24 | I76: 4 | J76: 39 | K76: 21 | L76: 2 | M76: 0 | N76: 9 | O76: 14 | P76: 3 | Q76: 31 | R76: 23 | S76: 16 | T76: 10 | U76: 1 | V76: 15 | W76: 10 | X76: 16 | Y76: 20 | Z76: 2 | AA76: 2 | AU76: 1 | AV76: 1 | AW76: 18 | AY76: 19
A77: =IF(generale!$A87>0,generale!$A87,"") -> 2005-03-14 | B77: =IF(INDEX(generale!$A$16:$G$4963,MATCH(NGG!$A77,generale!$A$16:$A$4963,0),COLUMN())=0,0,INDEX(generale!$A$16:$G$4963,MATCH(NGG!$A77,generale!$A$16:$A$4963,0),COLUMN())) -> 5 | C77: =IF(INDEX(generale!$A$16:$G$4963,MATCH(NGG!$A77,generale!$A$16:$A$4963,0),COLUMN())=0,0,INDEX(generale!$A$16:$G$4963,MATCH(NGG!$A77,generale!$A$16:$A$4963,0),COLUMN())) -> 18 | D77: =IF(INDEX(generale!$A$16:$G$4963,MATCH(NGG!$A77,generale!$A$16:$A$4963,0),COLUMN())=0,0,INDEX(generale!$A$16:$G$4963,MATCH(NGG!$A77,generale!$A$16:$A$4963,0),COLUMN())) -> 4 | E77: =IF(INDEX(generale!$A$16:$G$4963,MATCH(NGG!$A77,generale!$A$16:$A$4963,0),COLUMN())=0,0,INDEX(generale!$A$16:$G$4963,MATCH(NGG!$A77,generale!$A$16:$A$4963,0),COLUMN())) -> 2 | F77: =IF(INDEX(generale!$A$16:$G$4963,MATCH(NGG!$A77,generale!$A$16:$A$4963,0),COLUMN())=0,0,INDEX(generale!$A$16:$G$4963,MATCH(NGG!$A77,generale!$A$16:$A$4963,0),COLUMN())) -> 12 | G77: =generale!G87 -> P | H77: 25 | I77: 5 | J77: 40 | K77: 22 | L77: 0 | M77: 1 | N77: 10 | O77: 15 | P77: 4 | Q77: 32 | R77: 24 | S77: 17 | T77: 11 | U77: 2 | V77: 16 | W77: 10 | X77: 16 | Y77: 20 | Z77: 2 | AA77: 2 | AR77: 1 | AS77: 1 | AT77: 1 | AU77: 1 | AV77: 1 | AW77: 15 | AY77: 18
A78: =IF(generale!$A88>0,generale!$A88,"") -> 2005-03-15 | B78: =IF(INDEX(generale!$A$16:$G$4963,MATCH(NGG!$A78,generale!$A$16:$A$4963,0),COLUMN())=0,0,INDEX(generale!$A$16:$G$4963,MATCH(NGG!$A78,generale!$A$16:$A$4963,0),COLUMN())) -> 15 | C78: =IF(INDEX(generale!$A$16:$G$4963,MATCH(NGG!$A78,generale!$A$16:$A$4963,0),COLUMN())=0,0,INDEX(generale!$A$16:$G$4963,MATCH(NGG!$A78,generale!$A$16:$A$4963,0),COLUMN())) -> 13 | D78: =IF(INDEX(generale!$A$16:$G$4963,MATCH(NGG!$A78,generale!$A$16:$A$4963,0),COLUMN())=0,0,INDEX(generale!$A$16:$G$4963,MATCH(NGG!$A78,generale!$A$16:$A$4963,0),COLUMN())) -> 5 | E78: =IF(INDEX(generale!$A$16:$G$4963,MATCH(NGG!$A78,generale!$A$16:$A$4963,0),COLUMN())=0,0,INDEX(generale!$A$16:$G$4963,MATCH(NGG!$A78,generale!$A$16:$A$4963,0),COLUMN())) -> 9 | F78: =IF(INDEX(generale!$A$16:$G$4963,MATCH(NGG!$A78,generale!$A$16:$A$4963,0),COLUMN())=0,0,INDEX(generale!$A$16:$G$4963,MATCH(NGG!$A78,generale!$A$16:$A$4963,0),COLUMN())) -> 11 | G78: =generale!G88 -> P | H78: 26 | I78: 6 | J78: 41 | K78: 23 | L78: 1 | M78: 2 | N78: 11 | O78: 16 | P78: 5 | Q78: 33 | R78: 25 | S78: 18 | T78: 12 | U78: 3 | V78: 0 | W78: 11 | X78: 17 | Y78: 21 | Z78: 2 | AA78: 2 | AU78: 1 | AV78: 1 | AW78: 18 | AY78: 18
A79: =IF(generale!$A89>0,generale!$A89,"") -> 2005-03-16 | B79: =IF(INDEX(generale!$A$16:$G$4963,MATCH(NGG!$A79,generale!$A$16:$A$4963,0),COLUMN())=0,0,INDEX(generale!$A$16:$G$4963,MATCH(NGG!$A79,generale!$A$16:$A$4963,0),COLUMN())) -> 1 | C79: =IF(INDEX(generale!$A$16:$G$4963,MATCH(NGG!$A79,generale!$A$16:$A$4963,0),COLUMN())=0,0,INDEX(generale!$A$16:$G$4963,MATCH(NGG!$A79,generale!$A$16:$A$4963,0),COLUMN())) -> 2 | D79: =IF(INDEX(generale!$A$16:$G$4963,MATCH(NGG!$A79,generale!$A$16:$A$4963,0),COLUMN())=0,0,INDEX(generale!$A$16:$G$4963,MATCH(NGG!$A79,generale!$A$16:$A$4963,0),COLUMN())) -> 5 | E79: =IF(INDEX(generale!$A$16:$G$4963,MATCH(NGG!$A79,generale!$A$16:$A$4963,0),COLUMN())=0,0,INDEX(generale!$A$16:$G$4963,MATCH(NGG!$A79,generale!$A$16:$A$4963,0),COLUMN())) -> 4 | F79: =IF(INDEX(generale!$A$16:$G$4963,MATCH(NGG!$A79,generale!$A$16:$A$4963,0),COLUMN())=0,0,INDEX(generale!$A$16:$G$4963,MATCH(NGG!$A79,generale!$A$16:$A$4963,0),COLUMN())) -> 3 | G79: =generale!G89 -> T | H79: 0 | I79: 7 | J79: 42 | K79: 24 | L79: 2 | M79: 3 | N79: 12 | O79: 17 | P79: 6 | Q79: 34 | R79: 26 | S79: 19 | T79: 13 | U79: 4 | V79: 1 | W79: 12 | X79: 17 | Y79: 21 | Z79: 2 | AA79: 2 | AS79: 1 | AT79: 1 | AU79: 1 | AV79: 1 | AW79: 16 | AY79: 15
A80: =IF(generale!$A90>0,generale!$A90,"") -> 2005-03-17 | B80: =IF(INDEX(generale!$A$16:$G$4963,MATCH(NGG!$A80,generale!$A$16:$A$4963,0),COLUMN())=0,0,INDEX(generale!$A$16:$G$4963,MATCH(NGG!$A80,generale!$A$16:$A$4963,0),COLUMN())) -> 11 | C80: =IF(INDEX(generale!$A$16:$G$4963,MATCH(NGG!$A80,generale!$A$16:$A$4963,0),COLUMN())=0,0,INDEX(generale!$A$16:$G$4963,MATCH(NGG!$A80,generale!$A$16:$A$4963,0),COLUMN())) -> 15 | D80: =IF(INDEX(generale!$A$16:$G$4963,MATCH(NGG!$A80,generale!$A$16:$A$4963,0),COLUMN())=0,0,INDEX(generale!$A$16:$G$4963,MATCH(NGG!$A80,generale!$A$16:$A$4963,0),COLUMN())) -> 17 | E80: =IF(INDEX(generale!$A$16:$G$4963,MATCH(NGG!$A80,generale!$A$16:$A$4963,0),COLUMN())=0,0,INDEX(generale!$A$16:$G$4963,MATCH(NGG!$A80,generale!$A$16:$A$4963,0),COLUMN())) -> 7 | F80: =IF(INDEX(generale!$A$16:$G$4963,MATCH(NGG!$A80,generale!$A$16:$A$4963,0),COLUMN())=0,0,INDEX(generale!$A$16:$G$4963,MATCH(NGG!$A80,generale!$A$16:$A$4963,0),COLUMN())) -> 1 | G80: =generale!G90 -> P | H80: 1 | I80: 8 | J80: 43 | K80: 25 | L80: 3 | M80: 4 | N80: 13 | O80: 18 | P80: 7 | Q80: 35 | R80: 0 | S80: 20 | T80: 14 | U80: 5 | V80: 2 | W80: 13 | X80: 17 | Y80: 21 | Z80: 2 | AA80: 2 | AS80: 1 | AT80: 1 | AU80: 1 | AV80: 1 | AW80: 16 | AY80: 18
A81: =IF(generale!$A91>0,generale!$A91,"") -> 2005-03-18 | B81: =IF(INDEX(generale!$A$16:$G$4963,MATCH(NGG!$A81,generale!$A$16:$A$4963,0),COLUMN())=0,0,INDEX(generale!$A$16:$G$4963,MATCH(NGG!$A81,generale!$A$16:$A$4963,0),COLUMN())) -> 2 | C81: =IF(INDEX(generale!$A$16:$G$4963,MATCH(NGG!$A81,generale!$A$16:$A$4963,0),COLUMN())=0,0,INDEX(generale!$A$16:$G$4963,MATCH(NGG!$A81,generale!$A$16:$A$4963,0),COLUMN())) -> 7 | D81: =IF(INDEX(generale!$A$16:$G$4963,MATCH(NGG!$A81,generale!$A$16:$A$4963,0),COLUMN())=0,0,INDEX(generale!$A$16:$G$4963,MATCH(NGG!$A81,generale!$A$16:$A$4963,0),COLUMN())) -> 17 | E81: =IF(INDEX(generale!$A$16:$G$4963,MATCH(NGG!$A81,generale!$A$16:$A$4963,0),COLUMN())=0,0,INDEX(generale!$A$16:$G$4963,MATCH(NGG!$A81,generale!$A$16:$A$4963,0),COLUMN())) -> 4 | F81: =IF(INDEX(generale!$A$16:$G$4963,MATCH(NGG!$A81,generale!$A$16:$A$4963,0),COLUMN())=0,0,INDEX(generale!$A$16:$G$4963,MATCH(NGG!$A81,generale!$A$16:$A$4963,0),COLUMN())) -> 14 | G81: =generale!G91 -> P | H81: 2 | I81: 0 | J81: 44 | K81: 26 | L81: 4 | M81: 5 | N81: 14 | O81: 19 | P81: 8 | Q81: 36 | R81: 1 | S81: 21 | T81: 15 | U81: 5 | V81: 2 | W81: 13 | X81: 17 | Y81: 21 | Z81: 2 | AA81: 2 | AP81: 1 | AQ81: 1 | AR81: 1 | AS81: 1 | AT81: 1 | AU81: 1 | AV81: 1 | AW81: 13 | AX81: 14 | AY81: 18
A82: =IF(generale!$A92>0,generale!$A92,"") -> 2005-03-19 | B82: =IF(INDEX(generale!$A$16:$G$4963,MATCH(NGG!$A82,generale!$A$16:$A$4963,0),COLUMN())=0,0,INDEX(generale!$A$16:$G$4963,MATCH(NGG!$A82,generale!$A$16:$A$4963,0),COLUMN())) -> 8 | C82: =IF(INDEX(generale!$A$16:$G$4963,MATCH(NGG!$A82,generale!$A$16:$A$4963,0),COLUMN())=0,0,INDEX(generale!$A$16:$G$4963,MATCH(NGG!$A82,generale!$A$16:$A$4963,0),COLUMN())) -> 10 | D82: =IF(INDEX(generale!$A$16:$G$4963,MATCH(NGG!$A82,generale!$A$16:$A$4963,0),COLUMN())=0,0,INDEX(generale!$A$16:$G$4963,MATCH(NGG!$A82,generale!$A$16:$A$4963,0),COLUMN())) -> 6 | E82: =IF(INDEX(generale!$A$16:$G$4963,MATCH(NGG!$A82,generale!$A$16:$A$4963,0),COLUMN())=0,0,INDEX(generale!$A$16:$G$4963,MATCH(NGG!$A82,generale!$A$16:$A$4963,0),COLUMN())) -> 11 | F82: =IF(INDEX(generale!$A$16:$G$4963,MATCH(NGG!$A82,generale!$A$16:$A$4963,0),COLUMN())=0,0,INDEX(generale!$A$16:$G$4963,MATCH(NGG!$A82,generale!$A$16:$A$4963,0),COLUMN())) -> 9 | G82: =generale!G92 -> P | H82: 3 | I82: 1 | J82: 45 | K82: 27 | L82: 5 | M82: 6 | N82: 15 | O82: 0 | P82: 9 | Q82: 37 | R82: 2 | S82: 22 | T82: 16 | U82: 6 | V82: 3 | W82: 14 | X82: 17 | Y82: 21 | Z82: 2 | AA82: 2 | AS82: 1 | AT82: 1 | AU82: 1 | AV82: 1 | AW82: 16 | AX82: 12 | AY82: 16
A83: =IF(generale!$A93>0,generale!$A93,"") -> 2005-03-20 | B83: =IF(INDEX(generale!$A$16:$G$4963,MATCH(NGG!$A83,generale!$A$16:$A$4963,0),COLUMN())=0,0,INDEX(generale!$A$16:$G$4963,MATCH(NGG!$A83,generale!$A$16:$A$4963,0),COLUMN())) -> 8 | C83: =IF(INDEX(generale!$A$16:$G$4963,MATCH(NGG!$A83,generale!$A$16:$A$4963,0),COLUMN())=0,0,INDEX(generale!$A$16:$G$4963,MATCH(NGG!$A83,generale!$A$16:$A$4963,0),COLUMN())) -> 11 | D83: =IF(INDEX(generale!$A$16:$G$4963,MATCH(NGG!$A83,generale!$A$16:$A$4963,0),COLUMN())=0,0,INDEX(generale!$A$16:$G$4963,MATCH(NGG!$A83,generale!$A$16:$A$4963,0),COLUMN())) -> 14 | E83: =IF(INDEX(generale!$A$16:$G$4963,MATCH(NGG!$A83,generale!$A$16:$A$4963,0),COLUMN())=0,0,INDEX(generale!$A$16:$G$4963,MATCH(NGG!$A83,generale!$A$16:$A$4963,0),COLUMN())) -> 10 | F83: =IF(INDEX(generale!$A$16:$G$4963,MATCH(NGG!$A83,generale!$A$16:$A$4963,0),COLUMN())=0,0,INDEX(generale!$A$16:$G$4963,MATCH(NGG!$A83,generale!$A$16:$A$4963,0),COLUMN())) -> 9 | G83: =generale!G93 -> O | H83: 4 | I83: 2 | J83: 46 | K83: 28 | L83: 6 | M83: 7 | N83: 16 | O83: 0 | P83: 10 | Q83: 38 | R83: 3 | S83: 23 | T83: 17 | U83: 7 | V83: 3 | W83: 14 | X83: 17 | Y83: 21 | Z83: 2 | AA83: 2 | AQ83: 1 | AR83: 1 | AS83: 1 | AT83: 1 | AU83: 1 | AV83: 1 | AW83: 14 | AY83: 18
A84: =IF(generale!$A94>0,generale!$A94,"") -> 2005-03-21 | B84: =IF(INDEX(generale!$A$16:$G$4963,MATCH(NGG!$A84,generale!$A$16:$A$4963,0),COLUMN())=0,0,INDEX(generale!$A$16:$G$4963,MATCH(NGG!$A84,generale!$A$16:$A$4963,0),COLUMN())) -> 4 | C84: =IF(INDEX(generale!$A$16:$G$4963,MATCH(NGG!$A84,generale!$A$16:$A$4963,0),COLUMN())=0,0,INDEX(generale!$A$16:$G$4963,MATCH(NGG!$A84,generale!$A$16:$A$4963,0),COLUMN())) -> 1 | D84: =IF(INDEX(generale!$A$16:$G$4963,MATCH(NGG!$A84,generale!$A$16:$A$4963,0),COLUMN())=0,0,INDEX(generale!$A$16:$G$4963,MATCH(NGG!$A84,generale!$A$16:$A$4963,0),COLUMN())) -> 13 | E84: =IF(INDEX(generale!$A$16:$G$4963,MATCH(NGG!$A84,generale!$A$16:$A$4963,0),COLUMN())=0,0,INDEX(generale!$A$16:$G$4963,MATCH(NGG!$A84,generale!$A$16:$A$4963,0),COLUMN())) -> 8 | F84: =IF(INDEX(generale!$A$16:$G$4963,MATCH(NGG!$A84,generale!$A$16:$A$4963,0),COLUMN())=0,0,INDEX(generale!$A$16:$G$4963,MATCH(NGG!$A84,generale!$A$16:$A$4963,0),COLUMN())) -> 11 | G84: =generale!G94 -> P | H84: 5 | I84: 3 | J84: 47 | K84: 0 | L84: 7 | M84: 8 | N84: 17 | O84: 1 | P84: 11 | Q84: 39 | R84: 4 | S84: 24 | T84: 18 | U84: 8 | V84: 4 | W84: 15 | X84: 17 | Y84: 21 | Z84: 2 | AA84: 2 | AS84: 1 | AT84: 1 | AU84: 1 | AV84: 1 | AW84: 16 | AY84: 16
A85: =IF(generale!$A95>0,generale!$A95,"") -> 2005-03-22 | B85: =IF(INDEX(generale!$A$16:$G$4963,MATCH(NGG!$A85,generale!$A$16:$A$4963,0),COLUMN())=0,0,INDEX(generale!$A$16:$G$4963,MATCH(NGG!$A85,generale!$A$16:$A$4963,0),COLUMN())) -> 5 | C85: =IF(INDEX(generale!$A$16:$G$4963,MATCH(NGG!$A85,generale!$A$16:$A$4963,0),COLUMN())=0,0,INDEX(generale!$A$16:$G$4963,MATCH(NGG!$A85,generale!$A$16:$A$4963,0),COLUMN())) -> 2 | D85: =IF(INDEX(generale!$A$16:$G$4963,MATCH(NGG!$A85,generale!$A$16:$A$4963,0),COLUMN())=0,0,INDEX(generale!$A$16:$G$4963,MATCH(NGG!$A85,generale!$A$16:$A$4963,0),COLUMN())) -> 8 | E85: =IF(INDEX(generale!$A$16:$G$4963,MATCH(NGG!$A85,generale!$A$16:$A$4963,0),COLUMN())=0,0,INDEX(generale!$A$16:$G$4963,MATCH(NGG!$A85,generale!$A$16:$A$4963,0),COLUMN())) -> 15 | F85: =IF(INDEX(generale!$A$16:$G$4963,MATCH(NGG!$A85,generale!$A$16:$A$4963,0),COLUMN())=0,0,INDEX(generale!$A$16:$G$4963,MATCH(NGG!$A85,generale!$A$16:$A$4963,0),COLUMN())) -> 7 | G85: =generale!G95 -> T | H85: 6 | I85: 4 | J85: 48 | K85: 1 | L85: 0 | M85: 9 | N85: 18 | O85: 2 | P85: 12 | Q85: 40 | R85: 5 | S85: 25 | T85: 19 | U85: 9 | V85: 5 | W85: 16 | X85: =IF(COUNTIF($B85:$D85,0)<3,IF(LEN(SUBSTITUTE(SUBSTITUTE($B85,X$1,,1),,1))=0,0,X84+1-AS85),"") -> 18 | Y85: 22 | Z85: 2 | AA85: 2 | AU85: 1 | AV85: 1 | AW85: 18 | AX85: 10 | AY85: 18
A86: =IF(generale!$A96>0,generale!$A96,"") -> 2005-03-23 | B86: =IF(INDEX(generale!$A$16:$G$4963,MATCH(NGG!$A86,generale!$A$16:$A$4963,0),COLUMN())=0,0,INDEX(generale!$A$16:$G$4963,MATCH(NGG!$A86,generale!$A$16:$A$4963,0),COLUMN())) -> 15 | C86: =IF(INDEX(generale!$A$16:$G$4963,MATCH(NGG!$A86,generale!$A$16:$A$4963,0),COLUMN())=0,0,INDEX(generale!$A$16:$G$4963,MATCH(NGG!$A86,generale!$A$16:$A$4963,0),COLUMN())) -> 14 | D86: =IF(INDEX(generale!$A$16:$G$4963,MATCH(NGG!$A86,generale!$A$16:$A$4963,0),COLUMN())=0,0,INDEX(generale!$A$16:$G$4963,MATCH(NGG!$A86,generale!$A$16:$A$4963,0),COLUMN())) -> 2 | E86: =IF(INDEX(generale!$A$16:$G$4963,MATCH(NGG!$A86,generale!$A$16:$A$4963,0),COLUMN())=0,0,INDEX(generale!$A$16:$G$4963,MATCH(NGG!$A86,generale!$A$16:$A$4963,0),COLUMN())) -> 10 | F86: =IF(INDEX(generale!$A$16:$G$4963,MATCH(NGG!$A86,generale!$A$16:$A$4963,0),COLUMN())=0,0,INDEX(generale!$A$16:$G$4963,MATCH(NGG!$A86,generale!$A$16:$A$4963,0),COLUMN())) -> 7 | G86: =generale!G96 -> T | H86: =IF(COUNTIF($B86:$D86,0)<3,IF(LEN(SUBSTITUTE(SUBSTITUTE($B86,H$1,,1),,1))=0,0,H85+1-AC86),"") -> 7 | I86: 5 | J86: 49 | K86: 2 | L86: 1 | M86: 10 | N86: 19 | O86: 3 | P86: 13 | Q86: 41 | R86: 6 | S86: 26 | T86: 20 | U86: 10 | V86: 0 | W86: 17 | X86: 19 | Y86: 23 | Z86: 2 | AA86: 2 | AU86: 1 | AV86: 1 | AW86: 18 | AY86: 15
A87: =IF(generale!$A97>0,generale!$A97,"") -> 2005-03-24 | B87: =IF(INDEX(generale!$A$16:$G$4963,MATCH(NGG!$A87,generale!$A$16:$A$4963,0),COLUMN())=0,0,INDEX(generale!$A$16:$G$4963,MATCH(NGG!$A87,generale!$A$16:$A$4963,0),COLUMN())) -> 9 | C87: =IF(INDEX(generale!$A$16:$G$4963,MATCH(NGG!$A87,generale!$A$16:$A$4963,0),COLUMN())=0,0,INDEX(generale!$A$16:$G$4963,MATCH(NGG!$A87,generale!$A$16:$A$4963,0),COLUMN())) -> 12 | D87: =IF(INDEX(generale!$A$16:$G$4963,MATCH(NGG!$A87,generale!$A$16:$A$4963,0),COLUMN())=0,0,INDEX(generale!$A$16:$G$4963,MATCH(NGG!$A87,generale!$A$16:$A$4963,0),COLUMN())) -> 4 | E87: =IF(INDEX(generale!$A$16:$G$4963,MATCH(NGG!$A87,generale!$A$16:$A$4963,0),COLUMN())=0,0,INDEX(generale!$A$16:$G$4963,MATCH(NGG!$A87,generale!$A$16:$A$4963,0),COLUMN())) -> 14 | F87: =IF(INDEX(generale!$A$16:$G$4963,MATCH(NGG!$A87,generale!$A$16:$A$4963,0),COLUMN())=0,0,INDEX(generale!$A$16:$G$4963,MATCH(NGG!$A87,generale!$A$16:$A$4963,0),COLUMN())) -> 5 | G87: =generale!G97 -> P | H87: 8 | I87: 6 | J87: 50 | K87: 3 | L87: 2 | M87: 11 | N87: 20 | O87: 4 | P87: 0 | Q87: 42 | R87: 7 | S87: 27 | T87: 21 | U87: 11 | V87: 1 | W87: 18 | X87: 20 | Y87: 24 | Z87: 2 | AA87: 2 | AU87: 1 | AV87: 1 | AW87: 18 | AY87: 18
A88: =IF(generale!$A98>0,generale!$A98,"") -> 2005-03-25 | B88: =IF(INDEX(generale!$A$16:$G$4963,MATCH(NGG!$A88,generale!$A$16:$A$4963,0),COLUMN())=0,0,INDEX(generale!$A$16:$G$4963,MATCH(NGG!$A88,generale!$A$16:$A$4963,0),COLUMN())) -> 7 | C88: =IF(INDEX(generale!$A$16:$G$4963,MATCH(NGG!$A88,generale!$A$16:$A$4963,0),COLUMN())=0,0,INDEX(generale!$A$16:$G$4963,MATCH(NGG!$A88,generale!$A$16:$A$4963,0),COLUMN())) -> 15 | D88: =IF(INDEX(generale!$A$16:$G$4963,MATCH(NGG!$A88,generale!$A$16:$A$4963,0),COLUMN())=0,0,INDEX(generale!$A$16:$G$4963,MATCH(NGG!$A88,generale!$A$16:$A$4963,0),COLUMN())) -> 2 | E88: =IF(INDEX(generale!$A$16:$G$4963,MATCH(NGG!$A88,generale!$A$16:$A$4963,0),COLUMN())=0,0,INDEX(generale!$A$16:$G$4963,MATCH(NGG!$A88,generale!$A$16:$A$4963,0),COLUMN())) -> 13 | F88: =IF(INDEX(generale!$A$16:$G$4963,MATCH(NGG!$A88,generale!$A$16:$A$4963,0),COLUMN())=0,0,INDEX(generale!$A$16:$G$4963,MATCH(NGG!$A88,generale!$A$16:$A$4963,0),COLUMN())) -> 11 | G88: =generale!G98 -> P | H88: 9 | I88: 7 | J88: 51 | K88: 4 | L88: 3 | M88: 12 | N88: 0 | O88: 5 | P88: 1 | Q88: 43 | R88: 8 | S88: 28 | T88: 22 | U88: 12 | V88: 2 | W88: 19 | X88: 20 | Y88: 24 | Z88: 2 | AA88: 2 | AS88: 1 | AT88: 1 | AU88: 1 | AV88: 1 | AW88: 16 | AY88: 17
A89: =IF(generale!$A99>0,generale!$A99,"") -> 2005-03-26 | B89: =IF(INDEX(generale!$A$16:$G$4963,MATCH(NGG!$A89,generale!$A$16:$A$4963,0),COLUMN())=0,0,INDEX(generale!$A$16:$G$4963,MATCH(NGG!$A89,generale!$A$16:$A$4963,0),COLUMN())) -> 17 | C89: =IF(INDEX(generale!$A$16:$G$4963,MATCH(NGG!$A89,generale!$A$16:$A$4963,0),COLUMN())=0,0,INDEX(generale!$A$16:$G$4963,MATCH(NGG!$A89,generale!$A$16:$A$4963,0),COLUMN())) -> 16 | D89: =IF(INDEX(generale!$A$16:$G$4963,MATCH(NGG!$A89,generale!$A$16:$A$4963,0),COLUMN())=0,0,INDEX(generale!$A$16:$G$4963,MATCH(NGG!$A89,generale!$A$16:$A$4963,0),COLUMN())) -> 1 | E89: =IF(INDEX(generale!$A$16:$G$4963,MATCH(NGG!$A89,generale!$A$16:$A$4963,0),COLUMN())=0,0,INDEX(generale!$A$16:$G$4963,MATCH(NGG!$A89,generale!$A$16:$A$4963,0),COLUMN())) -> 13 | F89: =IF(INDEX(generale!$A$16:$G$4963,MATCH(NGG!$A89,generale!$A$16:$A$4963,0),COLUMN())=0,0,INDEX(generale!$A$16:$G$4963,MATCH(NGG!$A89,generale!$A$16:$A$4963,0),COLUMN())) -> 3 | G89: =generale!G99 -> T | H89: 10 | I89: 8 | J89: 52 | K89: 5 | L89: 4 | M89: 13 | N89: 1 | O89: 6 | P89: 2 | Q89: 44 | R89: 9 | S89: 29 | T89: 23 | U89: 13 | V89: 3 | W89: 20 | X89: 0 | Y89: 24 | Z89: 2 | AA89: 2 | AS89: 1 | AT89: 1 | AU89: 1 | AV89: 1 | AW89: 16 | AY89: 16
A90: =IF(generale!$A100>0,generale!$A100,"") -> 2005-03-27 | B90: =IF(INDEX(generale!$A$16:$G$4963,MATCH(NGG!$A90,generale!$A$16:$A$4963,0),COLUMN())=0,0,INDEX(generale!$A$16:$G$4963,MATCH(NGG!$A90,generale!$A$16:$A$4963,0),COLUMN())) -> 1 | C90: =IF(INDEX(generale!$A$16:$G$4963,MATCH(NGG!$A90,generale!$A$16:$A$4963,0),COLUMN())=0,0,INDEX(generale!$A$16:$G$4963,MATCH(NGG!$A90,generale!$A$16:$A$4963,0),COLUMN())) -> 15 | D90: =IF(INDEX(generale!$A$16:$G$4963,MATCH(NGG!$A90,generale!$A$16:$A$4963,0),COLUMN())=0,0,INDEX(generale!$A$16:$G$4963,MATCH(NGG!$A90,generale!$A$16:$A$4963,0),COLUMN())) -> 5 | E90: =IF(INDEX(generale!$A$16:$G$4963,MATCH(NGG!$A90,generale!$A$16:$A$4963,0),COLUMN())=0,0,INDEX(generale!$A$16:$G$4963,MATCH(NGG!$A90,generale!$A$16:$A$4963,0),COLUMN())) -> 4 | F90: =IF(INDEX(generale!$A$16:$G$4963,MATCH(NGG!$A90,generale!$A$16:$A$4963,0),COLUMN())=0,0,INDEX(generale!$A$16:$G$4963,MATCH(NGG!$A90,generale!$A$16:$A$4963,0),COLUMN())) -> 20 | G90: =generale!G100 -> O | H90: 0 | I90: 9 | J90: 53 | K90: 6 | L90: 5 | M90: 14 | N90: 2 | O90: 7 | P90: 3 | Q90: 45 | R90: 10 | S90: 30 | T90: 24 | U90: 14 | V90: 4 | W90: 21 | X90: 0 | Y90: 24 | Z90: 2 | AA90: 2 | AS90: 1 | AT90: 1 | AU90: 1 | AV90: 1 | AW90: 16 | AY90: 20
A91: =IF(generale!$A101>0,generale!$A101,"") -> 2005-03-28 | B91: =IF(INDEX(generale!$A$16:$G$4963,MATCH(NGG!$A91,generale!$A$16:$A$4963,0),COLUMN())=0,0,INDEX(generale!$A$16:$G$4963,MATCH(NGG!$A91,generale!$A$16:$A$4963,0),COLUMN())) -> 16 | C91: =IF(INDEX(generale!$A$16:$G$4963,MATCH(NGG!$A91,generale!$A$16:$A$4963,0),COLUMN())=0,0,INDEX(generale!$A$16:$G$4963,MATCH(NGG!$A91,generale!$A$16:$A$4963,0),COLUMN())) -> 12 | D91: =IF(INDEX(generale!$A$16:$G$4963,MATCH(NGG!$A91,generale!$A$16:$A$4963,0),COLUMN())=0,0,INDEX(generale!$A$16:$G$4963,MATCH(NGG!$A91,generale!$A$16:$A$4963,0),COLUMN())) -> 14 | E91: =IF(INDEX(generale!$A$16:$G$4963,MATCH(NGG!$A91,generale!$A$16:$A$4963,0),COLUMN())=0,0,INDEX(generale!$A$16:$G$4963,MATCH(NGG!$A91,generale!$A$16:$A$4963,0),COLUMN())) -> 6 | F91: =IF(INDEX(generale!$A$16:$G$4963,MATCH(NGG!$A91,generale!$A$16:$A$4963,0),COLUMN())=0,0,INDEX(generale!$A$16:$G$4963,MATCH(NGG!$A91,generale!$A$16:$A$4963,0),COLUMN())) -> 7 | G91: =generale!G101 -> P | H91: 1 | I91: 10 | J91: 54 | K91: 7 | L91: 6 | M91: 15 | N91: 3 | O91: 8 | P91: 4 | Q91: 46 | R91: 11 | S91: 31 | T91: 25 | U91: 15 | V91: 5 | W91: 0 | X91: 0 | Y91: 24 | Z91: 2 | AA91: 2 | AS91: 1 | AT91: 1 | AU91: 1 | AV91: 1 | AW91: 16 | AY91: 18
A92: =IF(generale!$A102>0,generale!$A102,"") -> 2005-03-29 | B92: =IF(INDEX(generale!$A$16:$G$4963,MATCH(NGG!$A92,generale!$A$16:$A$4963,0),COLUMN())=0,0,INDEX(generale!$A$16:$G$4963,MATCH(NGG!$A92,generale!$A$16:$A$4963,0),COLUMN())) -> 10 | C92: =IF(INDEX(generale!$A$16:$G$4963,MATCH(NGG!$A92,generale!$A$16:$A$4963,0),COLUMN())=0,0,INDEX(generale!$A$16:$G$4963,MATCH(NGG!$A92,generale!$A$16:$A$4963,0),COLUMN())) -> 12 | D92: =IF(INDEX(generale!$A$16:$G$4963,MATCH(NGG!$A92,generale!$A$16:$A$4963,0),COLUMN())=0,0,INDEX(generale!$A$16:$G$4963,MATCH(NGG!$A92,generale!$A$16:$A$4963,0),COLUMN())) -> 18 | E92: =IF(INDEX(generale!$A$16:$G$4963,MATCH(NGG!$A92,generale!$A$16:$A$4963,0),COLUMN())=0,0,INDEX(generale!$A$16:$G$4963,MATCH(NGG!$A92,generale!$A$16:$A$4963,0),COLUMN())) -> 3 | F92: =IF(INDEX(generale!$A$16:$G$4963,MATCH(NGG!$A92,generale!$A$16:$A$4963,0),COLUMN())=0,0,INDEX(generale!$A$16:$G$4963,MATCH(NGG!$A92,generale!$A$16:$A$4963,0),COLUMN())) -> 16 | G92: =generale!G102 -> P | H92: 2 | I92: 11 | J92: 55 | K92: 8 | L92: 7 | M92: 16 | N92: 4 | O92: 9 | P92: 5 | Q92: 0 | R92: 12 | S92: 32 | T92: 26 | U92: 16 | V92: 6 | W92: 1 | X92: 1 | Y92: 24 | Z92: 2 | AA92: 2 | AT92: 1 | AU92: 1 | AV92: 1 | AW92: 17 | AX92: 5 | AY92: 18
A93: =IF(generale!$A103>0,generale!$A103,"") -> 2005-03-30 | B93: =IF(INDEX(generale!$A$16:$G$4963,MATCH(NGG!$A93,generale!$A$16:$A$4963,0),COLUMN())=0,0,INDEX(generale!$A$16:$G$4963,MATCH(NGG!$A93,generale!$A$16:$A$4963,0),COLUMN())) -> 15 | C93: =IF(INDEX(generale!$A$16:$G$4963,MATCH(NGG!$A93,generale!$A$16:$A$4963,0),COLUMN())=0,0,INDEX(generale!$A$16:$G$4963,MATCH(NGG!$A93,generale!$A$16:$A$4963,0),COLUMN())) -> 8 | D93: =IF(INDEX(generale!$A$16:$G$4963,MATCH(NGG!$A93,generale!$A$16:$A$4963,0),COLUMN())=0,0,INDEX(generale!$A$16:$G$4963,MATCH(NGG!$A93,generale!$A$16:$A$4963,0),COLUMN())) -> 14 | E93: =IF(INDEX(generale!$A$16:$G$4963,MATCH(NGG!$A93,generale!$A$16:$A$4963,0),COLUMN())=0,0,INDEX(generale!$A$16:$G$4963,MATCH(NGG!$A93,generale!$A$16:$A$4963,0),COLUMN())) -> 5 | F93: =IF(INDEX(generale!$A$16:$G$4963,MATCH(NGG!$A93,generale!$A$16:$A$4963,0),COLUMN())=0,0,INDEX(generale!$A$16:$G$4963,MATCH(NGG!$A93,generale!$A$16:$A$4963,0),COLUMN())) -> 6 | G93: =generale!G103 -> T | H93: 3 | I93: 12 | J93: 56 | K93: 9 | L93: 8 | M93: 17 | N93: 5 | O93: 10 | P93: 6 | Q93: 1 | R93: 13 | S93: 33 | T93: 27 | U93: 17 | V93: 0 | W93: 2 | X93: 2 | Y93: 25 | Z93: 2 | AA93: 2 | AU93: 1 | AV93: 1 | AW93: 18 | AX93: 18 | AY93: 16
A94: =IF(generale!$A104>0,generale!$A104,"") -> 2005-03-31 | B94: =IF(INDEX(generale!$A$16:$G$4963,MATCH(NGG!$A94,generale!$A$16:$A$4963,0),COLUMN())=0,0,INDEX(generale!$A$16:$G$4963,MATCH(NGG!$A94,generale!$A$16:$A$4963,0),COLUMN())) -> 13 | C94: =IF(INDEX(generale!$A$16:$G$4963,MATCH(NGG!$A94,generale!$A$16:$A$4963,0),COLUMN())=0,0,INDEX(generale!$A$16:$G$4963,MATCH(NGG!$A94,generale!$A$16:$A$4963,0),COLUMN())) -> 3 | D94: =IF(INDEX(generale!$A$16:$G$4963,MATCH(NGG!$A94,generale!$A$16:$A$4963,0),COLUMN())=0,0,INDEX(generale!$A$16:$G$4963,MATCH(NGG!$A94,generale!$A$16:$A$4963,0),COLUMN())) -> 15 | E94: =IF(INDEX(generale!$A$16:$G$4963,MATCH(NGG!$A94,generale!$A$16:$A$4963,0),COLUMN())=0,0,INDEX(generale!$A$16:$G$4963,MATCH(NGG!$A94,generale!$A$16:$A$4963,0),COLUMN())) -> 16 | F94: =IF(INDEX(generale!$A$16:$G$4963,MATCH(NGG!$A94,generale!$A$16:$A$4963,0),COLUMN())=0,0,INDEX(generale!$A$16:$G$4963,MATCH(NGG!$A94,generale!$A$16:$A$4963,0),COLUMN())) -> 17 | G94: =generale!G104 -> P | H94: 4 | I94: 13 | J94: 57 | K94: 10 | L94: 9 | M94: 18 | N94: 6 | O94: 11 | P94: 7 | Q94: 2 | R94: 14 | S94: 34 | T94: 0 | U94: 18 | V94: 1 | W94: 3 | X94: 2 | Y94: 25 | Z94: 2 | AA94: 2 | AS94: 1 | AT94: 1 | AU94: 1 | AV94: 1 | AW94: 16 | AX94: 2-6 | AY94: 18
A95: =IF(generale!$A105>0,generale!$A105,"") -> 2005-04-01 | B95: =IF(INDEX(generale!$A$16:$G$4963,MATCH(NGG!$A95,generale!$A$16:$A$4963,0),COLUMN())=0,0,INDEX(generale!$A$16:$G$4963,MATCH(NGG!$A95,generale!$A$16:$A$4963,0),COLUMN())) -> 1 | C95: =IF(INDEX(generale!$A$16:$G$4963,MATCH(NGG!$A95,generale!$A$16:$A$4963,0),COLUMN())=0,0,INDEX(generale!$A$16:$G$4963,MATCH(NGG!$A95,generale!$A$16:$A$4963,0),COLUMN())) -> 3 | D95: =IF(INDEX(generale!$A$16:$G$4963,MATCH(NGG!$A95,generale!$A$16:$A$4963,0),COLUMN())=0,0,INDEX(generale!$A$16:$G$4963,MATCH(NGG!$A95,generale!$A$16:$A$4963,0),COLUMN())) -> 8 | E95: =IF(INDEX(generale!$A$16:$G$4963,MATCH(NGG!$A95,generale!$A$16:$A$4963,0),COLUMN())=0,0,INDEX(generale!$A$16:$G$4963,MATCH(NGG!$A95,generale!$A$16:$A$4963,0),COLUMN())) -> 7 | F95: =IF(INDEX(generale!$A$16:$G$4963,MATCH(NGG!$A95,generale!$A$16:$A$4963,0),COLUMN())=0,0,INDEX(generale!$A$16:$G$4963,MATCH(NGG!$A95,generale!$A$16:$A$4963,0),COLUMN())) -> 2 | G95: =generale!G105 -> T | H95: 0 | I95: 14 | J95: 58 | K95: 11 | L95: 10 | M95: 19 | N95: 7 | O95: 12 | P95: 8 | Q95: 3 | R95: 15 | S95: 35 | T95: 1 | U95: 19 | V95: 2 | W95: 4 | X95: 2 | Y95: 25 | Z95: 2 | AA95: 2 | AS95: 1 | AT95: 1 | AU95: 1 | AV95: 1 | AW95: 16 | AY95: 14
A96: =IF(generale!$A106>0,generale!$A106,"") -> 2005-04-02 | B96: =IF(INDEX(generale!$A$16:$G$4963,MATCH(NGG!$A96,generale!$A$16:$A$4963,0),COLUMN())=0,0,INDEX(generale!$A$16:$G$4963,MATCH(NGG!$A96,generale!$A$16:$A$4963,0),COLUMN())) -> 11 | C96: =IF(INDEX(generale!$A$16:$G$4963,MATCH(NGG!$A96,generale!$A$16:$A$4963,0),COLUMN())=0,0,INDEX(generale!$A$16:$G$4963,MATCH(NGG!$A96,generale!$A$16:$A$4963,0),COLUMN())) -> 4 | D96: =IF(INDEX(generale!$A$16:$G$4963,MATCH(NGG!$A96,generale!$A$16:$A$4963,0),COLUMN())=0,0,INDEX(generale!$A$16:$G$4963,MATCH(NGG!$A96,generale!$A$16:$A$4963,0),COLUMN())) -> 18 | E96: =IF(INDEX(generale!$A$16:$G$4963,MATCH(NGG!$A96,generale!$A$16:$A$4963,0),COLUMN())=0,0,INDEX(generale!$A$16:$G$4963,MATCH(NGG!$A96,generale!$A$16:$A$4963,0),COLUMN())) -> 7 | F96: =IF(INDEX(generale!$A$16:$G$4963,MATCH(NGG!$A96,generale!$A$16:$A$4963,0),COLUMN())=0,0,INDEX(generale!$A$16:$G$4963,MATCH(NGG!$A96,generale!$A$16:$A$4963,0),COLUMN())) -> 10 | G96: =generale!G106 -> O | H96: 1 | I96: 15 | J96: 59 | K96: 12 | L96: 11 | M96: 20 | N96: 8 | O96: 13 | P96: 9 | Q96: 4 | R96: 0 | S96: 36 | T96: 2 | U96: 20 | V96: 3 | W96: 5 | X96: 3 | Y96: 26 | Z96: 2 | AA96: 2 | AU96: 1 | AV96: 1 | AW96: 18 | AY96: 17
A97: =IF(generale!$A107>0,generale!$A107,"") -> 2005-04-03 | B97: =IF(INDEX(generale!$A$16:$G$4963,MATCH(NGG!$A97,generale!$A$16:$A$4963,0),COLUMN())=0,0,INDEX(generale!$A$16:$G$4963,MATCH(NGG!$A97,generale!$A$16:$A$4963,0),COLUMN())) -> 16 | C97: =IF(INDEX(generale!$A$16:$G$4963,MATCH(NGG!$A97,generale!$A$16:$A$4963,0),COLUMN())=0,0,INDEX(generale!$A$16:$G$4963,MATCH(NGG!$A97,generale!$A$16:$A$4963,0),COLUMN())) -> 3 | D97: =IF(INDEX(generale!$A$16:$G$4963,MATCH(NGG!$A97,generale!$A$16:$A$4963,0),COLUMN())=0,0,INDEX(generale!$A$16:$G$4963,MATCH(NGG!$A97,generale!$A$16:$A$4963,0),COLUMN())) -> 11 | E97: =IF(INDEX(generale!$A$16:$G$4963,MATCH(NGG!$A97,generale!$A$16:$A$4963,0),COLUMN())=0,0,INDEX(generale!$A$16:$G$4963,MATCH(NGG!$A97,generale!$A$16:$A$4963,0),COLUMN())) -> 12 | F97: =IF(INDEX(generale!$A$16:$G$4963,MATCH(NGG!$A97,generale!$A$16:$A$4963,0),COLUMN())=0,0,INDEX(generale!$A$16:$G$4963,MATCH(NGG!$A97,generale!$A$16:$A$4963,0),COLUMN())) -> 9 | G97: =generale!G107 -> P | H97: 2 | I97: 16 | J97: 60 | K97: 13 | L97: 12 | M97: 21 | N97: 9 | O97: 14 | P97: 10 | Q97: 5 | R97: 1 | S97: 37 | T97: 3 | U97: 21 | V97: 4 | W97: 0 | X97: 4 | Y97: 27 | Z97: 2 | AA97: 2 | AU97: 1 | AV97: 1 | AW97: 18 | AX97: 3 | AY97: 16
A98: =IF(generale!$A108>0,generale!$A108,"") -> 2005-04-04 | B98: =IF(INDEX(generale!$A$16:$G$4963,MATCH(NGG!$A98,generale!$A$16:$A$4963,0),COLUMN())=0,0,INDEX(generale!$A$16:$G$4963,MATCH(NGG!$A98,generale!$A$16:$A$4963,0),COLUMN())) -> 16 | C98: =IF(INDEX(generale!$A$16:$G$4963,MATCH(NGG!$A98,generale!$A$16:$A$4963,0),COLUMN())=0,0,INDEX(generale!$A$16:$G$4963,MATCH(NGG!$A98,generale!$A$16:$A$4963,0),COLUMN())) -> 2 | D98: =IF(INDEX(generale!$A$16:$G$4963,MATCH(NGG!$A98,generale!$A$16:$A$4963,0),COLUMN())=0,0,INDEX(generale!$A$16:$G$4963,MATCH(NGG!$A98,generale!$A$16:$A$4963,0),COLUMN())) -> 19 | E98: =IF(INDEX(generale!$A$16:$G$4963,MATCH(NGG!$A98,generale!$A$16:$A$4963,0),COLUMN())=0,0,INDEX(generale!$A$16:$G$4963,MATCH(NGG!$A98,generale!$A$16:$A$4963,0),COLUMN())) -> 15 | F98: =IF(INDEX(generale!$A$16:$G$4963,MATCH(NGG!$A98,generale!$A$16:$A$4963,0),COLUMN())=0,0,INDEX(generale!$A$16:$G$4963,MATCH(NGG!$A98,generale!$A$16:$A$4963,0),COLUMN())) -> 5 | G98: =generale!G108 -> P | H98: 3 | I98: 17 | J98: 61 | K98: 14 | L98: 13 | M98: 22 | N98: 10 | O98: 15 | P98: 11 | Q98: 6 | R98: 2 | S98: 38 | T98: 4 | U98: 22 | V98: 5 | W98: 0 | X98: 5 | Y98: 27 | Z98: 2 | AA98: 2 | AT98: 1 | AU98: 1 | AV98: 1 | AW98: 17 | AY98: 18
A99: =IF(generale!$A109>0,generale!$A109,"") -> 2005-04-05 | B99: =IF(INDEX(generale!$A$16:$G$4963,MATCH(NGG!$A99,generale!$A$16:$A$4963,0),COLUMN())=0,0,INDEX(generale!$A$16:$G$4963,MATCH(NGG!$A99,generale!$A$16:$A$4963,0),COLUMN())) -> 5 | C99: =IF(INDEX(generale!$A$16:$G$4963,MATCH(NGG!$A99,generale!$A$16:$A$4963,0),COLUMN())=0,0,INDEX(generale!$A$16:$G$4963,MATCH(NGG!$A99,generale!$A$16:$A$4963,0),COLUMN())) -> 3 | D99: =IF(INDEX(generale!$A$16:$G$4963,MATCH(NGG!$A99,generale!$A$16:$A$4963,0),COLUMN())=0,0,INDEX(generale!$A$16:$G$4963,MATCH(NGG!$A99,generale!$A$16:$A$4963,0),COLUMN())) -> 10 | E99: =IF(INDEX(generale!$A$16:$G$4963,MATCH(NGG!$A99,generale!$A$16:$A$4963,0),COLUMN())=0,0,INDEX(generale!$A$16:$G$4963,MATCH(NGG!$A99,generale!$A$16:$A$4963,0),COLUMN())) -> 17 | F99: =IF(INDEX(generale!$A$16:$G$4963,MATCH(NGG!$A99,generale!$A$16:$A$4963,0),COLUMN())=0,0,INDEX(generale!$A$16:$G$4963,MATCH(NGG!$A99,generale!$A$16:$A$4963,0),COLUMN())) -> 16 | G99: =generale!G109 -> P | H99: 4 | I99: 18 | J99: 62 | K99: 15 | L99: 0 | M99: 23 | N99: 11 | O99: 16 | P99: 12 | Q99: 7 | R99: 3 | S99: 39 | T99: 5 | U99: 23 | V99: 6 | W99: 1 | X99: 6 | Y99: 28 | Z99: 2 | AA99: 2 | AU99: 1 | AV99: 1 | AW99: 18 | AX99: 2 | AY99: 18
A100: =IF(generale!$A110>0,generale!$A110,"") -> 2005-04-06 | B100: =IF(INDEX(generale!$A$16:$G$4963,MATCH(NGG!$A100,generale!$A$16:$A$4963,0),COLUMN())=0,0,INDEX(generale!$A$16:$G$4963,MATCH(NGG!$A100,generale!$A$16:$A$4963,0),COLUMN())) -> 4 | C100: =IF(INDEX(generale!$A$16:$G$4963,MATCH(NGG!$A100,generale!$A$16:$A$4963,0),COLUMN())=0,0,INDEX(generale!$A$16:$G$4963,MATCH(NGG!$A100,generale!$A$16:$A$4963,0),COLUMN())) -> 3 | D100: =IF(INDEX(generale!$A$16:$G$4963,MATCH(NGG!$A100,generale!$A$16:$A$4963,0),COLUMN())=0,0,INDEX(generale!$A$16:$G$4963,MATCH(NGG!$A100,generale!$A$16:$A$4963,0),COLUMN())) -> 15 | E100: =IF(INDEX(generale!$A$16:$G$4963,MATCH(NGG!$A100,generale!$A$16:$A$4963,0),COLUMN())=0,0,INDEX(generale!$A$16:$G$4963,MATCH(NGG!$A100,generale!$A$16:$A$4963,0),COLUMN())) -> 14 | F100: =IF(INDEX(generale!$A$16:$G$4963,MATCH(NGG!$A100,generale!$A$16:$A$4963,0),COLUMN())=0,0,INDEX(generale!$A$16:$G$4963,MATCH(NGG!$A100,generale!$A$16:$A$4963,0),COLUMN())) -> 2 | G100: =generale!G110 -> T | H100: 5 | I100: 19 | J100: 63 | K100: 0 | L100: 1 | M100: 24 | N100: 12 | O100: 17 | P100: 13 | Q100: 8 | R100: 4 | S100: 40 | T100: 6 | U100: 24 | V100: 7 | W100: 2 | X100: 7 | Y100: 29 | Z100: 2 | AA100: 2 | AU100: 1 | AV100: 1 | AW100: 18 | AX100: 14-15 | AY100: 16
A101: =IF(generale!$A111>0,generale!$A111,"") -> 2005-04-07 | B101: =IF(INDEX(generale!$A$16:$G$4963,MATCH(NGG!$A101,generale!$A$16:$A$4963,0),COLUMN())=0,0,INDEX(generale!$A$16:$G$4963,MATCH(NGG!$A101,generale!$A$16:$A$4963,0),COLUMN())) -> 9 | C101: =IF(INDEX(generale!$A$16:$G$4963,MATCH(NGG!$A101,generale!$A$16:$A$4963,0),COLUMN())=0,0,INDEX(generale!$A$16:$G$4963,MATCH(NGG!$A101,generale!$A$16:$A$4963,0),COLUMN())) -> 4 | D101: =IF(INDEX(generale!$A$16:$G$4963,MATCH(NGG!$A101,generale!$A$16:$A$4963,0),COLUMN())=0,0,INDEX(generale!$A$16:$G$4963,MATCH(NGG!$A101,generale!$A$16:$A$4963,0),COLUMN())) -> 13 | E101: =IF(INDEX(generale!$A$16:$G$4963,MATCH(NGG!$A101,generale!$A$16:$A$4963,0),COLUMN())=0,0,INDEX(generale!$A$16:$G$4963,MATCH(NGG!$A101,generale!$A$16:$A$4963,0),COLUMN())) -> 8 | F101: =IF(INDEX(generale!$A$16:$G$4963,MATCH(NGG!$A101,generale!$A$16:$A$4963,0),COLUMN())=0,0,INDEX(generale!$A$16:$G$4963,MATCH(NGG!$A101,generale!$A$16:$A$4963,0),COLUMN())) -> 15 | G101: =generale!G111 -> P | H101: 6 | I101: 20 | J101: 64 | K101: 1 | L101: 2 | M101: 25 | N101: 13 | O101: 18 | P101: 0 | Q101: 9 | R101: 5 | S101: 41 | T101: 7 | U101: 25 | V101: 8 | W101: =IF(COUNTIF($B101:$D101,0)<3,IF(LEN(SUBSTITUTE(SUBSTITUTE($B101,W$1,,1),,1))=0,0,W100+1-AR101),"") -> 3 | X101: 7 | Y101: 29 | Z101: 2 | AA101: 2 | AS101: 1 | AT101: 1 | AU101: 1 | AV101: 1 | AW101: 16 | AY101: 16
A102: =IF(generale!$A112>0,generale!$A112,"") -> 2005-04-08 | B102: =IF(INDEX(generale!$A$16:$G$4963,MATCH(NGG!$A102,generale!$A$16:$A$4963,0),COLUMN())=0,0,INDEX(generale!$A$16:$G$4963,MATCH(NGG!$A102,generale!$A$16:$A$4963,0),COLUMN())) -> 11 | C102: =IF(INDEX(generale!$A$16:$G$4963,MATCH(NGG!$A102,generale!$A$16:$A$4963,0),COLUMN())=0,0,INDEX(generale!$A$16:$G$4963,MATCH(NGG!$A102,generale!$A$16:$A$4963,0),COLUMN())) -> 14 | D102: =IF(INDEX(generale!$A$16:$G$4963,MATCH(NGG!$A102,generale!$A$16:$A$4963,0),COLUMN())=0,0,INDEX(generale!$A$16:$G$4963,MATCH(NGG!$A102,generale!$A$16:$A$4963,0),COLUMN())) -> 7 | E102: =IF(INDEX(generale!$A$16:$G$4963,MATCH(NGG!$A102,generale!$A$16:$A$4963,0),COLUMN())=0,0,INDEX(generale!$A$16:$G$4963,MATCH(NGG!$A102,generale!$A$16:$A$4963,0),COLUMN())) -> 6 | F102: =IF(INDEX(generale!$A$16:$G$4963,MATCH(NGG!$A102,generale!$A$16:$A$4963,0),COLUMN())=0,0,INDEX(generale!$A$16:$G$4963,MATCH(NGG!$A102,generale!$A$16:$A$4963,0),COLUMN())) -> 5 | G102: =generale!G112 -> O | H102: =IF(COUNTIF($B102:$D102,0)<3,IF(LEN(SUBSTITUTE(SUBSTITUTE($B102,H$1,,1),,1))=0,0,H101+1-AC102),"") -> 7 | I102: 21 | J102: 65 | K102: 2 | L102: 3 | M102: 26 | N102: 14 | O102: 19 | P102: 1 | Q102: 10 | R102: 0 | S102: 42 | T102: 8 | U102: 26 | V102: 9 | W102: 4 | X102: 7 | Y102: 29 | Z102: 2 | AA102: 2 | AS102: 1 | AT102: 1 | AU102: 1 | AV102: 1 | AW102: 16 | AX102: 12 | AY102: 15
A103: =IF(generale!$A113>0,generale!$A113,"") -> 2005-04-09 | B103: =IF(INDEX(generale!$A$16:$G$4963,MATCH(NGG!$A103,generale!$A$16:$A$4963,0),COLUMN())=0,0,INDEX(generale!$A$16:$G$4963,MATCH(NGG!$A103,generale!$A$16:$A$4963,0),COLUMN())) -> 13 | C103: =IF(INDEX(generale!$A$16:$G$4963,MATCH(NGG!$A103,generale!$A$16:$A$4963,0),COLUMN())=0,0,INDEX(generale!$A$16:$G$4963,MATCH(NGG!$A103,generale!$A$16:$A$4963,0),COLUMN())) -> 7 | D103: =IF(INDEX(generale!$A$16:$G$4963,MATCH(NGG!$A103,generale!$A$16:$A$4963,0),COLUMN())=0,0,INDEX(generale!$A$16:$G$4963,MATCH(NGG!$A103,generale!$A$16:$A$4963,0),COLUMN())) -> 15 | E103: =IF(INDEX(generale!$A$16:$G$4963,MATCH(NGG!$A103,generale!$A$16:$A$4963,0),COLUMN())=0,0,INDEX(generale!$A$16:$G$4963,MATCH(NGG!$A103,generale!$A$16:$A$4963,0),COLUMN())) -> 16 | F103: =IF(INDEX(generale!$A$16:$G$4963,MATCH(NGG!$A103,generale!$A$16:$A$4963,0),COLUMN())=0,0,INDEX(generale!$A$16:$G$4963,MATCH(NGG!$A103,generale!$A$16:$A$4963,0),COLUMN())) -> 12 | G103: =generale!G113 -> T | H103: 8 | I103: 22 | J103: 66 | K103: 3 | L103: 4 | M103: 27 | N103: 15 | O103: 20 | P103: 2 | Q103: 11 | R103: 1 | S103: 43 | T103: 0 | U103: 27 | V103: 10 | W103: 5 | X103: 7 | Y103: 29 | Z103: 2 | AA103: 2 | AS103: 1 | AT103: 1 | AU103: 1 | AV103: 1 | AW103: 16 | AX103: 3 | AY103: 17
A104: =IF(generale!$A114>0,generale!$A114,"") -> 2005-04-10 | B104: =IF(INDEX(generale!$A$16:$G$4963,MATCH(NGG!$A104,generale!$A$16:$A$4963,0),COLUMN())=0,0,INDEX(generale!$A$16:$G$4963,MATCH(NGG!$A104,generale!$A$16:$A$4963,0),COLUMN())) -> 17 | C104: =IF(INDEX(generale!$A$16:$G$4963,MATCH(NGG!$A104,generale!$A$16:$A$4963,0),COLUMN())=0,0,INDEX(generale!$A$16:$G$4963,MATCH(NGG!$A104,generale!$A$16:$A$4963,0),COLUMN())) -> 16 | D104: =IF(INDEX(generale!$A$16:$G$4963,MATCH(NGG!$A104,generale!$A$16:$A$4963,0),COLUMN())=0,0,INDEX(generale!$A$16:$G$4963,MATCH(NGG!$A104,generale!$A$16:$A$4963,0),COLUMN())) -> 9 | E104: =IF(INDEX(generale!$A$16:$G$4963,MATCH(NGG!$A104,generale!$A$16:$A$4963,0),COLUMN())=0,0,INDEX(generale!$A$16:$G$4963,MATCH(NGG!$A104,generale!$A$16:$A$4963,0),COLUMN())) -> 14 | F104: =IF(INDEX(generale!$A$16:$G$4963,MATCH(NGG!$A104,generale!$A$16:$A$4963,0),COLUMN())=0,0,INDEX(generale!$A$16:$G$4963,MATCH(NGG!$A104,generale!$A$16:$A$4963,0),COLUMN())) -> 6 | G104: =generale!G114 -> P | H104: 9 | I104: 23 | J104: 67 | K104: 4 | L104: 5 | M104: 28 | N104: 16 | O104: 21 | P104: 3 | Q104: 12 | R104: 2 | S104: 44 | T104: 1 | U104: 28 | V104: 11 | W104: 6 | X104: 0 | Y104: 29 | Z104: 2 | AA104: 2 | AT104: 1 | AU104: 1 | AV104: 1 | AW104: 17 | AY104: 18
A105: =IF(generale!$A115>0,generale!$A115,"") -> 2005-04-11 | B105: =IF(INDEX(generale!$A$16:$G$4963,MATCH(NGG!$A105,generale!$A$16:$A$4963,0),COLUMN())=0,0,INDEX(generale!$A$16:$G$4963,MATCH(NGG!$A105,generale!$A$16:$A$4963,0),COLUMN())) -> 17 | C105: =IF(INDEX(generale!$A$16:$G$4963,MATCH(NGG!$A105,generale!$A$16:$A$4963,0),COLUMN())=0,0,INDEX(generale!$A$16:$G$4963,MATCH(NGG!$A105,generale!$A$16:$A$4963,0),COLUMN())) -> 7 | D105: =IF(INDEX(generale!$A$16:$G$4963,MATCH(NGG!$A105,generale!$A$16:$A$4963,0),COLUMN())=0,0,INDEX(generale!$A$16:$G$4963,MATCH(NGG!$A105,generale!$A$16:$A$4963,0),COLUMN())) -> 16 | E105: =IF(INDEX(generale!$A$16:$G$4963,MATCH(NGG!$A105,generale!$A$16:$A$4963,0),COLUMN())=0,0,INDEX(generale!$A$16:$G$4963,MATCH(NGG!$A105,generale!$A$16:$A$4963,0),COLUMN())) -> 2 | F105: =IF(INDEX(generale!$A$16:$G$4963,MATCH(NGG!$A105,generale!$A$16:$A$4963,0),COLUMN())=0,0,INDEX(generale!$A$16:$G$4963,MATCH(NGG!$A105,generale!$A$16:$A$4963,0),COLUMN())) -> 18 | G105: =generale!G115 -> P | H105: 10 | I105: 24 | J105: 68 | K105: 5 | L105: 6 | M105: 29 | N105: 17 | O105: 22 | P105: 4 | Q105: 13 | R105: 3 | S105: 45 | T105: 2 | U105: 29 | V105: 12 | W105: 7 | X105: 0 | Y105: 29 | Z105: 2 | AA105: 2 | AS105: 1 | AT105: 1 | AU105: 1 | AV105: 1 | AW105: 16 | AY105: 18
A106: =IF(generale!$A116>0,generale!$A116,"") -> 2005-04-12 | B106: =IF(INDEX(generale!$A$16:$G$4963,MATCH(NGG!$A106,generale!$A$16:$A$4963,0),COLUMN())=0,0,INDEX(generale!$A$16:$G$4963,MATCH(NGG!$A106,generale!$A$16:$A$4963,0),COLUMN())) -> 8 | C106: =IF(INDEX(generale!$A$16:$G$4963,MATCH(NGG!$A106,generale!$A$16:$A$4963,0),COLUMN())=0,0,INDEX(generale!$A$16:$G$4963,MATCH(NGG!$A106,generale!$A$16:$A$4963,0),COLUMN())) -> 5 | D106: =IF(INDEX(generale!$A$16:$G$4963,MATCH(NGG!$A106,generale!$A$16:$A$4963,0),COLUMN())=0,0,INDEX(generale!$A$16:$G$4963,MATCH(NGG!$A106,generale!$A$16:$A$4963,0),COLUMN())) -> 16 | E106: =IF(INDEX(generale!$A$16:$G$4963,MATCH(NGG!$A106,generale!$A$16:$A$4963,0),COLUMN())=0,0,INDEX(generale!$A$16:$G$4963,MATCH(NGG!$A106,generale!$A$16:$A$4963,0),COLUMN())) -> 12 | F106: =IF(INDEX(generale!$A$16:$G$4963,MATCH(NGG!$A106,generale!$A$16:$A$4963,0),COLUMN())=0,0,INDEX(generale!$A$16:$G$4963,MATCH(NGG!$A106,generale!$A$16:$A$4963,0),COLUMN())) -> 18 | G106: =generale!G116 -> O | H106: 11 | I106: 25 | J106: 69 | K106: 6 | L106: 7 | M106: 30 | N106: 18 | O106: 0 | P106: 5 | Q106: 14 | R106: 4 | S106: 46 | T106: 3 | U106: 29 | V106: 12 | W106: 7 | X106: 0 | Y106: 29 | Z106: 2 | AA106: 2 | AP106: 1 | AQ106: 1 | AR106: 1 | AS106: 1 | AT106: 1 | AU106: 1 | AV106: 1 | AW106: 13 | AX106: 16 | AY106: 17
A107: =IF(generale!$A117>0,generale!$A117,"") -> 2005-04-13 | B107: =IF(INDEX(generale!$A$16:$G$4963,MATCH(NGG!$A107,generale!$A$16:$A$4963,0),COLUMN())=0,0,INDEX(generale!$A$16:$G$4963,MATCH(NGG!$A107,generale!$A$16:$A$4963,0),COLUMN())) -> 16 | C107: =IF(INDEX(generale!$A$16:$G$4963,MATCH(NGG!$A107,generale!$A$16:$A$4963,0),COLUMN())=0,0,INDEX(generale!$A$16:$G$4963,MATCH(NGG!$A107,generale!$A$16:$A$4963,0),COLUMN())) -> 12 | D107: =IF(INDEX(generale!$A$16:$G$4963,MATCH(NGG!$A107,generale!$A$16:$A$4963,0),COLUMN())=0,0,INDEX(generale!$A$16:$G$4963,MATCH(NGG!$A107,generale!$A$16:$A$4963,0),COLUMN())) -> 8 | E107: =IF(INDEX(generale!$A$16:$G$4963,MATCH(NGG!$A107,generale!$A$16:$A$4963,0),COLUMN())=0,0,INDEX(generale!$A$16:$G$4963,MATCH(NGG!$A107,generale!$A$16:$A$4963,0),COLUMN())) -> 15 | F107: =IF(INDEX(generale!$A$16:$G$4963,MATCH(NGG!$A107,generale!$A$16:$A$4963,0),COLUMN())=0,0,INDEX(generale!$A$16:$G$4963,MATCH(NGG!$A107,generale!$A$16:$A$4963,0),COLUMN())) -> 9 | G107: =generale!G117 -> T | H107: 12 | I107: 26 | J107: 70 | K107: 7 | L107: 8 | M107: 31 | N107: 19 | O107: 1 | P107: 6 | Q107: 15 | R107: 5 | S107: 47 | T107: 4 | U107: 30 | V107: 13 | W107: 0 | X107: 0 | Y107: 29 | Z107: 2 | AA107: 2 | AS107: 1 | AT107: 1 | AU107: 1 | AV107: 1 | AW107: 16 | AY107: 17
A108: =IF(generale!$A118>0,generale!$A118,"") -> 2005-04-14 | B108: =IF(INDEX(generale!$A$16:$G$4963,MATCH(NGG!$A108,generale!$A$16:$A$4963,0),COLUMN())=0,0,INDEX(generale!$A$16:$G$4963,MATCH(NGG!$A108,generale!$A$16:$A$4963,0),COLUMN())) -> 1 | C108: =IF(INDEX(generale!$A$16:$G$4963,MATCH(NGG!$A108,generale!$A$16:$A$4963,0),COLUMN())=0,0,INDEX(generale!$A$16:$G$4963,MATCH(NGG!$A108,generale!$A$16:$A$4963,0),COLUMN())) -> 20 | D108: =IF(INDEX(generale!$A$16:$G$4963,MATCH(NGG!$A108,generale!$A$16:$A$4963,0),COLUMN())=0,0,INDEX(generale!$A$16:$G$4963,MATCH(NGG!$A108,generale!$A$16:$A$4963,0),COLUMN())) -> 4 | E108: =IF(INDEX(generale!$A$16:$G$4963,MATCH(NGG!$A108,generale!$A$16:$A$4963,0),COLUMN())=0,0,INDEX(generale!$A$16:$G$4963,MATCH(NGG!$A108,generale!$A$16:$A$4963,0),COLUMN())) -> 13 | F108: =IF(INDEX(generale!$A$16:$G$4963,MATCH(NGG!$A108,generale!$A$16:$A$4963,0),COLUMN())=0,0,INDEX(generale!$A$16:$G$4963,MATCH(NGG!$A108,generale!$A$16:$A$4963,0),COLUMN())) -> 7 | G108: =generale!G118 -> O | H108: 0 | I108: 27 | J108: 71 | K108: 8 | L108: 9 | M108: 32 | N108: 20 | O108: 2 | P108: 7 | Q108: 16 | R108: 6 | S108: 48 | T108: 5 | U108: 31 | V108: 14 | W108: 1 | X108: 1 | Y108: 30 | Z108: 3 | AA108: 3 | AW108: 20 | AX108: 9 | AY108: 20
A109: =IF(generale!$A119>0,generale!$A119,"") -> 2005-04-15 | B109: =IF(INDEX(generale!$A$16:$G$4963,MATCH(NGG!$A109,generale!$A$16:$A$4963,0),COLUMN())=0,0,INDEX(generale!$A$16:$G$4963,MATCH(NGG!$A109,generale!$A$16:$A$4963,0),COLUMN())) -> 3 | C109: =IF(INDEX(generale!$A$16:$G$4963,MATCH(NGG!$A109,generale!$A$16:$A$4963,0),COLUMN())=0,0,INDEX(generale!$A$16:$G$4963,MATCH(NGG!$A109,generale!$A$16:$A$4963,0),COLUMN())) -> 13 | D109: =IF(INDEX(generale!$A$16:$G$4963,MATCH(NGG!$A109,generale!$A$16:$A$4963,0),COLUMN())=0,0,INDEX(generale!$A$16:$G$4963,MATCH(NGG!$A109,generale!$A$16:$A$4963,0),COLUMN())) -> 11 | E109: =IF(INDEX(generale!$A$16:$G$4963,MATCH(NGG!$A109,generale!$A$16:$A$4963,0),COLUMN())=0,0,INDEX(generale!$A$16:$G$4963,MATCH(NGG!$A109,generale!$A$16:$A$4963,0),COLUMN())) -> 2 | F109: =IF(INDEX(generale!$A$16:$G$4963,MATCH(NGG!$A109,generale!$A$16:$A$4963,0),COLUMN())=0,0,INDEX(generale!$A$16:$G$4963,MATCH(NGG!$A109,generale!$A$16:$A$4963,0),COLUMN())) -> 10 | G109: =generale!G119 -> P | H109: 1 | I109: 28 | J109: 0 | K109: 9 | L109: 10 | M109: 33 | N109: 21 | O109: 3 | P109: 8 | Q109: 17 | R109: 7 | S109: 49 | T109: 6 | U109: 32 | V109: 15 | W109: 2 | X109: 1 | Y109: 30 | Z109: 3 | AA109: 3 | AS109: 1 | AT109: 1 | AU109: 1 | AV109: 1 | AW109: 16 | AY109: 18
A110: =IF(generale!$A120>0,generale!$A120,"") -> 2005-04-16 | B110: =IF(INDEX(generale!$A$16:$G$4963,MATCH(NGG!$A110,generale!$A$16:$A$4963,0),COLUMN())=0,0,INDEX(generale!$A$16:$G$4963,MATCH(NGG!$A110,generale!$A$16:$A$4963,0),COLUMN())) -> 11 | C110: =IF(INDEX(generale!$A$16:$G$4963,MATCH(NGG!$A110,generale!$A$16:$A$4963,0),COLUMN())=0,0,INDEX(generale!$A$16:$G$4963,MATCH(NGG!$A110,generale!$A$16:$A$4963,0),COLUMN())) -> 12 | D110: =IF(INDEX(generale!$A$16:$G$4963,MATCH(NGG!$A110,generale!$A$16:$A$4963,0),COLUMN())=0,0,INDEX(generale!$A$16:$G$4963,MATCH(NGG!$A110,generale!$A$16:$A$4963,0),COLUMN())) -> 15 | E110: =IF(INDEX(generale!$A$16:$G$4963,MATCH(NGG!$A110,generale!$A$16:$A$4963,0),COLUMN())=0,0,INDEX(generale!$A$16:$G$4963,MATCH(NGG!$A110,generale!$A$16:$A$4963,0),COLUMN())) -> 4 | F110: =IF(INDEX(generale!$A$16:$G$4963,MATCH(NGG!$A110,generale!$A$16:$A$4963,0),COLUMN())=0,0,INDEX(generale!$A$16:$G$4963,MATCH(NGG!$A110,generale!$A$16:$A$4963,0),COLUMN())) -> 2 | G110: =generale!G120 -> T | H110: 2 | I110: 29 | J110: 1 | K110: 10 | L110: 11 | M110: 34 | N110: 22 | O110: 4 | P110: 9 | Q110: 18 | R110: 0 | S110: 50 | T110: 7 | U110: 33 | V110: 16 | W110: 3 | X110: 1 | Y110: 30 | Z110: 3 | AA110: 3 | AS110: 1 | AT110: 1 | AU110: 1 | AV110: 1 | AW110: 16 | AY110: 15
A111: =IF(generale!$A121>0,generale!$A121,"") -> 2005-04-17 | B111: =IF(INDEX(generale!$A$16:$G$4963,MATCH(NGG!$A111,generale!$A$16:$A$4963,0),COLUMN())=0,0,INDEX(generale!$A$16:$G$4963,MATCH(NGG!$A111,generale!$A$16:$A$4963,0),COLUMN())) -> 15 | C111: =IF(INDEX(generale!$A$16:$G$4963,MATCH(NGG!$A111,generale!$A$16:$A$4963,0),COLUMN())=0,0,INDEX(generale!$A$16:$G$4963,MATCH(NGG!$A111,generale!$A$16:$A$4963,0),COLUMN())) -> 16 | D111: =IF(INDEX(generale!$A$16:$G$4963,MATCH(NGG!$A111,generale!$A$16:$A$4963,0),COLUMN())=0,0,INDEX(generale!$A$16:$G$4963,MATCH(NGG!$A111,generale!$A$16:$A$4963,0),COLUMN())) -> 5 | E111: =IF(INDEX(generale!$A$16:$G$4963,MATCH(NGG!$A111,generale!$A$16:$A$4963,0),COLUMN())=0,0,INDEX(generale!$A$16:$G$4963,MATCH(NGG!$A111,generale!$A$16:$A$4963,0),COLUMN())) -> 19 | F111: =IF(INDEX(generale!$A$16:$G$4963,MATCH(NGG!$A111,generale!$A$16:$A$4963,0),COLUMN())=0,0,INDEX(generale!$A$16:$G$4963,MATCH(NGG!$A111,generale!$A$16:$A$4963,0),COLUMN())) -> 14 | G111: =generale!G121 -> O | H111: 3 | I111: 30 | J111: 2 | K111: 11 | L111: 12 | M111: 35 | N111: 23 | O111: 5 | P111: 10 | Q111: 19 | R111: 1 | S111: 51 | T111: 8 | U111: 34 | V111: 0 | W111: 4 | X111: 2 | Y111: 31 | Z111: 3 | AA111: 3 | AU111: 1 | AV111: 1 | AW111: 18 | AX111: 1 | AY111: 17
A112: =IF(generale!$A122>0,generale!$A122,"") -> 2005-04-18 | B112: =IF(INDEX(generale!$A$16:$G$4963,MATCH(NGG!$A112,generale!$A$16:$A$4963,0),COLUMN())=0,0,INDEX(generale!$A$16:$G$4963,MATCH(NGG!$A112,generale!$A$16:$A$4963,0),COLUMN())) -> 5 | C112: =IF(INDEX(generale!$A$16:$G$4963,MATCH(NGG!$A112,generale!$A$16:$A$4963,0),COLUMN())=0,0,INDEX(generale!$A$16:$G$4963,MATCH(NGG!$A112,generale!$A$16:$A$4963,0),COLUMN())) -> 7 | D112: =IF(INDEX(generale!$A$16:$G$4963,MATCH(NGG!$A112,generale!$A$16:$A$4963,0),COLUMN())=0,0,INDEX(generale!$A$16:$G$4963,MATCH(NGG!$A112,generale!$A$16:$A$4963,0),COLUMN())) -> 6 | E112: =IF(INDEX(generale!$A$16:$G$4963,MATCH(NGG!$A112,generale!$A$16:$A$4963,0),COLUMN())=0,0,INDEX(generale!$A$16:$G$4963,MATCH(NGG!$A112,generale!$A$16:$A$4963,0),COLUMN())) -> 13 | F112: =IF(INDEX(generale!$A$16:$G$4963,MATCH(NGG!$A112,generale!$A$16:$A$4963,0),COLUMN())=0,0,INDEX(generale!$A$16:$G$4963,MATCH(NGG!$A112,generale!$A$16:$A$4963,0),COLUMN())) -> 10 | G112: =generale!G122 -> P | H112: 4 | I112: 31 | J112: 3 | K112: 12 | L112: 0 | M112: 36 | N112: 24 | O112: 6 | P112: 11 | Q112: 20 | R112: 2 | S112: 52 | T112: 9 | U112: 35 | V112: 1 | W112: 5 | X112: 3 | Y112: 32 | Z112: 3 | AA112: 3 | AU112: 1 | AV112: 1 | AW112: 18 | AY112: 16
A113: =IF(generale!$A123>0,generale!$A123,"") -> 2005-04-19 | B113: =IF(INDEX(generale!$A$16:$G$4963,MATCH(NGG!$A113,generale!$A$16:$A$4963,0),COLUMN())=0,0,INDEX(generale!$A$16:$G$4963,MATCH(NGG!$A113,generale!$A$16:$A$4963,0),COLUMN())) -> 14 | C113: =IF(INDEX(generale!$A$16:$G$4963,MATCH(NGG!$A113,generale!$A$16:$A$4963,0),COLUMN())=0,0,INDEX(generale!$A$16:$G$4963,MATCH(NGG!$A113,generale!$A$16:$A$4963,0),COLUMN())) -> 15 | D113: =IF(INDEX(generale!$A$16:$G$4963,MATCH(NGG!$A113,generale!$A$16:$A$4963,0),COLUMN())=0,0,INDEX(generale!$A$16:$G$4963,MATCH(NGG!$A113,generale!$A$16:$A$4963,0),COLUMN())) -> 12 | E113: =IF(INDEX(generale!$A$16:$G$4963,MATCH(NGG!$A113,generale!$A$16:$A$4963,0),COLUMN())=0,0,INDEX(generale!$A$16:$G$4963,MATCH(NGG!$A113,generale!$A$16:$A$4963,0),COLUMN())) -> 8 | F113: =IF(INDEX(generale!$A$16:$G$4963,MATCH(NGG!$A113,generale!$A$16:$A$4963,0),COLUMN())=0,0,INDEX(generale!$A$16:$G$4963,MATCH(NGG!$A113,generale!$A$16:$A$4963,0),COLUMN())) -> 18 | G113: =generale!G123 -> P | H113: 5 | I113: 32 | J113: 4 | K113: 13 | L113: 1 | M113: 37 | N113: 25 | O113: 7 | P113: 12 | Q113: 21 | R113: 3 | S113: 53 | T113: 10 | U113: 0 | V113: 2 | W113: 6 | X113: 4 | Y113: 33 | Z113: 4 | AA113: 3 | AV113: 1 | AW113: 19 | AY113: 18
A114: =IF(generale!$A124>0,generale!$A124,"") -> 2005-04-20 | B114: =IF(INDEX(generale!$A$16:$G$4963,MATCH(NGG!$A114,generale!$A$16:$A$4963,0),COLUMN())=0,0,INDEX(generale!$A$16:$G$4963,MATCH(NGG!$A114,generale!$A$16:$A$4963,0),COLUMN())) -> 5 | C114: =IF(INDEX(generale!$A$16:$G$4963,MATCH(NGG!$A114,generale!$A$16:$A$4963,0),COLUMN())=0,0,INDEX(generale!$A$16:$G$4963,MATCH(NGG!$A114,generale!$A$16:$A$4963,0),COLUMN())) -> 9 | D114: =IF(INDEX(generale!$A$16:$G$4963,MATCH(NGG!$A114,generale!$A$16:$A$4963,0),COLUMN())=0,0,INDEX(generale!$A$16:$G$4963,MATCH(NGG!$A114,generale!$A$16:$A$4963,0),COLUMN())) -> 4 | E114: =IF(INDEX(generale!$A$16:$G$4963,MATCH(NGG!$A114,generale!$A$16:$A$4963,0),COLUMN())=0,0,INDEX(generale!$A$16:$G$4963,MATCH(NGG!$A114,generale!$A$16:$A$4963,0),COLUMN())) -> 7 | F114: =IF(INDEX(generale!$A$16:$G$4963,MATCH(NGG!$A114,generale!$A$16:$A$4963,0),COLUMN())=0,0,INDEX(generale!$A$16:$G$4963,MATCH(NGG!$A114,generale!$A$16:$A$4963,0),COLUMN())) -> 13 | G114: =generale!G124 -> T | H114: =IF(COUNTIF($B114:$D114,0)<3,IF(LEN(SUBSTITUTE(SUBSTITUTE($B114,H$1,,1),,1))=0,0,H113+1-AC114),"") -> 6 | I114: =IF(COUNTIF($B114:$D114,0)<3,IF(LEN(SUBSTITUTE(SUBSTITUTE($B114,I$1,,1),,1))=0,0,I113+1-AD114),"") -> 33 | J114: =IF(COUNTIF($B114:$D114,0)<3,IF(LEN(SUBSTITUTE(SUBSTITUTE($B114,J$1,,1),,1))=0,0,J113+1-AE114),"") -> 5 | K114: =IF(COUNTIF($B114:$D114,0)<3,IF(LEN(SUBSTITUTE(SUBSTITUTE($B114,K$1,,1),,1))=0,0,K113+1-AF114),"") -> 14 | L114: =IF(COUNTIF($B114:$D114,0)<3,IF(LEN(SUBSTITUTE(SUBSTITUTE($B114,L$1,,1),,1))=0,0,L113+1-AG114),"") -> 0 | M114: =IF(COUNTIF($B114:$D114,0)<3,IF(LEN(SUBSTITUTE(SUBSTITUTE($B114,M$1,,1),,1))=0,0,M113+1-AH114),"") -> 38 | N114: =IF(COUNTIF($B114:$D114,0)<3,IF(LEN(SUBSTITUTE(SUBSTITUTE($B114,N$1,,1),,1))=0,0,N113+1-AI114),"") -> 26 | O114: =IF(COUNTIF($B114:$D114,0)<3,IF(LEN(SUBSTITUTE(SUBSTITUTE($B114,O$1,,1),,1))=0,0,O113+1-AJ114),"") -> 8 | P114: =IF(COUNTIF($B114:$D114,0)<3,IF(LEN(SUBSTITUTE(SUBSTITUTE($B114,P$1,,1),,1))=0,0,P113+1-AK114),"") -> 13 | Q114: =IF(COUNTIF($B114:$D114,0)<3,IF(LEN(SUBSTITUTE(SUBSTITUTE($B114,Q$1,,1),,1))=0,0,Q113+1-AL114),"") -> 22 | R114: =IF(COUNTIF($B114:$D114,0)<3,IF(LEN(SUBSTITUTE(SUBSTITUTE($B114,R$1,,1),,1))=0,0,R113+1-AM114),"") -> 4 | S114: =IF(COUNTIF($B114:$D114,0)<3,IF(LEN(SUBSTITUTE(SUBSTITUTE($B114,S$1,,1),,1))=0,0,S113+1-AN114),"") -> 54 | T114: =IF(COUNTIF($B114:$D114,0)<3,IF(LEN(SUBSTITUTE(SUBSTITUTE($B114,T$1,,1),,1))=0,0,T113+1-AO114),"") -> 11 | U114: =IF(COUNTIF($B114:$D114,0)<3,IF(LEN(SUBSTITUTE(SUBSTITUTE($B114,U$1,,1),,1))=0,0,U113+1-AP114),"") -> 1 | V114: =IF(COUNTIF($B114:$D114,0)<3,IF(LEN(SUBSTITUTE(SUBSTITUTE($B114,V$1,,1),,1))=0,0,V113+1-AQ114),"") -> 3 | W114: =IF(COUNTIF($B114:$D114,0)<3,IF(LEN(SUBSTITUTE(SUBSTITUTE($B114,W$1,,1),,1))=0,0,W113+1-AR114),"") -> 6 | X114: =IF(COUNTIF($B114:$D114,0)<3,IF(LEN(SUBSTITUTE(SUBSTITUTE($B114,X$1,,1),,1))=0,0,X113+1-AS114),"") -> 4 | Y114: =IF(COUNTIF($B114:$D114,0)<3,IF(LEN(SUBSTITUTE(SUBSTITUTE($B114,Y$1,,1),,1))=0,0,Y113+1-AT114),"") -> 33 | Z114: =IF(COUNTIF($B114:$D114,0)<3,IF(LEN(SUBSTITUTE(SUBSTITUTE($B114,Z$1,,1),,1))=0,0,Z113+1-AU114),"") -> 4 | AA114: =IF(COUNTIF($B114:$D114,0)<3,IF(LEN(SUBSTITUTE(SUBSTITUTE($B114,AA$1,,1),,1))=0,0,AA113+1-AV114),"") -> 3 | AR114: 1 | AS114: 1 | AT114: 1 | AU114: 1 | AV114: 1 | AW114: 15 | AX114: 16 | AY114: 18
A115: =IF(generale!$A125>0,generale!$A125,"") -> 2005-04-22 | B115: =IF(INDEX(generale!$A$16:$G$4963,MATCH(NGG!$A115,generale!$A$16:$A$4963,0),COLUMN())=0,0,INDEX(generale!$A$16:$G$4963,MATCH(NGG!$A115,generale!$A$16:$A$4963,0),COLUMN())) -> 5 | C115: =IF(INDEX(generale!$A$16:$G$4963,MATCH(NGG!$A115,generale!$A$16:$A$4963,0),COLUMN())=0,0,INDEX(generale!$A$16:$G$4963,MATCH(NGG!$A115,generale!$A$16:$A$4963,0),COLUMN())) -> 14 | D115: =IF(INDEX(generale!$A$16:$G$4963,MATCH(NGG!$A115,generale!$A$16:$A$4963,0),COLUMN())=0,0,INDEX(generale!$A$16:$G$4963,MATCH(NGG!$A115,generale!$A$16:$A$4963,0),COLUMN())) -> 13 | E115: =IF(INDEX(generale!$A$16:$G$4963,MATCH(NGG!$A115,generale!$A$16:$A$4963,0),COLUMN())=0,0,INDEX(generale!$A$16:$G$4963,MATCH(NGG!$A115,generale!$A$16:$A$4963,0),COLUMN())) -> 6 | F115: =IF(INDEX(generale!$A$16:$G$4963,MATCH(NGG!$A115,generale!$A$16:$A$4963,0),COLUMN())=0,0,INDEX(generale!$A$16:$G$4963,MATCH(NGG!$A115,generale!$A$16:$A$4963,0),COLUMN())) -> 10 | G115: =generale!G125 -> T | H115: 7 | I115: 34 | J115: 6 | K115: 15 | L115: 0 | M115: 39 | N115: 27 | O115: 9 | P115: 14 | Q115: 23 | R115: 5 | S115: 55 | T115: 12 | U115: 2 | V115: 4 | W115: 7 | X115: 5 | Y115: 34 | Z115: 4 | AA115: 3 | AU115: 1 | AV115: 1 | AW115: 18 | AX115: 11 | AY115: 16
A116: =IF(generale!$A126>0,generale!$A126,"") -> 2005-04-23 | B116: =IF(INDEX(generale!$A$16:$G$4963,MATCH(NGG!$A116,generale!$A$16:$A$4963,0),COLUMN())=0,0,INDEX(generale!$A$16:$G$4963,MATCH(NGG!$A116,generale!$A$16:$A$4963,0),COLUMN())) -> 5 | C116: =IF(INDEX(generale!$A$16:$G$4963,MATCH(NGG!$A116,generale!$A$16:$A$4963,0),COLUMN())=0,0,INDEX(generale!$A$16:$G$4963,MATCH(NGG!$A116,generale!$A$16:$A$4963,0),COLUMN())) -> 3 | D116: =IF(INDEX(generale!$A$16:$G$4963,MATCH(NGG!$A116,generale!$A$16:$A$4963,0),COLUMN())=0,0,INDEX(generale!$A$16:$G$4963,MATCH(NGG!$A116,generale!$A$16:$A$4963,0),COLUMN())) -> 1 | E116: =IF(INDEX(generale!$A$16:$G$4963,MATCH(NGG!$A116,generale!$A$16:$A$4963,0),COLUMN())=0,0,INDEX(generale!$A$16:$G$4963,MATCH(NGG!$A116,generale!$A$16:$A$4963,0),COLUMN())) -> 4 | F116: =IF(INDEX(generale!$A$16:$G$4963,MATCH(NGG!$A116,generale!$A$16:$A$4963,0),COLUMN())=0,0,INDEX(generale!$A$16:$G$4963,MATCH(NGG!$A116,generale!$A$16:$A$4963,0),COLUMN())) -> 15 | G116: =generale!G126 -> T | H116: 8 | I116: 35 | J116: 7 | K116: 16 | L116: 0 | M116: 40 | N116: 28 | O116: 10 | P116: 15 | Q116: 24 | R116: 6 | S116: 56 | T116: 13 | U116: 3 | V116: 5 | W116: 8 | X116: =IF(COUNTIF($B116:$D116,0)<3,IF(LEN(SUBSTITUTE(SUBSTITUTE($B116,X$1,,1),,1))=0,0,X115+1-AS116),"") -> 5 | Y116: 34 | Z116: 4 | AA116: 3 | AS116: 1 | AT116: 1 | AU116: 1 | AV116: 1 | AW116: 16 | AY116: 16
A117: =IF(generale!$A127>0,generale!$A127,"") -> 2005-04-24 | B117: =IF(INDEX(generale!$A$16:$G$4963,MATCH(NGG!$A117,generale!$A$16:$A$4963,0),COLUMN())=0,0,INDEX(generale!$A$16:$G$4963,MATCH(NGG!$A117,generale!$A$16:$A$4963,0),COLUMN())) -> 8 | C117: =IF(INDEX(generale!$A$16:$G$4963,MATCH(NGG!$A117,generale!$A$16:$A$4963,0),COLUMN())=0,0,INDEX(generale!$A$16:$G$4963,MATCH(NGG!$A117,generale!$A$16:$A$4963,0),COLUMN())) -> 18 | D117: =IF(INDEX(generale!$A$16:$G$4963,MATCH(NGG!$A117,generale!$A$16:$A$4963,0),COLUMN())=0,0,INDEX(generale!$A$16:$G$4963,MATCH(NGG!$A117,generale!$A$16:$A$4963,0),COLUMN())) -> 13 | E117: =IF(INDEX(generale!$A$16:$G$4963,MATCH(NGG!$A117,generale!$A$16:$A$4963,0),COLUMN())=0,0,INDEX(generale!$A$16:$G$4963,MATCH(NGG!$A117,generale!$A$16:$A$4963,0),COLUMN())) -> 14 | F117: =IF(INDEX(generale!$A$16:$G$4963,MATCH(NGG!$A117,generale!$A$16:$A$4963,0),COLUMN())=0,0,INDEX(generale!$A$16:$G$4963,MATCH(NGG!$A117,generale!$A$16:$A$4963,0),COLUMN())) -> 6 | G117: =generale!G127 -> P | H117: =IF(COUNTIF($B117:$D117,0)<3,IF(LEN(SUBSTITUTE(SUBSTITUTE($B117,H$1,,1),,1))=0,0,H116+1-AC117),"") -> 9 | I117: 36 | J117: 8 | K117: 17 | L117: 1 | M117: 41 | N117: 29 | O117: 0 | P117: 16 | Q117: 25 | R117: 7 | S117: 57 | T117: 14 | U117: 4 | V117: 6 | W117: 9 | X117: 6 | Y117: 35 | Z117: 4 | AA117: 3 | AU117: 1 | AV117: 1 | AW117: 18 | AY117: 18
A118: =IF(generale!$A128>0,generale!$A128,"") -> 2005-04-25 | B118: =IF(INDEX(generale!$A$16:$G$4963,MATCH(NGG!$A118,generale!$A$16:$A$4963,0),COLUMN())=0,0,INDEX(generale!$A$16:$G$4963,MATCH(NGG!$A118,generale!$A$16:$A$4963,0),COLUMN())) -> 11 | C118: =IF(INDEX(generale!$A$16:$G$4963,MATCH(NGG!$A118,generale!$A$16:$A$4963,0),COLUMN())=0,0,INDEX(generale!$A$16:$G$4963,MATCH(NGG!$A118,generale!$A$16:$A$4963,0),COLUMN())) -> 8 | D118: =IF(INDEX(generale!$A$16:$G$4963,MATCH(NGG!$A118,generale!$A$16:$A$4963,0),COLUMN())=0,0,INDEX(generale!$A$16:$G$4963,MATCH(NGG!$A118,generale!$A$16:$A$4963,0),COLUMN())) -> 9 | E118: =IF(INDEX(generale!$A$16:$G$4963,MATCH(NGG!$A118,generale!$A$16:$A$4963,0),COLUMN())=0,0,INDEX(generale!$A$16:$G$4963,MATCH(NGG!$A118,generale!$A$16:$A$4963,0),COLUMN())) -> 6 | F118: =IF(INDEX(generale!$A$16:$G$4963,MATCH(NGG!$A118,generale!$A$16:$A$4963,0),COLUMN())=0,0,INDEX(generale!$A$16:$G$4963,MATCH(NGG!$A118,generale!$A$16:$A$4963,0),COLUMN())) -> 16 | G118: =generale!G128 -> P | H118: 10 | I118: 37 | J118: 9 | K118: 18 | L118: 2 | M118: 42 | N118: 30 | O118: 1 | P118: 17 | Q118: 26 | R118: 0 | S118: 58 | T118: 15 | U118: 5 | V118: 7 | W118: 10 | X118: 7 | Y118: 36 | Z118: 5 | AA118: 3 | AV118: 1 | AW118: 19 | AY118: 18
A119: =IF(generale!$A129>0,generale!$A129,"") -> 2005-04-26 | B119: =IF(INDEX(generale!$A$16:$G$4963,MATCH(NGG!$A119,generale!$A$16:$A$4963,0),COLUMN())=0,0,INDEX(generale!$A$16:$G$4963,MATCH(NGG!$A119,generale!$A$16:$A$4963,0),COLUMN())) -> 10 | C119: =IF(INDEX(generale!$A$16:$G$4963,MATCH(NGG!$A119,generale!$A$16:$A$4963,0),COLUMN())=0,0,INDEX(generale!$A$16:$G$4963,MATCH(NGG!$A119,generale!$A$16:$A$4963,0),COLUMN())) -> 11 | D119: =IF(INDEX(generale!$A$16:$G$4963,MATCH(NGG!$A119,generale!$A$16:$A$4963,0),COLUMN())=0,0,INDEX(generale!$A$16:$G$4963,MATCH(NGG!$A119,generale!$A$16:$A$4963,0),COLUMN())) -> 3 | E119: =IF(INDEX(generale!$A$16:$G$4963,MATCH(NGG!$A119,generale!$A$16:$A$4963,0),COLUMN())=0,0,INDEX(generale!$A$16:$G$4963,MATCH(NGG!$A119,generale!$A$16:$A$4963,0),COLUMN())) -> 14 | F119: =IF(INDEX(generale!$A$16:$G$4963,MATCH(NGG!$A119,generale!$A$16:$A$4963,0),COLUMN())=0,0,INDEX(generale!$A$16:$G$4963,MATCH(NGG!$A119,generale!$A$16:$A$4963,0),COLUMN())) -> 9 | G119: =generale!G129 -> T | H119: 11 | I119: 38 | J119: 10 | K119: 19 | L119: 3 | M119: 43 | N119: 31 | O119: 2 | P119: 18 | Q119: 0 | R119: 1 | S119: 59 | T119: 16 | U119: 6 | V119: 8 | W119: 11 | X119: 8 | Y119: 36 | Z119: 5 | AA119: 3 | AT119: 1 | AU119: 1 | AV119: 1 | AW119: 17 | AY119: 13
A120: =IF(generale!$A130>0,generale!$A130,"") -> 2005-04-27 | B120: =IF(INDEX(generale!$A$16:$G$4963,MATCH(NGG!$A120,generale!$A$16:$A$4963,0),COLUMN())=0,0,INDEX(generale!$A$16:$G$4963,MATCH(NGG!$A120,generale!$A$16:$A$4963,0),COLUMN())) -> 10 | C120: =IF(INDEX(generale!$A$16:$G$4963,MATCH(NGG!$A120,generale!$A$16:$A$4963,0),COLUMN())=0,0,INDEX(generale!$A$16:$G$4963,MATCH(NGG!$A120,generale!$A$16:$A$4963,0),COLUMN())) -> 13 | D120: =IF(INDEX(generale!$A$16:$G$4963,MATCH(NGG!$A120,generale!$A$16:$A$4963,0),COLUMN())=0,0,INDEX(generale!$A$16:$G$4963,MATCH(NGG!$A120,generale!$A$16:$A$4963,0),COLUMN())) -> 14 | E120: =IF(INDEX(generale!$A$16:$G$4963,MATCH(NGG!$A120,generale!$A$16:$A$4963,0),COLUMN())=0,0,INDEX(generale!$A$16:$G$4963,MATCH(NGG!$A120,generale!$A$16:$A$4963,0),COLUMN())) -> 8 | F120: =IF(INDEX(generale!$A$16:$G$4963,MATCH(NGG!$A120,generale!$A$16:$A$4963,0),COLUMN())=0,0,INDEX(generale!$A$16:$G$4963,MATCH(NGG!$A120,generale!$A$16:$A$4963,0),COLUMN())) -> 5 | G120: =generale!G130 -> T | H120: 12 | I120: 39 | J120: 11 | K120: 20 | L120: 4 | M120: 44 | N120: 32 | O120: 3 | P120: 19 | Q120: 0 | R120: 2 | S120: 60 | T120: 17 | U120: 7 | V120: 9 | W120: 12 | X120: 8 | Y120: 36 | Z120: 5 | AA120: 3 | AS120: 1 | AT120: 1 | AU120: 1 | AV120: 1 | AW120: 16 | AY120: 14
A121: =IF(generale!$A131>0,generale!$A131,"") -> 2005-04-28 | B121: =IF(INDEX(generale!$A$16:$G$4963,MATCH(NGG!$A121,generale!$A$16:$A$4963,0),COLUMN())=0,0,INDEX(generale!$A$16:$G$4963,MATCH(NGG!$A121,generale!$A$16:$A$4963,0),COLUMN())) -> 4 | C121: =IF(INDEX(generale!$A$16:$G$4963,MATCH(NGG!$A121,generale!$A$16:$A$4963,0),COLUMN())=0,0,INDEX(generale!$A$16:$G$4963,MATCH(NGG!$A121,generale!$A$16:$A$4963,0),COLUMN())) -> 10 | D121: =IF(INDEX(generale!$A$16:$G$4963,MATCH(NGG!$A121,generale!$A$16:$A$4963,0),COLUMN())=0,0,INDEX(generale!$A$16:$G$4963,MATCH(NGG!$A121,generale!$A$16:$A$4963,0),COLUMN())) -> 3 | E121: =IF(INDEX(generale!$A$16:$G$4963,MATCH(NGG!$A121,generale!$A$16:$A$4963,0),COLUMN())=0,0,INDEX(generale!$A$16:$G$4963,MATCH(NGG!$A121,generale!$A$16:$A$4963,0),COLUMN())) -> 1 | F121: =IF(INDEX(generale!$A$16:$G$4963,MATCH(NGG!$A121,generale!$A$16:$A$4963,0),COLUMN())=0,0,INDEX(generale!$A$16:$G$4963,MATCH(NGG!$A121,generale!$A$16:$A$4963,0),COLUMN())) -> 12 | G121: =generale!G131 -> P | H121: 13 | I121: 40 | J121: 12 | K121: 0 | L121: 5 | M121: 45 | N121: 33 | O121: 4 | P121: 20 | Q121: 1 | R121: 3 | S121: 61 | T121: 18 | U121: 8 | V121: 10 | W121: 13 | X121: 8 | Y121: 36 | Z121: 5 | AA121: 3 | AS121: 1 | AT121: 1 | AU121: 1 | AV121: 1 | AW121: 16 | AY121: 18
A122: =IF(generale!$A132>0,generale!$A132,"") -> 2005-04-29 | B122: =IF(INDEX(generale!$A$16:$G$4963,MATCH(NGG!$A122,generale!$A$16:$A$4963,0),COLUMN())=0,0,INDEX(generale!$A$16:$G$4963,MATCH(NGG!$A122,generale!$A$16:$A$4963,0),COLUMN())) -> 8 | C122: =IF(INDEX(generale!$A$16:$G$4963,MATCH(NGG!$A122,generale!$A$16:$A$4963,0),COLUMN())=0,0,INDEX(generale!$A$16:$G$4963,MATCH(NGG!$A122,generale!$A$16:$A$4963,0),COLUMN())) -> 3 | D122: =IF(INDEX(generale!$A$16:$G$4963,MATCH(NGG!$A122,generale!$A$16:$A$4963,0),COLUMN())=0,0,INDEX(generale!$A$16:$G$4963,MATCH(NGG!$A122,generale!$A$16:$A$4963,0),COLUMN())) -> 14 | E122: =IF(INDEX(generale!$A$16:$G$4963,MATCH(NGG!$A122,generale!$A$16:$A$4963,0),COLUMN())=0,0,INDEX(generale!$A$16:$G$4963,MATCH(NGG!$A122,generale!$A$16:$A$4963,0),COLUMN())) -> 13 | F122: =IF(INDEX(generale!$A$16:$G$4963,MATCH(NGG!$A122,generale!$A$16:$A$4963,0),COLUMN())=0,0,INDEX(generale!$A$16:$G$4963,MATCH(NGG!$A122,generale!$A$16:$A$4963,0),COLUMN())) -> 6 | G122: =generale!G132 -> T | H122: 14 | I122: 41 | J122: 13 | K122: 1 | L122: 6 | M122: 46 | N122: 34 | O122: 0 | P122: 21 | Q122: 2 | R122: 4 | S122: 62 | T122: 19 | U122: 9 | V122: 11 | W122: 14 | X122: 9 | Y122: 37 | Z122: 5 | AA122: 3 | AU122: 1 | AV122: 1 | AW122: 18 | AY122: 15
A123: =IF(generale!$A133>0,generale!$A133,"") -> 2005-04-30 | B123: =IF(INDEX(generale!$A$16:$G$4963,MATCH(NGG!$A123,generale!$A$16:$A$4963,0),COLUMN())=0,0,INDEX(generale!$A$16:$G$4963,MATCH(NGG!$A123,generale!$A$16:$A$4963,0),COLUMN())) -> 9 | C123: =IF(INDEX(generale!$A$16:$G$4963,MATCH(NGG!$A123,generale!$A$16:$A$4963,0),COLUMN())=0,0,INDEX(generale!$A$16:$G$4963,MATCH(NGG!$A123,generale!$A$16:$A$4963,0),COLUMN())) -> 17 | D123: =IF(INDEX(generale!$A$16:$G$4963,MATCH(NGG!$A123,generale!$A$16:$A$4963,0),COLUMN())=0,0,INDEX(generale!$A$16:$G$4963,MATCH(NGG!$A123,generale!$A$16:$A$4963,0),COLUMN())) -> 11 | E123: =IF(INDEX(generale!$A$16:$G$4963,MATCH(NGG!$A123,generale!$A$16:$A$4963,0),COLUMN())=0,0,INDEX(generale!$A$16:$G$4963,MATCH(NGG!$A123,generale!$A$16:$A$4963,0),COLUMN())) -> 4 | F123: =IF(INDEX(generale!$A$16:$G$4963,MATCH(NGG!$A123,generale!$A$16:$A$4963,0),COLUMN())=0,0,INDEX(generale!$A$16:$G$4963,MATCH(NGG!$A123,generale!$A$16:$A$4963,0),COLUMN())) -> 16 | G123: =generale!G133 -> P | H123: 15 | I123: 42 | J123: 14 | K123: 2 | L123: 7 | M123: 47 | N123: 35 | O123: 1 | P123: 0 | Q123: 3 | R123: 5 | S123: 63 | T123: 20 | U123: 10 | V123: 12 | W123: 15 | X123: 10 | Y123: 38 | Z123: 5 | AA123: 3 | AU123: 1 | AV123: 1 | AW123: 18 | AY123: 18
A124: =IF(generale!$A134>0,generale!$A134,"") -> 2005-05-01 | B124: =IF(INDEX(generale!$A$16:$G$4963,MATCH(NGG!$A124,generale!$A$16:$A$4963,0),COLUMN())=0,0,INDEX(generale!$A$16:$G$4963,MATCH(NGG!$A124,generale!$A$16:$A$4963,0),COLUMN())) -> 17 | C124: =IF(INDEX(generale!$A$16:$G$4963,MATCH(NGG!$A124,generale!$A$16:$A$4963,0),COLUMN())=0,0,INDEX(generale!$A$16:$G$4963,MATCH(NGG!$A124,generale!$A$16:$A$4963,0),COLUMN())) -> 6 | D124: =IF(INDEX(generale!$A$16:$G$4963,MATCH(NGG!$A124,generale!$A$16:$A$4963,0),COLUMN())=0,0,INDEX(generale!$A$16:$G$4963,MATCH(NGG!$A124,generale!$A$16:$A$4963,0),COLUMN())) -> 13 | E124: =IF(INDEX(generale!$A$16:$G$4963,MATCH(NGG!$A124,generale!$A$16:$A$4963,0),COLUMN())=0,0,INDEX(generale!$A$16:$G$4963,MATCH(NGG!$A124,generale!$A$16:$A$4963,0),COLUMN())) -> 15 | F124: =IF(INDEX(generale!$A$16:$G$4963,MATCH(NGG!$A124,generale!$A$16:$A$4963,0),COLUMN())=0,0,INDEX(generale!$A$16:$G$4963,MATCH(NGG!$A124,generale!$A$16:$A$4963,0),COLUMN())) -> 2 | G124: =generale!G134 -> P | H124: 16 | I124: 43 | J124: 15 | K124: 3 | L124: 8 | M124: 48 | N124: 36 | O124: 2 | P124: 1 | Q124: 4 | R124: 6 | S124: 64 | T124: 21 | U124: 11 | V124: 13 | W124: 16 | X124: 0 | Y124: 38 | Z124: 5 | AA124: 3 | AT124: 1 | AU124: 1 | AV124: 1 | AW124: 17 | AY124: 18
A125: =IF(generale!$A135>0,generale!$A135,"") -> 2005-05-02 | B125: =IF(INDEX(generale!$A$16:$G$4963,MATCH(NGG!$A125,generale!$A$16:$A$4963,0),COLUMN())=0,0,INDEX(generale!$A$16:$G$4963,MATCH(NGG!$A125,generale!$A$16:$A$4963,0),COLUMN())) -> 14 | C125: =IF(INDEX(generale!$A$16:$G$4963,MATCH(NGG!$A125,generale!$A$16:$A$4963,0),COLUMN())=0,0,INDEX(generale!$A$16:$G$4963,MATCH(NGG!$A125,generale!$A$16:$A$4963,0),COLUMN())) -> 12 | D125: =IF(INDEX(generale!$A$16:$G$4963,MATCH(NGG!$A125,generale!$A$16:$A$4963,0),COLUMN())=0,0,INDEX(generale!$A$16:$G$4963,MATCH(NGG!$A125,generale!$A$16:$A$4963,0),COLUMN())) -> 13 | E125: =IF(INDEX(generale!$A$16:$G$4963,MATCH(NGG!$A125,generale!$A$16:$A$4963,0),COLUMN())=0,0,INDEX(generale!$A$16:$G$4963,MATCH(NGG!$A125,generale!$A$16:$A$4963,0),COLUMN())) -> 8 | F125: =IF(INDEX(generale!$A$16:$G$4963,MATCH(NGG!$A125,generale!$A$16:$A$4963,0),COLUMN())=0,0,INDEX(generale!$A$16:$G$4963,MATCH(NGG!$A125,generale!$A$16:$A$4963,0),COLUMN())) -> 3 | G125: =generale!G135 -> T | H125: 17 | I125: 44 | J125: 16 | K125: 4 | L125: 9 | M125: 49 | N125: 37 | O125: 3 | P125: 2 | Q125: 5 | R125: 7 | S125: 65 | T125: 22 | U125: 0 | V125: 14 | W125: 17 | X125: 0 | Y125: 38 | Z125: 5 | AA125: 3 | AS125: 1 | AT125: 1 | AU125: 1 | AV125: 1 | AW125: 16 | AY125: 15
A126: =IF(generale!$A136>0,generale!$A136,"") -> 2005-05-03 | B126: =IF(INDEX(generale!$A$16:$G$4963,MATCH(NGG!$A126,generale!$A$16:$A$4963,0),COLUMN())=0,0,INDEX(generale!$A$16:$G$4963,MATCH(NGG!$A126,generale!$A$16:$A$4963,0),COLUMN())) -> 4 | C126: =IF(INDEX(generale!$A$16:$G$4963,MATCH(NGG!$A126,generale!$A$16:$A$4963,0),COLUMN())=0,0,INDEX(generale!$A$16:$G$4963,MATCH(NGG!$A126,generale!$A$16:$A$4963,0),COLUMN())) -> 14 | D126: =IF(INDEX(generale!$A$16:$G$4963,MATCH(NGG!$A126,generale!$A$16:$A$4963,0),COLUMN())=0,0,INDEX(generale!$A$16:$G$4963,MATCH(NGG!$A126,generale!$A$16:$A$4963,0),COLUMN())) -> 9 | E126: =IF(INDEX(generale!$A$16:$G$4963,MATCH(NGG!$A126,generale!$A$16:$A$4963,0),COLUMN())=0,0,INDEX(generale!$A$16:$G$4963,MATCH(NGG!$A126,generale!$A$16:$A$4963,0),COLUMN())) -> 5 | F126: =IF(INDEX(generale!$A$16:$G$4963,MATCH(NGG!$A126,generale!$A$16:$A$4963,0),COLUMN())=0,0,INDEX(generale!$A$16:$G$4963,MATCH(NGG!$A126,generale!$A$16:$A$4963,0),COLUMN())) -> 17 | G126: =generale!G136 -> O | H126: 18 | I126: 45 | J126: 17 | K126: 0 | L126: 10 | M126: 50 | N126: 38 | O126: 4 | P126: 3 | Q126: 6 | R126: 8 | S126: 66 | T126: 23 | U126: 1 | V126: 15 | W126: 18 | X126: 1 | Y126: 39 | Z126: 5 | AA126: 3 | AU126: 1 | AV126: 1 | AW126: 18 | AX126: 1 | AY126: 20
A127: =IF(generale!$A137>0,generale!$A137,"") -> 2005-05-04 | B127: =IF(INDEX(generale!$A$16:$G$4963,MATCH(NGG!$A127,generale!$A$16:$A$4963,0),COLUMN())=0,0,INDEX(generale!$A$16:$G$4963,MATCH(NGG!$A127,generale!$A$16:$A$4963,0),COLUMN())) -> 13 | C127: =IF(INDEX(generale!$A$16:$G$4963,MATCH(NGG!$A127,generale!$A$16:$A$4963,0),COLUMN())=0,0,INDEX(generale!$A$16:$G$4963,MATCH(NGG!$A127,generale!$A$16:$A$4963,0),COLUMN())) -> 9 | D127: =IF(INDEX(generale!$A$16:$G$4963,MATCH(NGG!$A127,generale!$A$16:$A$4963,0),COLUMN())=0,0,INDEX(generale!$A$16:$G$4963,MATCH(NGG!$A127,generale!$A$16:$A$4963,0),COLUMN())) -> 10 | E127: =IF(INDEX(generale!$A$16:$G$4963,MATCH(NGG!$A127,generale!$A$16:$A$4963,0),COLUMN())=0,0,INDEX(generale!$A$16:$G$4963,MATCH(NGG!$A127,generale!$A$16:$A$4963,0),COLUMN())) -> 14 | F127: =IF(INDEX(generale!$A$16:$G$4963,MATCH(NGG!$A127,generale!$A$16:$A$4963,0),COLUMN())=0,0,INDEX(generale!$A$16:$G$4963,MATCH(NGG!$A127,generale!$A$16:$A$4963,0),COLUMN())) -> 5 | G127: =generale!G137 -> T | H127: 19 | I127: 46 | J127: 18 | K127: 1 | L127: 11 | M127: 51 | N127: 39 | O127: 5 | P127: 4 | Q127: 7 | R127: 9 | S127: 67 | T127: 0 | U127: 2 | V127: 16 | W127: 19 | X127: 2 | Y127: 40 | Z127: 5 | AA127: 3 | AU127: 1 | AV127: 1 | AW127: 18 | AY127: 14
A128: =IF(generale!$A138>0,generale!$A138,"") -> 2005-05-05 | B128: =IF(INDEX(generale!$A$16:$G$4963,MATCH(NGG!$A128,generale!$A$16:$A$4963,0),COLUMN())=0,0,INDEX(generale!$A$16:$G$4963,MATCH(NGG!$A128,generale!$A$16:$A$4963,0),COLUMN())) -> 16 | C128: =IF(INDEX(generale!$A$16:$G$4963,MATCH(NGG!$A128,generale!$A$16:$A$4963,0),COLUMN())=0,0,INDEX(generale!$A$16:$G$4963,MATCH(NGG!$A128,generale!$A$16:$A$4963,0),COLUMN())) -> 8 | D128: =IF(INDEX(generale!$A$16:$G$4963,MATCH(NGG!$A128,generale!$A$16:$A$4963,0),COLUMN())=0,0,INDEX(generale!$A$16:$G$4963,MATCH(NGG!$A128,generale!$A$16:$A$4963,0),COLUMN())) -> 4 | E128: =IF(INDEX(generale!$A$16:$G$4963,MATCH(NGG!$A128,generale!$A$16:$A$4963,0),COLUMN())=0,0,INDEX(generale!$A$16:$G$4963,MATCH(NGG!$A128,generale!$A$16:$A$4963,0),COLUMN())) -> 17 | F128: =IF(INDEX(generale!$A$16:$G$4963,MATCH(NGG!$A128,generale!$A$16:$A$4963,0),COLUMN())=0,0,INDEX(generale!$A$16:$G$4963,MATCH(NGG!$A128,generale!$A$16:$A$4963,0),COLUMN())) -> 18 | G128: =generale!G138 -> P | H128: 20 | I128: 47 | J128: 19 | K128: 2 | L128: 12 | M128: 52 | N128: 40 | O128: 6 | P128: 5 | Q128: 8 | R128: 10 | S128: 68 | T128: 1 | U128: 3 | V128: 17 | W128: 0 | X128: 3 | Y128: 41 | Z128: 6 | AA128: 4 | AW128: 20 | AY128: 18
A129: =IF(generale!$A139>0,generale!$A139,"") -> 2005-05-06 | B129: =IF(INDEX(generale!$A$16:$G$4963,MATCH(NGG!$A129,generale!$A$16:$A$4963,0),COLUMN())=0,0,INDEX(generale!$A$16:$G$4963,MATCH(NGG!$A129,generale!$A$16:$A$4963,0),COLUMN())) -> 9 | C129: =IF(INDEX(generale!$A$16:$G$4963,MATCH(NGG!$A129,generale!$A$16:$A$4963,0),COLUMN())=0,0,INDEX(generale!$A$16:$G$4963,MATCH(NGG!$A129,generale!$A$16:$A$4963,0),COLUMN())) -> 12 | D129: =IF(INDEX(generale!$A$16:$G$4963,MATCH(NGG!$A129,generale!$A$16:$A$4963,0),COLUMN())=0,0,INDEX(generale!$A$16:$G$4963,MATCH(NGG!$A129,generale!$A$16:$A$4963,0),COLUMN())) -> 16 | E129: =IF(INDEX(generale!$A$16:$G$4963,MATCH(NGG!$A129,generale!$A$16:$A$4963,0),COLUMN())=0,0,INDEX(generale!$A$16:$G$4963,MATCH(NGG!$A129,generale!$A$16:$A$4963,0),COLUMN())) -> 1 | F129: =IF(INDEX(generale!$A$16:$G$4963,MATCH(NGG!$A129,generale!$A$16:$A$4963,0),COLUMN())=0,0,INDEX(generale!$A$16:$G$4963,MATCH(NGG!$A129,generale!$A$16:$A$4963,0),COLUMN())) -> 7 | G129: =generale!G139 -> P | H129: 21 | I129: 48 | J129: 20 | K129: 3 | L129: 13 | M129: 53 | N129: 41 | O129: 7 | P129: 0 | Q129: 9 | R129: 11 | S129: 69 | T129: 2 | U129: 4 | V129: 18 | W129: 1 | X129: 4 | Y129: 42 | Z129: 6 | AA129: 4 | AU129: 1 | AV129: 1 | AW129: 18 | AY129: 17
A130: =IF(generale!$A140>0,generale!$A140,"") -> 2005-05-07 | B130: =IF(INDEX(generale!$A$16:$G$4963,MATCH(NGG!$A130,generale!$A$16:$A$4963,0),COLUMN())=0,0,INDEX(generale!$A$16:$G$4963,MATCH(NGG!$A130,generale!$A$16:$A$4963,0),COLUMN())) -> 17 | C130: =IF(INDEX(generale!$A$16:$G$4963,MATCH(NGG!$A130,generale!$A$16:$A$4963,0),COLUMN())=0,0,INDEX(generale!$A$16:$G$4963,MATCH(NGG!$A130,generale!$A$16:$A$4963,0),COLUMN())) -> 3 | D130: =IF(INDEX(generale!$A$16:$G$4963,MATCH(NGG!$A130,generale!$A$16:$A$4963,0),COLUMN())=0,0,INDEX(generale!$A$16:$G$4963,MATCH(NGG!$A130,generale!$A$16:$A$4963,0),COLUMN())) -> 10 | E130: =IF(INDEX(generale!$A$16:$G$4963,MATCH(NGG!$A130,generale!$A$16:$A$4963,0),COLUMN())=0,0,INDEX(generale!$A$16:$G$4963,MATCH(NGG!$A130,generale!$A$16:$A$4963,0),COLUMN())) -> 8 | F130: =IF(INDEX(generale!$A$16:$G$4963,MATCH(NGG!$A130,generale!$A$16:$A$4963,0),COLUMN())=0,0,INDEX(generale!$A$16:$G$4963,MATCH(NGG!$A130,generale!$A$16:$A$4963,0),COLUMN())) -> 5 | G130: =generale!G140 -> T | H130: 22 | I130: 49 | J130: 21 | K130: 4 | L130: 14 | M130: 54 | N130: 42 | O130: 8 | P130: 1 | Q130: 10 | R130: 12 | S130: 70 | T130: 3 | U130: 5 | V130: 19 | W130: 2 | X130: 0 | Y130: 42 | Z130: 6 | AA130: 4 | AT130: 1 | AU130: 1 | AV130: 1 | AW130: 17 | AY130: 18
A131: =IF(generale!$A141>0,generale!$A141,"") -> 2005-05-08 | B131: =IF(INDEX(generale!$A$16:$G$4963,MATCH(NGG!$A131,generale!$A$16:$A$4963,0),COLUMN())=0,0,INDEX(generale!$A$16:$G$4963,MATCH(NGG!$A131,generale!$A$16:$A$4963,0),COLUMN())) -> 14 | C131: =IF(INDEX(generale!$A$16:$G$4963,MATCH(NGG!$A131,generale!$A$16:$A$4963,0),COLUMN())=0,0,INDEX(generale!$A$16:$G$4963,MATCH(NGG!$A131,generale!$A$16:$A$4963,0),COLUMN())) -> 15 | D131: =IF(INDEX(generale!$A$16:$G$4963,MATCH(NGG!$A131,generale!$A$16:$A$4963,0),COLUMN())=0,0,INDEX(generale!$A$16:$G$4963,MATCH(NGG!$A131,generale!$A$16:$A$4963,0),COLUMN())) -> 11 | E131: =IF(INDEX(generale!$A$16:$G$4963,MATCH(NGG!$A131,generale!$A$16:$A$4963,0),COLUMN())=0,0,INDEX(generale!$A$16:$G$4963,MATCH(NGG!$A131,generale!$A$16:$A$4963,0),COLUMN())) -> 10 | F131: =IF(INDEX(generale!$A$16:$G$4963,MATCH(NGG!$A131,generale!$A$16:$A$4963,0),COLUMN())=0,0,INDEX(generale!$A$16:$G$4963,MATCH(NGG!$A131,generale!$A$16:$A$4963,0),COLUMN())) -> 18 | G131: =generale!G141 -> O | H131: 23 | I131: 50 | J131: 22 | K131: 5 | L131: 15 | M131: 55 | N131: 43 | O131: 9 | P131: 2 | Q131: 11 | R131: 13 | S131: 71 | T131: 4 | U131: 0 | V131: 20 | W131: 3 | X131: 0 | Y131: 42 | Z131: 6 | AA131: 4 | AS131: 1 | AT131: 1 | AU131: 1 | AV131: 1 | AW131: 16 | AY131: 20
A132: =IF(generale!$A142>0,generale!$A142,"") -> 2005-05-09 | B132: =IF(INDEX(generale!$A$16:$G$4963,MATCH(NGG!$A132,generale!$A$16:$A$4963,0),COLUMN())=0,0,INDEX(generale!$A$16:$G$4963,MATCH(NGG!$A132,generale!$A$16:$A$4963,0),COLUMN())) -> 7 | C132: =IF(INDEX(generale!$A$16:$G$4963,MATCH(NGG!$A132,generale!$A$16:$A$4963,0),COLUMN())=0,0,INDEX(generale!$A$16:$G$4963,MATCH(NGG!$A132,generale!$A$16:$A$4963,0),COLUMN())) -> 4 | D132: =IF(INDEX(generale!$A$16:$G$4963,MATCH(NGG!$A132,generale!$A$16:$A$4963,0),COLUMN())=0,0,INDEX(generale!$A$16:$G$4963,MATCH(NGG!$A132,generale!$A$16:$A$4963,0),COLUMN())) -> 10 | E132: =IF(INDEX(generale!$A$16:$G$4963,MATCH(NGG!$A132,generale!$A$16:$A$4963,0),COLUMN())=0,0,INDEX(generale!$A$16:$G$4963,MATCH(NGG!$A132,generale!$A$16:$A$4963,0),COLUMN())) -> 15 | F132: =IF(INDEX(generale!$A$16:$G$4963,MATCH(NGG!$A132,generale!$A$16:$A$4963,0),COLUMN())=0,0,INDEX(generale!$A$16:$G$4963,MATCH(NGG!$A132,generale!$A$16:$A$4963,0),COLUMN())) -> 16 | G132: =generale!G142 -> P | H132: 24 | I132: 51 | J132: 23 | K132: 6 | L132: 16 | M132: 56 | N132: 0 | O132: 10 | P132: 3 | Q132: 12 | R132: 14 | S132: 72 | T132: 5 | U132: 1 | V132: 21 | W132: =IF(COUNTIF($B132:$D132,0)<3,IF(LEN(SUBSTITUTE(SUBSTITUTE($B132,W$1,,1),,1))=0,0,W131+1-AR132),"") -> 4 | X132: 0 | Y132: 42 | Z132: 6 | AA132: 4 | AS132: 1 | AT132: 1 | AU132: 1 | AV132: 1 | AW132: =IF(A132<>"",20-SUM(AC132:AV132),"") -> 16 | AY132: 17
A133: =IF(generale!$A143>0,generale!$A143,"") -> 2005-05-10 | B133: =IF(INDEX(generale!$A$16:$G$4963,MATCH(NGG!$A133,generale!$A$16:$A$4963,0),COLUMN())=0,0,INDEX(generale!$A$16:$G$4963,MATCH(NGG!$A133,generale!$A$16:$A$4963,0),COLUMN())) -> 13 | C133: =IF(INDEX(generale!$A$16:$G$4963,MATCH(NGG!$A133,generale!$A$16:$A$4963,0),COLUMN())=0,0,INDEX(generale!$A$16:$G$4963,MATCH(NGG!$A133,generale!$A$16:$A$4963,0),COLUMN())) -> 18 | D133: =IF(INDEX(generale!$A$16:$G$4963,MATCH(NGG!$A133,generale!$A$16:$A$4963,0),COLUMN())=0,0,INDEX(generale!$A$16:$G$4963,MATCH(NGG!$A133,generale!$A$16:$A$4963,0),COLUMN())) -> 9 | E133: =IF(INDEX(generale!$A$16:$G$4963,MATCH(NGG!$A133,generale!$A$16:$A$4963,0),COLUMN())=0,0,INDEX(generale!$A$16:$G$4963,MATCH(NGG!$A133,generale!$A$16:$A$4963,0),COLUMN())) -> 2 | F133: =IF(INDEX(generale!$A$16:$G$4963,MATCH(NGG!$A133,generale!$A$16:$A$4963,0),COLUMN())=0,0,INDEX(generale!$A$16:$G$4963,MATCH(NGG!$A133,generale!$A$16:$A$4963,0),COLUMN())) -> 3 | G133: =generale!G143 -> T | H133: =IF(COUNTIF($B133:$D133,0)<3,IF(LEN(SUBSTITUTE(SUBSTITUTE($B133,H$1,,1),,1))=0,0,H132+1-AC133),"") -> 25 | I133: 52 | J133: 24 | K133: 7 | L133: 17 | M133: 57 | N133: 1 | O133: 11 | P133: 4 | Q133: 13 | R133: 15 | S133: 73 | T133: 0 | U133: 2 | V133: 22 | W133: 4 | X133: 0 | Y133: 42 | Z133: 6 | AA133: 4 | AR133: 1 | AS133: 1 | AT133: 1 | AU133: 1 | AV133: 1 | AW133: 15 | AY133: 19
A134: =IF(generale!$A144>0,generale!$A144,"") -> 2005-05-11 | B134: =IF(INDEX(generale!$A$16:$G$4963,MATCH(NGG!$A134,generale!$A$16:$A$4963,0),COLUMN())=0,0,INDEX(generale!$A$16:$G$4963,MATCH(NGG!$A134,generale!$A$16:$A$4963,0),COLUMN())) -> 11 | C134: =IF(INDEX(generale!$A$16:$G$4963,MATCH(NGG!$A134,generale!$A$16:$A$4963,0),COLUMN())=0,0,INDEX(generale!$A$16:$G$4963,MATCH(NGG!$A134,generale!$A$16:$A$4963,0),COLUMN())) -> 4 | D134: =IF(INDEX(generale!$A$16:$G$4963,MATCH(NGG!$A134,generale!$A$16:$A$4963,0),COLUMN())=0,0,INDEX(generale!$A$16:$G$4963,MATCH(NGG!$A134,generale!$A$16:$A$4963,0),COLUMN())) -> 10 | E134: =IF(INDEX(generale!$A$16:$G$4963,MATCH(NGG!$A134,generale!$A$16:$A$4963,0),COLUMN())=0,0,INDEX(generale!$A$16:$G$4963,MATCH(NGG!$A134,generale!$A$16:$A$4963,0),COLUMN())) -> 14 | F134: =IF(INDEX(generale!$A$16:$G$4963,MATCH(NGG!$A134,generale!$A$16:$A$4963,0),COLUMN())=0,0,INDEX(generale!$A$16:$G$4963,MATCH(NGG!$A134,generale!$A$16:$A$4963,0),COLUMN())) -> 3 | G134: =generale!G144 -> T | H134: 26 | I134: 53 | J134: 25 | K134: 8 | L134: 18 | M134: 58 | N134: 2 | O134: 12 | P134: 5 | Q134: 14 | R134: 0 | S134: 74 | T134: 1 | U134: 3 | V134: 22 | W134: 4 | X134: 0 | Y134: 42 | Z134: 6 | AA134: 4 | AQ134: 1 | AR134: 1 | AS134: 1 | AT134: 1 | AU134: 1 | AV134: 1 | AW134: 14 | AY134: 16
A135: =IF(generale!$A145>0,generale!$A145,"") -> 2005-05-12 | B135: =IF(INDEX(generale!$A$16:$G$4963,MATCH(NGG!$A135,generale!$A$16:$A$4963,0),COLUMN())=0,0,INDEX(generale!$A$16:$G$4963,MATCH(NGG!$A135,generale!$A$16:$A$4963,0),COLUMN())) -> 15 | C135: =IF(INDEX(generale!$A$16:$G$4963,MATCH(NGG!$A135,generale!$A$16:$A$4963,0),COLUMN())=0,0,INDEX(generale!$A$16:$G$4963,MATCH(NGG!$A135,generale!$A$16:$A$4963,0),COLUMN())) -> 12 | D135: =IF(INDEX(generale!$A$16:$G$4963,MATCH(NGG!$A135,generale!$A$16:$A$4963,0),COLUMN())=0,0,INDEX(generale!$A$16:$G$4963,MATCH(NGG!$A135,generale!$A$16:$A$4963,0),COLUMN())) -> 5 | E135: =IF(INDEX(generale!$A$16:$G$4963,MATCH(NGG!$A135,generale!$A$16:$A$4963,0),COLUMN())=0,0,INDEX(generale!$A$16:$G$4963,MATCH(NGG!$A135,generale!$A$16:$A$4963,0),COLUMN())) -> 8 | F135: =IF(INDEX(generale!$A$16:$G$4963,MATCH(NGG!$A135,generale!$A$16:$A$4963,0),COLUMN())=0,0,INDEX(generale!$A$16:$G$4963,MATCH(NGG!$A135,generale!$A$16:$A$4963,0),COLUMN())) -> 1 | G135: =generale!G145 -> P | H135: 27 | I135: 54 | J135: 26 | K135: 9 | L135: 19 | M135: 59 | N135: 3 | O135: 13 | P135: 6 | Q135: 15 | R135: 1 | S135: 75 | T135: 2 | U135: 4 | V135: 0 | W135: 5 | X135: 1 | Y135: 43 | Z135: 6 | AA135: 4 | AU135: 1 | AV135: 1 | AW135: 18 | AY135: 17
A136: =IF(generale!$A146>0,generale!$A146,"") -> 2005-05-13 | B136: =IF(INDEX(generale!$A$16:$G$4963,MATCH(NGG!$A136,generale!$A$16:$A$4963,0),COLUMN())=0,0,INDEX(generale!$A$16:$G$4963,MATCH(NGG!$A136,generale!$A$16:$A$4963,0),COLUMN())) -> 11 | C136: =IF(INDEX(generale!$A$16:$G$4963,MATCH(NGG!$A136,generale!$A$16:$A$4963,0),COLUMN())=0,0,INDEX(generale!$A$16:$G$4963,MATCH(NGG!$A136,generale!$A$16:$A$4963,0),COLUMN())) -> 7 | D136: =IF(INDEX(generale!$A$16:$G$4963,MATCH(NGG!$A136,generale!$A$16:$A$4963,0),COLUMN())=0,0,INDEX(generale!$A$16:$G$4963,MATCH(NGG!$A136,generale!$A$16:$A$4963,0),COLUMN())) -> 10 | E136: =IF(INDEX(generale!$A$16:$G$4963,MATCH(NGG!$A136,generale!$A$16:$A$4963,0),COLUMN())=0,0,INDEX(generale!$A$16:$G$4963,MATCH(NGG!$A136,generale!$A$16:$A$4963,0),COLUMN())) -> 16 | F136: =IF(INDEX(generale!$A$16:$G$4963,MATCH(NGG!$A136,generale!$A$16:$A$4963,0),COLUMN())=0,0,INDEX(generale!$A$16:$G$4963,MATCH(NGG!$A136,generale!$A$16:$A$4963,0),COLUMN())) -> 17 | G136: =generale!G146 -> O | H136: 28 | I136: 55 | J136: 27 | K136: 10 | L136: 20 | M136: 60 | N136: 4 | O136: 14 | P136: 7 | Q136: 16 | R136: 0 | S136: 76 | T136: 3 | U136: 5 | V136: 1 | W136: 6 | X136: 1 | Y136: 43 | Z136: 6 | AA136: 4 | AS136: 1 | AT136: 1 | AU136: 1 | AV136: 1 | AW136: 16 | AY136: 17
A137: =IF(generale!$A147>0,generale!$A147,"") -> 2005-05-14 | B137: =IF(INDEX(generale!$A$16:$G$4963,MATCH(NGG!$A137,generale!$A$16:$A$4963,0),COLUMN())=0,0,INDEX(generale!$A$16:$G$4963,MATCH(NGG!$A137,generale!$A$16:$A$4963,0),COLUMN())) -> 10 | C137: =IF(INDEX(generale!$A$16:$G$4963,MATCH(NGG!$A137,generale!$A$16:$A$4963,0),COLUMN())=0,0,INDEX(generale!$A$16:$G$4963,MATCH(NGG!$A137,generale!$A$16:$A$4963,0),COLUMN())) -> 9 | D137: =IF(INDEX(generale!$A$16:$G$4963,MATCH(NGG!$A137,generale!$A$16:$A$4963,0),COLUMN())=0,0,INDEX(generale!$A$16:$G$4963,MATCH(NGG!$A137,generale!$A$16:$A$4963,0),COLUMN())) -> 8 | E137: =IF(INDEX(generale!$A$16:$G$4963,MATCH(NGG!$A137,generale!$A$16:$A$4963,0),COLUMN())=0,0,INDEX(generale!$A$16:$G$4963,MATCH(NGG!$A137,generale!$A$16:$A$4963,0),COLUMN())) -> 2 | F137: =IF(INDEX(generale!$A$16:$G$4963,MATCH(NGG!$A137,generale!$A$16:$A$4963,0),COLUMN())=0,0,INDEX(generale!$A$16:$G$4963,MATCH(NGG!$A137,generale!$A$16:$A$4963,0),COLUMN())) -> 12 | G137: =generale!G147 -> T | H137: 29 | I137: 56 | J137: 28 | K137: 11 | L137: 21 | M137: 61 | N137: 5 | O137: 15 | P137: 8 | Q137: 0 | R137: 1 | S137: 77 | T137: 4 | U137: 6 | V137: 2 | W137: 7 | X137: 1 | Y137: 43 | Z137: 6 | AA137: 4 | AS137: 1 | AT137: 1 | AU137: 1 | AV137: 1 | AW137: 16 | AY137: 14
A138: =IF(generale!$A148>0,generale!$A148,"") -> 2005-05-15 | B138: =IF(INDEX(generale!$A$16:$G$4963,MATCH(NGG!$A138,generale!$A$16:$A$4963,0),COLUMN())=0,0,INDEX(generale!$A$16:$G$4963,MATCH(NGG!$A138,generale!$A$16:$A$4963,0),COLUMN())) -> 11 | C138: =IF(INDEX(generale!$A$16:$G$4963,MATCH(NGG!$A138,generale!$A$16:$A$4963,0),COLUMN())=0,0,INDEX(generale!$A$16:$G$4963,MATCH(NGG!$A138,generale!$A$16:$A$4963,0),COLUMN())) -> 15 | D138: =IF(INDEX(generale!$A$16:$G$4963,MATCH(NGG!$A138,generale!$A$16:$A$4963,0),COLUMN())=0,0,INDEX(generale!$A$16:$G$4963,MATCH(NGG!$A138,generale!$A$16:$A$4963,0),COLUMN())) -> 7 | E138: =IF(INDEX(generale!$A$16:$G$4963,MATCH(NGG!$A138,generale!$A$16:$A$4963,0),COLUMN())=0,0,INDEX(generale!$A$16:$G$4963,MATCH(NGG!$A138,generale!$A$16:$A$4963,0),COLUMN())) -> 5 | F138: =IF(INDEX(generale!$A$16:$G$4963,MATCH(NGG!$A138,generale!$A$16:$A$4963,0),COLUMN())=0,0,INDEX(generale!$A$16:$G$4963,MATCH(NGG!$A138,generale!$A$16:$A$4963,0),COLUMN())) -> 4 | G138: =generale!G148 -> P | H138: 30 | I138: 57 | J138: 29 | K138: 12 | L138: 22 | M138: 62 | N138: 6 | O138: 16 | P138: 9 | Q138: 1 | R138: 0 | S138: 78 | T138: 5 | U138: 7 | V138: 3 | W138: 8 | X138: 1 | Y138: 43 | Z138: 6 | AA138: 4 | AS138: 1 | AT138: 1 | AU138: 1 | AV138: 1 | AW138: 16 | AX138: 9 | AY138: 15
A139: =IF(generale!$A149>0,generale!$A149,"") -> 2005-05-16 | B139: =IF(INDEX(generale!$A$16:$G$4963,MATCH(NGG!$A139,generale!$A$16:$A$4963,0),COLUMN())=0,0,INDEX(generale!$A$16:$G$4963,MATCH(NGG!$A139,generale!$A$16:$A$4963,0),COLUMN())) -> 3 | C139: =IF(INDEX(generale!$A$16:$G$4963,MATCH(NGG!$A139,generale!$A$16:$A$4963,0),COLUMN())=0,0,INDEX(generale!$A$16:$G$4963,MATCH(NGG!$A139,generale!$A$16:$A$4963,0),COLUMN())) -> 10 | D139: =IF(INDEX(generale!$A$16:$G$4963,MATCH(NGG!$A139,generale!$A$16:$A$4963,0),COLUMN())=0,0,INDEX(generale!$A$16:$G$4963,MATCH(NGG!$A139,generale!$A$16:$A$4963,0),COLUMN())) -> 9 | E139: =IF(INDEX(generale!$A$16:$G$4963,MATCH(NGG!$A139,generale!$A$16:$A$4963,0),COLUMN())=0,0,INDEX(generale!$A$16:$G$4963,MATCH(NGG!$A139,generale!$A$16:$A$4963,0),COLUMN())) -> 16 | F139: =IF(INDEX(generale!$A$16:$G$4963,MATCH(NGG!$A139,generale!$A$16:$A$4963,0),COLUMN())=0,0,INDEX(generale!$A$16:$G$4963,MATCH(NGG!$A139,generale!$A$16:$A$4963,0),COLUMN())) -> 14 | G139: =generale!G149 -> P | H139: 31 | I139: 58 | J139: 0 | K139: 13 | L139: 23 | M139: 63 | N139: 7 | O139: 17 | P139: 10 | Q139: 2 | R139: 1 | S139: 79 | T139: 6 | U139: 8 | V139: 4 | W139: 9 | X139: 1 | Y139: 43 | Z139: 6 | AA139: 4 | AS139: 1 | AT139: 1 | AU139: 1 | AV139: 1 | AW139: 16 | AY139: 17
A140: =IF(generale!$A150>0,generale!$A150,"") -> 2005-05-17 | B140: =IF(INDEX(generale!$A$16:$G$4963,MATCH(NGG!$A140,generale!$A$16:$A$4963,0),COLUMN())=0,0,INDEX(generale!$A$16:$G$4963,MATCH(NGG!$A140,generale!$A$16:$A$4963,0),COLUMN())) -> 13 | C140: =IF(INDEX(generale!$A$16:$G$4963,MATCH(NGG!$A140,generale!$A$16:$A$4963,0),COLUMN())=0,0,INDEX(generale!$A$16:$G$4963,MATCH(NGG!$A140,generale!$A$16:$A$4963,0),COLUMN())) -> 17 | D140: =IF(INDEX(generale!$A$16:$G$4963,MATCH(NGG!$A140,generale!$A$16:$A$4963,0),COLUMN())=0,0,INDEX(generale!$A$16:$G$4963,MATCH(NGG!$A140,generale!$A$16:$A$4963,0),COLUMN())) -> 18 | E140: =IF(INDEX(generale!$A$16:$G$4963,MATCH(NGG!$A140,generale!$A$16:$A$4963,0),COLUMN())=0,0,INDEX(generale!$A$16:$G$4963,MATCH(NGG!$A140,generale!$A$16:$A$4963,0),COLUMN())) -> 5 | F140: =IF(INDEX(generale!$A$16:$G$4963,MATCH(NGG!$A140,generale!$A$16:$A$4963,0),COLUMN())=0,0,INDEX(generale!$A$16:$G$4963,MATCH(NGG!$A140,generale!$A$16:$A$4963,0),COLUMN())) -> 6 | G140: =generale!G150 -> T | H140: 32 | I140: 59 | J140: 1 | K140: 14 | L140: 24 | M140: 64 | N140: 8 | O140: 18 | P140: 11 | Q140: 3 | R140: 2 | S140: 80 | T140: 0 | U140: 9 | V140: 5 | W140: 9 | X140: 1 | Y140: 43 | Z140: 6 | AA140: 4 | AR140: 1 | AS140: 1 | AT140: 1 | AU140: 1 | AV140: 1 | AW140: 15 | AY140: 19
A141: =IF(generale!$A151>0,generale!$A151,"") -> 2005-05-18 | B141: =IF(INDEX(generale!$A$16:$G$4963,MATCH(NGG!$A141,generale!$A$16:$A$4963,0),COLUMN())=0,0,INDEX(generale!$A$16:$G$4963,MATCH(NGG!$A141,generale!$A$16:$A$4963,0),COLUMN())) -> 3 | C141: =IF(INDEX(generale!$A$16:$G$4963,MATCH(NGG!$A141,generale!$A$16:$A$4963,0),COLUMN())=0,0,INDEX(generale!$A$16:$G$4963,MATCH(NGG!$A141,generale!$A$16:$A$4963,0),COLUMN())) -> 15 | D141: =IF(INDEX(generale!$A$16:$G$4963,MATCH(NGG!$A141,generale!$A$16:$A$4963,0),COLUMN())=0,0,INDEX(generale!$A$16:$G$4963,MATCH(NGG!$A141,generale!$A$16:$A$4963,0),COLUMN())) -> 2 | E141: =IF(INDEX(generale!$A$16:$G$4963,MATCH(NGG!$A141,generale!$A$16:$A$4963,0),COLUMN())=0,0,INDEX(generale!$A$16:$G$4963,MATCH(NGG!$A141,generale!$A$16:$A$4963,0),COLUMN())) -> 13 | F141: =IF(INDEX(generale!$A$16:$G$4963,MATCH(NGG!$A141,generale!$A$16:$A$4963,0),COLUMN())=0,0,INDEX(generale!$A$16:$G$4963,MATCH(NGG!$A141,generale!$A$16:$A$4963,0),COLUMN())) -> 10 | G141: =generale!G151 -> T | H141: 33 | I141: 60 | J141: 0 | K141: 15 | L141: 25 | M141: 65 | N141: 9 | O141: 19 | P141: 12 | Q141: 4 | R141: 3 | S141: 81 | T141: 1 | U141: 10 | V141: 6 | W141: 10 | X141: 1 | Y141: 43 | Z141: 6 | AA141: 4 | AS141: 1 | AT141: 1 | AU141: 1 | AV141: 1 | AW141: 16 | AX141: 1 | AY141: 18
A142: =IF(generale!$A152>0,generale!$A152,"") -> 2005-05-19 | B142: =IF(INDEX(generale!$A$16:$G$4963,MATCH(NGG!$A142,generale!$A$16:$A$4963,0),COLUMN())=0,0,INDEX(generale!$A$16:$G$4963,MATCH(NGG!$A142,generale!$A$16:$A$4963,0),COLUMN())) -> 2 | C142: =IF(INDEX(generale!$A$16:$G$4963,MATCH(NGG!$A142,generale!$A$16:$A$4963,0),COLUMN())=0,0,INDEX(generale!$A$16:$G$4963,MATCH(NGG!$A142,generale!$A$16:$A$4963,0),COLUMN())) -> 3 | D142: =IF(INDEX(generale!$A$16:$G$4963,MATCH(NGG!$A142,generale!$A$16:$A$4963,0),COLUMN())=0,0,INDEX(generale!$A$16:$G$4963,MATCH(NGG!$A142,generale!$A$16:$A$4963,0),COLUMN())) -> 18 | E142: =IF(INDEX(generale!$A$16:$G$4963,MATCH(NGG!$A142,generale!$A$16:$A$4963,0),COLUMN())=0,0,INDEX(generale!$A$16:$G$4963,MATCH(NGG!$A142,generale!$A$16:$A$4963,0),COLUMN())) -> 15 | F142: =IF(INDEX(generale!$A$16:$G$4963,MATCH(NGG!$A142,generale!$A$16:$A$4963,0),COLUMN())=0,0,INDEX(generale!$A$16:$G$4963,MATCH(NGG!$A142,generale!$A$16:$A$4963,0),COLUMN())) -> 12 | G142: =generale!G152 -> P | H142: 34 | I142: 0 | J142: 1 | K142: 16 | L142: 26 | M142: 66 | N142: 10 | O142: 20 | P142: 13 | Q142: 5 | R142: 4 | S142: 82 | T142: 2 | U142: 11 | V142: 7 | W142: 11 | X142: 1 | Y142: 43 | Z142: 6 | AA142: 4 | AS142: 1 | AT142: 1 | AU142: 1 | AV142: 1 | AW142: 16 | AY142: 18
A143: =IF(generale!$A153>0,generale!$A153,"") -> 2005-05-20 | B143: =IF(INDEX(generale!$A$16:$G$4963,MATCH(NGG!$A143,generale!$A$16:$A$4963,0),COLUMN())=0,0,INDEX(generale!$A$16:$G$4963,MATCH(NGG!$A143,generale!$A$16:$A$4963,0),COLUMN())) -> 5 | C143: =IF(INDEX(generale!$A$16:$G$4963,MATCH(NGG!$A143,generale!$A$16:$A$4963,0),COLUMN())=0,0,INDEX(generale!$A$16:$G$4963,MATCH(NGG!$A143,generale!$A$16:$A$4963,0),COLUMN())) -> 7 | D143: =IF(INDEX(generale!$A$16:$G$4963,MATCH(NGG!$A143,generale!$A$16:$A$4963,0),COLUMN())=0,0,INDEX(generale!$A$16:$G$4963,MATCH(NGG!$A143,generale!$A$16:$A$4963,0),COLUMN())) -> 6 | E143: =IF(INDEX(generale!$A$16:$G$4963,MATCH(NGG!$A143,generale!$A$16:$A$4963,0),COLUMN())=0,0,INDEX(generale!$A$16:$G$4963,MATCH(NGG!$A143,generale!$A$16:$A$4963,0),COLUMN())) -> 4 | F143: =IF(INDEX(generale!$A$16:$G$4963,MATCH(NGG!$A143,generale!$A$16:$A$4963,0),COLUMN())=0,0,INDEX(generale!$A$16:$G$4963,MATCH(NGG!$A143,generale!$A$16:$A$4963,0),COLUMN())) -> 12 | G143: =generale!G153 -> O | H143: 35 | I143: 1 | J143: 2 | K143: 17 | L143: 0 | M143: 67 | N143: 11 | O143: 21 | P143: 14 | Q143: 6 | R143: 5 | S143: 83 | T143: 3 | U143: 12 | V143: 8 | W143: 12 | X143: 1 | Y143: 43 | Z143: 6 | AA143: 4 | AS143: 1 | AT143: 1 | AU143: 1 | AV143: 1 | AW143: 16 | AY143: 15
A144: =IF(generale!$A154>0,generale!$A154,"") -> 2005-05-21 | B144: =IF(INDEX(generale!$A$16:$G$4963,MATCH(NGG!$A144,generale!$A$16:$A$4963,0),COLUMN())=0,0,INDEX(generale!$A$16:$G$4963,MATCH(NGG!$A144,generale!$A$16:$A$4963,0),COLUMN())) -> 4 | C144: =IF(INDEX(generale!$A$16:$G$4963,MATCH(NGG!$A144,generale!$A$16:$A$4963,0),COLUMN())=0,0,INDEX(generale!$A$16:$G$4963,MATCH(NGG!$A144,generale!$A$16:$A$4963,0),COLUMN())) -> 11 | D144: =IF(INDEX(generale!$A$16:$G$4963,MATCH(NGG!$A144,generale!$A$16:$A$4963,0),COLUMN())=0,0,INDEX(generale!$A$16:$G$4963,MATCH(NGG!$A144,generale!$A$16:$A$4963,0),COLUMN())) -> 2 | E144: =IF(INDEX(generale!$A$16:$G$4963,MATCH(NGG!$A144,generale!$A$16:$A$4963,0),COLUMN())=0,0,INDEX(generale!$A$16:$G$4963,MATCH(NGG!$A144,generale!$A$16:$A$4963,0),COLUMN())) -> 13 | F144: =IF(INDEX(generale!$A$16:$G$4963,MATCH(NGG!$A144,generale!$A$16:$A$4963,0),COLUMN())=0,0,INDEX(generale!$A$16:$G$4963,MATCH(NGG!$A144,generale!$A$16:$A$4963,0),COLUMN())) -> 6 | G144: =generale!G154 -> P | H144: 36 | I144: 2 | J144: 3 | K144: 0 | L144: 1 | M144: 68 | N144: 12 | O144: 22 | P144: 15 | Q144: 7 | R144: 6 | S144: 84 | T144: 4 | U144: 13 | V144: 9 | W144: 13 | X144: 1 | Y144: 43 | Z144: 6 | AA144: 4 | AS144: 1 | AT144: 1 | AU144: 1 | AV144: 1 | AW144: 16 | AX144: 16-18 | AY144: 18
A145: =IF(generale!$A155>0,generale!$A155,"") -> 2005-05-22 | B145: =IF(INDEX(generale!$A$16:$G$4963,MATCH(NGG!$A145,generale!$A$16:$A$4963,0),COLUMN())=0,0,INDEX(generale!$A$16:$G$4963,MATCH(NGG!$A145,generale!$A$16:$A$4963,0),COLUMN())) -> 12 | C145: =IF(INDEX(generale!$A$16:$G$4963,MATCH(NGG!$A145,generale!$A$16:$A$4963,0),COLUMN())=0,0,INDEX(generale!$A$16:$G$4963,MATCH(NGG!$A145,generale!$A$16:$A$4963,0),COLUMN())) -> 6 | D145: =IF(INDEX(generale!$A$16:$G$4963,MATCH(NGG!$A145,generale!$A$16:$A$4963,0),COLUMN())=0,0,INDEX(generale!$A$16:$G$4963,MATCH(NGG!$A145,generale!$A$16:$A$4963,0),COLUMN())) -> 1 | E145: =IF(INDEX(generale!$A$16:$G$4963,MATCH(NGG!$A145,generale!$A$16:$A$4963,0),COLUMN())=0,0,INDEX(generale!$A$16:$G$4963,MATCH(NGG!$A145,generale!$A$16:$A$4963,0),COLUMN())) -> 17 | F145: =IF(INDEX(generale!$A$16:$G$4963,MATCH(NGG!$A145,generale!$A$16:$A$4963,0),COLUMN())=0,0,INDEX(generale!$A$16:$G$4963,MATCH(NGG!$A145,generale!$A$16:$A$4963,0),COLUMN())) -> 10 | G145: =generale!G155 -> P | H145: 37 | I145: 3 | J145: 4 | K145: 1 | L145: 2 | M145: 69 | N145: 13 | O145: 23 | P145: 16 | Q145: 8 | R145: 7 | S145: 0 | T145: 5 | U145: 14 | V145: 10 | W145: 14 | X145: 2 | Y145: 44 | Z145: 6 | AA145: 4 | AU145: 1 | AV145: 1 | AW145: 18 | AX145: 9 | AY145: 18
A146: =IF(generale!$A156>0,generale!$A156,"") -> 2005-05-23 | B146: =IF(INDEX(generale!$A$16:$G$4963,MATCH(NGG!$A146,generale!$A$16:$A$4963,0),COLUMN())=0,0,INDEX(generale!$A$16:$G$4963,MATCH(NGG!$A146,generale!$A$16:$A$4963,0),COLUMN())) -> 9 | C146: =IF(INDEX(generale!$A$16:$G$4963,MATCH(NGG!$A146,generale!$A$16:$A$4963,0),COLUMN())=0,0,INDEX(generale!$A$16:$G$4963,MATCH(NGG!$A146,generale!$A$16:$A$4963,0),COLUMN())) -> 14 | D146: =IF(INDEX(generale!$A$16:$G$4963,MATCH(NGG!$A146,generale!$A$16:$A$4963,0),COLUMN())=0,0,INDEX(generale!$A$16:$G$4963,MATCH(NGG!$A146,generale!$A$16:$A$4963,0),COLUMN())) -> 15 | E146: =IF(INDEX(generale!$A$16:$G$4963,MATCH(NGG!$A146,generale!$A$16:$A$4963,0),COLUMN())=0,0,INDEX(generale!$A$16:$G$4963,MATCH(NGG!$A146,generale!$A$16:$A$4963,0),COLUMN())) -> 7 | F146: =IF(INDEX(generale!$A$16:$G$4963,MATCH(NGG!$A146,generale!$A$16:$A$4963,0),COLUMN())=0,0,INDEX(generale!$A$16:$G$4963,MATCH(NGG!$A146,generale!$A$16:$A$4963,0),COLUMN())) -> 8 | G146: =generale!G156 -> P | H146: 38 | I146: 4 | J146: 5 | K146: 2 | L146: 3 | M146: 70 | N146: 14 | O146: 24 | P146: 0 | Q146: 9 | R146: 8 | S146: 1 | T146: 6 | U146: 15 | V146: 11 | W146: 15 | X146: 2 | Y146: 44 | Z146: 6 | AA146: 4 | AS146: 1 | AT146: 1 | AU146: 1 | AV146: 1 | AW146: 16 | AX146: 5 | AY146: 18
A147: =IF(generale!$A157>0,generale!$A157,"") -> 2005-05-24 | B147: =IF(INDEX(generale!$A$16:$G$4963,MATCH(NGG!$A147,generale!$A$16:$A$4963,0),COLUMN())=0,0,INDEX(generale!$A$16:$G$4963,MATCH(NGG!$A147,generale!$A$16:$A$4963,0),COLUMN())) -> 10 | C147: =IF(INDEX(generale!$A$16:$G$4963,MATCH(NGG!$A147,generale!$A$16:$A$4963,0),COLUMN())=0,0,INDEX(generale!$A$16:$G$4963,MATCH(NGG!$A147,generale!$A$16:$A$4963,0),COLUMN())) -> 3 | D147: =IF(INDEX(generale!$A$16:$G$4963,MATCH(NGG!$A147,generale!$A$16:$A$4963,0),COLUMN())=0,0,INDEX(generale!$A$16:$G$4963,MATCH(NGG!$A147,generale!$A$16:$A$4963,0),COLUMN())) -> 8 | E147: =IF(INDEX(generale!$A$16:$G$4963,MATCH(NGG!$A147,generale!$A$16:$A$4963,0),COLUMN())=0,0,INDEX(generale!$A$16:$G$4963,MATCH(NGG!$A147,generale!$A$16:$A$4963,0),COLUMN())) -> 9 | F147: =IF(INDEX(generale!$A$16:$G$4963,MATCH(NGG!$A147,generale!$A$16:$A$4963,0),COLUMN())=0,0,INDEX(generale!$A$16:$G$4963,MATCH(NGG!$A147,generale!$A$16:$A$4963,0),COLUMN())) -> 1 | G147: =generale!G157 -> T | H147: 39 | I147: 5 | J147: 6 | K147: 3 | L147: 4 | M147: 71 | N147: 15 | O147: 25 | P147: 1 | Q147: 0 | R147: 9 | S147: 2 | T147: 7 | U147: 16 | V147: 12 | W147: 16 | X147: 3 | Y147: 45 | Z147: 6 | AA147: 4 | AU147: 1 | AV147: 1 | AW147: 18 | AX147: 5-17 | AY147: 17
A148: =IF(generale!$A158>0,generale!$A158,"") -> 2005-05-25 | B148: =IF(INDEX(generale!$A$16:$G$4963,MATCH(NGG!$A148,generale!$A$16:$A$4963,0),COLUMN())=0,0,INDEX(generale!$A$16:$G$4963,MATCH(NGG!$A148,generale!$A$16:$A$4963,0),COLUMN())) -> 15 | C148: =IF(INDEX(generale!$A$16:$G$4963,MATCH(NGG!$A148,generale!$A$16:$A$4963,0),COLUMN())=0,0,INDEX(generale!$A$16:$G$4963,MATCH(NGG!$A148,generale!$A$16:$A$4963,0),COLUMN())) -> 14 | D148: =IF(INDEX(generale!$A$16:$G$4963,MATCH(NGG!$A148,generale!$A$16:$A$4963,0),COLUMN())=0,0,INDEX(generale!$A$16:$G$4963,MATCH(NGG!$A148,generale!$A$16:$A$4963,0),COLUMN())) -> 3 | E148: =IF(INDEX(generale!$A$16:$G$4963,MATCH(NGG!$A148,generale!$A$16:$A$4963,0),COLUMN())=0,0,INDEX(generale!$A$16:$G$4963,MATCH(NGG!$A148,generale!$A$16:$A$4963,0),COLUMN())) -> 2 | F148: =IF(INDEX(generale!$A$16:$G$4963,MATCH(NGG!$A148,generale!$A$16:$A$4963,0),COLUMN())=0,0,INDEX(generale!$A$16:$G$4963,MATCH(NGG!$A148,generale!$A$16:$A$4963,0),COLUMN())) -> 7 | G148: =generale!G158 -> T | H148: 40 | I148: 6 | J148: 7 | K148: 4 | L148: 5 | M148: 72 | N148: 16 | O148: 26 | P148: 2 | Q148: 1 | R148: 10 | S148: 3 | T148: 8 | U148: 17 | V148: 0 | W148: 17 | X148: =IF(COUNTIF($B148:$D148,0)<3,IF(LEN(SUBSTITUTE(SUBSTITUTE($B148,X$1,,1),,1))=0,0,X147+1-AS148),"") -> 3 | Y148: 45 | Z148: 6 | AA148: 4 | AS148: 1 | AT148: 1 | AU148: 1 | AV148: 1 | AW148: 16 | AY148: 18
A149: =IF(generale!$A159>0,generale!$A159,"") -> 2005-05-26 | B149: =IF(INDEX(generale!$A$16:$G$4963,MATCH(NGG!$A149,generale!$A$16:$A$4963,0),COLUMN())=0,0,INDEX(generale!$A$16:$G$4963,MATCH(NGG!$A149,generale!$A$16:$A$4963,0),COLUMN())) -> 3 | C149: =IF(INDEX(generale!$A$16:$G$4963,MATCH(NGG!$A149,generale!$A$16:$A$4963,0),COLUMN())=0,0,INDEX(generale!$A$16:$G$4963,MATCH(NGG!$A149,generale!$A$16:$A$4963,0),COLUMN())) -> 17 | D149: =IF(INDEX(generale!$A$16:$G$4963,MATCH(NGG!$A149,generale!$A$16:$A$4963,0),COLUMN())=0,0,INDEX(generale!$A$16:$G$4963,MATCH(NGG!$A149,generale!$A$16:$A$4963,0),COLUMN())) -> 8 | E149: =IF(INDEX(generale!$A$16:$G$4963,MATCH(NGG!$A149,generale!$A$16:$A$4963,0),COLUMN())=0,0,INDEX(generale!$A$16:$G$4963,MATCH(NGG!$A149,generale!$A$16:$A$4963,0),COLUMN())) -> 18 | F149: =IF(INDEX(generale!$A$16:$G$4963,MATCH(NGG!$A149,generale!$A$16:$A$4963,0),COLUMN())=0,0,INDEX(generale!$A$16:$G$4963,MATCH(NGG!$A149,generale!$A$16:$A$4963,0),COLUMN())) -> 7 | G149: =generale!G159 -> P | H149: =IF(COUNTIF($B149:$D149,0)<3,IF(LEN(SUBSTITUTE(SUBSTITUTE($B149,H$1,,1),,1))=0,0,H148+1-AC149),"") -> 41 | I149: 7 | J149: 0 | K149: 5 | L149: 6 | M149: 73 | N149: 17 | O149: 27 | P149: 3 | Q149: 2 | R149: 11 | S149: 4 | T149: 9 | U149: 18 | V149: 1 | W149: 18 | X149: 4 | Y149: 46 | Z149: 6 | AA149: 4 | AU149: 1 | AV149: 1 | AW149: 18 | AY149: 18
A150: =IF(generale!$A160>0,generale!$A160,"") -> 2005-05-27 | B150: =IF(INDEX(generale!$A$16:$G$4963,MATCH(NGG!$A150,generale!$A$16:$A$4963,0),COLUMN())=0,0,INDEX(generale!$A$16:$G$4963,MATCH(NGG!$A150,generale!$A$16:$A$4963,0),COLUMN())) -> 15 | C150: =IF(INDEX(generale!$A$16:$G$4963,MATCH(NGG!$A150,generale!$A$16:$A$4963,0),COLUMN())=0,0,INDEX(generale!$A$16:$G$4963,MATCH(NGG!$A150,generale!$A$16:$A$4963,0),COLUMN())) -> 8 | D150: =IF(INDEX(generale!$A$16:$G$4963,MATCH(NGG!$A150,generale!$A$16:$A$4963,0),COLUMN())=0,0,INDEX(generale!$A$16:$G$4963,MATCH(NGG!$A150,generale!$A$16:$A$4963,0),COLUMN())) -> 16 | E150: =IF(INDEX(generale!$A$16:$G$4963,MATCH(NGG!$A150,generale!$A$16:$A$4963,0),COLUMN())=0,0,INDEX(generale!$A$16:$G$4963,MATCH(NGG!$A150,generale!$A$16:$A$4963,0),COLUMN())) -> 17 | F150: =IF(INDEX(generale!$A$16:$G$4963,MATCH(NGG!$A150,generale!$A$16:$A$4963,0),COLUMN())=0,0,INDEX(generale!$A$16:$G$4963,MATCH(NGG!$A150,generale!$A$16:$A$4963,0),COLUMN())) -> 10 | G150: =generale!G160 -> T | H150: 42 | I150: 8 | J150: 1 | K150: 6 | L150: 7 | M150: 74 | N150: 18 | O150: 28 | P150: 4 | Q150: 3 | R150: 12 | S150: 5 | T150: 10 | U150: 19 | V150: 0 | W150: 19 | X150: 4 | Y150: 46 | Z150: 6 | AA150: 4 | AS150: 1 | AT150: 1 | AU150: 1 | AV150: 1 | AW150: 16 | AY150: 18
A151: =IF(generale!$A161>0,generale!$A161,"") -> 2005-05-28 | B151: =IF(INDEX(generale!$A$16:$G$4963,MATCH(NGG!$A151,generale!$A$16:$A$4963,0),COLUMN())=0,0,INDEX(generale!$A$16:$G$4963,MATCH(NGG!$A151,generale!$A$16:$A$4963,0),COLUMN())) -> 12 | C151: =IF(INDEX(generale!$A$16:$G$4963,MATCH(NGG!$A151,generale!$A$16:$A$4963,0),COLUMN())=0,0,INDEX(generale!$A$16:$G$4963,MATCH(NGG!$A151,generale!$A$16:$A$4963,0),COLUMN())) -> 15 | D151: =IF(INDEX(generale!$A$16:$G$4963,MATCH(NGG!$A151,generale!$A$16:$A$4963,0),COLUMN())=0,0,INDEX(generale!$A$16:$G$4963,MATCH(NGG!$A151,generale!$A$16:$A$4963,0),COLUMN())) -> 3 | E151: =IF(INDEX(generale!$A$16:$G$4963,MATCH(NGG!$A151,generale!$A$16:$A$4963,0),COLUMN())=0,0,INDEX(generale!$A$16:$G$4963,MATCH(NGG!$A151,generale!$A$16:$A$4963,0),COLUMN())) -> 7 | F151: =IF(INDEX(generale!$A$16:$G$4963,MATCH(NGG!$A151,generale!$A$16:$A$4963,0),COLUMN())=0,0,INDEX(generale!$A$16:$G$4963,MATCH(NGG!$A151,generale!$A$16:$A$4963,0),COLUMN())) -> 14 | G151: =generale!G161 -> T | H151: 43 | I151: 9 | J151: 2 | K151: 7 | L151: 8 | M151: 75 | N151: 19 | O151: 29 | P151: 5 | Q151: 4 | R151: 13 | S151: 0 | T151: 11 | U151: 20 | V151: 1 | W151: 20 | X151: 4 | Y151: 46 | Z151: 6 | AA151: 4 | AS151: 1 | AT151: 1 | AU151: 1 | AV151: 1 | AW151: 16 | AX151: 12 | AY151: 15
A152: =IF(generale!$A162>0,generale!$A162,"") -> 2005-05-29 | B152: =IF(INDEX(generale!$A$16:$G$4963,MATCH(NGG!$A152,generale!$A$16:$A$4963,0),COLUMN())=0,0,INDEX(generale!$A$16:$G$4963,MATCH(NGG!$A152,generale!$A$16:$A$4963,0),COLUMN())) -> 15 | C152: =IF(INDEX(generale!$A$16:$G$4963,MATCH(NGG!$A152,generale!$A$16:$A$4963,0),COLUMN())=0,0,INDEX(generale!$A$16:$G$4963,MATCH(NGG!$A152,generale!$A$16:$A$4963,0),COLUMN())) -> 18 | D152: =IF(INDEX(generale!$A$16:$G$4963,MATCH(NGG!$A152,generale!$A$16:$A$4963,0),COLUMN())=0,0,INDEX(generale!$A$16:$G$4963,MATCH(NGG!$A152,generale!$A$16:$A$4963,0),COLUMN())) -> 8 | E152: =IF(INDEX(generale!$A$16:$G$4963,MATCH(NGG!$A152,generale!$A$16:$A$4963,0),COLUMN())=0,0,INDEX(generale!$A$16:$G$4963,MATCH(NGG!$A152,generale!$A$16:$A$4963,0),COLUMN())) -> 9 | F152: =IF(INDEX(generale!$A$16:$G$4963,MATCH(NGG!$A152,generale!$A$16:$A$4963,0),COLUMN())=0,0,INDEX(generale!$A$16:$G$4963,MATCH(NGG!$A152,generale!$A$16:$A$4963,0),COLUMN())) -> 5 | G152: =generale!G162 -> O | H152: 44 | I152: 10 | J152: 3 | K152: 8 | L152: 9 | M152: 76 | N152: 20 | O152: 30 | P152: 6 | Q152: 5 | R152: 14 | S152: 1 | T152: 12 | U152: 21 | V152: 0 | W152: 21 | X152: 4 | Y152: 46 | Z152: 6 | AA152: 4 | AS152: 1 | AT152: 1 | AU152: 1 | AV152: 1 | AW152: 16 | AX152: 13 | AY152: 17
A153: =IF(generale!$A163>0,generale!$A163,"") -> 2005-05-30 | B153: =IF(INDEX(generale!$A$16:$G$4963,MATCH(NGG!$A153,generale!$A$16:$A$4963,0),COLUMN())=0,0,INDEX(generale!$A$16:$G$4963,MATCH(NGG!$A153,generale!$A$16:$A$4963,0),COLUMN())) -> 9 | C153: =IF(INDEX(generale!$A$16:$G$4963,MATCH(NGG!$A153,generale!$A$16:$A$4963,0),COLUMN())=0,0,INDEX(generale!$A$16:$G$4963,MATCH(NGG!$A153,generale!$A$16:$A$4963,0),COLUMN())) -> 10 | D153: =IF(INDEX(generale!$A$16:$G$4963,MATCH(NGG!$A153,generale!$A$16:$A$4963,0),COLUMN())=0,0,INDEX(generale!$A$16:$G$4963,MATCH(NGG!$A153,generale!$A$16:$A$4963,0),COLUMN())) -> 11 | E153: =IF(INDEX(generale!$A$16:$G$4963,MATCH(NGG!$A153,generale!$A$16:$A$4963,0),COLUMN())=0,0,INDEX(generale!$A$16:$G$4963,MATCH(NGG!$A153,generale!$A$16:$A$4963,0),COLUMN())) -> 6 | F153: =IF(INDEX(generale!$A$16:$G$4963,MATCH(NGG!$A153,generale!$A$16:$A$4963,0),COLUMN())=0,0,INDEX(generale!$A$16:$G$4963,MATCH(NGG!$A153,generale!$A$16:$A$4963,0),COLUMN())) -> 4 | G153: =generale!G163 -> T | H153: 45 | I153: 11 | J153: 4 | K153: 9 | L153: 10 | M153: 77 | N153: 21 | O153: 31 | P153: 0 | Q153: 6 | R153: 15 | S153: 2 | T153: 13 | U153: 22 | V153: 1 | W153: 22 | X153: 5 | Y153: 47 | Z153: 6 | AA153: 4 | AU153: 1 | AV153: 1 | AW153: 18 | AY153: 14
A154: =IF(generale!$A164>0,generale!$A164,"") -> 2005-05-31 | B154: =IF(INDEX(generale!$A$16:$G$4963,MATCH(NGG!$A154,generale!$A$16:$A$4963,0),COLUMN())=0,0,INDEX(generale!$A$16:$G$4963,MATCH(NGG!$A154,generale!$A$16:$A$4963,0),COLUMN())) -> 8 | C154: =IF(INDEX(generale!$A$16:$G$4963,MATCH(NGG!$A154,generale!$A$16:$A$4963,0),COLUMN())=0,0,INDEX(generale!$A$16:$G$4963,MATCH(NGG!$A154,generale!$A$16:$A$4963,0),COLUMN())) -> 7 | D154: =IF(INDEX(generale!$A$16:$G$4963,MATCH(NGG!$A154,generale!$A$16:$A$4963,0),COLUMN())=0,0,INDEX(generale!$A$16:$G$4963,MATCH(NGG!$A154,generale!$A$16:$A$4963,0),COLUMN())) -> 9 | E154: =IF(INDEX(generale!$A$16:$G$4963,MATCH(NGG!$A154,generale!$A$16:$A$4963,0),COLUMN())=0,0,INDEX(generale!$A$16:$G$4963,MATCH(NGG!$A154,generale!$A$16:$A$4963,0),COLUMN())) -> 2 | F154: =IF(INDEX(generale!$A$16:$G$4963,MATCH(NGG!$A154,generale!$A$16:$A$4963,0),COLUMN())=0,0,INDEX(generale!$A$16:$G$4963,MATCH(NGG!$A154,generale!$A$16:$A$4963,0),COLUMN())) -> 3 | G154: =generale!G164 -> T | H154: 46 | I154: 12 | J154: 5 | K154: 10 | L154: 11 | M154: 78 | N154: 22 | O154: 0 | P154: 1 | Q154: 7 | R154: 16 | S154: 3 | T154: 14 | U154: 23 | V154: 2 | W154: 23 | X154: 5 | Y154: 47 | Z154: 6 | AA154: 4 | AS154: 1 | AT154: 1 | AU154: 1 | AV154: 1 | AW154: 16 | AX154: 6 | AY154: 13
A155: =IF(generale!$A165>0,generale!$A165,"") -> 2005-06-01 | B155: =IF(INDEX(generale!$A$16:$G$4963,MATCH(NGG!$A155,generale!$A$16:$A$4963,0),COLUMN())=0,0,INDEX(generale!$A$16:$G$4963,MATCH(NGG!$A155,generale!$A$16:$A$4963,0),COLUMN())) -> 3 | C155: =IF(INDEX(generale!$A$16:$G$4963,MATCH(NGG!$A155,generale!$A$16:$A$4963,0),COLUMN())=0,0,INDEX(generale!$A$16:$G$4963,MATCH(NGG!$A155,generale!$A$16:$A$4963,0),COLUMN())) -> 8 | D155: =IF(INDEX(generale!$A$16:$G$4963,MATCH(NGG!$A155,generale!$A$16:$A$4963,0),COLUMN())=0,0,INDEX(generale!$A$16:$G$4963,MATCH(NGG!$A155,generale!$A$16:$A$4963,0),COLUMN())) -> 7 | E155: =IF(INDEX(generale!$A$16:$G$4963,MATCH(NGG!$A155,generale!$A$16:$A$4963,0),COLUMN())=0,0,INDEX(generale!$A$16:$G$4963,MATCH(NGG!$A155,generale!$A$16:$A$4963,0),COLUMN())) -> 14 | F155: =IF(INDEX(generale!$A$16:$G$4963,MATCH(NGG!$A155,generale!$A$16:$A$4963,0),COLUMN())=0,0,INDEX(generale!$A$16:$G$4963,MATCH(NGG!$A155,generale!$A$16:$A$4963,0),COLUMN())) -> 5 | G155: =generale!G165 -> P | H155: 47 | I155: 13 | J155: 0 | K155: 11 | L155: 12 | M155: 79 | N155: 23 | O155: 1 | P155: 2 | Q155: 8 | R155: 17 | S155: 4 | T155: 15 | U155: 24 | V155: 3 | W155: 24 | X155: 6 | Y155: 48 | Z155: 6 | AA155: 4 | AU155: 1 | AV155: 1 | AW155: 18 | AY155: 18
A156: =IF(generale!$A166>0,generale!$A166,"") -> 2005-06-02 | B156: =IF(INDEX(generale!$A$16:$G$4963,MATCH(NGG!$A156,generale!$A$16:$A$4963,0),COLUMN())=0,0,INDEX(generale!$A$16:$G$4963,MATCH(NGG!$A156,generale!$A$16:$A$4963,0),COLUMN())) -> 1 | C156: =IF(INDEX(generale!$A$16:$G$4963,MATCH(NGG!$A156,generale!$A$16:$A$4963,0),COLUMN())=0,0,INDEX(generale!$A$16:$G$4963,MATCH(NGG!$A156,generale!$A$16:$A$4963,0),COLUMN())) -> 9 | D156: =IF(INDEX(generale!$A$16:$G$4963,MATCH(NGG!$A156,generale!$A$16:$A$4963,0),COLUMN())=0,0,INDEX(generale!$A$16:$G$4963,MATCH(NGG!$A156,generale!$A$16:$A$4963,0),COLUMN())) -> 18 | E156: =IF(INDEX(generale!$A$16:$G$4963,MATCH(NGG!$A156,generale!$A$16:$A$4963,0),COLUMN())=0,0,INDEX(generale!$A$16:$G$4963,MATCH(NGG!$A156,generale!$A$16:$A$4963,0),COLUMN())) -> 10 | F156: =IF(INDEX(generale!$A$16:$G$4963,MATCH(NGG!$A156,generale!$A$16:$A$4963,0),COLUMN())=0,0,INDEX(generale!$A$16:$G$4963,MATCH(NGG!$A156,generale!$A$16:$A$4963,0),COLUMN())) -> 2 | G156: =generale!G166 -> P | H156: 0 | I156: 14 | J156: 1 | K156: 12 | L156: 13 | M156: 80 | N156: 24 | O156: 2 | P156: 3 | Q156: 9 | R156: 18 | S156: 5 | T156: 16 | U156: 25 | V156: 4 | W156: 25 | X156: 7 | Y156: 49 | Z156: 7 | AA156: 4 | AV156: 1 | AW156: 19 | AY156: 16
A157: =IF(generale!$A167>0,generale!$A167,"") -> 2005-06-03 | B157: =IF(INDEX(generale!$A$16:$G$4963,MATCH(NGG!$A157,generale!$A$16:$A$4963,0),COLUMN())=0,0,INDEX(generale!$A$16:$G$4963,MATCH(NGG!$A157,generale!$A$16:$A$4963,0),COLUMN())) -> 17 | C157: =IF(INDEX(generale!$A$16:$G$4963,MATCH(NGG!$A157,generale!$A$16:$A$4963,0),COLUMN())=0,0,INDEX(generale!$A$16:$G$4963,MATCH(NGG!$A157,generale!$A$16:$A$4963,0),COLUMN())) -> 13 | D157: =IF(INDEX(generale!$A$16:$G$4963,MATCH(NGG!$A157,generale!$A$16:$A$4963,0),COLUMN())=0,0,INDEX(generale!$A$16:$G$4963,MATCH(NGG!$A157,generale!$A$16:$A$4963,0),COLUMN())) -> 10 | E157: =IF(INDEX(generale!$A$16:$G$4963,MATCH(NGG!$A157,generale!$A$16:$A$4963,0),COLUMN())=0,0,INDEX(generale!$A$16:$G$4963,MATCH(NGG!$A157,generale!$A$16:$A$4963,0),COLUMN())) -> 9 | F157: =IF(INDEX(generale!$A$16:$G$4963,MATCH(NGG!$A157,generale!$A$16:$A$4963,0),COLUMN())=0,0,INDEX(generale!$A$16:$G$4963,MATCH(NGG!$A157,generale!$A$16:$A$4963,0),COLUMN())) -> 11 | G157: =generale!G167 -> T | H157: 1 | I157: 15 | J157: 2 | K157: 13 | L157: 14 | M157: 81 | N157: 25 | O157: 3 | P157: 4 | Q157: 10 | R157: 19 | S157: 6 | T157: 17 | U157: 26 | V157: 5 | W157: 26 | X157: 0 | Y157: 50 | Z157: 8 | AA157: 4 | AV157: 1 | AW157: 19 | AY157: 17
A158: =IF(generale!$A168>0,generale!$A168,"") -> 2005-06-04 | B158: =IF(INDEX(generale!$A$16:$G$4963,MATCH(NGG!$A158,generale!$A$16:$A$4963,0),COLUMN())=0,0,INDEX(generale!$A$16:$G$4963,MATCH(NGG!$A158,generale!$A$16:$A$4963,0),COLUMN())) -> 17 | C158: =IF(INDEX(generale!$A$16:$G$4963,MATCH(NGG!$A158,generale!$A$16:$A$4963,0),COLUMN())=0,0,INDEX(generale!$A$16:$G$4963,MATCH(NGG!$A158,generale!$A$16:$A$4963,0),COLUMN())) -> 13 | D158: =IF(INDEX(generale!$A$16:$G$4963,MATCH(NGG!$A158,generale!$A$16:$A$4963,0),COLUMN())=0,0,INDEX(generale!$A$16:$G$4963,MATCH(NGG!$A158,generale!$A$16:$A$4963,0),COLUMN())) -> 4 | E158: =IF(INDEX(generale!$A$16:$G$4963,MATCH(NGG!$A158,generale!$A$16:$A$4963,0),COLUMN())=0,0,INDEX(generale!$A$16:$G$4963,MATCH(NGG!$A158,generale!$A$16:$A$4963,0),COLUMN())) -> 12 | F158: =IF(INDEX(generale!$A$16:$G$4963,MATCH(NGG!$A158,generale!$A$16:$A$4963,0),COLUMN())=0,0,INDEX(generale!$A$16:$G$4963,MATCH(NGG!$A158,generale!$A$16:$A$4963,0),COLUMN())) -> 6 | G158: =generale!G168 -> P | H158: 2 | I158: 16 | J158: 3 | K158: 14 | L158: 15 | M158: 82 | N158: 26 | O158: 4 | P158: 5 | Q158: 11 | R158: 20 | S158: 7 | T158: 18 | U158: 27 | V158: 6 | W158: 27 | X158: 0 | Y158: 50 | Z158: 8 | AA158: 4 | AS158: 1 | AT158: 1 | AU158: 1 | AV158: 1 | AW158: 16 | AY158: 18
A159: =IF(generale!$A169>0,generale!$A169,"") -> 2005-06-05 | B159: =IF(INDEX(generale!$A$16:$G$4963,MATCH(NGG!$A159,generale!$A$16:$A$4963,0),COLUMN())=0,0,INDEX(generale!$A$16:$G$4963,MATCH(NGG!$A159,generale!$A$16:$A$4963,0),COLUMN())) -> 8 | C159: =IF(INDEX(generale!$A$16:$G$4963,MATCH(NGG!$A159,generale!$A$16:$A$4963,0),COLUMN())=0,0,INDEX(generale!$A$16:$G$4963,MATCH(NGG!$A159,generale!$A$16:$A$4963,0),COLUMN())) -> 6 | D159: =IF(INDEX(generale!$A$16:$G$4963,MATCH(NGG!$A159,generale!$A$16:$A$4963,0),COLUMN())=0,0,INDEX(generale!$A$16:$G$4963,MATCH(NGG!$A159,generale!$A$16:$A$4963,0),COLUMN())) -> 16 | E159: =IF(INDEX(generale!$A$16:$G$4963,MATCH(NGG!$A159,generale!$A$16:$A$4963,0),COLUMN())=0,0,INDEX(generale!$A$16:$G$4963,MATCH(NGG!$A159,generale!$A$16:$A$4963,0),COLUMN())) -> 1 | F159: =IF(INDEX(generale!$A$16:$G$4963,MATCH(NGG!$A159,generale!$A$16:$A$4963,0),COLUMN())=0,0,INDEX(generale!$A$16:$G$4963,MATCH(NGG!$A159,generale!$A$16:$A$4963,0),COLUMN())) -> 3 | G159: =generale!G169 -> P | H159: 3 | I159: 17 | J159: 4 | K159: 15 | L159: 16 | M159: 83 | N159: 27 | O159: 0 | P159: 6 | Q159: 12 | R159: 21 | S159: 8 | T159: 19 | U159: 28 | V159: 7 | W159: 28 | X159: 1 | Y159: 51 | Z159: 8 | AA159: 4 | AU159: 1 | AV159: 1 | AW159: 18 | AY159: 17
A160: =IF(generale!$A170>0,generale!$A170,"") -> 2005-06-06 | B160: =IF(INDEX(generale!$A$16:$G$4963,MATCH(NGG!$A160,generale!$A$16:$A$4963,0),COLUMN())=0,0,INDEX(generale!$A$16:$G$4963,MATCH(NGG!$A160,generale!$A$16:$A$4963,0),COLUMN())) -> 7 | C160: =IF(INDEX(generale!$A$16:$G$4963,MATCH(NGG!$A160,generale!$A$16:$A$4963,0),COLUMN())=0,0,INDEX(generale!$A$16:$G$4963,MATCH(NGG!$A160,generale!$A$16:$A$4963,0),COLUMN())) -> 3 | D160: =IF(INDEX(generale!$A$16:$G$4963,MATCH(NGG!$A160,generale!$A$16:$A$4963,0),COLUMN())=0,0,INDEX(generale!$A$16:$G$4963,MATCH(NGG!$A160,generale!$A$16:$A$4963,0),COLUMN())) -> 2 | E160: =IF(INDEX(generale!$A$16:$G$4963,MATCH(NGG!$A160,generale!$A$16:$A$4963,0),COLUMN())=0,0,INDEX(generale!$A$16:$G$4963,MATCH(NGG!$A160,generale!$A$16:$A$4963,0),COLUMN())) -> 9 | F160: =IF(INDEX(generale!$A$16:$G$4963,MATCH(NGG!$A160,generale!$A$16:$A$4963,0),COLUMN())=0,0,INDEX(generale!$A$16:$G$4963,MATCH(NGG!$A160,generale!$A$16:$A$4963,0),COLUMN())) -> 10 | G160: =generale!G170 -> T | H160: 4 | I160: 18 | J160: 5 | K160: 16 | L160: 17 | M160: 84 | N160: 0 | O160: 1 | P160: 7 | Q160: 13 | R160: 22 | S160: 9 | T160: 20 | U160: 29 | V160: 8 | W160: 29 | X160: 2 | Y160: 52 | Z160: 8 | AA160: 4 | AU160: 1 | AV160: 1 | AW160: 18 | AX160: 2-17 | AY160: 15
A161: =IF(generale!$A171>0,generale!$A171,"") -> 2005-06-07 | B161: =IF(INDEX(generale!$A$16:$G$4963,MATCH(NGG!$A161,generale!$A$16:$A$4963,0),COLUMN())=0,0,INDEX(generale!$A$16:$G$4963,MATCH(NGG!$A161,generale!$A$16:$A$4963,0),COLUMN())) -> 1 | C161: =IF(INDEX(generale!$A$16:$G$4963,MATCH(NGG!$A161,generale!$A$16:$A$4963,0),COLUMN())=0,0,INDEX(generale!$A$16:$G$4963,MATCH(NGG!$A161,generale!$A$16:$A$4963,0),COLUMN())) -> 16 | D161: =IF(INDEX(generale!$A$16:$G$4963,MATCH(NGG!$A161,generale!$A$16:$A$4963,0),COLUMN())=0,0,INDEX(generale!$A$16:$G$4963,MATCH(NGG!$A161,generale!$A$16:$A$4963,0),COLUMN())) -> 14 | E161: =IF(INDEX(generale!$A$16:$G$4963,MATCH(NGG!$A161,generale!$A$16:$A$4963,0),COLUMN())=0,0,INDEX(generale!$A$16:$G$4963,MATCH(NGG!$A161,generale!$A$16:$A$4963,0),COLUMN())) -> 17 | F161: =IF(INDEX(generale!$A$16:$G$4963,MATCH(NGG!$A161,generale!$A$16:$A$4963,0),COLUMN())=0,0,INDEX(generale!$A$16:$G$4963,MATCH(NGG!$A161,generale!$A$16:$A$4963,0),COLUMN())) -> 5 | G161: =generale!G171 -> O | H161: 0 | I161: 19 | J161: 6 | K161: 17 | L161: 18 | M161: 85 | N161: 1 | O161: 2 | P161: 8 | Q161: 14 | R161: 23 | S161: 10 | T161: 21 | U161: 30 | V161: 9 | W161: 30 | X161: 3 | Y161: 53 | Z161: 8 | AA161: 4 | AU161: 1 | AV161: 1 | AW161: 18 | AY161: 17
A162: =IF(generale!$A172>0,generale!$A172,"") -> 2005-06-08 | B162: =IF(INDEX(generale!$A$16:$G$4963,MATCH(NGG!$A162,generale!$A$16:$A$4963,0),COLUMN())=0,0,INDEX(generale!$A$16:$G$4963,MATCH(NGG!$A162,generale!$A$16:$A$4963,0),COLUMN())) -> 12 | C162: =IF(INDEX(generale!$A$16:$G$4963,MATCH(NGG!$A162,generale!$A$16:$A$4963,0),COLUMN())=0,0,INDEX(generale!$A$16:$G$4963,MATCH(NGG!$A162,generale!$A$16:$A$4963,0),COLUMN())) -> 17 | D162: =IF(INDEX(generale!$A$16:$G$4963,MATCH(NGG!$A162,generale!$A$16:$A$4963,0),COLUMN())=0,0,INDEX(generale!$A$16:$G$4963,MATCH(NGG!$A162,generale!$A$16:$A$4963,0),COLUMN())) -> 9 | E162: =IF(INDEX(generale!$A$16:$G$4963,MATCH(NGG!$A162,generale!$A$16:$A$4963,0),COLUMN())=0,0,INDEX(generale!$A$16:$G$4963,MATCH(NGG!$A162,generale!$A$16:$A$4963,0),COLUMN())) -> 6 | F162: =IF(INDEX(generale!$A$16:$G$4963,MATCH(NGG!$A162,generale!$A$16:$A$4963,0),COLUMN())=0,0,INDEX(generale!$A$16:$G$4963,MATCH(NGG!$A162,generale!$A$16:$A$4963,0),COLUMN())) -> 13 | G162: =generale!G172 -> T | H162: 1 | I162: 20 | J162: 7 | K162: 18 | L162: 19 | M162: 86 | N162: 2 | O162: 3 | P162: 9 | Q162: 15 | R162: 24 | S162: 0 | T162: 22 | U162: 31 | V162: 10 | W162: 31 | X162: 3 | Y162: 53 | Z162: 8 | AA162: 4 | AS162: 1 | AT162: 1 | AU162: 1 | AV162: 1 | AW162: 16 | AY162: 18
A163: =IF(generale!$A173>0,generale!$A173,"") -> 2005-06-09 | B163: =IF(INDEX(generale!$A$16:$G$4963,MATCH(NGG!$A163,generale!$A$16:$A$4963,0),COLUMN())=0,0,INDEX(generale!$A$16:$G$4963,MATCH(NGG!$A163,generale!$A$16:$A$4963,0),COLUMN())) -> 15 | C163: =IF(INDEX(generale!$A$16:$G$4963,MATCH(NGG!$A163,generale!$A$16:$A$4963,0),COLUMN())=0,0,INDEX(generale!$A$16:$G$4963,MATCH(NGG!$A163,generale!$A$16:$A$4963,0),COLUMN())) -> 7 | D163: =IF(INDEX(generale!$A$16:$G$4963,MATCH(NGG!$A163,generale!$A$16:$A$4963,0),COLUMN())=0,0,INDEX(generale!$A$16:$G$4963,MATCH(NGG!$A163,generale!$A$16:$A$4963,0),COLUMN())) -> 4 | E163: =IF(INDEX(generale!$A$16:$G$4963,MATCH(NGG!$A163,generale!$A$16:$A$4963,0),COLUMN())=0,0,INDEX(generale!$A$16:$G$4963,MATCH(NGG!$A163,generale!$A$16:$A$4963,0),COLUMN())) -> 3 | F163: =IF(INDEX(generale!$A$16:$G$4963,MATCH(NGG!$A163,generale!$A$16:$A$4963,0),COLUMN())=0,0,INDEX(generale!$A$16:$G$4963,MATCH(NGG!$A163,generale!$A$16:$A$4963,0),COLUMN())) -> 8 | G163: =generale!G173 -> P | H163: 2 | I163: 21 | J163: 8 | K163: 19 | L163: 20 | M163: 87 | N163: 3 | O163: 4 | P163: 10 | Q163: 16 | R163: 25 | S163: 1 | T163: 23 | U163: 32 | V163: 0 | W163: 32 | X163: 3 | Y163: 53 | Z163: 8 | AA163: 4 | AS163: 1 | AT163: 1 | AU163: 1 | AV163: 1 | AW163: 16 | AY163: 16
A164: =IF(generale!$A174>0,generale!$A174,"") -> 2005-06-10 | B164: =IF(INDEX(generale!$A$16:$G$4963,MATCH(NGG!$A164,generale!$A$16:$A$4963,0),COLUMN())=0,0,INDEX(generale!$A$16:$G$4963,MATCH(NGG!$A164,generale!$A$16:$A$4963,0),COLUMN())) -> 4 | C164: =IF(INDEX(generale!$A$16:$G$4963,MATCH(NGG!$A164,generale!$A$16:$A$4963,0),COLUMN())=0,0,INDEX(generale!$A$16:$G$4963,MATCH(NGG!$A164,generale!$A$16:$A$4963,0),COLUMN())) -> 9 | D164: =IF(INDEX(generale!$A$16:$G$4963,MATCH(NGG!$A164,generale!$A$16:$A$4963,0),COLUMN())=0,0,INDEX(generale!$A$16:$G$4963,MATCH(NGG!$A164,generale!$A$16:$A$4963,0),COLUMN())) -> 2 | E164: =IF(INDEX(generale!$A$16:$G$4963,MATCH(NGG!$A164,generale!$A$16:$A$4963,0),COLUMN())=0,0,INDEX(generale!$A$16:$G$4963,MATCH(NGG!$A164,generale!$A$16:$A$4963,0),COLUMN())) -> 16 | F164: =IF(INDEX(generale!$A$16:$G$4963,MATCH(NGG!$A164,generale!$A$16:$A$4963,0),COLUMN())=0,0,INDEX(generale!$A$16:$G$4963,MATCH(NGG!$A164,generale!$A$16:$A$4963,0),COLUMN())) -> 13 | G164: =generale!G174 -> P | H164: 3 | I164: 22 | J164: 9 | K164: 0 | L164: 21 | M164: 88 | N164: 4 | O164: 5 | P164: 11 | Q164: 17 | R164: 26 | S164: 2 | T164: 24 | U164: 33 | V164: 1 | W164: =IF(COUNTIF($B164:$D164,0)<3,IF(LEN(SUBSTITUTE(SUBSTITUTE($B164,W$1,,1),,1))=0,0,W163+1-AR164),"") -> 33 | X164: 3 | Y164: 53 | Z164: 8 | AA164: 4 | AS164: 1 | AT164: 1 | AU164: 1 | AV164: 1 | AW164: 16 | AY164: 16
A165: =IF(generale!$A175>0,generale!$A175,"") -> 2005-06-11 | B165: =IF(INDEX(generale!$A$16:$G$4963,MATCH(NGG!$A165,generale!$A$16:$A$4963,0),COLUMN())=0,0,INDEX(generale!$A$16:$G$4963,MATCH(NGG!$A165,generale!$A$16:$A$4963,0),COLUMN())) -> 14 | C165: =IF(INDEX(generale!$A$16:$G$4963,MATCH(NGG!$A165,generale!$A$16:$A$4963,0),COLUMN())=0,0,INDEX(generale!$A$16:$G$4963,MATCH(NGG!$A165,generale!$A$16:$A$4963,0),COLUMN())) -> 3 | D165: =IF(INDEX(generale!$A$16:$G$4963,MATCH(NGG!$A165,generale!$A$16:$A$4963,0),COLUMN())=0,0,INDEX(generale!$A$16:$G$4963,MATCH(NGG!$A165,generale!$A$16:$A$4963,0),COLUMN())) -> 13 | E165: =IF(INDEX(generale!$A$16:$G$4963,MATCH(NGG!$A165,generale!$A$16:$A$4963,0),COLUMN())=0,0,INDEX(generale!$A$16:$G$4963,MATCH(NGG!$A165,generale!$A$16:$A$4963,0),COLUMN())) -> 2 | F165: =IF(INDEX(generale!$A$16:$G$4963,MATCH(NGG!$A165,generale!$A$16:$A$4963,0),COLUMN())=0,0,INDEX(generale!$A$16:$G$4963,MATCH(NGG!$A165,generale!$A$16:$A$4963,0),COLUMN())) -> 15 | G165: =generale!G175 -> T | H165: 21 | I165: 28 | J165: 51 | K165: 16 | L165: 1 | M165: 14 | N165: 17 | O165: 4 | P165: 9 | Q165: 24 | R165: 10 | S165: 2 | T165: 57 | U165: 46 | V165: 3 | W165: 0 | X165: 55 | Y165: 25 | Z165: 1 | AA165: 3 | AU165: 1 | AV165: 1 | AW165: 18 | AY165: 18
A166: =IF(generale!$A176>0,generale!$A176,"") -> 2005-06-12 | B166: =IF(INDEX(generale!$A$16:$G$4963,MATCH(NGG!$A166,generale!$A$16:$A$4963,0),COLUMN())=0,0,INDEX(generale!$A$16:$G$4963,MATCH(NGG!$A166,generale!$A$16:$A$4963,0),COLUMN())) -> 11 | C166: =IF(INDEX(generale!$A$16:$G$4963,MATCH(NGG!$A166,generale!$A$16:$A$4963,0),COLUMN())=0,0,INDEX(generale!$A$16:$G$4963,MATCH(NGG!$A166,generale!$A$16:$A$4963,0),COLUMN())) -> 6 | D166: =IF(INDEX(generale!$A$16:$G$4963,MATCH(NGG!$A166,generale!$A$16:$A$4963,0),COLUMN())=0,0,INDEX(generale!$A$16:$G$4963,MATCH(NGG!$A166,generale!$A$16:$A$4963,0),COLUMN())) -> 2 | E166: =IF(INDEX(generale!$A$16:$G$4963,MATCH(NGG!$A166,generale!$A$16:$A$4963,0),COLUMN())=0,0,INDEX(generale!$A$16:$G$4963,MATCH(NGG!$A166,generale!$A$16:$A$4963,0),COLUMN())) -> 13 | F166: =IF(INDEX(generale!$A$16:$G$4963,MATCH(NGG!$A166,generale!$A$16:$A$4963,0),COLUMN())=0,0,INDEX(generale!$A$16:$G$4963,MATCH(NGG!$A166,generale!$A$16:$A$4963,0),COLUMN())) -> 7 | G166: =generale!G176 -> P | H166: =IF(COUNTIF($B166:$D166,0)<3,IF(LEN(SUBSTITUTE(SUBSTITUTE($B166,H$1,,1),,1))=0,0,H165+1-AC166),"") -> 22 | I166: 29 | J166: 52 | K166: 17 | L166: 2 | M166: 15 | N166: 18 | O166: 5 | P166: 10 | Q166: 25 | R166: 0 | S166: 3 | T166: 58 | U166: 47 | V166: 4 | W166: 1 | X166: 55 | Y166: 25 | Z166: 1 | AA166: 3 | AS166: 1 | AT166: 1 | AU166: 1 | AV166: 1 | AW166: 16 | AX166: 5 | AY166: 18
A167: =IF(generale!$A177>0,generale!$A177,"") -> 2005-06-13 | B167: =IF(INDEX(generale!$A$16:$G$4963,MATCH(NGG!$A167,generale!$A$16:$A$4963,0),COLUMN())=0,0,INDEX(generale!$A$16:$G$4963,MATCH(NGG!$A167,generale!$A$16:$A$4963,0),COLUMN())) -> 1 | C167: =IF(INDEX(generale!$A$16:$G$4963,MATCH(NGG!$A167,generale!$A$16:$A$4963,0),COLUMN())=0,0,INDEX(generale!$A$16:$G$4963,MATCH(NGG!$A167,generale!$A$16:$A$4963,0),COLUMN())) -> 3 | D167: =IF(INDEX(generale!$A$16:$G$4963,MATCH(NGG!$A167,generale!$A$16:$A$4963,0),COLUMN())=0,0,INDEX(generale!$A$16:$G$4963,MATCH(NGG!$A167,generale!$A$16:$A$4963,0),COLUMN())) -> 5 | E167: =IF(INDEX(generale!$A$16:$G$4963,MATCH(NGG!$A167,generale!$A$16:$A$4963,0),COLUMN())=0,0,INDEX(generale!$A$16:$G$4963,MATCH(NGG!$A167,generale!$A$16:$A$4963,0),COLUMN())) -> 6 | F167: =IF(INDEX(generale!$A$16:$G$4963,MATCH(NGG!$A167,generale!$A$16:$A$4963,0),COLUMN())=0,0,INDEX(generale!$A$16:$G$4963,MATCH(NGG!$A167,generale!$A$16:$A$4963,0),COLUMN())) -> 18 | G167: =generale!G177 -> P | H167: 0 | I167: 30 | J167: 53 | K167: 18 | L167: 3 | M167: 16 | N167: 19 | O167: 6 | P167: 11 | Q167: 26 | R167: 1 | S167: 4 | T167: 59 | U167: 48 | V167: 5 | W167: 2 | X167: 56 | Y167: 25 | Z167: 1 | AA167: 3 | AT167: 1 | AU167: 1 | AV167: 1 | AW167: 17 | AY167: 17
A168: =IF(generale!$A178>0,generale!$A178,"") -> 2005-06-14 | B168: =IF(INDEX(generale!$A$16:$G$4963,MATCH(NGG!$A168,generale!$A$16:$A$4963,0),COLUMN())=0,0,INDEX(generale!$A$16:$G$4963,MATCH(NGG!$A168,generale!$A$16:$A$4963,0),COLUMN())) -> 8 | C168: =IF(INDEX(generale!$A$16:$G$4963,MATCH(NGG!$A168,generale!$A$16:$A$4963,0),COLUMN())=0,0,INDEX(generale!$A$16:$G$4963,MATCH(NGG!$A168,generale!$A$16:$A$4963,0),COLUMN())) -> 13 | D168: =IF(INDEX(generale!$A$16:$G$4963,MATCH(NGG!$A168,generale!$A$16:$A$4963,0),COLUMN())=0,0,INDEX(generale!$A$16:$G$4963,MATCH(NGG!$A168,generale!$A$16:$A$4963,0),COLUMN())) -> 10 | E168: =IF(INDEX(generale!$A$16:$G$4963,MATCH(NGG!$A168,generale!$A$16:$A$4963,0),COLUMN())=0,0,INDEX(generale!$A$16:$G$4963,MATCH(NGG!$A168,generale!$A$16:$A$4963,0),COLUMN())) -> 11 | F168: =IF(INDEX(generale!$A$16:$G$4963,MATCH(NGG!$A168,generale!$A$16:$A$4963,0),COLUMN())=0,0,INDEX(generale!$A$16:$G$4963,MATCH(NGG!$A168,generale!$A$16:$A$4963,0),COLUMN())) -> 2 | G168: =generale!G178 -> T | H168: 1 | I168: 31 | J168: 54 | K168: 19 | L168: 4 | M168: 17 | N168: 20 | O168: 0 | P168: 12 | Q168: 27 | R168: 2 | S168: 5 | T168: 60 | U168: 49 | V168: 6 | W168: 3 | X168: 57 | Y168: 26 | Z168: 1 | AA168: 3 | AU168: 1 | AV168: 1 | AW168: 18 | AY168: 15
A169: =IF(generale!$A179>0,generale!$A179,"") -> 2005-06-15 | B169: =IF(INDEX(generale!$A$16:$G$4963,MATCH(NGG!$A169,generale!$A$16:$A$4963,0),COLUMN())=0,0,INDEX(generale!$A$16:$G$4963,MATCH(NGG!$A169,generale!$A$16:$A$4963,0),COLUMN())) -> 15 | C169: =IF(INDEX(generale!$A$16:$G$4963,MATCH(NGG!$A169,generale!$A$16:$A$4963,0),COLUMN())=0,0,INDEX(generale!$A$16:$G$4963,MATCH(NGG!$A169,generale!$A$16:$A$4963,0),COLUMN())) -> 9 | D169: =IF(INDEX(generale!$A$16:$G$4963,MATCH(NGG!$A169,generale!$A$16:$A$4963,0),COLUMN())=0,0,INDEX(generale!$A$16:$G$4963,MATCH(NGG!$A169,generale!$A$16:$A$4963,0),COLUMN())) -> 3 | E169: =IF(INDEX(generale!$A$16:$G$4963,MATCH(NGG!$A169,generale!$A$16:$A$4963,0),COLUMN())=0,0,INDEX(generale!$A$16:$G$4963,MATCH(NGG!$A169,generale!$A$16:$A$4963,0),COLUMN())) -> 6 | F169: =IF(INDEX(generale!$A$16:$G$4963,MATCH(NGG!$A169,generale!$A$16:$A$4963,0),COLUMN())=0,0,INDEX(generale!$A$16:$G$4963,MATCH(NGG!$A169,generale!$A$16:$A$4963,0),COLUMN())) -> 1 | G169: =generale!G179 -> P | H169: 2 | I169: 32 | J169: 55 | K169: 20 | L169: 5 | M169: 18 | N169: 21 | O169: 1 | P169: 13 | Q169: 28 | R169: 3 | S169: 6 | T169: 61 | U169: 50 | V169: 0 | W169: 4 | X169: 57 | Y169: 26 | Z169: 1 | AA169: 3 | AS169: 1 | AT169: 1 | AU169: 1 | AV169: 1 | AW169: 16 | AX169: 9 | AY169: 15
A170: =IF(generale!$A180>0,generale!$A180,"") -> 2005-06-16 | B170: =IF(INDEX(generale!$A$16:$G$4963,MATCH(NGG!$A170,generale!$A$16:$A$4963,0),COLUMN())=0,0,INDEX(generale!$A$16:$G$4963,MATCH(NGG!$A170,generale!$A$16:$A$4963,0),COLUMN())) -> 9 | C170: =IF(INDEX(generale!$A$16:$G$4963,MATCH(NGG!$A170,generale!$A$16:$A$4963,0),COLUMN())=0,0,INDEX(generale!$A$16:$G$4963,MATCH(NGG!$A170,generale!$A$16:$A$4963,0),COLUMN())) -> 8 | D170: =IF(INDEX(generale!$A$16:$G$4963,MATCH(NGG!$A170,generale!$A$16:$A$4963,0),COLUMN())=0,0,INDEX(generale!$A$16:$G$4963,MATCH(NGG!$A170,generale!$A$16:$A$4963,0),COLUMN())) -> 10 | E170: =IF(INDEX(generale!$A$16:$G$4963,MATCH(NGG!$A170,generale!$A$16:$A$4963,0),COLUMN())=0,0,INDEX(generale!$A$16:$G$4963,MATCH(NGG!$A170,generale!$A$16:$A$4963,0),COLUMN())) -> 5 | F170: =IF(INDEX(generale!$A$16:$G$4963,MATCH(NGG!$A170,generale!$A$16:$A$4963,0),COLUMN())=0,0,INDEX(generale!$A$16:$G$4963,MATCH(NGG!$A170,generale!$A$16:$A$4963,0),COLUMN())) -> 1 | G170: =generale!G180 -> P | H170: 3 | I170: 33 | J170: 56 | K170: 21 | L170: 6 | M170: 19 | N170: 22 | O170: 2 | P170: 0 | Q170: 29 | R170: 4 | S170: 7 | T170: 62 | U170: 51 | V170: 1 | W170: 5 | X170: 57 | Y170: 26 | Z170: 1 | AA170: 3 | AS170: 1 | AT170: 1 | AU170: 1 | AV170: 1 | AW170: 16 | AY170: 20
A171: =IF(generale!$A181>0,generale!$A181,"") -> 2005-06-17 | B171: =IF(INDEX(generale!$A$16:$G$4963,MATCH(NGG!$A171,generale!$A$16:$A$4963,0),COLUMN())=0,0,INDEX(generale!$A$16:$G$4963,MATCH(NGG!$A171,generale!$A$16:$A$4963,0),COLUMN())) -> 8 | C171: =IF(INDEX(generale!$A$16:$G$4963,MATCH(NGG!$A171,generale!$A$16:$A$4963,0),COLUMN())=0,0,INDEX(generale!$A$16:$G$4963,MATCH(NGG!$A171,generale!$A$16:$A$4963,0),COLUMN())) -> 11 | D171: =IF(INDEX(generale!$A$16:$G$4963,MATCH(NGG!$A171,generale!$A$16:$A$4963,0),COLUMN())=0,0,INDEX(generale!$A$16:$G$4963,MATCH(NGG!$A171,generale!$A$16:$A$4963,0),COLUMN())) -> 9 | E171: =IF(INDEX(generale!$A$16:$G$4963,MATCH(NGG!$A171,generale!$A$16:$A$4963,0),COLUMN())=0,0,INDEX(generale!$A$16:$G$4963,MATCH(NGG!$A171,generale!$A$16:$A$4963,0),COLUMN())) -> 1 | F171: =IF(INDEX(generale!$A$16:$G$4963,MATCH(NGG!$A171,generale!$A$16:$A$4963,0),COLUMN())=0,0,INDEX(generale!$A$16:$G$4963,MATCH(NGG!$A171,generale!$A$16:$A$4963,0),COLUMN())) -> 10 | G171: =generale!G181 -> T | H171: 4 | I171: 34 | J171: 57 | K171: 22 | L171: 7 | M171: 20 | N171: 23 | O171: 0 | P171: 1 | Q171: 30 | R171: 5 | S171: 8 | T171: 63 | U171: 52 | V171: 2 | W171: 6 | X171: 58 | Y171: 27 | Z171: 1 | AA171: 3 | AU171: 1 | AV171: 1 | AW171: 18 | AY171: 14
A172: =IF(generale!$A182>0,generale!$A182,"") -> 2005-06-18 | B172: =IF(INDEX(generale!$A$16:$G$4963,MATCH(NGG!$A172,generale!$A$16:$A$4963,0),COLUMN())=0,0,INDEX(generale!$A$16:$G$4963,MATCH(NGG!$A172,generale!$A$16:$A$4963,0),COLUMN())) -> 1 | C172: =IF(INDEX(generale!$A$16:$G$4963,MATCH(NGG!$A172,generale!$A$16:$A$4963,0),COLUMN())=0,0,INDEX(generale!$A$16:$G$4963,MATCH(NGG!$A172,generale!$A$16:$A$4963,0),COLUMN())) -> 2 | D172: =IF(INDEX(generale!$A$16:$G$4963,MATCH(NGG!$A172,generale!$A$16:$A$4963,0),COLUMN())=0,0,INDEX(generale!$A$16:$G$4963,MATCH(NGG!$A172,generale!$A$16:$A$4963,0),COLUMN())) -> 4 | E172: =IF(INDEX(generale!$A$16:$G$4963,MATCH(NGG!$A172,generale!$A$16:$A$4963,0),COLUMN())=0,0,INDEX(generale!$A$16:$G$4963,MATCH(NGG!$A172,generale!$A$16:$A$4963,0),COLUMN())) -> 7 | F172: =IF(INDEX(generale!$A$16:$G$4963,MATCH(NGG!$A172,generale!$A$16:$A$4963,0),COLUMN())=0,0,INDEX(generale!$A$16:$G$4963,MATCH(NGG!$A172,generale!$A$16:$A$4963,0),COLUMN())) -> 3 | G172: =generale!G182 -> O | H172: 0 | I172: 35 | J172: 58 | K172: 23 | L172: 8 | M172: 21 | N172: 24 | O172: 1 | P172: 2 | Q172: 31 | R172: 6 | S172: 9 | T172: 64 | U172: 53 | V172: 3 | W172: 7 | X172: 58 | Y172: 27 | Z172: 1 | AA172: 3 | AS172: 1 | AT172: 1 | AU172: 1 | AV172: 1 | AW172: 16 | AY172: 14
A173: =IF(generale!$A183>0,generale!$A183,"") -> 2005-06-19 | B173: =IF(INDEX(generale!$A$16:$G$4963,MATCH(NGG!$A173,generale!$A$16:$A$4963,0),COLUMN())=0,0,INDEX(generale!$A$16:$G$4963,MATCH(NGG!$A173,generale!$A$16:$A$4963,0),COLUMN())) -> 8 | C173: =IF(INDEX(generale!$A$16:$G$4963,MATCH(NGG!$A173,generale!$A$16:$A$4963,0),COLUMN())=0,0,INDEX(generale!$A$16:$G$4963,MATCH(NGG!$A173,generale!$A$16:$A$4963,0),COLUMN())) -> 6 | D173: =IF(INDEX(generale!$A$16:$G$4963,MATCH(NGG!$A173,generale!$A$16:$A$4963,0),COLUMN())=0,0,INDEX(generale!$A$16:$G$4963,MATCH(NGG!$A173,generale!$A$16:$A$4963,0),COLUMN())) -> 1 | E173: =IF(INDEX(generale!$A$16:$G$4963,MATCH(NGG!$A173,generale!$A$16:$A$4963,0),COLUMN())=0,0,INDEX(generale!$A$16:$G$4963,MATCH(NGG!$A173,generale!$A$16:$A$4963,0),COLUMN())) -> 9 | F173: =IF(INDEX(generale!$A$16:$G$4963,MATCH(NGG!$A173,generale!$A$16:$A$4963,0),COLUMN())=0,0,INDEX(generale!$A$16:$G$4963,MATCH(NGG!$A173,generale!$A$16:$A$4963,0),COLUMN())) -> 7 | G173: =generale!G183 -> T | H173: 1 | I173: 36 | J173: 59 | K173: 24 | L173: 9 | M173: 22 | N173: 25 | O173: 0 | P173: 3 | Q173: 32 | R173: 7 | S173: 10 | T173: 65 | U173: 54 | V173: 4 | W173: 8 | X173: 58 | Y173: 27 | Z173: 1 | AA173: 3 | AS173: 1 | AT173: 1 | AU173: 1 | AV173: 1 | AW173: 16 | AY173: 13
A174: =IF(generale!$A184>0,generale!$A184,"") -> 2005-06-20 | B174: =IF(INDEX(generale!$A$16:$G$4963,MATCH(NGG!$A174,generale!$A$16:$A$4963,0),COLUMN())=0,0,INDEX(generale!$A$16:$G$4963,MATCH(NGG!$A174,generale!$A$16:$A$4963,0),COLUMN())) -> 7 | C174: =IF(INDEX(generale!$A$16:$G$4963,MATCH(NGG!$A174,generale!$A$16:$A$4963,0),COLUMN())=0,0,INDEX(generale!$A$16:$G$4963,MATCH(NGG!$A174,generale!$A$16:$A$4963,0),COLUMN())) -> 2 | D174: =IF(INDEX(generale!$A$16:$G$4963,MATCH(NGG!$A174,generale!$A$16:$A$4963,0),COLUMN())=0,0,INDEX(generale!$A$16:$G$4963,MATCH(NGG!$A174,generale!$A$16:$A$4963,0),COLUMN())) -> 9 | E174: =IF(INDEX(generale!$A$16:$G$4963,MATCH(NGG!$A174,generale!$A$16:$A$4963,0),COLUMN())=0,0,INDEX(generale!$A$16:$G$4963,MATCH(NGG!$A174,generale!$A$16:$A$4963,0),COLUMN())) -> 10 | F174: =IF(INDEX(generale!$A$16:$G$4963,MATCH(NGG!$A174,generale!$A$16:$A$4963,0),COLUMN())=0,0,INDEX(generale!$A$16:$G$4963,MATCH(NGG!$A174,generale!$A$16:$A$4963,0),COLUMN())) -> 6 | G174: =generale!G184 -> T | H174: 2 | I174: 37 | J174: 60 | K174: 25 | L174: 10 | M174: 23 | N174: 0 | O174: 1 | P174: 4 | Q174: 33 | R174: 8 | S174: 11 | T174: 66 | U174: 55 | V174: 5 | W174: 8 | X174: 58 | Y174: 27 | Z174: 1 | AA174: 3 | AR174: 1 | AS174: 1 | AT174: 1 | AU174: 1 | AV174: 1 | AW174: 15 | AY174: 14
A175: =IF(generale!$A185>0,generale!$A185,"") -> 2005-06-21 | B175: =IF(INDEX(generale!$A$16:$G$4963,MATCH(NGG!$A175,generale!$A$16:$A$4963,0),COLUMN())=0,0,INDEX(generale!$A$16:$G$4963,MATCH(NGG!$A175,generale!$A$16:$A$4963,0),COLUMN())) -> 1 | C175: =IF(INDEX(generale!$A$16:$G$4963,MATCH(NGG!$A175,generale!$A$16:$A$4963,0),COLUMN())=0,0,INDEX(generale!$A$16:$G$4963,MATCH(NGG!$A175,generale!$A$16:$A$4963,0),COLUMN())) -> 16 | D175: =IF(INDEX(generale!$A$16:$G$4963,MATCH(NGG!$A175,generale!$A$16:$A$4963,0),COLUMN())=0,0,INDEX(generale!$A$16:$G$4963,MATCH(NGG!$A175,generale!$A$16:$A$4963,0),COLUMN())) -> 17 | E175: =IF(INDEX(generale!$A$16:$G$4963,MATCH(NGG!$A175,generale!$A$16:$A$4963,0),COLUMN())=0,0,INDEX(generale!$A$16:$G$4963,MATCH(NGG!$A175,generale!$A$16:$A$4963,0),COLUMN())) -> 3 | F175: =IF(INDEX(generale!$A$16:$G$4963,MATCH(NGG!$A175,generale!$A$16:$A$4963,0),COLUMN())=0,0,INDEX(generale!$A$16:$G$4963,MATCH(NGG!$A175,generale!$A$16:$A$4963,0),COLUMN())) -> 5 | G175: =generale!G185 -> P | H175: 0 | I175: 38 | J175: 61 | K175: 26 | L175: 11 | M175: 24 | N175: 1 | O175: 2 | P175: 5 | Q175: 34 | R175: 9 | S175: 12 | T175: 67 | U175: 56 | V175: 6 | W175: 8 | X175: 58 | Y175: 27 | Z175: 1 | AA175: 3 | AR175: 1 | AS175: 1 | AT175: 1 | AU175: 1 | AV175: 1 | AW175: 15 | AX175: 7-15 | AY175: 17
A176: =IF(generale!$A186>0,generale!$A186,"") -> 2005-06-22 | B176: =IF(INDEX(generale!$A$16:$G$4963,MATCH(NGG!$A176,generale!$A$16:$A$4963,0),COLUMN())=0,0,INDEX(generale!$A$16:$G$4963,MATCH(NGG!$A176,generale!$A$16:$A$4963,0),COLUMN())) -> 14 | C176: =IF(INDEX(generale!$A$16:$G$4963,MATCH(NGG!$A176,generale!$A$16:$A$4963,0),COLUMN())=0,0,INDEX(generale!$A$16:$G$4963,MATCH(NGG!$A176,generale!$A$16:$A$4963,0),COLUMN())) -> 1 | D176: =IF(INDEX(generale!$A$16:$G$4963,MATCH(NGG!$A176,generale!$A$16:$A$4963,0),COLUMN())=0,0,INDEX(generale!$A$16:$G$4963,MATCH(NGG!$A176,generale!$A$16:$A$4963,0),COLUMN())) -> 5 | E176: =IF(INDEX(generale!$A$16:$G$4963,MATCH(NGG!$A176,generale!$A$16:$A$4963,0),COLUMN())=0,0,INDEX(generale!$A$16:$G$4963,MATCH(NGG!$A176,generale!$A$16:$A$4963,0),COLUMN())) -> 2 | F176: =IF(INDEX(generale!$A$16:$G$4963,MATCH(NGG!$A176,generale!$A$16:$A$4963,0),COLUMN())=0,0,INDEX(generale!$A$16:$G$4963,MATCH(NGG!$A176,generale!$A$16:$A$4963,0),COLUMN())) -> 12 | G176: =generale!G186 -> T | H176: 1 | I176: 39 | J176: 62 | K176: 27 | L176: 12 | M176: 25 | N176: 2 | O176: 3 | P176: 6 | Q176: 35 | R176: 10 | S176: 13 | T176: 68 | U176: 0 | V176: 7 | W176: 9 | X176: 59 | Y176: 28 | Z176: 1 | AA176: 3 | AU176: 1 | AV176: 1 | AW176: 18 | AY176: 17
A177: =IF(generale!$A187>0,generale!$A187,"") -> 2005-06-23 | B177: =IF(INDEX(generale!$A$16:$G$4963,MATCH(NGG!$A177,generale!$A$16:$A$4963,0),COLUMN())=0,0,INDEX(generale!$A$16:$G$4963,MATCH(NGG!$A177,generale!$A$16:$A$4963,0),COLUMN())) -> 9 | C177: =IF(INDEX(generale!$A$16:$G$4963,MATCH(NGG!$A177,generale!$A$16:$A$4963,0),COLUMN())=0,0,INDEX(generale!$A$16:$G$4963,MATCH(NGG!$A177,generale!$A$16:$A$4963,0),COLUMN())) -> 11 | D177: =IF(INDEX(generale!$A$16:$G$4963,MATCH(NGG!$A177,generale!$A$16:$A$4963,0),COLUMN())=0,0,INDEX(generale!$A$16:$G$4963,MATCH(NGG!$A177,generale!$A$16:$A$4963,0),COLUMN())) -> 14 | E177: =IF(INDEX(generale!$A$16:$G$4963,MATCH(NGG!$A177,generale!$A$16:$A$4963,0),COLUMN())=0,0,INDEX(generale!$A$16:$G$4963,MATCH(NGG!$A177,generale!$A$16:$A$4963,0),COLUMN())) -> 10 | F177: =IF(INDEX(generale!$A$16:$G$4963,MATCH(NGG!$A177,generale!$A$16:$A$4963,0),COLUMN())=0,0,INDEX(generale!$A$16:$G$4963,MATCH(NGG!$A177,generale!$A$16:$A$4963,0),COLUMN())) -> 6 | G177: =generale!G187 -> P | H177: 2 | I177: 40 | J177: 63 | K177: 28 | L177: 13 | M177: 26 | N177: 3 | O177: 4 | P177: 0 | Q177: 36 | R177: 11 | S177: 14 | T177: 69 | U177: 1 | V177: 8 | W177: 10 | X177: 59 | Y177: 28 | Z177: 1 | AA177: 3 | AS177: 1 | AT177: 1 | AU177: 1 | AV177: 1 | AW177: 16 | AY177: 16
A178: =IF(generale!$A188>0,generale!$A188,"") -> 2005-06-24 | B178: =IF(INDEX(generale!$A$16:$G$4963,MATCH(NGG!$A178,generale!$A$16:$A$4963,0),COLUMN())=0,0,INDEX(generale!$A$16:$G$4963,MATCH(NGG!$A178,generale!$A$16:$A$4963,0),COLUMN())) -> 16 | C178: =IF(INDEX(generale!$A$16:$G$4963,MATCH(NGG!$A178,generale!$A$16:$A$4963,0),COLUMN())=0,0,INDEX(generale!$A$16:$G$4963,MATCH(NGG!$A178,generale!$A$16:$A$4963,0),COLUMN())) -> 2 | D178: =IF(INDEX(generale!$A$16:$G$4963,MATCH(NGG!$A178,generale!$A$16:$A$4963,0),COLUMN())=0,0,INDEX(generale!$A$16:$G$4963,MATCH(NGG!$A178,generale!$A$16:$A$4963,0),COLUMN())) -> 8 | E178: =IF(INDEX(generale!$A$16:$G$4963,MATCH(NGG!$A178,generale!$A$16:$A$4963,0),COLUMN())=0,0,INDEX(generale!$A$16:$G$4963,MATCH(NGG!$A178,generale!$A$16:$A$4963,0),COLUMN())) -> 12 | F178: =IF(INDEX(generale!$A$16:$G$4963,MATCH(NGG!$A178,generale!$A$16:$A$4963,0),COLUMN())=0,0,INDEX(generale!$A$16:$G$4963,MATCH(NGG!$A178,generale!$A$16:$A$4963,0),COLUMN())) -> 14 | G178: =generale!G188 -> O | H178: 3 | I178: 41 | J178: 64 | K178: 29 | L178: 14 | M178: 27 | N178: 4 | O178: 5 | P178: 1 | Q178: 37 | R178: 12 | S178: 15 | T178: 70 | U178: 2 | V178: 9 | W178: 0 | X178: 59 | Y178: 28 | Z178: 1 | AA178: 3 | AR178: 1 | AS178: 1 | AT178: 1 | AU178: 1 | AV178: 1 | AW178: 15 | AY178: 14
A179: =IF(generale!$A189>0,generale!$A189,"") -> 2005-06-25 | B179: =IF(INDEX(generale!$A$16:$G$4963,MATCH(NGG!$A179,generale!$A$16:$A$4963,0),COLUMN())=0,0,INDEX(generale!$A$16:$G$4963,MATCH(NGG!$A179,generale!$A$16:$A$4963,0),COLUMN())) -> 11 | C179: =IF(INDEX(generale!$A$16:$G$4963,MATCH(NGG!$A179,generale!$A$16:$A$4963,0),COLUMN())=0,0,INDEX(generale!$A$16:$G$4963,MATCH(NGG!$A179,generale!$A$16:$A$4963,0),COLUMN())) -> 14 | D179: =IF(INDEX(generale!$A$16:$G$4963,MATCH(NGG!$A179,generale!$A$16:$A$4963,0),COLUMN())=0,0,INDEX(generale!$A$16:$G$4963,MATCH(NGG!$A179,generale!$A$16:$A$4963,0),COLUMN())) -> 3 | E179: =IF(INDEX(generale!$A$16:$G$4963,MATCH(NGG!$A179,generale!$A$16:$A$4963,0),COLUMN())=0,0,INDEX(generale!$A$16:$G$4963,MATCH(NGG!$A179,generale!$A$16:$A$4963,0),COLUMN())) -> 12 | F179: =IF(INDEX(generale!$A$16:$G$4963,MATCH(NGG!$A179,generale!$A$16:$A$4963,0),COLUMN())=0,0,INDEX(generale!$A$16:$G$4963,MATCH(NGG!$A179,generale!$A$16:$A$4963,0),COLUMN())) -> 4 | G179: =generale!G189 -> T | H179: 4 | I179: 42 | J179: 65 | K179: 30 | L179: 15 | M179: 28 | N179: 5 | O179: 6 | P179: 2 | Q179: 38 | R179: 0 | S179: 16 | T179: 71 | U179: 3 | V179: 10 | W179: 1 | X179: 60 | Y179: 29 | Z179: 1 | AA179: 3 | AU179: 1 | AV179: 1 | AW179: 18 | AY179: 14
A180: =IF(generale!$A190>0,generale!$A190,"") -> 2005-06-26 | B180: =IF(INDEX(generale!$A$16:$G$4963,MATCH(NGG!$A180,generale!$A$16:$A$4963,0),COLUMN())=0,0,INDEX(generale!$A$16:$G$4963,MATCH(NGG!$A180,generale!$A$16:$A$4963,0),COLUMN())) -> 3 | C180: =IF(INDEX(generale!$A$16:$G$4963,MATCH(NGG!$A180,generale!$A$16:$A$4963,0),COLUMN())=0,0,INDEX(generale!$A$16:$G$4963,MATCH(NGG!$A180,generale!$A$16:$A$4963,0),COLUMN())) -> 7 | D180: =IF(INDEX(generale!$A$16:$G$4963,MATCH(NGG!$A180,generale!$A$16:$A$4963,0),COLUMN())=0,0,INDEX(generale!$A$16:$G$4963,MATCH(NGG!$A180,generale!$A$16:$A$4963,0),COLUMN())) -> 2 | E180: =IF(INDEX(generale!$A$16:$G$4963,MATCH(NGG!$A180,generale!$A$16:$A$4963,0),COLUMN())=0,0,INDEX(generale!$A$16:$G$4963,MATCH(NGG!$A180,generale!$A$16:$A$4963,0),COLUMN())) -> 17 | F180: =IF(INDEX(generale!$A$16:$G$4963,MATCH(NGG!$A180,generale!$A$16:$A$4963,0),COLUMN())=0,0,INDEX(generale!$A$16:$G$4963,MATCH(NGG!$A180,generale!$A$16:$A$4963,0),COLUMN())) -> 11 | G180: =generale!G190 -> P | H180: 5 | I180: 43 | J180: 0 | K180: 31 | L180: 16 | M180: 29 | N180: 6 | O180: 7 | P180: 3 | Q180: 39 | R180: 1 | S180: 17 | T180: 72 | U180: 4 | V180: 11 | W180: 2 | X180: =IF(COUNTIF($B180:$D180,0)<3,IF(LEN(SUBSTITUTE(SUBSTITUTE($B180,X$1,,1),,1))=0,0,X179+1-AS180),"") -> 61 | Y180: 29 | Z180: 1 | AA180: 3 | AT180: 1 | AU180: 1 | AV180: 1 | AW180: 17 | AY180: 17
A181: =IF(generale!$A191>0,generale!$A191,"") -> 2005-06-27 | B181: =IF(INDEX(generale!$A$16:$G$4963,MATCH(NGG!$A181,generale!$A$16:$A$4963,0),COLUMN())=0,0,INDEX(generale!$A$16:$G$4963,MATCH(NGG!$A181,generale!$A$16:$A$4963,0),COLUMN())) -> 16 | C181: =IF(INDEX(generale!$A$16:$G$4963,MATCH(NGG!$A181,generale!$A$16:$A$4963,0),COLUMN())=0,0,INDEX(generale!$A$16:$G$4963,MATCH(NGG!$A181,generale!$A$16:$A$4963,0),COLUMN())) -> 9 | D181: =IF(INDEX(generale!$A$16:$G$4963,MATCH(NGG!$A181,generale!$A$16:$A$4963,0),COLUMN())=0,0,INDEX(generale!$A$16:$G$4963,MATCH(NGG!$A181,generale!$A$16:$A$4963,0),COLUMN())) -> 13 | E181: =IF(INDEX(generale!$A$16:$G$4963,MATCH(NGG!$A181,generale!$A$16:$A$4963,0),COLUMN())=0,0,INDEX(generale!$A$16:$G$4963,MATCH(NGG!$A181,generale!$A$16:$A$4963,0),COLUMN())) -> 12 | F181: =IF(INDEX(generale!$A$16:$G$4963,MATCH(NGG!$A181,generale!$A$16:$A$4963,0),COLUMN())=0,0,INDEX(generale!$A$16:$G$4963,MATCH(NGG!$A181,generale!$A$16:$A$4963,0),COLUMN())) -> 15 | G181: =generale!G191 -> P | H181: 6 | I181: 44 | J181: 1 | K181: 32 | L181: 17 | M181: 30 | N181: 7 | O181: 8 | P181: 4 | Q181: 40 | R181: 2 | S181: 18 | T181: 73 | U181: 5 | V181: 12 | W181: 0 | X181: 61 | Y181: 29 | Z181: 1 | AA181: 3 | AS181: 1 | AT181: 1 | AU181: 1 | AV181: 1 | AW181: 16 | AX181: 6 | AY181: 18
A182: =IF(generale!$A192>0,generale!$A192,"") -> 2005-06-28 | B182: =IF(INDEX(generale!$A$16:$G$4963,MATCH(NGG!$A182,generale!$A$16:$A$4963,0),COLUMN())=0,0,INDEX(generale!$A$16:$G$4963,MATCH(NGG!$A182,generale!$A$16:$A$4963,0),COLUMN())) -> 1 | C182: =IF(INDEX(generale!$A$16:$G$4963,MATCH(NGG!$A182,generale!$A$16:$A$4963,0),COLUMN())=0,0,INDEX(generale!$A$16:$G$4963,MATCH(NGG!$A182,generale!$A$16:$A$4963,0),COLUMN())) -> 15 | D182: =IF(INDEX(generale!$A$16:$G$4963,MATCH(NGG!$A182,generale!$A$16:$A$4963,0),COLUMN())=0,0,INDEX(generale!$A$16:$G$4963,MATCH(NGG!$A182,generale!$A$16:$A$4963,0),COLUMN())) -> 2 | E182: =IF(INDEX(generale!$A$16:$G$4963,MATCH(NGG!$A182,generale!$A$16:$A$4963,0),COLUMN())=0,0,INDEX(generale!$A$16:$G$4963,MATCH(NGG!$A182,generale!$A$16:$A$4963,0),COLUMN())) -> 7 | F182: =IF(INDEX(generale!$A$16:$G$4963,MATCH(NGG!$A182,generale!$A$16:$A$4963,0),COLUMN())=0,0,INDEX(generale!$A$16:$G$4963,MATCH(NGG!$A182,generale!$A$16:$A$4963,0),COLUMN())) -> 4 | G182: =generale!G192 -> T | H182: =IF(COUNTIF($B182:$D182,0)<3,IF(LEN(SUBSTITUTE(SUBSTITUTE($B182,H$1,,1),,1))=0,0,H181+1-AC182),"") -> 0 | I182: 45 | J182: 2 | K182: 33 | L182: 18 | M182: 31 | N182: 8 | O182: 9 | P182: 5 | Q182: 41 | R182: 3 | S182: 19 | T182: 74 | U182: 6 | V182: 13 | W182: 1 | X182: 61 | Y182: 29 | Z182: 1 | AA182: 3 | AS182: 1 | AT182: 1 | AU182: 1 | AV182: 1 | AW182: 16 | AY182: 15
A183: =IF(generale!$A193>0,generale!$A193,"") -> 2005-06-29 | B183: =IF(INDEX(generale!$A$16:$G$4963,MATCH(NGG!$A183,generale!$A$16:$A$4963,0),COLUMN())=0,0,INDEX(generale!$A$16:$G$4963,MATCH(NGG!$A183,generale!$A$16:$A$4963,0),COLUMN())) -> 12 | C183: =IF(INDEX(generale!$A$16:$G$4963,MATCH(NGG!$A183,generale!$A$16:$A$4963,0),COLUMN())=0,0,INDEX(generale!$A$16:$G$4963,MATCH(NGG!$A183,generale!$A$16:$A$4963,0),COLUMN())) -> 11 | D183: =IF(INDEX(generale!$A$16:$G$4963,MATCH(NGG!$A183,generale!$A$16:$A$4963,0),COLUMN())=0,0,INDEX(generale!$A$16:$G$4963,MATCH(NGG!$A183,generale!$A$16:$A$4963,0),COLUMN())) -> 14 | E183: =IF(INDEX(generale!$A$16:$G$4963,MATCH(NGG!$A183,generale!$A$16:$A$4963,0),COLUMN())=0,0,INDEX(generale!$A$16:$G$4963,MATCH(NGG!$A183,generale!$A$16:$A$4963,0),COLUMN())) -> 13 | F183: =IF(INDEX(generale!$A$16:$G$4963,MATCH(NGG!$A183,generale!$A$16:$A$4963,0),COLUMN())=0,0,INDEX(generale!$A$16:$G$4963,MATCH(NGG!$A183,generale!$A$16:$A$4963,0),COLUMN())) -> 4 | G183: =generale!G193 -> P | H183: 1 | I183: 46 | J183: 3 | K183: 34 | L183: 19 | M183: 32 | N183: 9 | O183: 10 | P183: 6 | Q183: 42 | R183: 4 | S183: 0 | T183: 75 | U183: 7 | V183: 14 | W183: 2 | X183: 61 | Y183: 29 | Z183: 1 | AA183: 3 | AS183: 1 | AT183: 1 | AU183: 1 | AV183: 1 | AW183: 16 | AY183: 15
A184: =IF(generale!$A194>0,generale!$A194,"") -> 2005-06-30 | B184: =IF(INDEX(generale!$A$16:$G$4963,MATCH(NGG!$A184,generale!$A$16:$A$4963,0),COLUMN())=0,0,INDEX(generale!$A$16:$G$4963,MATCH(NGG!$A184,generale!$A$16:$A$4963,0),COLUMN())) -> 4 | C184: =IF(INDEX(generale!$A$16:$G$4963,MATCH(NGG!$A184,generale!$A$16:$A$4963,0),COLUMN())=0,0,INDEX(generale!$A$16:$G$4963,MATCH(NGG!$A184,generale!$A$16:$A$4963,0),COLUMN())) -> 14 | D184: =IF(INDEX(generale!$A$16:$G$4963,MATCH(NGG!$A184,generale!$A$16:$A$4963,0),COLUMN())=0,0,INDEX(generale!$A$16:$G$4963,MATCH(NGG!$A184,generale!$A$16:$A$4963,0),COLUMN())) -> 13 | E184: =IF(INDEX(generale!$A$16:$G$4963,MATCH(NGG!$A184,generale!$A$16:$A$4963,0),COLUMN())=0,0,INDEX(generale!$A$16:$G$4963,MATCH(NGG!$A184,generale!$A$16:$A$4963,0),COLUMN())) -> 6 | F184: =IF(INDEX(generale!$A$16:$G$4963,MATCH(NGG!$A184,generale!$A$16:$A$4963,0),COLUMN())=0,0,INDEX(generale!$A$16:$G$4963,MATCH(NGG!$A184,generale!$A$16:$A$4963,0),COLUMN())) -> 9 | G184: =generale!G194 -> T | H184: 2 | I184: 47 | J184: 4 | K184: 0 | L184: 20 | M184: 33 | N184: 10 | O184: 11 | P184: 7 | Q184: 43 | R184: 5 | S184: 1 | T184: 76 | U184: 8 | V184: 15 | W184: 3 | X184: 61 | Y184: 29 | Z184: 1 | AA184: 3 | AS184: 1 | AT184: 1 | AU184: 1 | AV184: 1 | AW184: 16 | AY184: 14
A185: =IF(generale!$A195>0,generale!$A195,"") -> 2005-07-01 | B185: =IF(INDEX(generale!$A$16:$G$4963,MATCH(NGG!$A185,generale!$A$16:$A$4963,0),COLUMN())=0,0,INDEX(generale!$A$16:$G$4963,MATCH(NGG!$A185,generale!$A$16:$A$4963,0),COLUMN())) -> 1 | C185: =IF(INDEX(generale!$A$16:$G$4963,MATCH(NGG!$A185,generale!$A$16:$A$4963,0),COLUMN())=0,0,INDEX(generale!$A$16:$G$4963,MATCH(NGG!$A185,generale!$A$16:$A$4963,0),COLUMN())) -> 18 | D185: =IF(INDEX(generale!$A$16:$G$4963,MATCH(NGG!$A185,generale!$A$16:$A$4963,0),COLUMN())=0,0,INDEX(generale!$A$16:$G$4963,MATCH(NGG!$A185,generale!$A$16:$A$4963,0),COLUMN())) -> 10 | E185: =IF(INDEX(generale!$A$16:$G$4963,MATCH(NGG!$A185,generale!$A$16:$A$4963,0),COLUMN())=0,0,INDEX(generale!$A$16:$G$4963,MATCH(NGG!$A185,generale!$A$16:$A$4963,0),COLUMN())) -> 11 | F185: =IF(INDEX(generale!$A$16:$G$4963,MATCH(NGG!$A185,generale!$A$16:$A$4963,0),COLUMN())=0,0,INDEX(generale!$A$16:$G$4963,MATCH(NGG!$A185,generale!$A$16:$A$4963,0),COLUMN())) -> 14 | G185: =generale!G195 -> T | H185: 0 | I185: 48 | J185: 5 | K185: 1 | L185: 21 | M185: 34 | N185: 11 | O185: 12 | P185: 8 | Q185: 44 | R185: 6 | S185: 2 | T185: 77 | U185: 9 | V185: 16 | W185: 4 | X185: 61 | Y185: 29 | Z185: 1 | AA185: 3 | AS185: 1 | AT185: 1 | AU185: 1 | AV185: 1 | AW185: 16 | AY185: 18
A186: =IF(generale!$A196>0,generale!$A196,"") -> 2005-07-02 | B186: =IF(INDEX(generale!$A$16:$G$4963,MATCH(NGG!$A186,generale!$A$16:$A$4963,0),COLUMN())=0,0,INDEX(generale!$A$16:$G$4963,MATCH(NGG!$A186,generale!$A$16:$A$4963,0),COLUMN())) -> 8 | C186: =IF(INDEX(generale!$A$16:$G$4963,MATCH(NGG!$A186,generale!$A$16:$A$4963,0),COLUMN())=0,0,INDEX(generale!$A$16:$G$4963,MATCH(NGG!$A186,generale!$A$16:$A$4963,0),COLUMN())) -> 1 | D186: =IF(INDEX(generale!$A$16:$G$4963,MATCH(NGG!$A186,generale!$A$16:$A$4963,0),COLUMN())=0,0,INDEX(generale!$A$16:$G$4963,MATCH(NGG!$A186,generale!$A$16:$A$4963,0),COLUMN())) -> 3 | E186: =IF(INDEX(generale!$A$16:$G$4963,MATCH(NGG!$A186,generale!$A$16:$A$4963,0),COLUMN())=0,0,INDEX(generale!$A$16:$G$4963,MATCH(NGG!$A186,generale!$A$16:$A$4963,0),COLUMN())) -> 7 | F186: =IF(INDEX(generale!$A$16:$G$4963,MATCH(NGG!$A186,generale!$A$16:$A$4963,0),COLUMN())=0,0,INDEX(generale!$A$16:$G$4963,MATCH(NGG!$A186,generale!$A$16:$A$4963,0),COLUMN())) -> 2 | G186: =generale!G196 -> P | H186: 1 | I186: 49 | J186: 6 | K186: 2 | L186: 22 | M186: 35 | N186: 12 | O186: 0 | P186: 9 | Q186: 45 | R186: 7 | S186: 3 | T186: 78 | U186: 10 | V186: 17 | W186: 5 | X186: 61 | Y186: 29 | Z186: 1 | AA186: 3 | AS186: 1 | AT186: 1 | AU186: 1 | AV186: 1 | AW186: 16 | AY186: 14
A187: =IF(generale!$A197>0,generale!$A197,"") -> 2005-07-03 | B187: =IF(INDEX(generale!$A$16:$G$4963,MATCH(NGG!$A187,generale!$A$16:$A$4963,0),COLUMN())=0,0,INDEX(generale!$A$16:$G$4963,MATCH(NGG!$A187,generale!$A$16:$A$4963,0),COLUMN())) -> 12 | C187: =IF(INDEX(generale!$A$16:$G$4963,MATCH(NGG!$A187,generale!$A$16:$A$4963,0),COLUMN())=0,0,INDEX(generale!$A$16:$G$4963,MATCH(NGG!$A187,generale!$A$16:$A$4963,0),COLUMN())) -> 4 | D187: =IF(INDEX(generale!$A$16:$G$4963,MATCH(NGG!$A187,generale!$A$16:$A$4963,0),COLUMN())=0,0,INDEX(generale!$A$16:$G$4963,MATCH(NGG!$A187,generale!$A$16:$A$4963,0),COLUMN())) -> 3 | E187: =IF(INDEX(generale!$A$16:$G$4963,MATCH(NGG!$A187,generale!$A$16:$A$4963,0),COLUMN())=0,0,INDEX(generale!$A$16:$G$4963,MATCH(NGG!$A187,generale!$A$16:$A$4963,0),COLUMN())) -> 5 | F187: =IF(INDEX(generale!$A$16:$G$4963,MATCH(NGG!$A187,generale!$A$16:$A$4963,0),COLUMN())=0,0,INDEX(generale!$A$16:$G$4963,MATCH(NGG!$A187,generale!$A$16:$A$4963,0),COLUMN())) -> 7 | G187: =generale!G197 -> P | H187: 2 | I187: 50 | J187: 7 | K187: 3 | L187: 23 | M187: 36 | N187: 13 | O187: 1 | P187: 10 | Q187: 46 | R187: 8 | S187: 0 | T187: 79 | U187: 11 | V187: 18 | W187: 6 | X187: 61 | Y187: 29 | Z187: 1 | AA187: 3 | AS187: 1 | AT187: 1 | AU187: 1 | AV187: 1 | AW187: 16 | AY187: 14
A188: =IF(generale!$A198>0,generale!$A198,"") -> 2005-07-04 | B188: =IF(INDEX(generale!$A$16:$G$4963,MATCH(NGG!$A188,generale!$A$16:$A$4963,0),COLUMN())=0,0,INDEX(generale!$A$16:$G$4963,MATCH(NGG!$A188,generale!$A$16:$A$4963,0),COLUMN())) -> 15 | C188: =IF(INDEX(generale!$A$16:$G$4963,MATCH(NGG!$A188,generale!$A$16:$A$4963,0),COLUMN())=0,0,INDEX(generale!$A$16:$G$4963,MATCH(NGG!$A188,generale!$A$16:$A$4963,0),COLUMN())) -> 16 | D188: =IF(INDEX(generale!$A$16:$G$4963,MATCH(NGG!$A188,generale!$A$16:$A$4963,0),COLUMN())=0,0,INDEX(generale!$A$16:$G$4963,MATCH(NGG!$A188,generale!$A$16:$A$4963,0),COLUMN())) -> 10 | E188: =IF(INDEX(generale!$A$16:$G$4963,MATCH(NGG!$A188,generale!$A$16:$A$4963,0),COLUMN())=0,0,INDEX(generale!$A$16:$G$4963,MATCH(NGG!$A188,generale!$A$16:$A$4963,0),COLUMN())) -> 1 | F188: =IF(INDEX(generale!$A$16:$G$4963,MATCH(NGG!$A188,generale!$A$16:$A$4963,0),COLUMN())=0,0,INDEX(generale!$A$16:$G$4963,MATCH(NGG!$A188,generale!$A$16:$A$4963,0),COLUMN())) -> 9 | G188: =generale!G198 -> O | H188: 3 | I188: 51 | J188: 8 | K188: 4 | L188: 24 | M188: 37 | N188: 14 | O188: 2 | P188: 11 | Q188: 47 | R188: 9 | S188: 1 | T188: 80 | U188: 12 | V188: 0 | W188: 7 | X188: 62 | Y188: 30 | Z188: 1 | AA188: 3 | AU188: 1 | AV188: 1 | AW188: 18 | AY188: 15
A189: =IF(generale!$A199>0,generale!$A199,"") -> 2005-07-05 | B189: =IF(INDEX(generale!$A$16:$G$4963,MATCH(NGG!$A189,generale!$A$16:$A$4963,0),COLUMN())=0,0,INDEX(generale!$A$16:$G$4963,MATCH(NGG!$A189,generale!$A$16:$A$4963,0),COLUMN())) -> 3 | C189: =IF(INDEX(generale!$A$16:$G$4963,MATCH(NGG!$A189,generale!$A$16:$A$4963,0),COLUMN())=0,0,INDEX(generale!$A$16:$G$4963,MATCH(NGG!$A189,generale!$A$16:$A$4963,0),COLUMN())) -> 4 | D189: =IF(INDEX(generale!$A$16:$G$4963,MATCH(NGG!$A189,generale!$A$16:$A$4963,0),COLUMN())=0,0,INDEX(generale!$A$16:$G$4963,MATCH(NGG!$A189,generale!$A$16:$A$4963,0),COLUMN())) -> 5 | E189: =IF(INDEX(generale!$A$16:$G$4963,MATCH(NGG!$A189,generale!$A$16:$A$4963,0),COLUMN())=0,0,INDEX(generale!$A$16:$G$4963,MATCH(NGG!$A189,generale!$A$16:$A$4963,0),COLUMN())) -> 6 | F189: =IF(INDEX(generale!$A$16:$G$4963,MATCH(NGG!$A189,generale!$A$16:$A$4963,0),COLUMN())=0,0,INDEX(generale!$A$16:$G$4963,MATCH(NGG!$A189,generale!$A$16:$A$4963,0),COLUMN())) -> 16 | G189: =generale!G199 -> P | H189: 4 | I189: 52 | J189: 0 | K189: 5 | L189: 25 | M189: 38 | N189: 15 | O189: 3 | P189: 12 | Q189: 48 | R189: 10 | S189: 2 | T189: 81 | U189: 13 | V189: 1 | W189: 7 | X189: 62 | Y189: 30 | Z189: 1 | AA189: 3 | AR189: 1 | AS189: 1 | AT189: 1 | AU189: 1 | AV189: 1 | AW189: 15 | AY189: 20
A190: =IF(generale!$A200>0,generale!$A200,"") -> 2005-07-06 | B190: =IF(INDEX(generale!$A$16:$G$4963,MATCH(NGG!$A190,generale!$A$16:$A$4963,0),COLUMN())=0,0,INDEX(generale!$A$16:$G$4963,MATCH(NGG!$A190,generale!$A$16:$A$4963,0),COLUMN())) -> 15 | C190: =IF(INDEX(generale!$A$16:$G$4963,MATCH(NGG!$A190,generale!$A$16:$A$4963,0),COLUMN())=0,0,INDEX(generale!$A$16:$G$4963,MATCH(NGG!$A190,generale!$A$16:$A$4963,0),COLUMN())) -> 5 | D190: =IF(INDEX(generale!$A$16:$G$4963,MATCH(NGG!$A190,generale!$A$16:$A$4963,0),COLUMN())=0,0,INDEX(generale!$A$16:$G$4963,MATCH(NGG!$A190,generale!$A$16:$A$4963,0),COLUMN())) -> 6 | E190: =IF(INDEX(generale!$A$16:$G$4963,MATCH(NGG!$A190,generale!$A$16:$A$4963,0),COLUMN())=0,0,INDEX(generale!$A$16:$G$4963,MATCH(NGG!$A190,generale!$A$16:$A$4963,0),COLUMN())) -> 3 | F190: =IF(INDEX(generale!$A$16:$G$4963,MATCH(NGG!$A190,generale!$A$16:$A$4963,0),COLUMN())=0,0,INDEX(generale!$A$16:$G$4963,MATCH(NGG!$A190,generale!$A$16:$A$4963,0),COLUMN())) -> 12 | G190: =generale!G200 -> T | H190: 5 | I190: 53 | J190: 1 | K190: 6 | L190: 26 | M190: 39 | N190: 16 | O190: 4 | P190: 13 | Q190: 49 | R190: 11 | S190: 3 | T190: 82 | U190: 14 | V190: 0 | W190: 8 | X190: 62 | Y190: 30 | Z190: 1 | AA190: 3 | AS190: 1 | AT190: 1 | AU190: 1 | AV190: 1 | AW190: 16 | AX190: 8-14 | AY190: 16
A191: =IF(generale!$A201>0,generale!$A201,"") -> 2005-07-07 | B191: =IF(INDEX(generale!$A$16:$G$4963,MATCH(NGG!$A191,generale!$A$16:$A$4963,0),COLUMN())=0,0,INDEX(generale!$A$16:$G$4963,MATCH(NGG!$A191,generale!$A$16:$A$4963,0),COLUMN())) -> 6 | C191: =IF(INDEX(generale!$A$16:$G$4963,MATCH(NGG!$A191,generale!$A$16:$A$4963,0),COLUMN())=0,0,INDEX(generale!$A$16:$G$4963,MATCH(NGG!$A191,generale!$A$16:$A$4963,0),COLUMN())) -> 5 | D191: =IF(INDEX(generale!$A$16:$G$4963,MATCH(NGG!$A191,generale!$A$16:$A$4963,0),COLUMN())=0,0,INDEX(generale!$A$16:$G$4963,MATCH(NGG!$A191,generale!$A$16:$A$4963,0),COLUMN())) -> 17 | E191: =IF(INDEX(generale!$A$16:$G$4963,MATCH(NGG!$A191,generale!$A$16:$A$4963,0),COLUMN())=0,0,INDEX(generale!$A$16:$G$4963,MATCH(NGG!$A191,generale!$A$16:$A$4963,0),COLUMN())) -> 4 | F191: =IF(INDEX(generale!$A$16:$G$4963,MATCH(NGG!$A191,generale!$A$16:$A$4963,0),COLUMN())=0,0,INDEX(generale!$A$16:$G$4963,MATCH(NGG!$A191,generale!$A$16:$A$4963,0),COLUMN())) -> 3 | G191: =generale!G201 -> T | H191: 6 | I191: 54 | J191: 2 | K191: 7 | L191: 27 | M191: 0 | N191: 17 | O191: 5 | P191: 14 | Q191: 50 | R191: 12 | S191: 4 | T191: 83 | U191: 15 | V191: 1 | W191: 9 | X191: 62 | Y191: 30 | Z191: 1 | AA191: 3 | AS191: 1 | AT191: 1 | AU191: 1 | AV191: 1 | AW191: 16 | AY191: 18
A192: =IF(generale!$A202>0,generale!$A202,"") -> 2005-07-08 | B192: =IF(INDEX(generale!$A$16:$G$4963,MATCH(NGG!$A192,generale!$A$16:$A$4963,0),COLUMN())=0,0,INDEX(generale!$A$16:$G$4963,MATCH(NGG!$A192,generale!$A$16:$A$4963,0),COLUMN())) -> 8 | C192: =IF(INDEX(generale!$A$16:$G$4963,MATCH(NGG!$A192,generale!$A$16:$A$4963,0),COLUMN())=0,0,INDEX(generale!$A$16:$G$4963,MATCH(NGG!$A192,generale!$A$16:$A$4963,0),COLUMN())) -> 12 | D192: =IF(INDEX(generale!$A$16:$G$4963,MATCH(NGG!$A192,generale!$A$16:$A$4963,0),COLUMN())=0,0,INDEX(generale!$A$16:$G$4963,MATCH(NGG!$A192,generale!$A$16:$A$4963,0),COLUMN())) -> 4 | E192: =IF(INDEX(generale!$A$16:$G$4963,MATCH(NGG!$A192,generale!$A$16:$A$4963,0),COLUMN())=0,0,INDEX(generale!$A$16:$G$4963,MATCH(NGG!$A192,generale!$A$16:$A$4963,0),COLUMN())) -> 13 | F192: =IF(INDEX(generale!$A$16:$G$4963,MATCH(NGG!$A192,generale!$A$16:$A$4963,0),COLUMN())=0,0,INDEX(generale!$A$16:$G$4963,MATCH(NGG!$A192,generale!$A$16:$A$4963,0),COLUMN())) -> 1 | G192: =generale!G202 -> T | H192: 7 | I192: 55 | J192: 3 | K192: 8 | L192: 28 | M192: 1 | N192: 18 | O192: 0 | P192: 15 | Q192: 51 | R192: 13 | S192: 5 | T192: 84 | U192: 16 | V192: 2 | W192: 10 | X192: 62 | Y192: 30 | Z192: 1 | AA192: 3 | AS192: 1 | AT192: 1 | AU192: 1 | AV192: 1 | AW192: 16 | AY192: 16
A193: =IF(generale!$A203>0,generale!$A203,"") -> 2005-07-09 | B193: =IF(INDEX(generale!$A$16:$G$4963,MATCH(NGG!$A193,generale!$A$16:$A$4963,0),COLUMN())=0,0,INDEX(generale!$A$16:$G$4963,MATCH(NGG!$A193,generale!$A$16:$A$4963,0),COLUMN())) -> 13 | C193: =IF(INDEX(generale!$A$16:$G$4963,MATCH(NGG!$A193,generale!$A$16:$A$4963,0),COLUMN())=0,0,INDEX(generale!$A$16:$G$4963,MATCH(NGG!$A193,generale!$A$16:$A$4963,0),COLUMN())) -> 7 | D193: =IF(INDEX(generale!$A$16:$G$4963,MATCH(NGG!$A193,generale!$A$16:$A$4963,0),COLUMN())=0,0,INDEX(generale!$A$16:$G$4963,MATCH(NGG!$A193,generale!$A$16:$A$4963,0),COLUMN())) -> 8 | E193: =IF(INDEX(generale!$A$16:$G$4963,MATCH(NGG!$A193,generale!$A$16:$A$4963,0),COLUMN())=0,0,INDEX(generale!$A$16:$G$4963,MATCH(NGG!$A193,generale!$A$16:$A$4963,0),COLUMN())) -> 3 | F193: =IF(INDEX(generale!$A$16:$G$4963,MATCH(NGG!$A193,generale!$A$16:$A$4963,0),COLUMN())=0,0,INDEX(generale!$A$16:$G$4963,MATCH(NGG!$A193,generale!$A$16:$A$4963,0),COLUMN())) -> 10 | G193: =generale!G203 -> T | H193: 8 | I193: 56 | J193: 4 | K193: 9 | L193: 29 | M193: 2 | N193: 19 | O193: 1 | P193: 16 | Q193: 52 | R193: 14 | S193: 6 | T193: 0 | U193: 17 | V193: 3 | W193: 10 | X193: 62 | Y193: 30 | Z193: 1 | AA193: 3 | AR193: 1 | AS193: 1 | AT193: 1 | AU193: 1 | AV193: 1 | AW193: 15 | AY193: 13
A194: =IF(generale!$A204>0,generale!$A204,"") -> 2005-07-10 | B194: =IF(INDEX(generale!$A$16:$G$4963,MATCH(NGG!$A194,generale!$A$16:$A$4963,0),COLUMN())=0,0,INDEX(generale!$A$16:$G$4963,MATCH(NGG!$A194,generale!$A$16:$A$4963,0),COLUMN())) -> 15 | C194: =IF(INDEX(generale!$A$16:$G$4963,MATCH(NGG!$A194,generale!$A$16:$A$4963,0),COLUMN())=0,0,INDEX(generale!$A$16:$G$4963,MATCH(NGG!$A194,generale!$A$16:$A$4963,0),COLUMN())) -> 6 | D194: =IF(INDEX(generale!$A$16:$G$4963,MATCH(NGG!$A194,generale!$A$16:$A$4963,0),COLUMN())=0,0,INDEX(generale!$A$16:$G$4963,MATCH(NGG!$A194,generale!$A$16:$A$4963,0),COLUMN())) -> 9 | E194: =IF(INDEX(generale!$A$16:$G$4963,MATCH(NGG!$A194,generale!$A$16:$A$4963,0),COLUMN())=0,0,INDEX(generale!$A$16:$G$4963,MATCH(NGG!$A194,generale!$A$16:$A$4963,0),COLUMN())) -> 8 | F194: =IF(INDEX(generale!$A$16:$G$4963,MATCH(NGG!$A194,generale!$A$16:$A$4963,0),COLUMN())=0,0,INDEX(generale!$A$16:$G$4963,MATCH(NGG!$A194,generale!$A$16:$A$4963,0),COLUMN())) -> 17 | G194: =generale!G204 -> P | H194: 9 | I194: 57 | J194: 5 | K194: 10 | L194: 30 | M194: 3 | N194: 20 | O194: 2 | P194: 17 | Q194: 53 | R194: 15 | S194: 7 | T194: 1 | U194: 18 | V194: 0 | W194: 10 | X194: 62 | Y194: 30 | Z194: 1 | AA194: 3 | AR194: 1 | AS194: 1 | AT194: 1 | AU194: 1 | AV194: 1 | AW194: 15 | AY194: 18
A195: =IF(generale!$A205>0,generale!$A205,"") -> 2005-07-11 | B195: =IF(INDEX(generale!$A$16:$G$4963,MATCH(NGG!$A195,generale!$A$16:$A$4963,0),COLUMN())=0,0,INDEX(generale!$A$16:$G$4963,MATCH(NGG!$A195,generale!$A$16:$A$4963,0),COLUMN())) -> 3 | C195: =IF(INDEX(generale!$A$16:$G$4963,MATCH(NGG!$A195,generale!$A$16:$A$4963,0),COLUMN())=0,0,INDEX(generale!$A$16:$G$4963,MATCH(NGG!$A195,generale!$A$16:$A$4963,0),COLUMN())) -> 13 | D195: =IF(INDEX(generale!$A$16:$G$4963,MATCH(NGG!$A195,generale!$A$16:$A$4963,0),COLUMN())=0,0,INDEX(generale!$A$16:$G$4963,MATCH(NGG!$A195,generale!$A$16:$A$4963,0),COLUMN())) -> 7 | E195: =IF(INDEX(generale!$A$16:$G$4963,MATCH(NGG!$A195,generale!$A$16:$A$4963,0),COLUMN())=0,0,INDEX(generale!$A$16:$G$4963,MATCH(NGG!$A195,generale!$A$16:$A$4963,0),COLUMN())) -> 4 | F195: =IF(INDEX(generale!$A$16:$G$4963,MATCH(NGG!$A195,generale!$A$16:$A$4963,0),COLUMN())=0,0,INDEX(generale!$A$16:$G$4963,MATCH(NGG!$A195,generale!$A$16:$A$4963,0),COLUMN())) -> 12 | G195: =generale!G205 -> P | H195: 10 | I195: 58 | J195: 0 | K195: 11 | L195: 31 | M195: 4 | N195: 21 | O195: 3 | P195: 18 | Q195: 54 | R195: 16 | S195: 8 | T195: 2 | U195: 19 | V195: 1 | W195: 10 | X195: 62 | Y195: 30 | Z195: 1 | AA195: 3 | AR195: 1 | AS195: 1 | AT195: 1 | AU195: 1 | AV195: 1 | AW195: 15 | AY195: 18
A196: =IF(generale!$A206>0,generale!$A206,"") -> 2005-07-12 | B196: =IF(INDEX(generale!$A$16:$G$4963,MATCH(NGG!$A196,generale!$A$16:$A$4963,0),COLUMN())=0,0,INDEX(generale!$A$16:$G$4963,MATCH(NGG!$A196,generale!$A$16:$A$4963,0),COLUMN())) -> 8 | C196: =IF(INDEX(generale!$A$16:$G$4963,MATCH(NGG!$A196,generale!$A$16:$A$4963,0),COLUMN())=0,0,INDEX(generale!$A$16:$G$4963,MATCH(NGG!$A196,generale!$A$16:$A$4963,0),COLUMN())) -> 17 | D196: =IF(INDEX(generale!$A$16:$G$4963,MATCH(NGG!$A196,generale!$A$16:$A$4963,0),COLUMN())=0,0,INDEX(generale!$A$16:$G$4963,MATCH(NGG!$A196,generale!$A$16:$A$4963,0),COLUMN())) -> 15 | E196: =IF(INDEX(generale!$A$16:$G$4963,MATCH(NGG!$A196,generale!$A$16:$A$4963,0),COLUMN())=0,0,INDEX(generale!$A$16:$G$4963,MATCH(NGG!$A196,generale!$A$16:$A$4963,0),COLUMN())) -> 10 | F196: =IF(INDEX(generale!$A$16:$G$4963,MATCH(NGG!$A196,generale!$A$16:$A$4963,0),COLUMN())=0,0,INDEX(generale!$A$16:$G$4963,MATCH(NGG!$A196,generale!$A$16:$A$4963,0),COLUMN())) -> 6 | G196: =generale!G206 -> O | H196: 11 | I196: 59 | J196: 1 | K196: 12 | L196: 32 | M196: 5 | N196: 22 | O196: 0 | P196: 19 | Q196: 55 | R196: 17 | S196: 9 | T196: 3 | U196: 20 | V196: 2 | W196: 11 | X196: =IF(COUNTIF($B196:$D196,0)<3,IF(LEN(SUBSTITUTE(SUBSTITUTE($B196,X$1,,1),,1))=0,0,X195+1-AS196),"") -> 62 | Y196: 30 | Z196: 1 | AA196: 3 | AS196: 1 | AT196: 1 | AU196: 1 | AV196: 1 | AW196: =IF(A196<>"",20-SUM(AC196:AV196),"") -> 16 | AY196: 18
A197: =IF(generale!$A207>0,generale!$A207,"") -> 2005-07-13 | B197: =IF(INDEX(generale!$A$16:$G$4963,MATCH(NGG!$A197,generale!$A$16:$A$4963,0),COLUMN())=0,0,INDEX(generale!$A$16:$G$4963,MATCH(NGG!$A197,generale!$A$16:$A$4963,0),COLUMN())) -> 7 | C197: =IF(INDEX(generale!$A$16:$G$4963,MATCH(NGG!$A197,generale!$A$16:$A$4963,0),COLUMN())=0,0,INDEX(generale!$A$16:$G$4963,MATCH(NGG!$A197,generale!$A$16:$A$4963,0),COLUMN())) -> 2 | D197: =IF(INDEX(generale!$A$16:$G$4963,MATCH(NGG!$A197,generale!$A$16:$A$4963,0),COLUMN())=0,0,INDEX(generale!$A$16:$G$4963,MATCH(NGG!$A197,generale!$A$16:$A$4963,0),COLUMN())) -> 12 | E197: =IF(INDEX(generale!$A$16:$G$4963,MATCH(NGG!$A197,generale!$A$16:$A$4963,0),COLUMN())=0,0,INDEX(generale!$A$16:$G$4963,MATCH(NGG!$A197,generale!$A$16:$A$4963,0),COLUMN())) -> 14 | F197: =IF(INDEX(generale!$A$16:$G$4963,MATCH(NGG!$A197,generale!$A$16:$A$4963,0),COLUMN())=0,0,INDEX(generale!$A$16:$G$4963,MATCH(NGG!$A197,generale!$A$16:$A$4963,0),COLUMN())) -> 11 | G197: =generale!G207 -> T | H197: 12 | I197: 60 | J197: 2 | K197: 13 | L197: 33 | M197: 6 | N197: 0 | O197: 1 | P197: 20 | Q197: 56 | R197: 18 | S197: 10 | T197: 4 | U197: 21 | V197: 3 | W197: =IF(COUNTIF($B197:$D197,0)<3,IF(LEN(SUBSTITUTE(SUBSTITUTE($B197,W$1,,1),,1))=0,0,W196+1-AR197),"") -> 11 | X197: 62 | Y197: 30 | Z197: 1 | AA197: 3 | AR197: 1 | AS197: 1 | AT197: 1 | AU197: 1 | AV197: 1 | AW197: 15 | AY197: 16
